Workbook

Sheet Sign Off
B2: Sign Off's
B4: Accounting
C6: Name | D6: Title | E6: Date
B7: Preparer | C7: Belen Villalba | D7: Temp Analyst | E7: 2020-01-07
B8: Reviewer | C8: William Adams | D8: Financial Analysis Manager | E8: 2020-01-14
B9: Approver | C9: N/A | D9: N/A | E9: N/A
B11: Audit Services
C13: Name | D13: Title | E13: Date
B14: Preparer
B16: Energy Delivery
C18: Name | D18: Title | E18: Date
B19: Final Reviewer

Sheet A - Contractor Summary
B2: Contractor Summary
B4: Test Plan: (A) Using the drop down list, select the vendor. (B) Ensure address agrees to invoice(s). (C) Enter the distance between vendor address to Plant City, FL. (D) Determine if vendor is part of the SEE (see tab A.1 for listing). (E) Determine if other agreements exist. (F) Using the drop down list, select the Incident Base that the vendor was initially assigned. (G) If the contractor includes multiple crews with different timelines, utilize the '+' symbol at the top of columns 'H' and 'K' (if necessary) to unhide the vendor summary. (H) Click the button to populate the second (and third, if necessary) set of tabs for documentation of those expenses. (I) Complete steps (A) through (F).
F14: G | I14: G | K14: G | M14: G
C15: Vendor #11
G17: H | J17: H
B19: Contractor/Company | C19: MDR Construction | D19: A | G19: A | J19: A
B20: SAP Vendor#
B21: Service Type | C21: Distribution
B23: Address | C23: 631 East Baylis Chapel | D23: B
B24: City | C24: Columbia
B25: State/Providence | C25: MS
B26: Zip | C26: 39429
B27: Country | C27: USA
B29: Distance from FL (in miles) | D29: C
B30: Travel Days (500 m/per day)
B32: Member of the SEE | D32: D
B33: Other Agreement/Contract (Y/N) | D33: E
B34: Incident Base | D34: F
B36: Date Secured | C36: 10/14/2018-Present
B37: Start Travel | C37: 2018-10-14
B38: Date Arrived | C38: 2018-10-14
B39: Date Released | C39: 2019-07-18
B40: Time Released
B41: Released To | C41: local
B42: Arrived Home/Utility* | C42: local
F47: C.1 - Rate Sheets (2) | I47: C.1 - Rate Sheets (3) | K47: C.1 - Rate Sheets (3) | M47: C.1 - Rate Sheets (3)
F48: C.2 - Timesheets - Labor (2) | I48: C.2 - Timesheets - Labor (3) | K48: C.2 - Timesheets - Labor (3) | M48: C.2 - Timesheets - Labor (3)
F49: C.4 - Timesheets - Equipmen (2) | I49: C.4 - Timesheets - Equipmen (3) | K49: C.4 - Timesheets - Equipmen (3) | M49: C.4 - Timesheets - Equipmen (3)
F50: D - Lodging (2) | I50: D - Lodging (3) | K50: D - Lodging (3) | M50: D - Lodging (3)
F51: E - Fuel (2) | I51: E - Fuel (3) | K51: E - Fuel (3) | M51: E - Fuel (3)
F52: F - Meals (2) | I52: F - Meals (3) | K52: F - Meals (3) | M52: F - Meals (3)
F53: G - Per Diem (2) | I53: G - Per Diem (3) | K53: G - Per Diem (3) | M53: G - Per Diem (3)
F54: H - Mileage (2) | I54: H - Mileage (3) | K54: H - Mileage (3) | M54: H - Mileage (3)
F55: I - Other (2) | I55: I - Other (3) | K55: I - Other (3) | M55: I - Other (3)
B59: *Estimates reasonable arrival time
B61: Tickmark Explanation:
B66: Invoice | C66: Foreman | D66: Date Arrived Home | E66: Home Location | F66: Travel Days | I66: Distance
B67: 25-23205 | C67: Waites | D67: 2018-11-14 | E67: Columbia MS | F67: 1 | I67: 313
B68: 25-23205 | C68: Hayes | D68: 2018-11-14 | E68: Holly Springs MS | F68: 1 | I68: 421
B69: 14-24894 | C69: Barnet | D69: 2019-07-18
B70: 14-24894 | C70: Chambley | D70: 2019-07-18
B71: 25-23205 | C71: Johnson | D71: 2018-11-13 | E71: Natchez, MS | I71: 426
B72: 25-23205 | C72: Wyatt | D72: 2018-11-13 | E72: Fort Smith, AR | F72: 2 | I72: 753
B73: 25-23205 | C73: Chisholm | D73: 2018-11-15 | E73: Columbia MS | F73: 1 | I73: 313
B74: 25-23205 | C74: Grant | D74: 2018-11-13 | E74: Natchez, MS | F74: 1 | I74: 426
B75: 25-23205 | C75: England | D75: 2018-11-14 | E75: Fort Smith, AR | F75: 2 | I75: 753
B76: 25-23205 | C76: Jefcoat | D76: 2018-11-14 | E76: Laurel MS | F76: 1 | I76: 294
B77: 25-23205 | C77: Breland | D77: 2018-11-13 | E77: Columbia MS | F77: 1 | I77: 313
B78: 25-23205 | C78: Breland | D78: 2018-11-13 | E78: Columbia MS | F78: 1 | I78: 313
B79: 25-23205 | C79: Thompson | D79: 2018-11-14 | E79: Fort Smith, AR | F79: 2 | I79: 753
B80: 25-23205 | C80: Kirkland | D80: 2018-11-13 | E80: Fort Payne, AL | F80: 1 | I80: 324
B81: 25-23205 | C81: Brown | D81: 2018-11-13 | E81: Storkville, MS | F81: 1 | I81: 327
B82: 25-23205 | C82: Stevens | D82: 2018-11-13 | E82: home ?
B83: 14-24894 | C83: Martin | D83: 2019-07-18
B84: 25-23205 | C84: Culpepper | D84: 2018-11-15 | E84: home ? | F84: 2
B85: 25-23205 | C85: Broom #1 | D85: 2018-11-14 | E85: Columbia MS | F85: 1 | I85: 313
B86: 25-23205 | C86: Broom #2 | D86: 2018-11-14 | E86: Columbia MS | F86: 1 | I86: 313
B87: 25-23205 | C87: Broom #3 | D87: 2018-11-14 | E87: Columbia MS | F87: 1 | I87: 313
B88: 25-23205 | C88: Broom | D88: 2018-11-15 | E88: Columbia MS | F88: 1 | I88: 313
B89: 25-23205 | C89: Sullins | D89: 2018-11-14 | E89: Laurel MS | F89: 1 | I89: 294
B90: 25-23205 | C90: Arrington | D90: 2018-11-15 | E90: Columbia MS | F90: 1 | I90: 313

Sheet A.1 SEE Members
A1: RMAG | B1: RESPONDING COMPANY | C1: COMPANY NAME
A2: SEE
A3: SEE
A4: SEE
A5: SEE
A6: SEE
A7: SEE
A8: SEE
A9: SEE
A10: SEE
A11: SEE
A12: SEE
A13: SEE
A14: SEE
A15: SEE
A16: SEE
A17: SEE
A18: SEE
A19: SEE
A24: SEE
A25: SEE
A26: SEE
A27: SEE
A28: SEE
A29: SEE
A31: SEE
A32: SEE
A33: SEE
A34: SEE
A35: SEE
A40: SEE
A41: SEE
A42: SEE
A43: SEE
A47: SEE
A55: SEE
A56: SEE
A57: SEE
A61: SEE
A64: SEE
A65: SEE

Sheet B - Summary Expenses
B2: Summary of Expenses
B4: Test Plan: (A) Calculate Total Amount Invoiced for each expense category. (B) Using SAP t-code FBL1N, list Vendor Invoices Paid. (C) Ensure there are no differences between the Total Expense Amount and the Total Paid Amount. (D) Ensure there are no difference between Total Invoiced Amount and Total Expense Amount. (E) If applicable, identify difference due to Foreign currency exchange rates.
C9: A
C10: Total Invoiced | D10: Total Calculated | E10: Allowable | F10: Reviewed - Allowed | G10: Reviewed - Not Allowable | H10: Not Allowable
B11: Labor Expense Total | C11: 5509855 | D11: =+'C.2 - Timesheets - Labor'!ARI1086 -> 5509855 | E11: =+'C.2 - Timesheets - Labor'!ARJ1086 -> 5509855 | F11: ='C.3 - Asset by Company'!ANK976 -> 0 | G11: ='C.3 - Asset by Company'!ANL976 -> 0 | H11: =D11-(E11+F11+G11) -> 0
B12: Equipment Expense Total | C12: 3148635.04 | D12: =+'C.4 - Timesheets - Equipment'!BC1252 -> 3148635.04 | E12: =+'C.4 - Timesheets - Equipment'!BD1252 -> 3148635.04 | F12: ='D - Lodging'!W1183 -> 0 | G12: ='D - Lodging'!X1183 -> 0 | H12: 0
B13: Lodging Expense Total | C13: 2272.01 | D13: =+'D - Lodging'!L18 -> 2272.01 | E13: =+'D - Lodging'!T18 -> 2272.01 | G13: ='E - Fuel'!W26 -> 0 | H13: 0
B14: Fuel/Transport Expense Total | C14: 14325.86 | D14: =+'E - Fuel'!J152 -> 14325.86 | E14: =+'E - Fuel'!Q152 -> 14325.86 | H14: 0
B15: Meal Expense Total | C15: 179.18 | D15: =+'F - Meals'!K20 -> 179.18 | E15: =+'F - Meals'!R20 -> 179.18 | F15: ='I - Other'!T141 -> 0 | G15: ='I - Other'!U141 -> 0 | H15: 0
B16: Per Diem Expense Total | C16: 82080 | D16: =+'G - Per Diem'!I97 -> 82080 | E16: =+'G - Per Diem'!N97 -> 82080 | F16: ='H - Mileage'!P103 -> 0 | G16: ='H - Mileage'!Q103 -> 0 | H16: 0
B17: Mileage Expense Total | H17: 0
B18: Other Expense | C18: 2376.84 | D18: =+'I - Other'!K33 -> 2376.84 | E18: =+'I - Other'!R33 -> 2376.84 | F18: ='G - Per Diem'!T27 -> 0 | G18: ='G - Per Diem'!U27 -> 0 | H18: 0
B20: Total Expense per tabs | C20: =SUM(C11:C18) -> 8759723.93 | D20: =SUM(D11:D18) -> 8759723.93 | E20: 8759723.93 | F20: 0 | G20: 0 | H20: 0
B21: Difference | C21: =IF(D21=0,"","1") ->  | D21: =C20-D20 -> 0 | E21: D
B23: Total Expense | D23: =+D20 -> 8759723.93 | E23: (from Total SAP Summary)
B24: Total Paid | D24: =+D109 -> 8759723.93 | E24: (from FBL1N in SAP)
B25: Difference | C25: =IF(D25=0,"",SUM(C21,1)) -> 1 | D25: =D24-D23 -> 3.539025784e-08 | E25: C
B27: Exchange Rate
B28: Fx Adjusted to USD
B29: Difference | C29: =IF(D29=0,"","3") ->  | E29: E
B31: B
B33: Document No | C33: Doc Date | D33: Amount | E33: Reference
B34: 25-23066 | C34: 2018-10-15 | D34: 8129.38 | E34: 668892
B35: 25-23067 | C35: 2018-10-15 | D35: 10530.19 | E35: 669018
B36: 25-23068 | C36: 2018-10-15 | D36: 8867.7 | E36: 669021
B37: 25-23069 | C37: 2018-10-15 | D37: 7098.9 | E37: 669027
B38: 25-23070 | C38: 2018-10-15 | D38: 7109.9 | E38: 669033
B39: 25-23071 | C39: 2018-10-15 | D39: 6383.9 | E39: 669036
B40: 25-23072 | C40: 2018-10-15 | D40: 6522.69 | E40: 669037
B41: 25-23073 | C41: 2018-10-15 | D41: 6333.9 | E41: 669049
B42: 25-23074 | C42: 2018-10-15 | D42: 5883.9 | E42: 669053
B43: 25-23075 | C43: 2018-10-15 | D43: 5883.9 | E43: 669055
B44: 25-23076 | C44: 2018-10-15 | D44: 5933.9 | E44: 669061
B45: 25-23077 | C45: 2018-10-15 | D45: 5883.9 | E45: 669063
B46: 25-23078 | C46: 2018-10-15 | D46: 6254.17 | E46: 669066
B47: 25-23079 | C47: 2018-10-15 | D47: 5883.9 | E47: 669105
B48: 25-23080 | C48: 2018-10-15 | D48: 5883.9 | E48: 669107
B49: 25-23081 | C49: 2018-10-15 | D49: 6104.28 | E49: 669119
B50: 25-23085 | C50: 2018-10-22 | D50: 91161.75 | E50: 669181
B51: 25-23086 | C51: 2018-10-22 | D51: 93752.13 | E51: 669183
B52: 25-23087 | C52: 2018-10-22 | D52: 103322.24 | E52: 669186
B53: 25-23088 | C53: 2018-10-22 | D53: 41270.72 | E53: 669188
B54: 25-23089 | C54: 2018-10-22 | D54: 79832.98 | E54: 669192
B55: 25-23090 | C55: 2018-10-22 | D55: 79630.88 | E55: 669195
B56: 25-23091 | C56: 2018-10-22 | D56: 70465.76 | E56: 669196
B57: 25-23092 | C57: 2018-10-22 | D57: 71499.68 | E57: 669200
B58: 25-23093 | C58: 2018-10-22 | D58: 70939.68 | E58: 669202
B59: 25-23094 | C59: 2018-10-22 | D59: 35613.12 | E59: 669210
B60: 25-23095 | C60: 2018-10-22 | D60: 65899.68 | E60: 669212
B61: 25-23096 | C61: 2018-10-22 | D61: 65899.68 | E61: 669216
B62: 25-23097 | C62: 2018-10-22 | D62: 65899.68 | E62: 669218
B63: 25-23098 | C63: 2018-10-22 | D63: 69509.28 | E63: 669222
B64: 25-23099 | C64: 2018-10-22 | D64: 65899.68 | E64: 669226
B65: 25-23100 | C65: 2018-10-22 | D65: 65899.68 | E65: 669227
B66: 25-23101 | C66: 2018-10-22 | D66: 65899.68 | E66: 669228
B67: 25-23102 | C67: 2018-10-22 | D67: 65954.68 | E67: 669229
B68: 25-23123 | C68: 2018-10-29 | D68: 1352996 | E68: 669572
B69: 25-23141 | C69: 2018-10-31 | D69: 1587156.36 | E69: 670713
B70: 25-23172 | C70: 2018-11-12 | D70: 1794890.84 | E70: 672532
B71: 25-23205 | C71: 2018-11-19 | D71: 925943.84 | E71: 676295
B72: 14-23228 | C72: 2018-11-25 | D72: 25300 | E72: 678286
B73: 14-23245 | C73: 2018-12-02 | D73: 34379 | E73: 678287
B74: 14-23287 | C74: 2018-12-09 | D74: 79084 | E74: 690410
B75: 14-23334 | C75: 2018-12-16 | D75: 79655 | E75: 690411
B76: 14-23385 | C76: 2018-12-24 | D76: 39460 | E76: 687094
B77: 14-23421 | C77: 2019-01-06 | D77: 56589.5 | E77: 690412
B78: 14-23472 | C78: 2019-01-13 | D78: 47846 | E78: 690413
B79: 14-23525 | C79: 2019-01-20 | D79: 53674 | E79: 690414
B80: 14-23570 | C80: 2019-01-28 | D80: 46661 | E80: 697302
B81: 14-23592 | C81: 2019-01-31 | D81: 60861.5 | E81: 697303
B82: 14-23632 | C82: 2019-02-11 | D82: 97073 | E82: 697304
B83: 14-23666 | C83: 2019-02-18 | D83: 49503.5 | E83: 697305
B84: 14-23689 | C84: 2019-02-25 | D84: 60214 | E84: 697306
B85: 14-23730 | C85: 2019-02-28 | D85: 76145.5 | E85: 703130
B86: 14-23731 | C86: 2019-02-28 | D86: 4110 | E86: 703131
B87: 14-23777 | C87: 2019-03-11 | D87: 55572 | E87: 703132
B88: 14-23805 | C88: 2019-03-18 | D88: 62558 | E88: 703133
B89: 14-23841 | C89: 2019-03-25 | D89: 76133 | E89: 703134
B90: 14-23877 | C90: 2019-03-31 | D90: 57957.5 | E90: 707715
B91: 14-23968 | C91: 2019-04-07 | D91: 64363.5 | E91: 707716
B92: 14-24027 | C92: 2019-04-14 | D92: 36113.5 | E92: 710678
B93: 14-24110 | C93: 2019-04-22 | D93: 38638 | E93: 711179
B94: 14-24178 | C94: 2019-04-29 | D94: 39765 | E94: 712544
B95: 14-24274 | C95: 2019-05-06 | D95: 44050 | E95: 712545
B96: 14-24333 | C96: 2019-05-13 | D96: 36813.5 | E96: 714489
B97: 14-24430 | C97: 2019-05-20 | D97: 44416 | E97: 716038
B98: 14-24468 | C98: 2019-05-26 | D98: 36195.5 | E98: 717968
B99: 14-24497 | C99: 2019-06-02 | D99: 42131.5 | E99: 717969
B100: 14-24561 | C100: 2019-06-09 | D100: 35770.5 | E100: 721175
B101: 14-24595 | C101: 2019-06-17 | D101: 41097.5 | E101: 721579
B102: 14-24683 | C102: 2019-06-24 | D102: 36775.5 | E102: 723157
B103: 14-24740 | C103: 2019-06-30 | D103: 48735 | E103: 724671
B104: 14-24798 | C104: 2019-07-08 | D104: 28284 | E104: 726474
B105: 14-24842 | C105: 2019-07-15 | D105: 44682.5 | E105: 727518
B106: 14-24894 | C106: 2019-07-22 | D106: 41089.5 | E106: 727519
D109: =SUM(D34:D108) -> 8759723.93
B111: Tickmark Explanation:

Sheet C.1 - Rate Sheets
B2: Labor Charges - Rate Sheet
B4: Test Plan: (A) Using the vendor rate sheet, ensure that a rate was provided for all Positions and Equipment types.
B6: Labor Types:
B7: ST | C7: Straight Time
B8: OT | C8: Over Time
B9: DT | C9: Double Time
B10: MOB/DMOB | C10: Mobilization/Demobilization Time
B13: Labor per Man Hour | H13: Labor per Equipment Hour
B14: A | H14: A
B15: POSITION | C15: ST | D15: OT | E15: DT | F15: MOB/DMOB | H15: Type | I15: $/HOUR
B16: Foreman | C16: 66 | D16: 100.49 | H16: 18' Material Trailer | I16: 10
B17: Foreman-P | C17: 66 | D17: 99 | H17: 4 Wheeler | I17: 17.6
B18: General Foreman | D18: 107.42 | H18: 4 Wheeler/UTV | I18: 17.6
B19: Groundman | C19: 43 | D19: 64.62 | H19: Back Yard Buggy | I19: 45
B20: Groundman-P | C20: 43 | D20: 64.5 | H20: Crew Cab Pick-up | I20: 24.31
B21: Lineman | C21: 56 | D21: 84.65 | H21: Digger Truck | I21: 47.36
B22: Lineman-P | C22: 56 | D22: 84 | H22: Dozer | I22: 71.5
B23: Mechanic | D23: 69.99 | H23: Dump Trailer | I23: 30
B24: Operator/Truck Driver | C24: 46 | D24: 69.99 | H24: Go Track Bucket | I24: 79.2
B25: Operator/Truck Driver-P | C25: 46 | D25: 69 | H25: Go Track Digger | I25: 79.2
B26: Safety Coordinator | D26: 100.49 | H26: Log Skidder w/ Grapples | I26: 72.6
B27: Storm Team Leader | D27: 123.17 | H27: LowBoy Trailer Double Axle | I27: 33.55
B28: Foreman-Flat | C28: =5600/40 -> 140 | H28: Material Handler Bucket 57' | I28: 47.36
B29: Lineman-Flat | C29: 0 | H29: Pole Trailer | I29: 17.6
H30: Rope Rig | I30: 25
H31: Service Truck | I31: 35.75
H32: Skid Steer | I32: 50
H33: Tension Trailer | I33: 25
H34: Tractor Truck | I34: 45.65
H35: Various | I35: 720
H36: Crew Cab Pick-up-P | I36: 22
H37: Material Handler Bucket 57'-P | I37: 46
H38: Digger Truck-P | I38: 46
H39: Pole Trailer-P | I39: 15
H40: Crew Cab Pick-up-Flat | I40: 0
H41: Material Handler Bucket 57'-Flat | I41: 0
B54: Tickmark Explanation:
B55: 1

Sheet C.2 - Timesheets - Labor
B2: Labor Charges - Time Card
B4: Test Plan: | C4: Obtain the time cards. (A) Using the Asset by Company tab (C.3), populate the crew members names and positions (if provided). Find additional information regarding individual crew member from related invoice. (B) Enter hours worked from time card(s). (C) Confirm that the dates per the time cards fall between dates provided per 'A - Contractor Summary' tab. (D) Confirm the labor type charged agrees to the rate sheet. (E) Identify any labor charges to be reviewed (manually enter amounts based on reasonability of time period labor was charged, discrepancies between timecards and invoice, etc. (F) For charges which required further review, document review (include why it was determined to be allowed/disallowed via a tickmark).
B10: Rx | C10: Recalculated.
B11: a | C11: Provided from tab 'C.1 - Rate Sheets'.
B12: b | C12: Check figure should equal $0. Cell will appear yellow if discrepancies are noted.
C14: A | H14: Rx | J14: C | K14: a | ARB14: Rx | ARF14: Rx | ARJ14: Rx | ARL14: E | ARM14: F
B15: # | C15: Name | D15: Position | E15: Company | F15: Crew# | G15: Invoice# | H15: Start Date | I15: End Date | J15: Dates Worked Reasonable? | K15: Rates | N15: 2018-10-14 | R15: 2018-10-15 | V15: 2018-10-16 | Z15: 2018-10-17 | AD15: 2018-10-18 | AH15: 2018-10-19 | AL15: 2018-10-20 | AP15: 2018-10-21 | AT15: 2018-10-22 | AX15: 2018-10-23 | BB15: 2018-10-24 | BF15: 2018-10-25 | BJ15: 2018-10-26 | BN15: 2018-10-27 | BR15: 2018-10-28 | BV15: 2018-10-29 | BZ15: 2018-10-30 | CD15: 2018-10-31 | CH15: 2018-11-01 | CL15: 2018-11-02 | CP15: 2018-11-03 | CT15: 2018-11-04 | CX15: 2018-11-05 | DB15: 2018-11-06 | DF15: 2018-11-07 | DJ15: 2018-11-08 | DN15: 2018-11-09 | DR15: 2018-11-10 | DV15: 2018-11-11 | DZ15: 2018-11-12 | ED15: 2018-11-13 | EH15: 2018-11-14 | EL15: 2018-11-15 | EP15: 2018-11-16 | ET15: 2018-11-17 | EX15: 2018-11-18 | FB15: 2018-11-19 | FF15: 2018-11-20 | FJ15: 2018-11-21 | FN15: 2018-11-22 | FR15: 2018-11-23 | FV15: 2018-11-24 | FZ15: 2018-11-25 | GD15: 2018-11-26 | GH15: 2018-11-27 | GL15: 2018-11-28 | GP15: 2018-11-29 | GT15: 2018-11-30 | GX15: 2018-12-01 | HB15: 2018-12-02 | HF15: 2018-12-03 | HJ15: 2018-12-04 | HN15: 2018-12-05 | HR15: 2018-12-06 | HV15: 2018-12-07 | HZ15: 2018-12-08 | ID15: 2018-12-09 | IH15: 2018-12-10 | IL15: 2018-12-11 | IP15: 2018-12-12 | IT15: 2018-12-13 | IX15: 2018-12-14 | JB15: 2018-12-15 | JF15: 2018-12-16 | JJ15: 2018-12-17 | JN15: 2018-12-18 | JR15: 2018-12-19 | JV15: 2018-12-20 | JZ15: 2018-12-21 | KD15: 2018-12-22 | KH15: 2018-12-23 | KL15: 2018-12-24 | KP15: 2018-12-25 | KT15: 2018-12-26 | KX15: 2018-12-27 | LB15: 2018-12-28 | LF15: 2018-12-29 | LJ15: 2018-12-30 | LN15: 2018-12-31 | LR15: 2019-01-01 | LV15: 2019-01-02 | LZ15: 2019-01-03 | MD15: 2019-01-04 | MH15: 2019-01-05 | ML15: 2019-01-06 | MP15: 2019-01-07 | MT15: 2019-01-08 | MX15: 2019-01-09 | NB15: 2019-01-10 | NF15: 2019-01-11 | NJ15: 2019-01-12 | NN15: 2019-01-13 | NR15: 2019-01-14 | NV15: 2019-01-15 | NZ15: 2019-01-16 | OD15: 2019-01-17 | OH15: 2019-01-18 | OL15: 2019-01-19 | OP15: 2019-01-20 | OT15: 43486 | OX15: 43487 | PB15: 43488 | PF15: 43489 | PJ15: 2019-01-25 | PN15: 2019-01-26 | PR15: 2019-01-27 | PV15: 2019-01-28 | PZ15: 2019-01-29 | QD15: 2019-01-30 | QH15: 2019-01-31 | QL15: 2019-02-01 | QP15: 2019-02-02 | QT15: 2019-02-03 | QX15: 2019-02-04 | RB15: 2019-02-05 | RF15: 2019-02-06 | RJ15: 2019-02-07 | RN15: 2019-02-08 | RR15: 2019-02-09 | RV15: 2019-02-10 | RZ15: 2019-02-11 | SD15: 2019-02-12 | SH15: 2019-02-13 | SL15: 2019-02-14 | SP15: 2019-02-15 | ST15: 2019-02-16 | SX15: 2019-02-17 | TB15: 2019-02-18 | TF15: 2019-02-19 | TJ15: 2019-02-20 | TN15: 2019-02-21 | TR15: 2019-02-22 | TV15: 2019-02-23 | TZ15: 2019-02-24 | UD15: 2019-02-25 | UH15: 2019-02-26 | UL15: 2019-02-27 | UP15: 2019-02-28 | UT15: 2019-03-01 | UX15: 2019-03-02 | VB15: 2019-03-03 | VF15: 2019-03-04 | VJ15: 2019-03-05 | VN15: 2019-03-06 | VR15: 2019-03-07 | VV15: 2019-03-08 | VZ15: 2019-03-09 | WD15: 2019-03-10 | WH15: 2019-03-11 | WL15: 2019-03-12 | WP15: 2019-03-13 | WT15: 2019-03-14 | WX15: 2019-03-15 | XB15: 2019-03-16 | XF15: 2019-03-17 | XJ15: 2019-03-18 | XN15: 2019-03-19 | XR15: 2019-03-20 | XV15: 2019-03-21 | XZ15: 2019-03-22 | YD15: 2019-03-23 | YH15: 2019-03-24 | YL15: 2019-03-25 | YP15: 2019-03-26 | YT15: 2019-03-27 | YX15: 2019-03-28 | ZB15: 2019-03-29 | ZF15: 2019-03-30 | ZJ15: 2019-03-31 | ZN15: 2019-04-01 | ZR15: 2019-04-02 | ZV15: 2019-04-03 | ZZ15: 2019-04-04 | AAD15: 2019-04-05 | AAH15: 2019-04-06 | AAL15: 2019-04-07 | AAP15: 2019-04-08 | AAT15: 2019-04-09 | AAX15: 2019-04-10 | ABB15: 2019-04-11 | ABF15: 2019-04-12 | ABJ15: 2019-04-13 | ABN15: 2019-04-14 | ABR15: 2019-04-15 | ABV15: 2019-04-16 | ABZ15: 2019-04-17 | ACD15: 2019-04-18 | ACH15: 2019-04-19 | ACL15: 2019-04-20 | ACP15: 2019-04-21 | ACT15: 2019-04-22 | ACX15: 2019-04-23 | ADB15: 2019-04-24 | ADF15: 2019-04-25 | ADJ15: 2019-04-26 | ADN15: 2019-04-27 | ADR15: 2019-04-28 | ADV15: 2019-04-29 | ADZ15: 2019-04-30 | AED15: 2019-05-01 | AEH15: 2019-05-02 | AEL15: 2019-05-03 | AEP15: 2019-05-04 | AET15: 2019-05-05 | AEX15: 2019-05-06 | AFB15: 2019-05-07 | AFF15: 2019-05-08 | AFJ15: 2019-05-09 | AFN15: 2019-05-10 | AFR15: 2019-05-11 | AFV15: 2019-05-12 | AFZ15: 2019-05-13 | AGD15: 2019-05-14 | AGH15: 2019-05-15 | AGL15: 2019-05-16 | AGP15: 2019-05-17 | AGT15: 2019-05-18 | AGX15: 2019-05-19 | AHB15: 2019-05-20 | AHF15: 2019-05-21 | AHJ15: 2019-05-22 | AHN15: 2019-05-23 | AHR15: 2019-05-24 | AHV15: 2019-05-25 | AHZ15: 2019-05-26 | AID15: 2019-05-27 | AIH15: 2019-05-28 | AIL15: 2019-05-29 | AIP15: 2019-05-30 | AIT15: 2019-05-31 | AIX15: 2019-06-01 | AJB15: 2019-06-02 | AJF15: 2019-06-03 | AJJ15: 2019-06-04 | AJN15: 2019-06-05 | AJR15: 2019-06-06 | AJV15: 2019-06-07 | AJZ15: 2019-06-08 | AKD15: 2019-06-09 | AKH15: 2019-06-10 | AKL15: 2019-06-11 | AKP15: 2019-06-12 | AKT15: 2019-06-13 | AKX15: 2019-06-14 | ALB15: 2019-06-15 | ALF15: 2019-06-16 | ALJ15: 2019-06-17 | ALN15: 2019-06-18 | ALR15: 2019-06-19 | ALV15: 2019-06-20 | ALZ15: 2019-06-21 | AMD15: 2019-06-22 | AMH15: 2019-06-23 | AML15: 2019-06-24 | AMP15: 2019-06-25 | AMT15: 2019-06-26 | AMX15: 2019-06-27 | ANB15: 2019-06-28 | ANF15: 2019-06-29 | ANJ15: 2019-06-30 | ANN15: 2019-07-01 | ANR15: 2019-07-02 | ANV15: 2019-07-03 | ANZ15: 2019-07-04 | AOD15: 2019-07-05 | AOH15: 2019-07-06 | AOL15: 2019-07-07 | AOP15: 2019-07-08 | AOT15: 2019-07-09 | AOX15: 2019-07-10 | APB15: 2019-07-11 | APF15: 2019-07-12 | APJ15: 2019-07-13 | APN15: 2019-07-14 | APR15: 2019-07-15 | APV15: 2019-07-16 | APZ15: 2019-07-17 | AQD15: 2019-07-18 | AQH15: 2019-07-19 | AQL15: 2019-07-20 | AQP15: 2019-07-21 | AQT15: 2019-07-22 | AQX15: 2019-07-23 | ARB15: Total Labor Hours | ARF15: Total Labor $ | ARJ15: Allowable Charges | ARK15: Labor Type Appropriate? | ARL15: To Be Reviewed | ARM15: Reviewed - Allowable Charge | ARN15: Reviewed - Unallowable Charge | ARO15: Tickmarks
ARB16: Total ST | ARC16: OT | ARD16: DT | ARE16: Total Hours | ARF16: Total ST $ | ARG16: Total OT $ | ARH16: Total DT $ | ARI16: Total Labor $
K18: ST | L18: OT | M18: DT | N18: ST | O18: OT | P18: DT | Q18: Total | R18: ST | S18: OT | T18: DT | U18: Total | V18: ST | W18: OT | X18: DT | Y18: Total | Z18: ST | AA18: OT | AB18: DT | AC18: Total | AD18: ST | AE18: OT | AF18: DT | AG18: Total | AH18: ST | AI18: OT | AJ18: DT | AK18: Total | AL18: ST | AM18: OT | AN18: DT | AO18: Total | AP18: ST | AQ18: OT | AR18: DT | AS18: Total | AT18: ST | AU18: OT | AV18: DT | AW18: Total | AX18: ST | AY18: OT | AZ18: DT | BA18: Total | BB18: ST | BC18: OT | BD18: DT | BE18: Total | BF18: ST | BG18: OT | BH18: DT | BI18: Total | BJ18: ST | BK18: OT | BL18: DT | BM18: Total | BN18: ST | BO18: OT | BP18: DT | BQ18: Total | BR18: ST | BS18: OT | BT18: DT | BU18: Total | BV18: ST | BW18: OT | BX18: DT | BY18: Total | BZ18: ST | CA18: OT | CB18: DT | CC18: Total | CD18: ST | CE18: OT | CF18: DT | CG18: Total | CH18: ST | CI18: OT | CJ18: DT | CK18: Total | CL18: ST | CM18: OT | CN18: DT | CO18: Total | CP18: ST | CQ18: OT | CR18: DT | CS18: Total | CT18: ST | CU18: OT | CV18: DT | CW18: Total | CX18: ST | CY18: OT | CZ18: DT | DA18: Total | DB18: ST | DC18: OT | DD18: DT | DE18: Total | DF18: ST | DG18: OT | DH18: DT | DI18: Total | DJ18: ST | DK18: OT | DL18: DT | DM18: Total | DN18: ST | DO18: OT | DP18: DT | DQ18: Total | DR18: ST | DS18: OT | DT18: DT | DU18: Total | DV18: ST | DW18: OT | DX18: DT | DY18: Total | DZ18: ST | EA18: OT | EB18: DT | EC18: Total | ED18: ST | EE18: OT | EF18: DT | EG18: Total | EH18: ST | EI18: OT | EJ18: DT | EK18: Total | EL18: ST | EM18: OT | EN18: DT | EO18: Total | EP18: ST | EQ18: OT | ER18: DT | ES18: Total | ET18: ST | EU18: OT | EV18: DT | EW18: Total | EX18: ST | EY18: OT | EZ18: DT | FA18: Total | FB18: ST | FC18: OT | FD18: DT | FE18: Total | FF18: ST | FG18: OT | FH18: DT | FI18: Total | FJ18: ST | FK18: OT | FL18: DT | FM18: Total | FN18: ST | FO18: OT | FP18: DT | FQ18: Total | FR18: ST | FS18: OT | FT18: DT | FU18: Total | FV18: ST | FW18: OT | FX18: DT | FY18: Total | FZ18: ST | GA18: OT | GB18: DT | GC18: Total | GD18: ST | GE18: OT | GF18: DT | GG18: Total | GH18: ST | GI18: OT | GJ18: DT | GK18: Total | GL18: ST | GM18: OT | GN18: DT | GO18: Total | GP18: ST | GQ18: OT | GR18: DT | GS18: Total | GT18: ST | GU18: OT | GV18: DT | GW18: Total | GX18: ST | GY18: OT | GZ18: DT | HA18: Total | HB18: ST | HC18: OT | HD18: DT | HE18: Total | HF18: ST | HG18: OT | HH18: DT | HI18: Total | HJ18: ST | HK18: OT | HL18: DT | HM18: Total | HN18: ST | HO18: OT | HP18: DT | HQ18: Total | HR18: ST | HS18: OT | HT18: DT | HU18: Total | HV18: ST | HW18: OT | HX18: DT | HY18: Total | HZ18: ST | IA18: OT | IB18: DT | IC18: Total | ID18: ST | IE18: OT | IF18: DT | IG18: Total | IH18: ST | II18: OT | IJ18: DT | IK18: Total | IL18: ST | IM18: OT | IN18: DT | IO18: Total | IP18: ST | IQ18: OT | IR18: DT | IS18: Total | IT18: ST | IU18: OT | IV18: DT | IW18: Total | IX18: ST | IY18: OT | IZ18: DT | JA18: Total | JB18: ST | JC18: OT | JD18: DT | JE18: Total | JF18: ST | JG18: OT | JH18: DT | JI18: Total | JJ18: ST | JK18: OT | JL18: DT | JM18: Total | JN18: ST | JO18: OT | JP18: DT | JQ18: Total | JR18: ST | JS18: OT | JT18: DT | JU18: Total | JV18: ST | JW18: OT | JX18: DT | JY18: Total | JZ18: ST | KA18: OT | KB18: DT | KC18: Total | KD18: ST | KE18: OT | KF18: DT | KG18: Total | KH18: ST | KI18: OT | KJ18: DT | KK18: Total | KL18: ST | KM18: OT | KN18: DT | KO18: Total | KP18: ST | KQ18: OT | KR18: DT | KS18: Total | KT18: ST | KU18: OT | KV18: DT | KW18: Total | KX18: ST | KY18: OT | KZ18: DT | LA18: Total | LB18: ST | LC18: OT | LD18: DT | LE18: Total | LF18: ST | LG18: OT | LH18: DT | LI18: Total | LJ18: ST | LK18: OT | LL18: DT | LM18: Total | LN18: ST | LO18: OT | LP18: DT | LQ18: Total | LR18: ST | LS18: OT | LT18: DT | LU18: Total | LV18: ST | LW18: OT | LX18: DT | LY18: Total | LZ18: ST | MA18: OT | MB18: DT | MC18: Total | MD18: ST | ME18: OT | MF18: DT | MG18: Total | MH18: ST | MI18: OT | MJ18: DT | MK18: Total | ML18: ST | MM18: OT | MN18: DT | MO18: Total | MP18: ST | MQ18: OT | MR18: DT | MS18: Total | MT18: ST | MU18: OT | MV18: DT | MW18: Total | MX18: ST | MY18: OT | MZ18: DT | NA18: Total | NB18: ST | NC18: OT | ND18: DT | NE18: Total | NF18: ST | NG18: OT | NH18: DT | NI18: Total | NJ18: ST | NK18: OT | NL18: DT | NM18: Total | NN18: ST | NO18: OT | NP18: DT | NQ18: Total | NR18: ST | NS18: OT | NT18: DT | NU18: Total | NV18: ST | NW18: OT | NX18: DT | NY18: Total | NZ18: ST | OA18: OT | OB18: DT | OC18: Total | OD18: ST | OE18: OT | OF18: DT | OG18: Total | OH18: ST | OI18: OT | OJ18: DT | OK18: Total | OL18: ST | OM18: OT | ON18: DT | OO18: Total | OP18: ST | OQ18: OT | OR18: DT | OS18: Total | OT18: ST | OU18: OT | OV18: DT | OW18: Total | OX18: ST | OY18: OT | OZ18: DT | PA18: Total | PB18: ST | PC18: OT | PD18: DT | PE18: Total | PF18: ST | PG18: OT | PH18: DT | PI18: Total | PJ18: ST | PK18: OT | PL18: DT | PM18: Total | PN18: ST | PO18: OT | PP18: DT | PQ18: Total | PR18: ST | PS18: OT | PT18: DT | PU18: Total | PV18: ST | PW18: OT | PX18: DT | PY18: Total | PZ18: ST | QA18: OT | QB18: DT | QC18: Total | QD18: ST | QE18: OT | QF18: DT | QG18: Total | QH18: ST | QI18: OT | QJ18: DT | QK18: Total | QL18: ST | QM18: OT | QN18: DT | QO18: Total | QP18: ST | QQ18: OT | QR18: DT | QS18: Total | QT18: ST | QU18: OT | QV18: DT | QW18: Total | QX18: ST | QY18: OT | QZ18: DT | RA18: Total | RB18: ST | RC18: OT | RD18: DT | RE18: Total | RF18: ST | RG18: OT | RH18: DT | RI18: Total | RJ18: ST | RK18: OT | RL18: DT | RM18: Total | RN18: ST | RO18: OT | RP18: DT | RQ18: Total | RR18: ST | RS18: OT | RT18: DT | RU18: Total | RV18: ST | RW18: OT | RX18: DT | RY18: Total | RZ18: ST | SA18: OT | SB18: DT | SC18: Total | SD18: ST | SE18: OT | SF18: DT | SG18: Total | SH18: ST | SI18: OT | SJ18: DT | SK18: Total | SL18: ST | SM18: OT | SN18: DT | SO18: Total | SP18: ST | SQ18: OT | SR18: DT | SS18: Total | ST18: ST | SU18: OT | SV18: DT | SW18: Total | SX18: ST | SY18: OT | SZ18: DT | TA18: Total | TB18: ST | TC18: OT | TD18: DT | TE18: Total | TF18: ST | TG18: OT | TH18: DT | TI18: Total | TJ18: ST | TK18: OT | TL18: DT | TM18: Total | TN18: ST | TO18: OT | TP18: DT | TQ18: Total | TR18: ST | TS18: OT | TT18: DT | TU18: Total | TV18: ST | TW18: OT | TX18: DT | TY18: Total | TZ18: ST | UA18: OT | UB18: DT | UC18: Total | UD18: ST | UE18: OT | UF18: DT | UG18: Total | UH18: ST | UI18: OT | UJ18: DT | UK18: Total | UL18: ST | UM18: OT | UN18: DT | UO18: Total | UP18: ST | UQ18: OT | UR18: DT | US18: Total | UT18: ST | UU18: OT | UV18: DT | UW18: Total | UX18: ST | UY18: OT | UZ18: DT | VA18: Total | VB18: ST | VC18: OT | VD18: DT | VE18: Total | VF18: ST | VG18: OT | VH18: DT | VI18: Total | VJ18: ST | VK18: OT | VL18: DT | VM18: Total | VN18: ST | VO18: OT | VP18: DT | VQ18: Total | VR18: ST | VS18: OT | VT18: DT | VU18: Total | VV18: ST | VW18: OT | VX18: DT | VY18: Total | VZ18: ST | WA18: OT | WB18: DT | WC18: Total | WD18: ST | WE18: OT | WF18: DT | WG18: Total | WH18: ST | WI18: OT | WJ18: DT | WK18: Total | WL18: ST | WM18: OT | WN18: DT | WO18: Total | WP18: ST | WQ18: OT | WR18: DT | WS18: Total | WT18: ST | WU18: OT | WV18: DT | WW18: Total | WX18: ST | WY18: OT | WZ18: DT | XA18: Total | XB18: ST | XC18: OT | XD18: DT | XE18: Total | XF18: ST | XG18: OT | XH18: DT | XI18: Total | XJ18: ST | XK18: OT | XL18: DT | XM18: Total | XN18: ST | XO18: OT | XP18: DT | XQ18: Total | XR18: ST | XS18: OT | XT18: DT | XU18: Total | XV18: ST | XW18: OT | XX18: DT | XY18: Total | XZ18: ST | YA18: OT | YB18: DT | YC18: Total | YD18: ST | YE18: OT | YF18: DT | YG18: Total | YH18: ST | YI18: OT | YJ18: DT | YK18: Total | YL18: ST | YM18: OT | YN18: DT | YO18: Total | YP18: ST | YQ18: OT | YR18: DT | YS18: Total | YT18: ST | YU18: OT | YV18: DT | YW18: Total | YX18: ST | YY18: OT | YZ18: DT | ZA18: Total | ZB18: ST | ZC18: OT | ZD18: DT | ZE18: Total | ZF18: ST | ZG18: OT | ZH18: DT | ZI18: Total | ZJ18: ST | ZK18: OT | ZL18: DT | ZM18: Total | ZN18: ST | ZO18: OT | ZP18: DT | ZQ18: Total | ZR18: ST | ZS18: OT | ZT18: DT | ZU18: Total | ZV18: ST | ZW18: OT | ZX18: DT | ZY18: Total | ZZ18: ST | AAA18: OT | AAB18: DT | AAC18: Total | AAD18: ST | AAE18: OT | AAF18: DT | AAG18: Total | AAH18: ST | AAI18: OT | AAJ18: DT | AAK18: Total | AAL18: ST | AAM18: OT | AAN18: DT | AAO18: Total | AAP18: ST | AAQ18: OT | AAR18: DT | AAS18: Total | AAT18: ST | AAU18: OT | AAV18: DT | AAW18: Total | AAX18: ST | AAY18: OT | AAZ18: DT | ABA18: Total | ABB18: ST | ABC18: OT | ABD18: DT | ABE18: Total | ABF18: ST | ABG18: OT | ABH18: DT | ABI18: Total | ABJ18: ST | ABK18: OT | ABL18: DT | ABM18: Total | ABN18: ST | ABO18: OT | ABP18: DT | ABQ18: Total | ABR18: ST | ABS18: OT | ABT18: DT | ABU18: Total | ABV18: ST | ABW18: OT | ABX18: DT | ABY18: Total | ABZ18: ST | ACA18: OT | ACB18: DT | ACC18: Total | ACD18: ST | ACE18: OT | ACF18: DT | ACG18: Total | ACH18: ST | ACI18: OT | ACJ18: DT | ACK18: Total | ACL18: ST | ACM18: OT | ACN18: DT | ACO18: Total | ACP18: ST | ACQ18: OT | ACR18: DT | ACS18: Total | ACT18: ST | ACU18: OT | ACV18: DT | ACW18: Total | ACX18: ST | ACY18: OT | ACZ18: DT | ADA18: Total | ADB18: ST | ADC18: OT | ADD18: DT | ADE18: Total | ADF18: ST | ADG18: OT | ADH18: DT | ADI18: Total | ADJ18: ST | ADK18: OT | ADL18: DT | ADM18: Total | ADN18: ST | ADO18: OT | ADP18: DT | ADQ18: Total | ADR18: ST | ADS18: OT | ADT18: DT | ADU18: Total | ADV18: ST | ADW18: OT | ADX18: DT | ADY18: Total | ADZ18: ST | AEA18: OT | AEB18: DT | AEC18: Total | AED18: ST | AEE18: OT | AEF18: DT | AEG18: Total | AEH18: ST | AEI18: OT | AEJ18: DT | AEK18: Total | AEL18: ST | AEM18: OT | AEN18: DT | AEO18: Total | AEP18: ST | AEQ18: OT | AER18: DT | AES18: Total | AET18: ST | AEU18: OT | AEV18: DT | AEW18: Total | AEX18: ST | AEY18: OT | AEZ18: DT | AFA18: Total | AFB18: ST | AFC18: OT | AFD18: DT | AFE18: Total | AFF18: ST | AFG18: OT | AFH18: DT | AFI18: Total | AFJ18: ST | AFK18: OT | AFL18: DT | AFM18: Total | AFN18: ST | AFO18: OT | AFP18: DT | AFQ18: Total | AFR18: ST | AFS18: OT | AFT18: DT | AFU18: Total | AFV18: ST | AFW18: OT | AFX18: DT | AFY18: Total | AFZ18: ST | AGA18: OT | AGB18: DT | AGC18: Total | AGD18: ST | AGE18: OT | AGF18: DT | AGG18: Total | AGH18: ST | AGI18: OT | AGJ18: DT | AGK18: Total | AGL18: ST | AGM18: OT | AGN18: DT | AGO18: Total | AGP18: ST | AGQ18: OT | AGR18: DT | AGS18: Total | AGT18: ST | AGU18: OT | AGV18: DT | AGW18: Total | AGX18: ST | AGY18: OT | AGZ18: DT | AHA18: Total | AHB18: ST | AHC18: OT | AHD18: DT | AHE18: Total | AHF18: ST | AHG18: OT | AHH18: DT | AHI18: Total | AHJ18: ST | AHK18: OT | AHL18: DT | AHM18: Total | AHN18: ST | AHO18: OT | AHP18: DT | AHQ18: Total | AHR18: ST | AHS18: OT | AHT18: DT | AHU18: Total | AHV18: ST | AHW18: OT | AHX18: DT | AHY18: Total | AHZ18: ST | AIA18: OT | AIB18: DT | AIC18: Total | AID18: ST | AIE18: OT | AIF18: DT | AIG18: Total | AIH18: ST | AII18: OT | AIJ18: DT | AIK18: Total | AIL18: ST | AIM18: OT | AIN18: DT | AIO18: Total | AIP18: ST | AIQ18: OT | AIR18: DT | AIS18: Total | AIT18: ST | AIU18: OT | AIV18: DT | AIW18: Total | AIX18: ST | AIY18: OT | AIZ18: DT | AJA18: Total | AJB18: ST | AJC18: OT | AJD18: DT | AJE18: Total | AJF18: ST | AJG18: OT | AJH18: DT | AJI18: Total | AJJ18: ST | AJK18: OT | AJL18: DT | AJM18: Total | AJN18: ST | AJO18: OT | AJP18: DT | AJQ18: Total | AJR18: ST | AJS18: OT | AJT18: DT | AJU18: Total | AJV18: ST | AJW18: OT | AJX18: DT | AJY18: Total | AJZ18: ST | AKA18: OT | AKB18: DT | AKC18: Total | AKD18: ST | AKE18: OT | AKF18: DT | AKG18: Total | AKH18: ST | AKI18: OT | AKJ18: DT | AKK18: Total | AKL18: ST | AKM18: OT | AKN18: DT | AKO18: Total | AKP18: ST | AKQ18: OT | AKR18: DT | AKS18: Total | AKT18: ST | AKU18: OT | AKV18: DT | AKW18: Total | AKX18: ST | AKY18: OT | AKZ18: DT | ALA18: Total | ALB18: ST | ALC18: OT | ALD18: DT | ALE18: Total | ALF18: ST | ALG18: OT | ALH18: DT | ALI18: Total | ALJ18: ST | ALK18: OT | ALL18: DT | ALM18: Total | ALN18: ST | ALO18: OT | ALP18: DT | ALQ18: Total | ALR18: ST | ALS18: OT | ALT18: DT | ALU18: Total | ALV18: ST | ALW18: OT | ALX18: DT | ALY18: Total | ALZ18: ST | AMA18: OT | AMB18: DT | AMC18: Total | AMD18: ST | AME18: OT | AMF18: DT | AMG18: Total | AMH18: ST | AMI18: OT | AMJ18: DT | AMK18: Total | AML18: ST | AMM18: OT | AMN18: DT | AMO18: Total | AMP18: ST | AMQ18: OT | AMR18: DT | AMS18: Total | AMT18: ST | AMU18: OT | AMV18: DT | AMW18: Total | AMX18: ST | AMY18: OT | AMZ18: DT | ANA18: Total | ANB18: ST | ANC18: OT | AND18: DT | ANE18: Total | ANF18: ST | ANG18: OT | ANH18: DT | ANI18: Total | ANJ18: ST | ANK18: OT | ANL18: DT | ANM18: Total | ANN18: ST | ANO18: OT | ANP18: DT | ANQ18: Total | ANR18: ST | ANS18: OT | ANT18: DT | ANU18: Total | ANV18: ST | ANW18: OT | ANX18: DT | ANY18: Total | ANZ18: ST | AOA18: OT | AOB18: DT | AOC18: Total | AOD18: ST | AOE18: OT | AOF18: DT | AOG18: Total | AOH18: ST | AOI18: OT | AOJ18: DT | AOK18: Total | AOL18: ST | AOM18: OT | AON18: DT | AOO18: Total | AOP18: ST | AOQ18: OT | AOR18: DT | AOS18: Total | AOT18: ST | AOU18: OT | AOV18: DT | AOW18: Total | AOX18: ST | AOY18: OT | AOZ18: DT | APA18: Total | APB18: ST | APC18: OT | APD18: DT | APE18: Total | APF18: ST | APG18: OT | APH18: DT | API18: Total | APJ18: ST | APK18: OT | APL18: DT | APM18: Total | APN18: ST | APO18: OT | APP18: DT | APQ18: Total | APR18: ST | APS18: OT | APT18: DT | APU18: Total | APV18: ST | APW18: OT | APX18: DT | APY18: Total | APZ18: ST | AQA18: OT | AQB18: DT | AQC18: Total | AQD18: ST | AQE18: OT | AQF18: DT | AQG18: Total | AQH18: ST | AQI18: OT | AQJ18: DT | AQK18: Total | AQL18: ST | AQM18: OT | AQN18: DT | AQO18: Total | AQP18: ST | AQQ18: OT | AQR18: DT | AQS18: Total | AQT18: ST | AQU18: OT | AQV18: DT | AQW18: Total | AQX18: ST | AQY18: OT | AQZ18: DT | ARA18: Total
B19: 1 | C19: Brian Barnett | D19: Storm Team Leader | E19: Vendor No 11 | F19: Barnett | G19: 25-23066 | H19: 2018-10-14 | I19: 2018-10-14 | J19: =IF(AND(H19>='A - Contractor Summary'!$C$36,I19<='A - Contractor Summary'!$C$42),"Yes","No") -> No | K19: =VLOOKUP($D19,'C.1 - Rate Sheets'!B:I,2,FALSE) -> 0 | L19: =VLOOKUP($D19,'C.1 - Rate Sheets'!B:I,3,FALSE) -> 123.17 | M19: =VLOOKUP($D19,'C.1 - Rate Sheets'!B:I,4,FALSE) -> 0 | O19: 10 | Q19: =SUM(N19:P19) -> 10 | U19: =SUM(R19:T19) -> 0 | Y19: =SUM(V19:X19) -> 0 | AC19: =SUM(Z19:AB19) -> 0 | AG19: =SUM(AD19:AF19) -> 0 | AK19: =SUM(AH19:AJ19) -> 0 | AO19: =SUM(AL19:AN19) -> 0 | AS19: =SUM(AP19:AR19) -> 0 | AW19: =SUM(AT19:AV19) -> 0 | BA19: =SUM(AX19:AZ19) -> 0 | BE19: =SUM(BB19:BD19) -> 0 | BI19: =SUM(BF19:BH19) -> 0 | BM19: =SUM(BJ19:BL19) -> 0 | BQ19: =SUM(BN19:BP19) -> 0 | BU19: =SUM(BR19:BT19) -> 0 | BY19: =SUM(BV19:BX19) -> 0 | CC19: =SUM(BZ19:CB19) -> 0 | CG19: =SUM(CD19:CF19) -> 0 | CK19: =SUM(CH19:CJ19) -> 0 | CO19: =SUM(CL19:CN19) -> 0 | CS19: =SUM(CP19:CR19) -> 0 | CW19: =SUM(CT19:CV19) -> 0 | DA19: =SUM(CX19:CZ19) -> 0 | DE19: =SUM(DB19:DD19) -> 0 | DI19: =SUM(DF19:DH19) -> 0 | DM19: =SUM(DJ19:DL19) -> 0 | DQ19: =SUM(DN19:DP19) -> 0 | DU19: =SUM(DR19:DT19) -> 0 | DY19: =SUM(DV19:DX19) -> 0 | EC19: =SUM(DZ19:EB19) -> 0 | EG19: =SUM(ED19:EF19) -> 0 | EK19: =SUM(EH19:EJ19) -> 0 | EO19: =SUM(EL19:EN19) -> 0 | ES19: =SUM(EP19:ER19) -> 0 | EW19: =SUM(ET19:EV19) -> 0 | FA19: =SUM(EX19:EZ19) -> 0 | FE19: =SUM(FB19:FD19) -> 0 | FI19: =SUM(FF19:FH19) -> 0 | FM19: =SUM(FJ19:FL19) -> 0 | FQ19: =SUM(FN19:FP19) -> 0 | FU19: =SUM(FR19:FT19) -> 0 | FY19: =SUM(FV19:FX19) -> 0 | GC19: =SUM(FZ19:GB19) -> 0 | GG19: =SUM(GD19:GF19) -> 0 | GK19: =SUM(GH19:GJ19) -> 0 | GO19: =SUM(GL19:GN19) -> 0 | GS19: =SUM(GP19:GR19) -> 0 | GW19: =SUM(GT19:GV19) -> 0 | HA19: =SUM(GX19:GZ19) -> 0 | HE19: =SUM(HB19:HD19) -> 0 | HI19: =SUM(HF19:HH19) -> 0 | HM19: =SUM(HJ19:HL19) -> 0 | HQ19: =SUM(HN19:HP19) -> 0 | HU19: =SUM(HR19:HT19) -> 0 | HY19: =SUM(HV19:HX19) -> 0 | IC19: =SUM(HZ19:IB19) -> 0 | IG19: =SUM(ID19:IF19) -> 0 | IK19: =SUM(IH19:IJ19) -> 0 | IO19: =SUM(IL19:IN19) -> 0 | IS19: =SUM(IP19:IR19) -> 0 | IW19: =SUM(IT19:IV19) -> 0 | JA19: =SUM(IX19:IZ19) -> 0 | JE19: =SUM(JB19:JD19) -> 0 | JI19: =SUM(JF19:JH19) -> 0 | JM19: =SUM(JJ19:JL19) -> 0 | JQ19: =SUM(JN19:JP19) -> 0 | JU19: =SUM(JR19:JT19) -> 0 | JY19: =SUM(JV19:JX19) -> 0 | KC19: =SUM(JZ19:KB19) -> 0 | KG19: =SUM(KD19:KF19) -> 0 | KK19: =SUM(KH19:KJ19) -> 0 | KO19: =SUM(KL19:KN19) -> 0 | KS19: =SUM(KP19:KR19) -> 0 | KW19: =SUM(KT19:KV19) -> 0 | LA19: =SUM(KX19:KZ19) -> 0 | LE19: =SUM(LB19:LD19) -> 0 | LI19: =SUM(LF19:LH19) -> 0 | LM19: =SUM(LJ19:LL19) -> 0 | LQ19: =SUM(LN19:LP19) -> 0 | LU19: =SUM(LR19:LT19) -> 0 | LY19: =SUM(LV19:LX19) -> 0 | MC19: =SUM(LZ19:MB19) -> 0 | MG19: =SUM(MD19:MF19) -> 0 | MK19: =SUM(MH19:MJ19) -> 0 | MO19: =SUM(ML19:MN19) -> 0 | MS19: =SUM(MP19:MR19) -> 0 | MW19: =SUM(MT19:MV19) -> 0 | NA19: =SUM(MX19:MZ19) -> 0 | NE19: =SUM(NB19:ND19) -> 0 | NI19: =SUM(NF19:NH19) -> 0 | NM19: =SUM(NJ19:NL19) -> 0 | NQ19: =SUM(NN19:NP19) -> 0 | NU19: =SUM(NR19:NT19) -> 0 | NY19: =SUM(NV19:NX19) -> 0 | OC19: =SUM(NZ19:OB19) -> 0 | OG19: =SUM(OD19:OF19) -> 0 | OK19: =SUM(OH19:OJ19) -> 0 | OO19: =SUM(OL19:ON19) -> 0 | OS19: =SUM(OP19:OR19) -> 0 | OW19: =SUM(OT19:OV19) -> 0 | PA19: =SUM(OX19:OZ19) -> 0 | PE19: =SUM(PB19:PD19) -> 0 | PI19: =SUM(PF19:PH19) -> 0 | PM19: =SUM(PJ19:PL19) -> 0 | PQ19: =SUM(PN19:PP19) -> 0 | PU19: =SUM(PR19:PT19) -> 0 | PY19: =SUM(PV19:PX19) -> 0 | QC19: =SUM(PZ19:QB19) -> 0 | QG19: =SUM(QD19:QF19) -> 0 | QK19: =SUM(QH19:QJ19) -> 0 | QO19: =SUM(QL19:QN19) -> 0 | QS19: =SUM(QP19:QR19) -> 0 | QW19: =SUM(QT19:QV19) -> 0 | RA19: =SUM(QX19:QZ19) -> 0 | RE19: =SUM(RB19:RD19) -> 0 | RI19: =SUM(RF19:RH19) -> 0 | RM19: =SUM(RJ19:RL19) -> 0 | RQ19: =SUM(RN19:RP19) -> 0 | RU19: =SUM(RR19:RT19) -> 0 | RY19: =SUM(RV19:RX19) -> 0 | SC19: =SUM(RZ19:SB19) -> 0 | SG19: =SUM(SD19:SF19) -> 0 | SK19: =SUM(SH19:SJ19) -> 0 | SO19: =SUM(SL19:SN19) -> 0 | SS19: =SUM(SP19:SR19) -> 0 | SW19: =SUM(ST19:SV19) -> 0 | TA19: =SUM(SX19:SZ19) -> 0 | TE19: =SUM(TB19:TD19) -> 0 | TI19: =SUM(TF19:TH19) -> 0 | TM19: =SUM(TJ19:TL19) -> 0 | TQ19: =SUM(TN19:TP19) -> 0 | TU19: =SUM(TR19:TT19) -> 0 | TY19: =SUM(TV19:TX19) -> 0 | UC19: =SUM(TZ19:UB19) -> 0 | UG19: =SUM(UD19:UF19) -> 0 | UK19: =SUM(UH19:UJ19) -> 0 | UO19: =SUM(UL19:UN19) -> 0 | US19: =SUM(UP19:UR19) -> 0 | UW19: =SUM(UT19:UV19) -> 0 | VA19: =SUM(UX19:UZ19) -> 0 | VE19: =SUM(VB19:VD19) -> 0 | VI19: =SUM(VF19:VH19) -> 0 | VM19: =SUM(VJ19:VL19) -> 0 | VQ19: =SUM(VN19:VP19) -> 0 | VU19: =SUM(VR19:VT19) -> 0 | VY19: =SUM(VV19:VX19) -> 0 | WC19: =SUM(VZ19:WB19) -> 0 | WG19: =SUM(WD19:WF19) -> 0 | WK19: =SUM(WH19:WJ19) -> 0 | WO19: =SUM(WL19:WN19) -> 0 | WS19: =SUM(WP19:WR19) -> 0 | WW19: =SUM(WT19:WV19) -> 0 | XA19: =SUM(WX19:WZ19) -> 0 | XE19: =SUM(XB19:XD19) -> 0 | XI19: =SUM(XF19:XH19) -> 0 | XM19: =SUM(XJ19:XL19) -> 0 | XQ19: =SUM(XN19:XP19) -> 0 | XU19: =SUM(XR19:XT19) -> 0 | XY19: =SUM(XV19:XX19) -> 0 | YC19: =SUM(XZ19:YB19) -> 0 | YG19: =SUM(YD19:YF19) -> 0 | YK19: =SUM(YH19:YJ19) -> 0 | YO19: =SUM(YL19:YN19) -> 0 | YS19: =SUM(YP19:YR19) -> 0 | YW19: =SUM(YT19:YV19) -> 0 | ZA19: =SUM(YX19:YZ19) -> 0 | ZE19: =SUM(ZB19:ZD19) -> 0 | ZI19: =SUM(ZF19:ZH19) -> 0 | ZM19: =SUM(ZJ19:ZL19) -> 0 | ZQ19: =SUM(ZN19:ZP19) -> 0 | ZU19: =SUM(ZR19:ZT19) -> 0 | ZY19: =SUM(ZV19:ZX19) -> 0 | AAC19: =SUM(ZZ19:AAB19) -> 0 | AAG19: =SUM(AAD19:AAF19) -> 0 | AAK19: =SUM(AAH19:AAJ19) -> 0 | AAO19: =SUM(AAL19:AAN19) -> 0 | AAS19: =SUM(AAP19:AAR19) -> 0 | AAW19: =SUM(AAT19:AAV19) -> 0 | ABA19: =SUM(AAX19:AAZ19) -> 0 | ABE19: =SUM(ABB19:ABD19) -> 0 | ABI19: =SUM(ABF19:ABH19) -> 0 | ABM19: =SUM(ABJ19:ABL19) -> 0 | ABQ19: =SUM(ABN19:ABP19) -> 0 | ABU19: =SUM(ABR19:ABT19) -> 0 | ABY19: =SUM(ABV19:ABX19) -> 0 | ACC19: =SUM(ABZ19:ACB19) -> 0 | ACG19: =SUM(ACD19:ACF19) -> 0 | ACK19: =SUM(ACH19:ACJ19) -> 0 | ACO19: =SUM(ACL19:ACN19) -> 0 | ACS19: =SUM(ACP19:ACR19) -> 0 | ACW19: =SUM(ACT19:ACV19) -> 0 | ADA19: =SUM(ACX19:ACZ19) -> 0 | ADE19: =SUM(ADB19:ADD19) -> 0 | ADI19: =SUM(ADF19:ADH19) -> 0 | ADM19: =SUM(ADJ19:ADL19) -> 0 | ADQ19: =SUM(ADN19:ADP19) -> 0 | ADU19: =SUM(ADR19:ADT19) -> 0 | ADY19: =SUM(ADV19:ADX19) -> 0 | AEC19: =SUM(ADZ19:AEB19) -> 0 | AEG19: =SUM(AED19:AEF19) -> 0 | AEK19: =SUM(AEH19:AEJ19) -> 0 | AEO19: =SUM(AEL19:AEN19) -> 0 | AES19: =SUM(AEP19:AER19) -> 0 | AEW19: =SUM(AET19:AEV19) -> 0 | AFA19: =SUM(AEX19:AEZ19) -> 0 | AFE19: =SUM(AFB19:AFD19) -> 0 | AFI19: =SUM(AFF19:AFH19) -> 0 | AFM19: =SUM(AFJ19:AFL19) -> 0 | AFQ19: =SUM(AFN19:AFP19) -> 0 | AFU19: =SUM(AFR19:AFT19) -> 0 | AFY19: =SUM(AFV19:AFX19) -> 0 | AGC19: =SUM(AFZ19:AGB19) -> 0 | AGG19: =SUM(AGD19:AGF19) -> 0 | AGK19: =SUM(AGH19:AGJ19) -> 0 | AGO19: =SUM(AGL19:AGN19) -> 0 | AGS19: =SUM(AGP19:AGR19) -> 0 | AGW19: =SUM(AGT19:AGV19) -> 0 | AHA19: =SUM(AGX19:AGZ19) -> 0 | AHE19: =SUM(AHB19:AHD19) -> 0 | AHI19: =SUM(AHF19:AHH19) -> 0 | AHM19: =SUM(AHJ19:AHL19) -> 0 | AHQ19: =SUM(AHN19:AHP19) -> 0 | AHU19: =SUM(AHR19:AHT19) -> 0 | AHY19: =SUM(AHV19:AHX19) -> 0 | AIC19: =SUM(AHZ19:AIB19) -> 0 | AIG19: =SUM(AID19:AIF19) -> 0 | AIK19: =SUM(AIH19:AIJ19) -> 0 | AIO19: =SUM(AIL19:AIN19) -> 0 | AIS19: =SUM(AIP19:AIR19) -> 0 | AIW19: =SUM(AIT19:AIV19) -> 0 | AJA19: =SUM(AIX19:AIZ19) -> 0 | AJE19: =SUM(AJB19:AJD19) -> 0 | AJI19: =SUM(AJF19:AJH19) -> 0 | AJM19: =SUM(AJJ19:AJL19) -> 0 | AJQ19: =SUM(AJN19:AJP19) -> 0 | AJU19: =SUM(AJR19:AJT19) -> 0 | AJY19: =SUM(AJV19:AJX19) -> 0 | AKC19: =SUM(AJZ19:AKB19) -> 0 | AKG19: =SUM(AKD19:AKF19) -> 0 | AKK19: =SUM(AKH19:AKJ19) -> 0 | AKO19: =SUM(AKL19:AKN19) -> 0 | AKS19: =SUM(AKP19:AKR19) -> 0 | AKW19: =SUM(AKT19:AKV19) -> 0 | ALA19: =SUM(AKX19:AKZ19) -> 0 | ALE19: =SUM(ALB19:ALD19) -> 0 | ALI19: =SUM(ALF19:ALH19) -> 0 | ALM19: =SUM(ALJ19:ALL19) -> 0 | ALQ19: =SUM(ALN19:ALP19) -> 0 | ALU19: =SUM(ALR19:ALT19) -> 0 | ALY19: =SUM(ALV19:ALX19) -> 0 | AMC19: =SUM(ALZ19:AMB19) -> 0 | AMG19: =SUM(AMD19:AMF19) -> 0 | AMK19: =SUM(AMH19:AMJ19) -> 0 | AMO19: =SUM(AML19:AMN19) -> 0 | AMS19: =SUM(AMP19:AMR19) -> 0 | AMW19: =SUM(AMT19:AMV19) -> 0 | ANA19: =SUM(AMX19:AMZ19) -> 0 | ANE19: =SUM(ANB19:AND19) -> 0 | ANI19: =SUM(ANF19:ANH19) -> 0 | ANM19: =SUM(ANJ19:ANL19) -> 0 | ANQ19: =SUM(ANN19:ANP19) -> 0 | ANU19: =SUM(ANR19:ANT19) -> 0 | ANY19: =SUM(ANV19:ANX19) -> 0 | AOC19: =SUM(ANZ19:AOB19) -> 0 | AOG19: =SUM(AOD19:AOF19) -> 0 | AOK19: =SUM(AOH19:AOJ19) -> 0 | AOO19: =SUM(AOL19:AON19) -> 0 | AOS19: =SUM(AOP19:AOR19) -> 0 | AOW19: =SUM(AOT19:AOV19) -> 0 | APA19: =SUM(AOX19:AOZ19) -> 0 | APE19: =SUM(APB19:APD19) -> 0 | API19: =SUM(APF19:APH19) -> 0 | APM19: =SUM(APJ19:APL19) -> 0 | APQ19: =SUM(APN19:APP19) -> 0 | APU19: =SUM(APR19:APT19) -> 0 | APY19: =SUM(APV19:APX19) -> 0 | AQC19: =SUM(APZ19:AQB19) -> 0 | AQG19: =SUM(AQD19:AQF19) -> 0 | AQK19: =SUM(AQH19:AQJ19) -> 0 | AQO19: =SUM(AQL19:AQN19) -> 0 | AQS19: =SUM(AQP19:AQR19) -> 0 | AQW19: =SUM(AQT19:AQV19) -> 0 | ARA19: =SUM(AQX19:AQZ19) -> 0 | ARB19: =SUM(N19,R19,V19,Z19,AD19,AH19,AL19,AP19,AT19,AX19,BB19,BF19,BJ19,BN19,BR19,BV19,BZ19,CD19,CH19,CL19,CP19,CT19,CX19,DB19,DF19,DJ19,DN19,DR19,DV19,DZ19,ED19,EH19,EL19,EP19,ET19,EX19,FB19,FF19,FJ19,FN19,FR19,FV19,FZ19,GD19,GH19,GL19,GP19,GT19,GX19,HB19,HF19,HJ19,HN19,HR19,HV19,HZ19,ID19,IH19,IL19,IP19,IT19,IX19,JB19,JF19,JJ19,JN19,JR19,JV19,JZ19,KD19,KH19,KL19,KP19,KT19,KX19,LB19,LF19,LJ19,LN19,LR19,LV19,LZ19,MD19,MH19,ML19,MP19,MT19,MX19,NB19,NF19,NJ19,NN19,NR19,NV19,NZ19,OD19,OH19,OL19,OP19,OT19,OX19,PB19,PF19,PJ19,PN19,PR19,PV19,PZ19,QD19,QH19,QL19,QP19,QT19,QX19,RB19,RF19,RJ19,RN19,RR19,RV19,RZ19,SD19,SH19,SL19,SP19,ST19,SX19,TB19,TF19,TJ19,TN19,TR19,TV19,TZ19,UD19,UH19,UL19,UP19,UT19,UX19,VB19,VF19,VJ19,VN19,VR19,VV19,VZ19,WD19,WH19,WL19,WP19,WT19,WX19,XB19,XF19,XJ19,XN19,XR19,XV19,XZ19,YD19,YH19,YL19,YP19,YT19,YX19,ZB19,ZF19,ZJ19,ZN19,ZR19,ZV19,ZZ19,AAD19,AAH19,AAL19,AAP19,AAT19,AAX19,ABB19,ABF19,ABJ19,ABN19,ABR19,ABV19,ABZ19,ACD19,ACH19,ACL19,ACP19,ACT19,ACX19,ADB19,ADF19,ADJ19,ADN19,ADR19,ADV19,ADZ19,AED19,AEH19,AEL19,AEP19,AET19,AEX19,AFB19,AFF19,AFJ19,AFN19,AFR19,AFV19,AFZ19,AGD19,AGH19,AGL19,AGP19,AGT19,AGX19,AHB19,AHF19,AHJ19,AHN19,AHR19,AHV19,AHZ19,AID19,AIH19,AIL19,AIP19,AIT19,AIX19,AJB19,AJF19,AJJ19,AJN19,AJR19,AJV19,AJZ19,AKD19,AKH19,AKL19,AKP19,AKT19,AKX19,ALB19,ALF19,ALJ19,ALN19,ALR19,ALV19,ALZ19,AMD19,AMH19,AML19,AMP19)+AMT19+AMX19+SUM(ANB19,ANF19,ANJ19,ANN19,ANR19,ANV19,ANZ19,AOD19,AOH19,AOL19,AOP19,AOT19,AOX19,APB19,APF19,APJ19,APN19,APR19,APV19,APZ19,AQD19,AQH19,AQL19,AQP19,AQT19,AQX19) -> 0 | ARC19: =SUM(O19,S19,W19,AA19,AE19,AI19,AM19,AQ19,AU19,AY19,BC19,BG19,BK19,BO19,BS19,BW19,CA19,CE19,CI19,CM19,CQ19,CU19,CY19,DC19,DG19,DK19,DO19,DS19,DW19,EA19,EE19,EI19,EM19,EQ19,EU19,EY19,FC19,FG19,FK19,FO19,FS19,FW19,GA19,GE19,GI19,GM19,GQ19,GU19,GY19,HC19,HG19,HK19,HO19,HS19,HW19,IA19,IE19,II19,IM19,IQ19,IU19,IY19,JC19,JG19,JK19,JO19,JS19,JW19,KA19,KE19,KI19,KM19,KQ19,KU19,KY19,LC19,LG19,LK19,LO19,LS19,LW19,MA19,ME19,MI19,MM19,MQ19,MU19,MY19,NC19,NG19,NK19,NO19,NS19,NW19,OA19,OE19,OI19,OM19,OQ19,OU19,OY19,PC19,PG19,PK19,PO19,PS19,PW19,QA19,QE19,QI19,QM19,QQ19,QU19,QY19,RC19,RG19,RK19,RO19,RS19,RW19,SA19,SE19,SI19,SM19,SQ19,SU19,SY19,TC19,TG19,TK19,TO19,TS19,TW19,UA19,UE19,UI19,UM19,UQ19,UU19,UY19,VC19,VG19,VK19,VO19,VS19,VW19,WA19,WE19,WI19,WM19,WQ19,WU19,WY19,XC19,XG19,XK19,XO19,XS19,XW19,YA19,YE19,YI19,YM19,YQ19,YU19,YY19,ZC19,ZG19,ZK19,ZO19,ZS19,ZW19,AAA19,AAE19,AAI19,AAM19,AAQ19,AAU19,AAY19,ABC19,ABG19,ABK19,ABO19,ABS19,ABW19,ACA19,ACE19,ACI19,ACM19,ACQ19,ACU19,ACY19,ADC19,ADG19,ADK19,ADO19,ADS19,ADW19,AEA19,AEE19,AEI19,AEM19,AEQ19,AEU19,AEY19,AFC19,AFG19,AFK19,AFO19,AFS19,AFW19,AGA19,AGE19,AGI19,AGM19,AGQ19,AGU19,AGY19,AHC19,AHG19,AHK19,AHO19,AHS19,AHW19,AIA19,AIE19,AII19,AIM19,AIQ19,AIU19,AIY19,AJC19,AJG19,AJK19,AJO19,AJS19,AJW19,AKA19,AKE19,AKI19,AKM19,AKQ19,AKU19,AKY19,ALC19,ALG19,ALK19,ALO19,ALS19,ALW19,AMA19,AME19,AMI19,AMM19,AMQ19)+AMU19+AMY19+SUM(ANC19,ANG19,ANK19,ANO19,ANS19,ANW19,AOA19,AOE19,AOI19,AOM19,AOQ19,AOU19,AOY19,APC19,APG19,APK19,APO19,APS19,APW19,AQA19,AQE19,AQI19,AQM19,AQQ19,AQU19,AQY19) -> 10 | ARD19: =SUM(P19,T19,X19,AB19,AF19,AJ19,AN19,AR19,AV19,AZ19,BD19,BH19,BL19,BP19,BT19,BX19,CB19,CF19,CJ19,CN19,CR19,CV19,CZ19,DD19,DH19,DL19,DP19,DT19,DX19,EB19,EF19,EJ19,EN19,ER19,EV19,EZ19,FD19,FH19,FL19,FP19,FT19,FX19,GB19,GF19,GJ19,GN19,GR19,GV19,GZ19,HD19,HH19,HL19,HP19,HT19,HX19,IB19,IF19,IJ19,IN19,IR19,IV19,IZ19,JD19,JH19,JL19,JP19,JT19,JX19,KB19,KF19,KJ19,KN19,KR19,KV19,KZ19,LD19,LH19,LL19,LP19,LT19,LX19,MB19,MF19,MJ19,MN19,MR19,MV19,MZ19,ND19,NH19,NL19,NP19,NT19,NX19,OB19,OF19,OJ19,ON19,OR19,OV19,OZ19,PD19,PH19,PL19,PP19,PT19,PX19,QB19,QF19,QJ19,QN19,QR19,QV19,QZ19,RD19,RH19,RL19,RP19,RT19,RX19,SB19,SF19,SJ19,SN19,SR19,SV19,SZ19,TD19,TH19,TL19,TP19,TT19,TX19,UB19,UF19,UJ19,UN19,UR19,UV19,UZ19,VD19,VH19,VL19,VP19,VT19,VX19,WB19,WF19,WJ19,WN19,WR19,WV19,WZ19,XD19,XH19,XL19,XP19,XT19,XX19,YB19,YF19,YJ19,YN19,YR19,YV19,YZ19,ZD19,ZH19,ZL19,ZP19,ZT19,ZX19,AAB19,AAF19,AAJ19,AAN19,AAR19,AAV19,AAZ19,ABD19,ABH19,ABL19,ABP19,ABT19,ABX19,ACB19,ACF19,ACJ19,ACN19,ACR19,ACV19,ACZ19,ADD19,ADH19,ADL19,ADP19,ADT19,ADX19,AEB19,AEF19,AEJ19,AEN19,AER19,AEV19,AEZ19,AFD19,AFH19,AFL19,AFP19,AFT19,AFX19,AGB19,AGF19,AGJ19,AGN19,AGR19,AGV19,AGZ19,AHD19,AHH19,AHL19,AHP19,AHT19,AHX19,AIB19,AIF19,AIJ19,AIN19,AIR19,AIV19,AIZ19,AJD19,AJH19,AJL19,AJP19,AJT19,AJX19,AKB19,AKF19,AKJ19,AKN19,AKR19,AKV19,AKZ19,ALD19,ALH19,ALL19,ALP19,ALT19,ALX19,AMB19,AMF19,AMJ19,AMN19,AMR19)+AMV19+AMZ19+SUM(AND19,ANH19,ANL19,ANP19,ANT19,ANX19,AOB19,AOF19,AOJ19,AON19,AOR19,AOV19,AOZ19,APD19,APH19,APL19,APP19,APT19,APX19,AQB19,AQF19,AQJ19,AQN19,AQR19,AQV19,AQZ19) -> 0 | ARE19: =SUM(Q19,U19,Y19,AC19,AG19,AK19,AO19,AS19,AW19,BA19,BE19,BI19,BM19,BQ19,BU19,BY19,CC19,CG19,CK19,CO19,CS19,CW19,DA19,DE19,DI19,DM19,DQ19,DU19,DY19,EC19,EG19,EK19,EO19,ES19,EW19,FA19,FE19,FI19,FM19,FQ19,FU19,FY19,GC19,GG19,GK19,GO19,GS19,GW19,HA19,HE19,HI19,HM19,HQ19,HU19,HY19,IC19,IG19,IK19,IO19,IS19,IW19,JA19,JE19,JI19,JM19,JQ19,JU19,JY19,KC19,KG19,KK19,KO19,KS19,KW19,LA19,LE19,LI19,LM19,LQ19,LU19,LY19,MC19,MG19,MK19,MO19,MS19,MW19,NA19,NE19,NI19,NM19,NQ19,NU19,NY19,OC19,OG19,OK19,OO19,OS19,OW19,PA19,PE19,PI19,PM19,PQ19,PU19,PY19,QC19,QG19,QK19,QO19,QS19,QW19,RA19,RE19,RI19,RM19,RQ19,RU19,RY19,SC19,SG19,SK19,SO19,SS19,SW19,TA19,TE19,TI19,TM19,TQ19,TU19,TY19,UC19,UG19,UK19,UO19,US19,UW19,VA19,VE19,VI19,VM19,VQ19,VU19,VY19,WC19,WG19,WK19,WO19,WS19,WW19,XA19,XE19,XI19,XM19,XQ19,XU19,XY19,YC19,YG19,YK19,YO19,YS19,YW19,ZA19,ZE19,ZI19,ZM19,ZQ19,ZU19,ZY19,AAC19,AAG19,AAK19,AAO19,AAS19,AAW19,ABA19,ABE19,ABI19,ABM19,ABQ19,ABU19,ABY19,ACC19,ACG19,ACK19,ACO19,ACS19,ACW19,ADA19,ADE19,ADI19,ADM19,ADQ19,ADU19,ADY19,AEC19,AEG19,AEK19,AEO19,AES19,AEW19,AFA19,AFE19,AFI19,AFM19,AFQ19,AFU19,AFY19,AGC19,AGG19,AGK19,AGO19,AGS19,AGW19,AHA19,AHE19,AHI19,AHM19,AHQ19,AHU19,AHY19,AIC19,AIG19,AIK19,AIO19,AIS19,AIW19,AJA19,AJE19,AJI19,AJM19,AJQ19,AJU19,AJY19,AKC19,AKG19,AKK19,AKO19,AKS19,AKW19,ALA19,ALE19,ALI19,ALM19,ALQ19,ALU19,ALY19,AMC19,AMG19,AMK19,AMO19,AMS19)+AMW19+ANA19+SUM(ANE19,ANI19,ANM19,ANQ19,ANU19,ANY19,AOC19,AOG19,AOK19,AOO19,AOS19,AOW19,APA19,APE19,API19,APM19,APQ19,APU19,APY19,AQC19,AQG19,AQK19,AQO19,AQS19,AQW19,ARA19) -> 10 | ARF19: =ARB19*K19 -> 0 | ARG19: =ARC19*L19 -> 1231.7 | ARH19: =ARD19*M19 -> 0 | ARI19: =SUM(ARF19:ARH19) -> 1231.7 | ARJ19: =ARI19-ARL19 -> 1231.7 | ARK19: Yes | ARL19: 0 | ARM19: 0 | ARN19: 0
B20: 2 | C20: Ricky Broom | D20: General Foreman | E20: Vendor No 11 | F20: Barnett | G20: 25-23066 | H20: 2018-10-14 | I20: 2018-10-14 | J20: =IF(AND(H20>='A - Contractor Summary'!$C$36,I20<='A - Contractor Summary'!$C$42),"Yes","No") -> No | K20: =VLOOKUP($D20,'C.1 - Rate Sheets'!B:I,2,FALSE) -> 0 | L20: =VLOOKUP($D20,'C.1 - Rate Sheets'!B:I,3,FALSE) -> 107.42 | M20: =VLOOKUP($D20,'C.1 - Rate Sheets'!B:I,4,FALSE) -> 0 | O20: 10 | Q20: 10 | U20: 0 | Y20: 0 | AC20: 0 | AG20: 0 | AK20: 0 | AO20: 0 | AS20: 0 | AW20: 0 | BA20: 0 | BE20: 0 | BI20: 0 | BM20: 0 | BQ20: 0 | BU20: 0 | BY20: 0 | CC20: 0 | CG20: 0 | CK20: 0 | CO20: 0 | CS20: 0 | CW20: 0 | DA20: 0 | DE20: 0 | DI20: 0 | DM20: 0 | DQ20: 0 | DU20: 0 | DY20: 0 | EC20: 0 | EG20: 0 | EK20: 0 | EO20: 0 | ES20: 0 | EW20: 0 | FA20: 0 | FE20: 0 | FI20: 0 | FM20: 0 | FQ20: 0 | FU20: 0 | FY20: 0 | GC20: 0 | GG20: 0 | GK20: 0 | GO20: 0 | GS20: 0 | GW20: 0 | HA20: 0 | HE20: 0 | HI20: 0 | HM20: 0 | HQ20: 0 | HU20: 0 | HY20: 0 | IC20: 0 | IG20: 0 | IK20: 0 | IO20: 0 | IS20: 0 | IW20: 0 | JA20: 0 | JE20: 0 | JI20: 0 | JM20: 0 | JQ20: 0 | JU20: 0 | JY20: 0 | KC20: 0 | KG20: 0 | KK20: 0 | KO20: 0 | KS20: 0 | KW20: 0 | LA20: 0 | LE20: 0 | LI20: 0 | LM20: 0 | LQ20: 0 | LU20: 0 | LY20: 0 | MC20: 0 | MG20: 0 | MK20: 0 | MO20: 0 | MS20: 0 | MW20: 0 | NA20: 0 | NE20: 0 | NI20: 0 | NM20: 0 | NQ20: 0 | NU20: 0 | NY20: 0 | OC20: 0 | OG20: 0 | OK20: 0 | OO20: 0 | OS20: 0 | OW20: 0 | PA20: 0 | PE20: 0 | PI20: 0 | PM20: 0 | PQ20: 0 | PU20: 0 | PY20: 0 | QC20: 0 | QG20: 0 | QK20: 0 | QO20: 0 | QS20: 0 | QW20: 0 | RA20: 0 | RE20: 0 | RI20: 0 | RM20: 0 | RQ20: 0 | RU20: 0 | RY20: 0 | SC20: 0 | SG20: 0 | SK20: 0 | SO20: 0 | SS20: 0 | SW20: 0 | TA20: 0 | TE20: 0 | TI20: 0 | TM20: 0 | TQ20: 0 | TU20: 0 | TY20: 0 | UC20: 0 | UG20: 0 | UK20: 0 | UO20: 0 | US20: 0 | UW20: 0 | VA20: 0 | VE20: 0 | VI20: 0 | VM20: 0 | VQ20: 0 | VU20: 0 | VY20: 0 | WC20: 0 | WG20: 0 | WK20: 0 | WO20: 0 | WS20: 0 | WW20: 0 | XA20: 0 | XE20: 0 | XI20: 0 | XM20: 0 | XQ20: 0 | XU20: 0 | XY20: 0 | YC20: 0 | YG20: 0 | YK20: 0 | YO20: 0 | YS20: 0 | YW20: 0 | ZA20: 0 | ZE20: 0 | ZI20: 0 | ZM20: 0 | ZQ20: 0 | ZU20: 0 | ZY20: 0 | AAC20: 0 | AAG20: 0 | AAK20: 0 | AAO20: 0 | AAS20: 0 | AAW20: 0 | ABA20: 0 | ABE20: 0 | ABI20: 0 | ABM20: 0 | ABQ20: 0 | ABU20: 0 | ABY20: 0 | ACC20: 0 | ACG20: 0 | ACK20: 0 | ACO20: 0 | ACS20: 0 | ACW20: 0 | ADA20: 0 | ADE20: 0 | ADI20: 0 | ADM20: 0 | ADQ20: 0 | ADU20: 0 | ADY20: 0 | AEC20: 0 | AEG20: 0 | AEK20: 0 | AEO20: 0 | AES20: 0 | AEW20: 0 | AFA20: 0 | AFE20: 0 | AFI20: 0 | AFM20: 0 | AFQ20: 0 | AFU20: 0 | AFY20: 0 | AGC20: 0 | AGG20: 0 | AGK20: 0 | AGO20: 0 | AGS20: 0 | AGW20: 0 | AHA20: 0 | AHE20: 0 | AHI20: 0 | AHM20: 0 | AHQ20: 0 | AHU20: 0 | AHY20: 0 | AIC20: 0 | AIG20: 0 | AIK20: 0 | AIO20: 0 | AIS20: 0 | AIW20: 0 | AJA20: 0 | AJE20: 0 | AJI20: 0 | AJM20: 0 | AJQ20: 0 | AJU20: 0 | AJY20: 0 | AKC20: 0 | AKG20: 0 | AKK20: 0 | AKO20: 0 | AKS20: 0 | AKW20: 0 | ALA20: 0 | ALE20: 0 | ALI20: 0 | ALM20: 0 | ALQ20: 0 | ALU20: 0 | ALY20: 0 | AMC20: 0 | AMG20: 0 | AMK20: 0 | AMO20: 0 | AMS20: 0 | AMW20: 0 | ANA20: 0 | ANE20: 0 | ANI20: 0 | ANM20: 0 | ANQ20: 0 | ANU20: 0 | ANY20: 0 | AOC20: 0 | AOG20: 0 | AOK20: 0 | AOO20: 0 | AOS20: 0 | AOW20: 0 | APA20: 0 | APE20: 0 | API20: 0 | APM20: 0 | APQ20: 0 | APU20: 0 | APY20: 0 | AQC20: 0 | AQG20: 0 | AQK20: 0 | AQO20: 0 | AQS20: 0 | AQW20: 0 | ARA20: 0 | ARB20: =SUM(N20,R20,V20,Z20,AD20,AH20,AL20,AP20,AT20,AX20,BB20,BF20,BJ20,BN20,BR20,BV20,BZ20,CD20,CH20,CL20,CP20,CT20,CX20,DB20,DF20,DJ20,DN20,DR20,DV20,DZ20,ED20,EH20,EL20,EP20,ET20,EX20,FB20,FF20,FJ20,FN20,FR20,FV20,FZ20,GD20,GH20,GL20,GP20,GT20,GX20,HB20,HF20,HJ20,HN20,HR20,HV20,HZ20,ID20,IH20,IL20,IP20,IT20,IX20,JB20,JF20,JJ20,JN20,JR20,JV20,JZ20,KD20,KH20,KL20,KP20,KT20,KX20,LB20,LF20,LJ20,LN20,LR20,LV20,LZ20,MD20,MH20,ML20,MP20,MT20,MX20,NB20,NF20,NJ20,NN20,NR20,NV20,NZ20,OD20,OH20,OL20,OP20,OT20,OX20,PB20,PF20,PJ20,PN20,PR20,PV20,PZ20,QD20,QH20,QL20,QP20,QT20,QX20,RB20,RF20,RJ20,RN20,RR20,RV20,RZ20,SD20,SH20,SL20,SP20,ST20,SX20,TB20,TF20,TJ20,TN20,TR20,TV20,TZ20,UD20,UH20,UL20,UP20,UT20,UX20,VB20,VF20,VJ20,VN20,VR20,VV20,VZ20,WD20,WH20,WL20,WP20,WT20,WX20,XB20,XF20,XJ20,XN20,XR20,XV20,XZ20,YD20,YH20,YL20,YP20,YT20,YX20,ZB20,ZF20,ZJ20,ZN20,ZR20,ZV20,ZZ20,AAD20,AAH20,AAL20,AAP20,AAT20,AAX20,ABB20,ABF20,ABJ20,ABN20,ABR20,ABV20,ABZ20,ACD20,ACH20,ACL20,ACP20,ACT20,ACX20,ADB20,ADF20,ADJ20,ADN20,ADR20,ADV20,ADZ20,AED20,AEH20,AEL20,AEP20,AET20,AEX20,AFB20,AFF20,AFJ20,AFN20,AFR20,AFV20,AFZ20,AGD20,AGH20,AGL20,AGP20,AGT20,AGX20,AHB20,AHF20,AHJ20,AHN20,AHR20,AHV20,AHZ20,AID20,AIH20,AIL20,AIP20,AIT20,AIX20,AJB20,AJF20,AJJ20,AJN20,AJR20,AJV20,AJZ20,AKD20,AKH20,AKL20,AKP20,AKT20,AKX20,ALB20,ALF20,ALJ20,ALN20,ALR20,ALV20,ALZ20,AMD20,AMH20,AML20,AMP20)+AMT20+AMX20+SUM(ANB20,ANF20,ANJ20,ANN20,ANR20,ANV20,ANZ20,AOD20,AOH20,AOL20,AOP20,AOT20,AOX20,APB20,APF20,APJ20,APN20,APR20,APV20,APZ20,AQD20,AQH20,AQL20,AQP20,AQT20,AQX20) -> 0 | ARC20: =SUM(O20,S20,W20,AA20,AE20,AI20,AM20,AQ20,AU20,AY20,BC20,BG20,BK20,BO20,BS20,BW20,CA20,CE20,CI20,CM20,CQ20,CU20,CY20,DC20,DG20,DK20,DO20,DS20,DW20,EA20,EE20,EI20,EM20,EQ20,EU20,EY20,FC20,FG20,FK20,FO20,FS20,FW20,GA20,GE20,GI20,GM20,GQ20,GU20,GY20,HC20,HG20,HK20,HO20,HS20,HW20,IA20,IE20,II20,IM20,IQ20,IU20,IY20,JC20,JG20,JK20,JO20,JS20,JW20,KA20,KE20,KI20,KM20,KQ20,KU20,KY20,LC20,LG20,LK20,LO20,LS20,LW20,MA20,ME20,MI20,MM20,MQ20,MU20,MY20,NC20,NG20,NK20,NO20,NS20,NW20,OA20,OE20,OI20,OM20,OQ20,OU20,OY20,PC20,PG20,PK20,PO20,PS20,PW20,QA20,QE20,QI20,QM20,QQ20,QU20,QY20,RC20,RG20,RK20,RO20,RS20,RW20,SA20,SE20,SI20,SM20,SQ20,SU20,SY20,TC20,TG20,TK20,TO20,TS20,TW20,UA20,UE20,UI20,UM20,UQ20,UU20,UY20,VC20,VG20,VK20,VO20,VS20,VW20,WA20,WE20,WI20,WM20,WQ20,WU20,WY20,XC20,XG20,XK20,XO20,XS20,XW20,YA20,YE20,YI20,YM20,YQ20,YU20,YY20,ZC20,ZG20,ZK20,ZO20,ZS20,ZW20,AAA20,AAE20,AAI20,AAM20,AAQ20,AAU20,AAY20,ABC20,ABG20,ABK20,ABO20,ABS20,ABW20,ACA20,ACE20,ACI20,ACM20,ACQ20,ACU20,ACY20,ADC20,ADG20,ADK20,ADO20,ADS20,ADW20,AEA20,AEE20,AEI20,AEM20,AEQ20,AEU20,AEY20,AFC20,AFG20,AFK20,AFO20,AFS20,AFW20,AGA20,AGE20,AGI20,AGM20,AGQ20,AGU20,AGY20,AHC20,AHG20,AHK20,AHO20,AHS20,AHW20,AIA20,AIE20,AII20,AIM20,AIQ20,AIU20,AIY20,AJC20,AJG20,AJK20,AJO20,AJS20,AJW20,AKA20,AKE20,AKI20,AKM20,AKQ20,AKU20,AKY20,ALC20,ALG20,ALK20,ALO20,ALS20,ALW20,AMA20,AME20,AMI20,AMM20,AMQ20)+AMU20+AMY20+SUM(ANC20,ANG20,ANK20,ANO20,ANS20,ANW20,AOA20,AOE20,AOI20,AOM20,AOQ20,AOU20,AOY20,APC20,APG20,APK20,APO20,APS20,APW20,AQA20,AQE20,AQI20,AQM20,AQQ20,AQU20,AQY20) -> 10 | ARD20: =SUM(P20,T20,X20,AB20,AF20,AJ20,AN20,AR20,AV20,AZ20,BD20,BH20,BL20,BP20,BT20,BX20,CB20,CF20,CJ20,CN20,CR20,CV20,CZ20,DD20,DH20,DL20,DP20,DT20,DX20,EB20,EF20,EJ20,EN20,ER20,EV20,EZ20,FD20,FH20,FL20,FP20,FT20,FX20,GB20,GF20,GJ20,GN20,GR20,GV20,GZ20,HD20,HH20,HL20,HP20,HT20,HX20,IB20,IF20,IJ20,IN20,IR20,IV20,IZ20,JD20,JH20,JL20,JP20,JT20,JX20,KB20,KF20,KJ20,KN20,KR20,KV20,KZ20,LD20,LH20,LL20,LP20,LT20,LX20,MB20,MF20,MJ20,MN20,MR20,MV20,MZ20,ND20,NH20,NL20,NP20,NT20,NX20,OB20,OF20,OJ20,ON20,OR20,OV20,OZ20,PD20,PH20,PL20,PP20,PT20,PX20,QB20,QF20,QJ20,QN20,QR20,QV20,QZ20,RD20,RH20,RL20,RP20,RT20,RX20,SB20,SF20,SJ20,SN20,SR20,SV20,SZ20,TD20,TH20,TL20,TP20,TT20,TX20,UB20,UF20,UJ20,UN20,UR20,UV20,UZ20,VD20,VH20,VL20,VP20,VT20,VX20,WB20,WF20,WJ20,WN20,WR20,WV20,WZ20,XD20,XH20,XL20,XP20,XT20,XX20,YB20,YF20,YJ20,YN20,YR20,YV20,YZ20,ZD20,ZH20,ZL20,ZP20,ZT20,ZX20,AAB20,AAF20,AAJ20,AAN20,AAR20,AAV20,AAZ20,ABD20,ABH20,ABL20,ABP20,ABT20,ABX20,ACB20,ACF20,ACJ20,ACN20,ACR20,ACV20,ACZ20,ADD20,ADH20,ADL20,ADP20,ADT20,ADX20,AEB20,AEF20,AEJ20,AEN20,AER20,AEV20,AEZ20,AFD20,AFH20,AFL20,AFP20,AFT20,AFX20,AGB20,AGF20,AGJ20,AGN20,AGR20,AGV20,AGZ20,AHD20,AHH20,AHL20,AHP20,AHT20,AHX20,AIB20,AIF20,AIJ20,AIN20,AIR20,AIV20,AIZ20,AJD20,AJH20,AJL20,AJP20,AJT20,AJX20,AKB20,AKF20,AKJ20,AKN20,AKR20,AKV20,AKZ20,ALD20,ALH20,ALL20,ALP20,ALT20,ALX20,AMB20,AMF20,AMJ20,AMN20,AMR20)+AMV20+AMZ20+SUM(AND20,ANH20,ANL20,ANP20,ANT20,ANX20,AOB20,AOF20,AOJ20,AON20,AOR20,AOV20,AOZ20,APD20,APH20,APL20,APP20,APT20,APX20,AQB20,AQF20,AQJ20,AQN20,AQR20,AQV20,AQZ20) -> 0 | ARE20: =SUM(Q20,U20,Y20,AC20,AG20,AK20,AO20,AS20,AW20,BA20,BE20,BI20,BM20,BQ20,BU20,BY20,CC20,CG20,CK20,CO20,CS20,CW20,DA20,DE20,DI20,DM20,DQ20,DU20,DY20,EC20,EG20,EK20,EO20,ES20,EW20,FA20,FE20,FI20,FM20,FQ20,FU20,FY20,GC20,GG20,GK20,GO20,GS20,GW20,HA20,HE20,HI20,HM20,HQ20,HU20,HY20,IC20,IG20,IK20,IO20,IS20,IW20,JA20,JE20,JI20,JM20,JQ20,JU20,JY20,KC20,KG20,KK20,KO20,KS20,KW20,LA20,LE20,LI20,LM20,LQ20,LU20,LY20,MC20,MG20,MK20,MO20,MS20,MW20,NA20,NE20,NI20,NM20,NQ20,NU20,NY20,OC20,OG20,OK20,OO20,OS20,OW20,PA20,PE20,PI20,PM20,PQ20,PU20,PY20,QC20,QG20,QK20,QO20,QS20,QW20,RA20,RE20,RI20,RM20,RQ20,RU20,RY20,SC20,SG20,SK20,SO20,SS20,SW20,TA20,TE20,TI20,TM20,TQ20,TU20,TY20,UC20,UG20,UK20,UO20,US20,UW20,VA20,VE20,VI20,VM20,VQ20,VU20,VY20,WC20,WG20,WK20,WO20,WS20,WW20,XA20,XE20,XI20,XM20,XQ20,XU20,XY20,YC20,YG20,YK20,YO20,YS20,YW20,ZA20,ZE20,ZI20,ZM20,ZQ20,ZU20,ZY20,AAC20,AAG20,AAK20,AAO20,AAS20,AAW20,ABA20,ABE20,ABI20,ABM20,ABQ20,ABU20,ABY20,ACC20,ACG20,ACK20,ACO20,ACS20,ACW20,ADA20,ADE20,ADI20,ADM20,ADQ20,ADU20,ADY20,AEC20,AEG20,AEK20,AEO20,AES20,AEW20,AFA20,AFE20,AFI20,AFM20,AFQ20,AFU20,AFY20,AGC20,AGG20,AGK20,AGO20,AGS20,AGW20,AHA20,AHE20,AHI20,AHM20,AHQ20,AHU20,AHY20,AIC20,AIG20,AIK20,AIO20,AIS20,AIW20,AJA20,AJE20,AJI20,AJM20,AJQ20,AJU20,AJY20,AKC20,AKG20,AKK20,AKO20,AKS20,AKW20,ALA20,ALE20,ALI20,ALM20,ALQ20,ALU20,ALY20,AMC20,AMG20,AMK20,AMO20,AMS20)+AMW20+ANA20+SUM(ANE20,ANI20,ANM20,ANQ20,ANU20,ANY20,AOC20,AOG20,AOK20,AOO20,AOS20,AOW20,APA20,APE20,API20,APM20,APQ20,APU20,APY20,AQC20,AQG20,AQK20,AQO20,AQS20,AQW20,ARA20) -> 10 | ARF20: 0 | ARG20: 1074.2 | ARH20: 0 | ARI20: =SUM(ARF20:ARH20) -> 1074.2 | ARJ20: 1074.2 | ARK20: Yes | ARL20: 0 | ARM20: 0 | ARN20: 0
B21: 3 | C21: Cole Robbins | D21: Safety Coordinator | E21: Vendor No 11 | F21: Barnett | G21: 25-23066 | H21: 2018-10-14 | I21: 2018-10-14 | J21: =IF(AND(H21>='A - Contractor Summary'!$C$36,I21<='A - Contractor Summary'!$C$42),"Yes","No") -> No | K21: =VLOOKUP($D21,'C.1 - Rate Sheets'!B:I,2,FALSE) -> 0 | L21: =VLOOKUP($D21,'C.1 - Rate Sheets'!B:I,3,FALSE) -> 100.49 | M21: =VLOOKUP($D21,'C.1 - Rate Sheets'!B:I,4,FALSE) -> 0 | O21: 10 | Q21: 10 | U21: 0 | Y21: 0 | AC21: 0 | AG21: 0 | AK21: 0 | AO21: 0 | AS21: 0 | AW21: 0 | BA21: 0 | BE21: 0 | BI21: 0 | BM21: 0 | BQ21: 0 | BU21: 0 | BY21: 0 | CC21: 0 | CG21: 0 | CK21: 0 | CO21: 0 | CS21: 0 | CW21: 0 | DA21: 0 | DE21: 0 | DI21: 0 | DM21: 0 | DQ21: 0 | DU21: 0 | DY21: 0 | EC21: 0 | EG21: 0 | EK21: 0 | EO21: 0 | ES21: 0 | EW21: 0 | FA21: 0 | FE21: 0 | FI21: 0 | FM21: 0 | FQ21: 0 | FU21: 0 | FY21: 0 | GC21: 0 | GG21: 0 | GK21: 0 | GO21: 0 | GS21: 0 | GW21: 0 | HA21: 0 | HE21: 0 | HI21: 0 | HM21: 0 | HQ21: 0 | HU21: 0 | HY21: 0 | IC21: 0 | IG21: 0 | IK21: 0 | IO21: 0 | IS21: 0 | IW21: 0 | JA21: 0 | JE21: 0 | JI21: 0 | JM21: 0 | JQ21: 0 | JU21: 0 | JY21: 0 | KC21: 0 | KG21: 0 | KK21: 0 | KO21: 0 | KS21: 0 | KW21: 0 | LA21: 0 | LE21: 0 | LI21: 0 | LM21: 0 | LQ21: 0 | LU21: 0 | LY21: 0 | MC21: 0 | MG21: 0 | MK21: 0 | MO21: 0 | MS21: 0 | MW21: 0 | NA21: 0 | NE21: 0 | NI21: 0 | NM21: 0 | NQ21: 0 | NU21: 0 | NY21: 0 | OC21: 0 | OG21: 0 | OK21: 0 | OO21: 0 | OS21: 0 | OW21: 0 | PA21: 0 | PE21: 0 | PI21: 0 | PM21: 0 | PQ21: 0 | PU21: 0 | PY21: 0 | QC21: 0 | QG21: 0 | QK21: 0 | QO21: 0 | QS21: 0 | QW21: 0 | RA21: 0 | RE21: 0 | RI21: 0 | RM21: 0 | RQ21: 0 | RU21: 0 | RY21: 0 | SC21: 0 | SG21: 0 | SK21: 0 | SO21: 0 | SS21: 0 | SW21: 0 | TA21: 0 | TE21: 0 | TI21: 0 | TM21: 0 | TQ21: 0 | TU21: 0 | TY21: 0 | UC21: 0 | UG21: 0 | UK21: 0 | UO21: 0 | US21: 0 | UW21: 0 | VA21: 0 | VE21: 0 | VI21: 0 | VM21: 0 | VQ21: 0 | VU21: 0 | VY21: 0 | WC21: 0 | WG21: 0 | WK21: 0 | WO21: 0 | WS21: 0 | WW21: 0 | XA21: 0 | XE21: 0 | XI21: 0 | XM21: 0 | XQ21: 0 | XU21: 0 | XY21: 0 | YC21: 0 | YG21: 0 | YK21: 0 | YO21: 0 | YS21: 0 | YW21: 0 | ZA21: 0 | ZE21: 0 | ZI21: 0 | ZM21: 0 | ZQ21: 0 | ZU21: 0 | ZY21: 0 | AAC21: 0 | AAG21: 0 | AAK21: 0 | AAO21: 0 | AAS21: 0 | AAW21: 0 | ABA21: 0 | ABE21: 0 | ABI21: 0 | ABM21: 0 | ABQ21: 0 | ABU21: 0 | ABY21: 0 | ACC21: 0 | ACG21: 0 | ACK21: 0 | ACO21: 0 | ACS21: 0 | ACW21: 0 | ADA21: 0 | ADE21: 0 | ADI21: 0 | ADM21: 0 | ADQ21: 0 | ADU21: 0 | ADY21: 0 | AEC21: 0 | AEG21: 0 | AEK21: 0 | AEO21: 0 | AES21: 0 | AEW21: 0 | AFA21: 0 | AFE21: 0 | AFI21: 0 | AFM21: 0 | AFQ21: 0 | AFU21: 0 | AFY21: 0 | AGC21: 0 | AGG21: 0 | AGK21: 0 | AGO21: 0 | AGS21: 0 | AGW21: 0 | AHA21: 0 | AHE21: 0 | AHI21: 0 | AHM21: 0 | AHQ21: 0 | AHU21: 0 | AHY21: 0 | AIC21: 0 | AIG21: 0 | AIK21: 0 | AIO21: 0 | AIS21: 0 | AIW21: 0 | AJA21: 0 | AJE21: 0 | AJI21: 0 | AJM21: 0 | AJQ21: 0 | AJU21: 0 | AJY21: 0 | AKC21: 0 | AKG21: 0 | AKK21: 0 | AKO21: 0 | AKS21: 0 | AKW21: 0 | ALA21: 0 | ALE21: 0 | ALI21: 0 | ALM21: 0 | ALQ21: 0 | ALU21: 0 | ALY21: 0 | AMC21: 0 | AMG21: 0 | AMK21: 0 | AMO21: 0 | AMS21: 0 | AMW21: 0 | ANA21: 0 | ANE21: 0 | ANI21: 0 | ANM21: 0 | ANQ21: 0 | ANU21: 0 | ANY21: 0 | AOC21: 0 | AOG21: 0 | AOK21: 0 | AOO21: 0 | AOS21: 0 | AOW21: 0 | APA21: 0 | APE21: 0 | API21: 0 | APM21: 0 | APQ21: 0 | APU21: 0 | APY21: 0 | AQC21: 0 | AQG21: 0 | AQK21: 0 | AQO21: 0 | AQS21: 0 | AQW21: 0 | ARA21: 0 | ARB21: 0 | ARC21: 10 | ARD21: 0 | ARE21: 10 | ARF21: 0 | ARG21: 1004.9 | ARH21: 0 | ARI21: =SUM(ARF21:ARH21) -> 1004.9 | ARJ21: 1004.9 | ARK21: Yes | ARL21: 0 | ARM21: 0 | ARN21: 0
B22: 4 | C22: Jonathan Baughman | D22: Safety Coordinator | E22: Vendor No 11 | F22: Barnett | G22: 25-23066 | H22: 2018-10-14 | I22: 2018-10-14 | J22: =IF(AND(H22>='A - Contractor Summary'!$C$36,I22<='A - Contractor Summary'!$C$42),"Yes","No") -> No | K22: =VLOOKUP($D22,'C.1 - Rate Sheets'!B:I,2,FALSE) -> 0 | L22: =VLOOKUP($D22,'C.1 - Rate Sheets'!B:I,3,FALSE) -> 100.49 | M22: =VLOOKUP($D22,'C.1 - Rate Sheets'!B:I,4,FALSE) -> 0 | O22: 10 | Q22: 10 | U22: 0 | Y22: 0 | AC22: 0 | AG22: 0 | AK22: 0 | AO22: 0 | AS22: 0 | AW22: 0 | BA22: 0 | BE22: 0 | BI22: 0 | BM22: 0 | BQ22: 0 | BU22: 0 | BY22: 0 | CC22: 0 | CG22: 0 | CK22: 0 | CO22: 0 | CS22: 0 | CW22: 0 | DA22: 0 | DE22: 0 | DI22: 0 | DM22: 0 | DQ22: 0 | DU22: 0 | DY22: 0 | EC22: 0 | EG22: 0 | EK22: 0 | EO22: 0 | ES22: 0 | EW22: 0 | FA22: 0 | FE22: 0 | FI22: 0 | FM22: 0 | FQ22: 0 | FU22: 0 | FY22: 0 | GC22: 0 | GG22: 0 | GK22: 0 | GO22: 0 | GS22: 0 | GW22: 0 | HA22: 0 | HE22: 0 | HI22: 0 | HM22: 0 | HQ22: 0 | HU22: 0 | HY22: 0 | IC22: 0 | IG22: 0 | IK22: 0 | IO22: 0 | IS22: 0 | IW22: 0 | JA22: 0 | JE22: 0 | JI22: 0 | JM22: 0 | JQ22: 0 | JU22: 0 | JY22: 0 | KC22: 0 | KG22: 0 | KK22: 0 | KO22: 0 | KS22: 0 | KW22: 0 | LA22: 0 | LE22: 0 | LI22: 0 | LM22: 0 | LQ22: 0 | LU22: 0 | LY22: 0 | MC22: 0 | MG22: 0 | MK22: 0 | MO22: 0 | MS22: 0 | MW22: 0 | NA22: 0 | NE22: 0 | NI22: 0 | NM22: 0 | NQ22: 0 | NU22: 0 | NY22: 0 | OC22: 0 | OG22: 0 | OK22: 0 | OO22: 0 | OS22: 0 | OW22: 0 | PA22: 0 | PE22: 0 | PI22: 0 | PM22: 0 | PQ22: 0 | PU22: 0 | PY22: 0 | QC22: 0 | QG22: 0 | QK22: 0 | QO22: 0 | QS22: 0 | QW22: 0 | RA22: 0 | RE22: 0 | RI22: 0 | RM22: 0 | RQ22: 0 | RU22: 0 | RY22: 0 | SC22: 0 | SG22: 0 | SK22: 0 | SO22: 0 | SS22: 0 | SW22: 0 | TA22: 0 | TE22: 0 | TI22: 0 | TM22: 0 | TQ22: 0 | TU22: 0 | TY22: 0 | UC22: 0 | UG22: 0 | UK22: 0 | UO22: 0 | US22: 0 | UW22: 0 | VA22: 0 | VE22: 0 | VI22: 0 | VM22: 0 | VQ22: 0 | VU22: 0 | VY22: 0 | WC22: 0 | WG22: 0 | WK22: 0 | WO22: 0 | WS22: 0 | WW22: 0 | XA22: 0 | XE22: 0 | XI22: 0 | XM22: 0 | XQ22: 0 | XU22: 0 | XY22: 0 | YC22: 0 | YG22: 0 | YK22: 0 | YO22: 0 | YS22: 0 | YW22: 0 | ZA22: 0 | ZE22: 0 | ZI22: 0 | ZM22: 0 | ZQ22: 0 | ZU22: 0 | ZY22: 0 | AAC22: 0 | AAG22: 0 | AAK22: 0 | AAO22: 0 | AAS22: 0 | AAW22: 0 | ABA22: 0 | ABE22: 0 | ABI22: 0 | ABM22: 0 | ABQ22: 0 | ABU22: 0 | ABY22: 0 | ACC22: 0 | ACG22: 0 | ACK22: 0 | ACO22: 0 | ACS22: 0 | ACW22: 0 | ADA22: 0 | ADE22: 0 | ADI22: 0 | ADM22: 0 | ADQ22: 0 | ADU22: 0 | ADY22: 0 | AEC22: 0 | AEG22: 0 | AEK22: 0 | AEO22: 0 | AES22: 0 | AEW22: 0 | AFA22: 0 | AFE22: 0 | AFI22: 0 | AFM22: 0 | AFQ22: 0 | AFU22: 0 | AFY22: 0 | AGC22: 0 | AGG22: 0 | AGK22: 0 | AGO22: 0 | AGS22: 0 | AGW22: 0 | AHA22: 0 | AHE22: 0 | AHI22: 0 | AHM22: 0 | AHQ22: 0 | AHU22: 0 | AHY22: 0 | AIC22: 0 | AIG22: 0 | AIK22: 0 | AIO22: 0 | AIS22: 0 | AIW22: 0 | AJA22: 0 | AJE22: 0 | AJI22: 0 | AJM22: 0 | AJQ22: 0 | AJU22: 0 | AJY22: 0 | AKC22: 0 | AKG22: 0 | AKK22: 0 | AKO22: 0 | AKS22: 0 | AKW22: 0 | ALA22: 0 | ALE22: 0 | ALI22: 0 | ALM22: 0 | ALQ22: 0 | ALU22: 0 | ALY22: 0 | AMC22: 0 | AMG22: 0 | AMK22: 0 | AMO22: 0 | AMS22: 0 | AMW22: 0 | ANA22: 0 | ANE22: 0 | ANI22: 0 | ANM22: 0 | ANQ22: 0 | ANU22: 0 | ANY22: 0 | AOC22: 0 | AOG22: 0 | AOK22: 0 | AOO22: 0 | AOS22: 0 | AOW22: 0 | APA22: 0 | APE22: 0 | API22: 0 | APM22: 0 | APQ22: 0 | APU22: 0 | APY22: 0 | AQC22: 0 | AQG22: 0 | AQK22: 0 | AQO22: 0 | AQS22: 0 | AQW22: 0 | ARA22: 0 | ARB22: 0 | ARC22: 10 | ARD22: 0 | ARE22: 10 | ARF22: 0 | ARG22: 1004.9 | ARH22: 0 | ARI22: 1004.9 | ARJ22: 1004.9 | ARK22: Yes | ARL22: 0 | ARM22: 0 | ARN22: 0
B23: 5 | C23: Dewayne Broom | D23: Mechanic | E23: Vendor No 11 | F23: Barnett | G23: 25-23066 | H23: 2018-10-14 | I23: 2018-10-14 | J23: =IF(AND(H23>='A - Contractor Summary'!$C$36,I23<='A - Contractor Summary'!$C$42),"Yes","No") -> No | K23: =VLOOKUP($D23,'C.1 - Rate Sheets'!B:I,2,FALSE) -> 0 | L23: =VLOOKUP($D23,'C.1 - Rate Sheets'!B:I,3,FALSE) -> 69.99 | M23: =VLOOKUP($D23,'C.1 - Rate Sheets'!B:I,4,FALSE) -> 0 | O23: 11 | Q23: 11 | U23: 0 | Y23: 0 | AC23: 0 | AG23: 0 | AK23: 0 | AO23: 0 | AS23: 0 | AW23: 0 | BA23: 0 | BE23: 0 | BI23: 0 | BM23: 0 | BQ23: 0 | BU23: 0 | BY23: 0 | CC23: 0 | CG23: 0 | CK23: 0 | CO23: 0 | CS23: 0 | CW23: 0 | DA23: 0 | DE23: 0 | DI23: 0 | DM23: 0 | DQ23: 0 | DU23: 0 | DY23: 0 | EC23: 0 | EG23: 0 | EK23: 0 | EO23: 0 | ES23: 0 | EW23: 0 | FA23: 0 | FE23: 0 | FI23: 0 | FM23: 0 | FQ23: 0 | FU23: 0 | FY23: 0 | GC23: 0 | GG23: 0 | GK23: 0 | GO23: 0 | GS23: 0 | GW23: 0 | HA23: 0 | HE23: 0 | HI23: 0 | HM23: 0 | HQ23: 0 | HU23: 0 | HY23: 0 | IC23: 0 | IG23: 0 | IK23: 0 | IO23: 0 | IS23: 0 | IW23: 0 | JA23: 0 | JE23: 0 | JI23: 0 | JM23: 0 | JQ23: 0 | JU23: 0 | JY23: 0 | KC23: 0 | KG23: 0 | KK23: 0 | KO23: 0 | KS23: 0 | KW23: 0 | LA23: 0 | LE23: 0 | LI23: 0 | LM23: 0 | LQ23: 0 | LU23: 0 | LY23: 0 | MC23: 0 | MG23: 0 | MK23: 0 | MO23: 0 | MS23: 0 | MW23: 0 | NA23: 0 | NE23: 0 | NI23: 0 | NM23: 0 | NQ23: 0 | NU23: 0 | NY23: 0 | OC23: 0 | OG23: 0 | OK23: 0 | OO23: 0 | OS23: 0 | OW23: 0 | PA23: 0 | PE23: 0 | PI23: 0 | PM23: 0 | PQ23: 0 | PU23: 0 | PY23: 0 | QC23: 0 | QG23: 0 | QK23: 0 | QO23: 0 | QS23: 0 | QW23: 0 | RA23: 0 | RE23: 0 | RI23: 0 | RM23: 0 | RQ23: 0 | RU23: 0 | RY23: 0 | SC23: 0 | SG23: 0 | SK23: 0 | SO23: 0 | SS23: 0 | SW23: 0 | TA23: 0 | TE23: 0 | TI23: 0 | TM23: 0 | TQ23: 0 | TU23: 0 | TY23: 0 | UC23: 0 | UG23: 0 | UK23: 0 | UO23: 0 | US23: 0 | UW23: 0 | VA23: 0 | VE23: 0 | VI23: 0 | VM23: 0 | VQ23: 0 | VU23: 0 | VY23: 0 | WC23: 0 | WG23: 0 | WK23: 0 | WO23: 0 | WS23: 0 | WW23: 0 | XA23: 0 | XE23: 0 | XI23: 0 | XM23: 0 | XQ23: 0 | XU23: 0 | XY23: 0 | YC23: 0 | YG23: 0 | YK23: 0 | YO23: 0 | YS23: 0 | YW23: 0 | ZA23: 0 | ZE23: 0 | ZI23: 0 | ZM23: 0 | ZQ23: 0 | ZU23: 0 | ZY23: 0 | AAC23: 0 | AAG23: 0 | AAK23: 0 | AAO23: 0 | AAS23: 0 | AAW23: 0 | ABA23: 0 | ABE23: 0 | ABI23: 0 | ABM23: 0 | ABQ23: 0 | ABU23: 0 | ABY23: 0 | ACC23: 0 | ACG23: 0 | ACK23: 0 | ACO23: 0 | ACS23: 0 | ACW23: 0 | ADA23: 0 | ADE23: 0 | ADI23: 0 | ADM23: 0 | ADQ23: 0 | ADU23: 0 | ADY23: 0 | AEC23: 0 | AEG23: 0 | AEK23: 0 | AEO23: 0 | AES23: 0 | AEW23: 0 | AFA23: 0 | AFE23: 0 | AFI23: 0 | AFM23: 0 | AFQ23: 0 | AFU23: 0 | AFY23: 0 | AGC23: 0 | AGG23: 0 | AGK23: 0 | AGO23: 0 | AGS23: 0 | AGW23: 0 | AHA23: 0 | AHE23: 0 | AHI23: 0 | AHM23: 0 | AHQ23: 0 | AHU23: 0 | AHY23: 0 | AIC23: 0 | AIG23: 0 | AIK23: 0 | AIO23: 0 | AIS23: 0 | AIW23: 0 | AJA23: 0 | AJE23: 0 | AJI23: 0 | AJM23: 0 | AJQ23: 0 | AJU23: 0 | AJY23: 0 | AKC23: 0 | AKG23: 0 | AKK23: 0 | AKO23: 0 | AKS23: 0 | AKW23: 0 | ALA23: 0 | ALE23: 0 | ALI23: 0 | ALM23: 0 | ALQ23: 0 | ALU23: 0 | ALY23: 0 | AMC23: 0 | AMG23: 0 | AMK23: 0 | AMO23: 0 | AMS23: 0 | AMW23: 0 | ANA23: 0 | ANE23: 0 | ANI23: 0 | ANM23: 0 | ANQ23: 0 | ANU23: 0 | ANY23: 0 | AOC23: 0 | AOG23: 0 | AOK23: 0 | AOO23: 0 | AOS23: 0 | AOW23: 0 | APA23: 0 | APE23: 0 | API23: 0 | APM23: 0 | APQ23: 0 | APU23: 0 | APY23: 0 | AQC23: 0 | AQG23: 0 | AQK23: 0 | AQO23: 0 | AQS23: 0 | AQW23: 0 | ARA23: 0 | ARB23: 0 | ARC23: 11 | ARD23: 0 | ARE23: 11 | ARF23: 0 | ARG23: 769.89 | ARH23: 0 | ARI23: 769.89 | ARJ23: 769.89 | ARK23: Yes | ARL23: 0 | ARM23: 0 | ARN23: 0
B24: 6 | C24: Jonathan Culpepper | D24: Mechanic | E24: Vendor No 11 | F24: Barnett | G24: 25-23066 | H24: 2018-10-14 | I24: 2018-10-14 | J24: =IF(AND(H24>='A - Contractor Summary'!$C$36,I24<='A - Contractor Summary'!$C$42),"Yes","No") -> No | K24: =VLOOKUP($D24,'C.1 - Rate Sheets'!B:I,2,FALSE) -> 0 | L24: =VLOOKUP($D24,'C.1 - Rate Sheets'!B:I,3,FALSE) -> 69.99 | M24: =VLOOKUP($D24,'C.1 - Rate Sheets'!B:I,4,FALSE) -> 0 | O24: 11 | Q24: 11 | U24: 0 | Y24: 0 | AC24: 0 | AG24: 0 | AK24: 0 | AO24: 0 | AS24: 0 | AW24: 0 | BA24: 0 | BE24: 0 | BI24: 0 | BM24: 0 | BQ24: 0 | BU24: 0 | BY24: 0 | CC24: 0 | CG24: 0 | CK24: 0 | CO24: 0 | CS24: 0 | CW24: 0 | DA24: 0 | DE24: 0 | DI24: 0 | DM24: 0 | DQ24: 0 | DU24: 0 | DY24: 0 | EC24: 0 | EG24: 0 | EK24: 0 | EO24: 0 | ES24: 0 | EW24: 0 | FA24: 0 | FE24: 0 | FI24: 0 | FM24: 0 | FQ24: 0 | FU24: 0 | FY24: 0 | GC24: 0 | GG24: 0 | GK24: 0 | GO24: 0 | GS24: 0 | GW24: 0 | HA24: 0 | HE24: 0 | HI24: 0 | HM24: 0 | HQ24: 0 | HU24: 0 | HY24: 0 | IC24: 0 | IG24: 0 | IK24: 0 | IO24: 0 | IS24: 0 | IW24: 0 | JA24: 0 | JE24: 0 | JI24: 0 | JM24: 0 | JQ24: 0 | JU24: 0 | JY24: 0 | KC24: 0 | KG24: 0 | KK24: 0 | KO24: 0 | KS24: 0 | KW24: 0 | LA24: 0 | LE24: 0 | LI24: 0 | LM24: 0 | LQ24: 0 | LU24: 0 | LY24: 0 | MC24: 0 | MG24: 0 | MK24: 0 | MO24: 0 | MS24: 0 | MW24: 0 | NA24: 0 | NE24: 0 | NI24: 0 | NM24: 0 | NQ24: 0 | NU24: 0 | NY24: 0 | OC24: 0 | OG24: 0 | OK24: 0 | OO24: 0 | OS24: 0 | OW24: 0 | PA24: 0 | PE24: 0 | PI24: 0 | PM24: 0 | PQ24: 0 | PU24: 0 | PY24: 0 | QC24: 0 | QG24: 0 | QK24: 0 | QO24: 0 | QS24: 0 | QW24: 0 | RA24: 0 | RE24: 0 | RI24: 0 | RM24: 0 | RQ24: 0 | RU24: 0 | RY24: 0 | SC24: 0 | SG24: 0 | SK24: 0 | SO24: 0 | SS24: 0 | SW24: 0 | TA24: 0 | TE24: 0 | TI24: 0 | TM24: 0 | TQ24: 0 | TU24: 0 | TY24: 0 | UC24: 0 | UG24: 0 | UK24: 0 | UO24: 0 | US24: 0 | UW24: 0 | VA24: 0 | VE24: 0 | VI24: 0 | VM24: 0 | VQ24: 0 | VU24: 0 | VY24: 0 | WC24: 0 | WG24: 0 | WK24: 0 | WO24: 0 | WS24: 0 | WW24: 0 | XA24: 0 | XE24: 0 | XI24: 0 | XM24: 0 | XQ24: 0 | XU24: 0 | XY24: 0 | YC24: 0 | YG24: 0 | YK24: 0 | YO24: 0 | YS24: 0 | YW24: 0 | ZA24: 0 | ZE24: 0 | ZI24: 0 | ZM24: 0 | ZQ24: 0 | ZU24: 0 | ZY24: 0 | AAC24: 0 | AAG24: 0 | AAK24: 0 | AAO24: 0 | AAS24: 0 | AAW24: 0 | ABA24: 0 | ABE24: 0 | ABI24: 0 | ABM24: 0 | ABQ24: 0 | ABU24: 0 | ABY24: 0 | ACC24: 0 | ACG24: 0 | ACK24: 0 | ACO24: 0 | ACS24: 0 | ACW24: 0 | ADA24: 0 | ADE24: 0 | ADI24: 0 | ADM24: 0 | ADQ24: 0 | ADU24: 0 | ADY24: 0 | AEC24: 0 | AEG24: 0 | AEK24: 0 | AEO24: 0 | AES24: 0 | AEW24: 0 | AFA24: 0 | AFE24: 0 | AFI24: 0 | AFM24: 0 | AFQ24: 0 | AFU24: 0 | AFY24: 0 | AGC24: 0 | AGG24: 0 | AGK24: 0 | AGO24: 0 | AGS24: 0 | AGW24: 0 | AHA24: 0 | AHE24: 0 | AHI24: 0 | AHM24: 0 | AHQ24: 0 | AHU24: 0 | AHY24: 0 | AIC24: 0 | AIG24: 0 | AIK24: 0 | AIO24: 0 | AIS24: 0 | AIW24: 0 | AJA24: 0 | AJE24: 0 | AJI24: 0 | AJM24: 0 | AJQ24: 0 | AJU24: 0 | AJY24: 0 | AKC24: 0 | AKG24: 0 | AKK24: 0 | AKO24: 0 | AKS24: 0 | AKW24: 0 | ALA24: 0 | ALE24: 0 | ALI24: 0 | ALM24: 0 | ALQ24: 0 | ALU24: 0 | ALY24: 0 | AMC24: 0 | AMG24: 0 | AMK24: 0 | AMO24: 0 | AMS24: 0 | AMW24: 0 | ANA24: 0 | ANE24: 0 | ANI24: 0 | ANM24: 0 | ANQ24: 0 | ANU24: 0 | ANY24: 0 | AOC24: 0 | AOG24: 0 | AOK24: 0 | AOO24: 0 | AOS24: 0 | AOW24: 0 | APA24: 0 | APE24: 0 | API24: 0 | APM24: 0 | APQ24: 0 | APU24: 0 | APY24: 0 | AQC24: 0 | AQG24: 0 | AQK24: 0 | AQO24: 0 | AQS24: 0 | AQW24: 0 | ARA24: 0 | ARB24: 0 | ARC24: 11 | ARD24: 0 | ARE24: 11 | ARF24: 0 | ARG24: 769.89 | ARH24: 0 | ARI24: 769.89 | ARJ24: 769.89 | ARK24: Yes | ARL24: 0 | ARM24: 0 | ARN24: 0
B25: 7 | C25: Curtis Chisholm | D25: General Foreman | E25: Vendor No 11 | F25: Chisholm | G25: 25-23067 | H25: 2018-10-14 | I25: 2018-10-14 | J25: =IF(AND(H25>='A - Contractor Summary'!$C$36,I25<='A - Contractor Summary'!$C$42),"Yes","No") -> No | K25: =VLOOKUP($D25,'C.1 - Rate Sheets'!B:I,2,FALSE) -> 0 | L25: =VLOOKUP($D25,'C.1 - Rate Sheets'!B:I,3,FALSE) -> 107.42 | M25: =VLOOKUP($D25,'C.1 - Rate Sheets'!B:I,4,FALSE) -> 0 | O25: 10 | Q25: 10 | U25: 0 | Y25: 0 | AC25: 0 | AG25: 0 | AK25: 0 | AO25: 0 | AS25: 0 | AW25: 0 | BA25: 0 | BE25: 0 | BI25: 0 | BM25: 0 | BQ25: 0 | BU25: 0 | BY25: 0 | CC25: 0 | CG25: 0 | CK25: 0 | CO25: 0 | CS25: 0 | CW25: 0 | DA25: 0 | DE25: 0 | DI25: 0 | DM25: 0 | DQ25: 0 | DU25: 0 | DY25: 0 | EC25: 0 | EG25: 0 | EK25: 0 | EO25: 0 | ES25: 0 | EW25: 0 | FA25: 0 | FE25: 0 | FI25: 0 | FM25: 0 | FQ25: 0 | FU25: 0 | FY25: 0 | GC25: 0 | GG25: 0 | GK25: 0 | GO25: 0 | GS25: 0 | GW25: 0 | HA25: 0 | HE25: 0 | HI25: 0 | HM25: 0 | HQ25: 0 | HU25: 0 | HY25: 0 | IC25: 0 | IG25: 0 | IK25: 0 | IO25: 0 | IS25: 0 | IW25: 0 | JA25: 0 | JE25: 0 | JI25: 0 | JM25: 0 | JQ25: 0 | JU25: 0 | JY25: 0 | KC25: 0 | KG25: 0 | KK25: 0 | KO25: 0 | KS25: 0 | KW25: 0 | LA25: 0 | LE25: 0 | LI25: 0 | LM25: 0 | LQ25: 0 | LU25: 0 | LY25: 0 | MC25: 0 | MG25: 0 | MK25: 0 | MO25: 0 | MS25: 0 | MW25: 0 | NA25: 0 | NE25: 0 | NI25: 0 | NM25: 0 | NQ25: 0 | NU25: 0 | NY25: 0 | OC25: 0 | OG25: 0 | OK25: 0 | OO25: 0 | OS25: 0 | OW25: 0 | PA25: 0 | PE25: 0 | PI25: 0 | PM25: 0 | PQ25: 0 | PU25: 0 | PY25: 0 | QC25: 0 | QG25: 0 | QK25: 0 | QO25: 0 | QS25: 0 | QW25: 0 | RA25: 0 | RE25: 0 | RI25: 0 | RM25: 0 | RQ25: 0 | RU25: 0 | RY25: 0 | SC25: 0 | SG25: 0 | SK25: 0 | SO25: 0 | SS25: 0 | SW25: 0 | TA25: 0 | TE25: 0 | TI25: 0 | TM25: 0 | TQ25: 0 | TU25: 0 | TY25: 0 | UC25: 0 | UG25: 0 | UK25: 0 | UO25: 0 | US25: 0 | UW25: 0 | VA25: 0 | VE25: 0 | VI25: 0 | VM25: 0 | VQ25: 0 | VU25: 0 | VY25: 0 | WC25: 0 | WG25: 0 | WK25: 0 | WO25: 0 | WS25: 0 | WW25: 0 | XA25: 0 | XE25: 0 | XI25: 0 | XM25: 0 | XQ25: 0 | XU25: 0 | XY25: 0 | YC25: 0 | YG25: 0 | YK25: 0 | YO25: 0 | YS25: 0 | YW25: 0 | ZA25: 0 | ZE25: 0 | ZI25: 0 | ZM25: 0 | ZQ25: 0 | ZU25: 0 | ZY25: 0 | AAC25: 0 | AAG25: 0 | AAK25: 0 | AAO25: 0 | AAS25: 0 | AAW25: 0 | ABA25: 0 | ABE25: 0 | ABI25: 0 | ABM25: 0 | ABQ25: 0 | ABU25: 0 | ABY25: 0 | ACC25: 0 | ACG25: 0 | ACK25: 0 | ACO25: 0 | ACS25: 0 | ACW25: 0 | ADA25: 0 | ADE25: 0 | ADI25: 0 | ADM25: 0 | ADQ25: 0 | ADU25: 0 | ADY25: 0 | AEC25: 0 | AEG25: 0 | AEK25: 0 | AEO25: 0 | AES25: 0 | AEW25: 0 | AFA25: 0 | AFE25: 0 | AFI25: 0 | AFM25: 0 | AFQ25: 0 | AFU25: 0 | AFY25: 0 | AGC25: 0 | AGG25: 0 | AGK25: 0 | AGO25: 0 | AGS25: 0 | AGW25: 0 | AHA25: 0 | AHE25: 0 | AHI25: 0 | AHM25: 0 | AHQ25: 0 | AHU25: 0 | AHY25: 0 | AIC25: 0 | AIG25: 0 | AIK25: 0 | AIO25: 0 | AIS25: 0 | AIW25: 0 | AJA25: 0 | AJE25: 0 | AJI25: 0 | AJM25: 0 | AJQ25: 0 | AJU25: 0 | AJY25: 0 | AKC25: 0 | AKG25: 0 | AKK25: 0 | AKO25: 0 | AKS25: 0 | AKW25: 0 | ALA25: 0 | ALE25: 0 | ALI25: 0 | ALM25: 0 | ALQ25: 0 | ALU25: 0 | ALY25: 0 | AMC25: 0 | AMG25: 0 | AMK25: 0 | AMO25: 0 | AMS25: 0 | AMW25: 0 | ANA25: 0 | ANE25: 0 | ANI25: 0 | ANM25: 0 | ANQ25: 0 | ANU25: 0 | ANY25: 0 | AOC25: 0 | AOG25: 0 | AOK25: 0 | AOO25: 0 | AOS25: 0 | AOW25: 0 | APA25: 0 | APE25: 0 | API25: 0 | APM25: 0 | APQ25: 0 | APU25: 0 | APY25: 0 | AQC25: 0 | AQG25: 0 | AQK25: 0 | AQO25: 0 | AQS25: 0 | AQW25: 0 | ARA25: 0 | ARB25: 0 | ARC25: 10 | ARD25: 0 | ARE25: 10 | ARF25: 0 | ARG25: 1074.2 | ARH25: 0 | ARI25: 1074.2 | ARJ25: 1074.2 | ARK25: Yes | ARL25: 0 | ARM25: 0 | ARN25: 0
B26: 8 | C26: Charlie Prine | D26: Operator/Truck Driver | E26: Vendor No 11 | F26: Chisholm | G26: 25-23067 | H26: 2018-10-14 | I26: 2018-10-14 | J26: =IF(AND(H26>='A - Contractor Summary'!$C$36,I26<='A - Contractor Summary'!$C$42),"Yes","No") -> No | K26: =VLOOKUP($D26,'C.1 - Rate Sheets'!B:I,2,FALSE) -> 46 | L26: =VLOOKUP($D26,'C.1 - Rate Sheets'!B:I,3,FALSE) -> 69.99 | M26: =VLOOKUP($D26,'C.1 - Rate Sheets'!B:I,4,FALSE) -> 0 | O26: 10 | Q26: 10 | U26: 0 | Y26: 0 | AC26: 0 | AG26: 0 | AK26: 0 | AO26: 0 | AS26: 0 | AW26: 0 | BA26: 0 | BE26: 0 | BI26: 0 | BM26: 0 | BQ26: 0 | BU26: 0 | BY26: 0 | CC26: 0 | CG26: 0 | CK26: 0 | CO26: 0 | CS26: 0 | CW26: 0 | DA26: 0 | DE26: 0 | DI26: 0 | DM26: 0 | DQ26: 0 | DU26: 0 | DY26: 0 | EC26: 0 | EG26: 0 | EK26: 0 | EO26: 0 | ES26: 0 | EW26: 0 | FA26: 0 | FE26: 0 | FI26: 0 | FM26: 0 | FQ26: 0 | FU26: 0 | FY26: 0 | GC26: 0 | GG26: 0 | GK26: 0 | GO26: 0 | GS26: 0 | GW26: 0 | HA26: 0 | HE26: 0 | HI26: 0 | HM26: 0 | HQ26: 0 | HU26: 0 | HY26: 0 | IC26: 0 | IG26: 0 | IK26: 0 | IO26: 0 | IS26: 0 | IW26: 0 | JA26: 0 | JE26: 0 | JI26: 0 | JM26: 0 | JQ26: 0 | JU26: 0 | JY26: 0 | KC26: 0 | KG26: 0 | KK26: 0 | KO26: 0 | KS26: 0 | KW26: 0 | LA26: 0 | LE26: 0 | LI26: 0 | LM26: 0 | LQ26: 0 | LU26: 0 | LY26: 0 | MC26: 0 | MG26: 0 | MK26: 0 | MO26: 0 | MS26: 0 | MW26: 0 | NA26: 0 | NE26: 0 | NI26: 0 | NM26: 0 | NQ26: 0 | NU26: 0 | NY26: 0 | OC26: 0 | OG26: 0 | OK26: 0 | OO26: 0 | OS26: 0 | OW26: 0 | PA26: 0 | PE26: 0 | PI26: 0 | PM26: 0 | PQ26: 0 | PU26: 0 | PY26: 0 | QC26: 0 | QG26: 0 | QK26: 0 | QO26: 0 | QS26: 0 | QW26: 0 | RA26: 0 | RE26: 0 | RI26: 0 | RM26: 0 | RQ26: 0 | RU26: 0 | RY26: 0 | SC26: 0 | SG26: 0 | SK26: 0 | SO26: 0 | SS26: 0 | SW26: 0 | TA26: 0 | TE26: 0 | TI26: 0 | TM26: 0 | TQ26: 0 | TU26: 0 | TY26: 0 | UC26: 0 | UG26: 0 | UK26: 0 | UO26: 0 | US26: 0 | UW26: 0 | VA26: 0 | VE26: 0 | VI26: 0 | VM26: 0 | VQ26: 0 | VU26: 0 | VY26: 0 | WC26: 0 | WG26: 0 | WK26: 0 | WO26: 0 | WS26: 0 | WW26: 0 | XA26: 0 | XE26: 0 | XI26: 0 | XM26: 0 | XQ26: 0 | XU26: 0 | XY26: 0 | YC26: 0 | YG26: 0 | YK26: 0 | YO26: 0 | YS26: 0 | YW26: 0 | ZA26: 0 | ZE26: 0 | ZI26: 0 | ZM26: 0 | ZQ26: 0 | ZU26: 0 | ZY26: 0 | AAC26: 0 | AAG26: 0 | AAK26: 0 | AAO26: 0 | AAS26: 0 | AAW26: 0 | ABA26: 0 | ABE26: 0 | ABI26: 0 | ABM26: 0 | ABQ26: 0 | ABU26: 0 | ABY26: 0 | ACC26: 0 | ACG26: 0 | ACK26: 0 | ACO26: 0 | ACS26: 0 | ACW26: 0 | ADA26: 0 | ADE26: 0 | ADI26: 0 | ADM26: 0 | ADQ26: 0 | ADU26: 0 | ADY26: 0 | AEC26: 0 | AEG26: 0 | AEK26: 0 | AEO26: 0 | AES26: 0 | AEW26: 0 | AFA26: 0 | AFE26: 0 | AFI26: 0 | AFM26: 0 | AFQ26: 0 | AFU26: 0 | AFY26: 0 | AGC26: 0 | AGG26: 0 | AGK26: 0 | AGO26: 0 | AGS26: 0 | AGW26: 0 | AHA26: 0 | AHE26: 0 | AHI26: 0 | AHM26: 0 | AHQ26: 0 | AHU26: 0 | AHY26: 0 | AIC26: 0 | AIG26: 0 | AIK26: 0 | AIO26: 0 | AIS26: 0 | AIW26: 0 | AJA26: 0 | AJE26: 0 | AJI26: 0 | AJM26: 0 | AJQ26: 0 | AJU26: 0 | AJY26: 0 | AKC26: 0 | AKG26: 0 | AKK26: 0 | AKO26: 0 | AKS26: 0 | AKW26: 0 | ALA26: 0 | ALE26: 0 | ALI26: 0 | ALM26: 0 | ALQ26: 0 | ALU26: 0 | ALY26: 0 | AMC26: 0 | AMG26: 0 | AMK26: 0 | AMO26: 0 | AMS26: 0 | AMW26: 0 | ANA26: 0 | ANE26: 0 | ANI26: 0 | ANM26: 0 | ANQ26: 0 | ANU26: 0 | ANY26: 0 | AOC26: 0 | AOG26: 0 | AOK26: 0 | AOO26: 0 | AOS26: 0 | AOW26: 0 | APA26: 0 | APE26: 0 | API26: 0 | APM26: 0 | APQ26: 0 | APU26: 0 | APY26: 0 | AQC26: 0 | AQG26: 0 | AQK26: 0 | AQO26: 0 | AQS26: 0 | AQW26: 0 | ARA26: 0 | ARB26: 0 | ARC26: 10 | ARD26: 0 | ARE26: 10 | ARF26: 0 | ARG26: 699.9 | ARH26: 0 | ARI26: 699.9 | ARJ26: 699.9 | ARK26: Yes | ARL26: 0 | ARM26: 0 | ARN26: 0
B27: 9 | C27: Warren Lee | D27: Operator/Truck Driver | E27: Vendor No 11 | F27: Chisholm | G27: 25-23067 | H27: 2018-10-14 | I27: 2018-10-14 | J27: =IF(AND(H27>='A - Contractor Summary'!$C$36,I27<='A - Contractor Summary'!$C$42),"Yes","No") -> No | K27: =VLOOKUP($D27,'C.1 - Rate Sheets'!B:I,2,FALSE) -> 46 | L27: =VLOOKUP($D27,'C.1 - Rate Sheets'!B:I,3,FALSE) -> 69.99 | M27: =VLOOKUP($D27,'C.1 - Rate Sheets'!B:I,4,FALSE) -> 0 | O27: 10 | Q27: 10 | U27: 0 | Y27: 0 | AC27: 0 | AG27: 0 | AK27: 0 | AO27: 0 | AS27: 0 | AW27: 0 | BA27: 0 | BE27: 0 | BI27: 0 | BM27: 0 | BQ27: 0 | BU27: 0 | BY27: 0 | CC27: 0 | CG27: 0 | CK27: 0 | CO27: 0 | CS27: 0 | CW27: 0 | DA27: 0 | DE27: 0 | DI27: 0 | DM27: 0 | DQ27: 0 | DU27: 0 | DY27: 0 | EC27: 0 | EG27: 0 | EK27: 0 | EO27: 0 | ES27: 0 | EW27: 0 | FA27: 0 | FE27: 0 | FI27: 0 | FM27: 0 | FQ27: 0 | FU27: 0 | FY27: 0 | GC27: 0 | GG27: 0 | GK27: 0 | GO27: 0 | GS27: 0 | GW27: 0 | HA27: 0 | HE27: 0 | HI27: 0 | HM27: 0 | HQ27: 0 | HU27: 0 | HY27: 0 | IC27: 0 | IG27: 0 | IK27: 0 | IO27: 0 | IS27: 0 | IW27: 0 | JA27: 0 | JE27: 0 | JI27: 0 | JM27: 0 | JQ27: 0 | JU27: 0 | JY27: 0 | KC27: 0 | KG27: 0 | KK27: 0 | KO27: 0 | KS27: 0 | KW27: 0 | LA27: 0 | LE27: 0 | LI27: 0 | LM27: 0 | LQ27: 0 | LU27: 0 | LY27: 0 | MC27: 0 | MG27: 0 | MK27: 0 | MO27: 0 | MS27: 0 | MW27: 0 | NA27: 0 | NE27: 0 | NI27: 0 | NM27: 0 | NQ27: 0 | NU27: 0 | NY27: 0 | OC27: 0 | OG27: 0 | OK27: 0 | OO27: 0 | OS27: 0 | OW27: 0 | PA27: 0 | PE27: 0 | PI27: 0 | PM27: 0 | PQ27: 0 | PU27: 0 | PY27: 0 | QC27: 0 | QG27: 0 | QK27: 0 | QO27: 0 | QS27: 0 | QW27: 0 | RA27: 0 | RE27: 0 | RI27: 0 | RM27: 0 | RQ27: 0 | RU27: 0 | RY27: 0 | SC27: 0 | SG27: 0 | SK27: 0 | SO27: 0 | SS27: 0 | SW27: 0 | TA27: 0 | TE27: 0 | TI27: 0 | TM27: 0 | TQ27: 0 | TU27: 0 | TY27: 0 | UC27: 0 | UG27: 0 | UK27: 0 | UO27: 0 | US27: 0 | UW27: 0 | VA27: 0 | VE27: 0 | VI27: 0 | VM27: 0 | VQ27: 0 | VU27: 0 | VY27: 0 | WC27: 0 | WG27: 0 | WK27: 0 | WO27: 0 | WS27: 0 | WW27: 0 | XA27: 0 | XE27: 0 | XI27: 0 | XM27: 0 | XQ27: 0 | XU27: 0 | XY27: 0 | YC27: 0 | YG27: 0 | YK27: 0 | YO27: 0 | YS27: 0 | YW27: 0 | ZA27: 0 | ZE27: 0 | ZI27: 0 | ZM27: 0 | ZQ27: 0 | ZU27: 0 | ZY27: 0 | AAC27: 0 | AAG27: 0 | AAK27: 0 | AAO27: 0 | AAS27: 0 | AAW27: 0 | ABA27: 0 | ABE27: 0 | ABI27: 0 | ABM27: 0 | ABQ27: 0 | ABU27: 0 | ABY27: 0 | ACC27: 0 | ACG27: 0 | ACK27: 0 | ACO27: 0 | ACS27: 0 | ACW27: 0 | ADA27: 0 | ADE27: 0 | ADI27: 0 | ADM27: 0 | ADQ27: 0 | ADU27: 0 | ADY27: 0 | AEC27: 0 | AEG27: 0 | AEK27: 0 | AEO27: 0 | AES27: 0 | AEW27: 0 | AFA27: 0 | AFE27: 0 | AFI27: 0 | AFM27: 0 | AFQ27: 0 | AFU27: 0 | AFY27: 0 | AGC27: 0 | AGG27: 0 | AGK27: 0 | AGO27: 0 | AGS27: 0 | AGW27: 0 | AHA27: 0 | AHE27: 0 | AHI27: 0 | AHM27: 0 | AHQ27: 0 | AHU27: 0 | AHY27: 0 | AIC27: 0 | AIG27: 0 | AIK27: 0 | AIO27: 0 | AIS27: 0 | AIW27: 0 | AJA27: 0 | AJE27: 0 | AJI27: 0 | AJM27: 0 | AJQ27: 0 | AJU27: 0 | AJY27: 0 | AKC27: 0 | AKG27: 0 | AKK27: 0 | AKO27: 0 | AKS27: 0 | AKW27: 0 | ALA27: 0 | ALE27: 0 | ALI27: 0 | ALM27: 0 | ALQ27: 0 | ALU27: 0 | ALY27: 0 | AMC27: 0 | AMG27: 0 | AMK27: 0 | AMO27: 0 | AMS27: 0 | AMW27: 0 | ANA27: 0 | ANE27: 0 | ANI27: 0 | ANM27: 0 | ANQ27: 0 | ANU27: 0 | ANY27: 0 | AOC27: 0 | AOG27: 0 | AOK27: 0 | AOO27: 0 | AOS27: 0 | AOW27: 0 | APA27: 0 | APE27: 0 | API27: 0 | APM27: 0 | APQ27: 0 | APU27: 0 | APY27: 0 | AQC27: 0 | AQG27: 0 | AQK27: 0 | AQO27: 0 | AQS27: 0 | AQW27: 0 | ARA27: 0 | ARB27: 0 | ARC27: 10 | ARD27: 0 | ARE27: 10 | ARF27: 0 | ARG27: 699.9 | ARH27: 0 | ARI27: 699.9 | ARJ27: 699.9 | ARK27: Yes | ARL27: 0 | ARM27: 0 | ARN27: 0
B28: 10 | C28: Greg Mason | D28: Operator/Truck Driver | E28: Vendor No 11 | F28: Chisholm | G28: 25-23067 | H28: 2018-10-14 | I28: 2018-10-14 | J28: =IF(AND(H28>='A - Contractor Summary'!$C$36,I28<='A - Contractor Summary'!$C$42),"Yes","No") -> No | K28: =VLOOKUP($D28,'C.1 - Rate Sheets'!B:I,2,FALSE) -> 46 | L28: =VLOOKUP($D28,'C.1 - Rate Sheets'!B:I,3,FALSE) -> 69.99 | M28: =VLOOKUP($D28,'C.1 - Rate Sheets'!B:I,4,FALSE) -> 0 | O28: 10 | Q28: 10 | U28: 0 | Y28: 0 | AC28: 0 | AG28: 0 | AK28: 0 | AO28: 0 | AS28: 0 | AW28: 0 | BA28: 0 | BE28: 0 | BI28: 0 | BM28: 0 | BQ28: 0 | BU28: 0 | BY28: 0 | CC28: 0 | CG28: 0 | CK28: 0 | CO28: 0 | CS28: 0 | CW28: 0 | DA28: 0 | DE28: 0 | DI28: 0 | DM28: 0 | DQ28: 0 | DU28: 0 | DY28: 0 | EC28: 0 | EG28: 0 | EK28: 0 | EO28: 0 | ES28: 0 | EW28: 0 | FA28: 0 | FE28: 0 | FI28: 0 | FM28: 0 | FQ28: 0 | FU28: 0 | FY28: 0 | GC28: 0 | GG28: 0 | GK28: 0 | GO28: 0 | GS28: 0 | GW28: 0 | HA28: 0 | HE28: 0 | HI28: 0 | HM28: 0 | HQ28: 0 | HU28: 0 | HY28: 0 | IC28: 0 | IG28: 0 | IK28: 0 | IO28: 0 | IS28: 0 | IW28: 0 | JA28: 0 | JE28: 0 | JI28: 0 | JM28: 0 | JQ28: 0 | JU28: 0 | JY28: 0 | KC28: 0 | KG28: 0 | KK28: 0 | KO28: 0 | KS28: 0 | KW28: 0 | LA28: 0 | LE28: 0 | LI28: 0 | LM28: 0 | LQ28: 0 | LU28: 0 | LY28: 0 | MC28: 0 | MG28: 0 | MK28: 0 | MO28: 0 | MS28: 0 | MW28: 0 | NA28: 0 | NE28: 0 | NI28: 0 | NM28: 0 | NQ28: 0 | NU28: 0 | NY28: 0 | OC28: 0 | OG28: 0 | OK28: 0 | OO28: 0 | OS28: 0 | OW28: 0 | PA28: 0 | PE28: 0 | PI28: 0 | PM28: 0 | PQ28: 0 | PU28: 0 | PY28: 0 | QC28: 0 | QG28: 0 | QK28: 0 | QO28: 0 | QS28: 0 | QW28: 0 | RA28: 0 | RE28: 0 | RI28: 0 | RM28: 0 | RQ28: 0 | RU28: 0 | RY28: 0 | SC28: 0 | SG28: 0 | SK28: 0 | SO28: 0 | SS28: 0 | SW28: 0 | TA28: 0 | TE28: 0 | TI28: 0 | TM28: 0 | TQ28: 0 | TU28: 0 | TY28: 0 | UC28: 0 | UG28: 0 | UK28: 0 | UO28: 0 | US28: 0 | UW28: 0 | VA28: 0 | VE28: 0 | VI28: 0 | VM28: 0 | VQ28: 0 | VU28: 0 | VY28: 0 | WC28: 0 | WG28: 0 | WK28: 0 | WO28: 0 | WS28: 0 | WW28: 0 | XA28: 0 | XE28: 0 | XI28: 0 | XM28: 0 | XQ28: 0 | XU28: 0 | XY28: 0 | YC28: 0 | YG28: 0 | YK28: 0 | YO28: 0 | YS28: 0 | YW28: 0 | ZA28: 0 | ZE28: 0 | ZI28: 0 | ZM28: 0 | ZQ28: 0 | ZU28: 0 | ZY28: 0 | AAC28: 0 | AAG28: 0 | AAK28: 0 | AAO28: 0 | AAS28: 0 | AAW28: 0 | ABA28: 0 | ABE28: 0 | ABI28: 0 | ABM28: 0 | ABQ28: 0 | ABU28: 0 | ABY28: 0 | ACC28: 0 | ACG28: 0 | ACK28: 0 | ACO28: 0 | ACS28: 0 | ACW28: 0 | ADA28: 0 | ADE28: 0 | ADI28: 0 | ADM28: 0 | ADQ28: 0 | ADU28: 0 | ADY28: 0 | AEC28: 0 | AEG28: 0 | AEK28: 0 | AEO28: 0 | AES28: 0 | AEW28: 0 | AFA28: 0 | AFE28: 0 | AFI28: 0 | AFM28: 0 | AFQ28: 0 | AFU28: 0 | AFY28: 0 | AGC28: 0 | AGG28: 0 | AGK28: 0 | AGO28: 0 | AGS28: 0 | AGW28: 0 | AHA28: 0 | AHE28: 0 | AHI28: 0 | AHM28: 0 | AHQ28: 0 | AHU28: 0 | AHY28: 0 | AIC28: 0 | AIG28: 0 | AIK28: 0 | AIO28: 0 | AIS28: 0 | AIW28: 0 | AJA28: 0 | AJE28: 0 | AJI28: 0 | AJM28: 0 | AJQ28: 0 | AJU28: 0 | AJY28: 0 | AKC28: 0 | AKG28: 0 | AKK28: 0 | AKO28: 0 | AKS28: 0 | AKW28: 0 | ALA28: 0 | ALE28: 0 | ALI28: 0 | ALM28: 0 | ALQ28: 0 | ALU28: 0 | ALY28: 0 | AMC28: 0 | AMG28: 0 | AMK28: 0 | AMO28: 0 | AMS28: 0 | AMW28: 0 | ANA28: 0 | ANE28: 0 | ANI28: 0 | ANM28: 0 | ANQ28: 0 | ANU28: 0 | ANY28: 0 | AOC28: 0 | AOG28: 0 | AOK28: 0 | AOO28: 0 | AOS28: 0 | AOW28: 0 | APA28: 0 | APE28: 0 | API28: 0 | APM28: 0 | APQ28: 0 | APU28: 0 | APY28: 0 | AQC28: 0 | AQG28: 0 | AQK28: 0 | AQO28: 0 | AQS28: 0 | AQW28: 0 | ARA28: 0 | ARB28: 0 | ARC28: 10 | ARD28: 0 | ARE28: 10 | ARF28: 0 | ARG28: 699.9 | ARH28: 0 | ARI28: 699.9 | ARJ28: 699.9 | ARK28: Yes | ARL28: 0 | ARM28: 0 | ARN28: 0
B29: 11 | C29: Kerry Lee | D29: Operator/Truck Driver | E29: Vendor No 11 | F29: Chisholm | G29: 25-23067 | H29: 2018-10-14 | I29: 2018-10-14 | J29: =IF(AND(H29>='A - Contractor Summary'!$C$36,I29<='A - Contractor Summary'!$C$42),"Yes","No") -> No | K29: =VLOOKUP($D29,'C.1 - Rate Sheets'!B:I,2,FALSE) -> 46 | L29: =VLOOKUP($D29,'C.1 - Rate Sheets'!B:I,3,FALSE) -> 69.99 | M29: =VLOOKUP($D29,'C.1 - Rate Sheets'!B:I,4,FALSE) -> 0 | O29: 10 | Q29: 10 | U29: 0 | Y29: 0 | AC29: 0 | AG29: 0 | AK29: 0 | AO29: 0 | AS29: 0 | AW29: 0 | BA29: 0 | BE29: 0 | BI29: 0 | BM29: 0 | BQ29: 0 | BU29: 0 | BY29: 0 | CC29: 0 | CG29: 0 | CK29: 0 | CO29: 0 | CS29: 0 | CW29: 0 | DA29: 0 | DE29: 0 | DI29: 0 | DM29: 0 | DQ29: 0 | DU29: 0 | DY29: 0 | EC29: 0 | EG29: 0 | EK29: 0 | EO29: 0 | ES29: 0 | EW29: 0 | FA29: 0 | FE29: 0 | FI29: 0 | FM29: 0 | FQ29: 0 | FU29: 0 | FY29: 0 | GC29: 0 | GG29: 0 | GK29: 0 | GO29: 0 | GS29: 0 | GW29: 0 | HA29: 0 | HE29: 0 | HI29: 0 | HM29: 0 | HQ29: 0 | HU29: 0 | HY29: 0 | IC29: 0 | IG29: 0 | IK29: 0 | IO29: 0 | IS29: 0 | IW29: 0 | JA29: 0 | JE29: 0 | JI29: 0 | JM29: 0 | JQ29: 0 | JU29: 0 | JY29: 0 | KC29: 0 | KG29: 0 | KK29: 0 | KO29: 0 | KS29: 0 | KW29: 0 | LA29: 0 | LE29: 0 | LI29: 0 | LM29: 0 | LQ29: 0 | LU29: 0 | LY29: 0 | MC29: 0 | MG29: 0 | MK29: 0 | MO29: 0 | MS29: 0 | MW29: 0 | NA29: 0 | NE29: 0 | NI29: 0 | NM29: 0 | NQ29: 0 | NU29: 0 | NY29: 0 | OC29: 0 | OG29: 0 | OK29: 0 | OO29: 0 | OS29: 0 | OW29: 0 | PA29: 0 | PE29: 0 | PI29: 0 | PM29: 0 | PQ29: 0 | PU29: 0 | PY29: 0 | QC29: 0 | QG29: 0 | QK29: 0 | QO29: 0 | QS29: 0 | QW29: 0 | RA29: 0 | RE29: 0 | RI29: 0 | RM29: 0 | RQ29: 0 | RU29: 0 | RY29: 0 | SC29: 0 | SG29: 0 | SK29: 0 | SO29: 0 | SS29: 0 | SW29: 0 | TA29: 0 | TE29: 0 | TI29: 0 | TM29: 0 | TQ29: 0 | TU29: 0 | TY29: 0 | UC29: 0 | UG29: 0 | UK29: 0 | UO29: 0 | US29: 0 | UW29: 0 | VA29: 0 | VE29: 0 | VI29: 0 | VM29: 0 | VQ29: 0 | VU29: 0 | VY29: 0 | WC29: 0 | WG29: 0 | WK29: 0 | WO29: 0 | WS29: 0 | WW29: 0 | XA29: 0 | XE29: 0 | XI29: 0 | XM29: 0 | XQ29: 0 | XU29: 0 | XY29: 0 | YC29: 0 | YG29: 0 | YK29: 0 | YO29: 0 | YS29: 0 | YW29: 0 | ZA29: 0 | ZE29: 0 | ZI29: 0 | ZM29: 0 | ZQ29: 0 | ZU29: 0 | ZY29: 0 | AAC29: 0 | AAG29: 0 | AAK29: 0 | AAO29: 0 | AAS29: 0 | AAW29: 0 | ABA29: 0 | ABE29: 0 | ABI29: 0 | ABM29: 0 | ABQ29: 0 | ABU29: 0 | ABY29: 0 | ACC29: 0 | ACG29: 0 | ACK29: 0 | ACO29: 0 | ACS29: 0 | ACW29: 0 | ADA29: 0 | ADE29: 0 | ADI29: 0 | ADM29: 0 | ADQ29: 0 | ADU29: 0 | ADY29: 0 | AEC29: 0 | AEG29: 0 | AEK29: 0 | AEO29: 0 | AES29: 0 | AEW29: 0 | AFA29: 0 | AFE29: 0 | AFI29: 0 | AFM29: 0 | AFQ29: 0 | AFU29: 0 | AFY29: 0 | AGC29: 0 | AGG29: 0 | AGK29: 0 | AGO29: 0 | AGS29: 0 | AGW29: 0 | AHA29: 0 | AHE29: 0 | AHI29: 0 | AHM29: 0 | AHQ29: 0 | AHU29: 0 | AHY29: 0 | AIC29: 0 | AIG29: 0 | AIK29: 0 | AIO29: 0 | AIS29: 0 | AIW29: 0 | AJA29: 0 | AJE29: 0 | AJI29: 0 | AJM29: 0 | AJQ29: 0 | AJU29: 0 | AJY29: 0 | AKC29: 0 | AKG29: 0 | AKK29: 0 | AKO29: 0 | AKS29: 0 | AKW29: 0 | ALA29: 0 | ALE29: 0 | ALI29: 0 | ALM29: 0 | ALQ29: 0 | ALU29: 0 | ALY29: 0 | AMC29: 0 | AMG29: 0 | AMK29: 0 | AMO29: 0 | AMS29: 0 | AMW29: 0 | ANA29: 0 | ANE29: 0 | ANI29: 0 | ANM29: 0 | ANQ29: 0 | ANU29: 0 | ANY29: 0 | AOC29: 0 | AOG29: 0 | AOK29: 0 | AOO29: 0 | AOS29: 0 | AOW29: 0 | APA29: 0 | APE29: 0 | API29: 0 | APM29: 0 | APQ29: 0 | APU29: 0 | APY29: 0 | AQC29: 0 | AQG29: 0 | AQK29: 0 | AQO29: 0 | AQS29: 0 | AQW29: 0 | ARA29: 0 | ARB29: 0 | ARC29: 10 | ARD29: 0 | ARE29: 10 | ARF29: 0 | ARG29: 699.9 | ARH29: 0 | ARI29: 699.9 | ARJ29: 699.9 | ARK29: Yes | ARL29: 0 | ARM29: 0 | ARN29: 0
B30: 12 | C30: Brian Chambley | D30: Foreman | E30: Vendor No 11 | F30: Chambley | G30: 25-23068 | H30: 2018-10-14 | I30: 2018-10-14 | J30: =IF(AND(H30>='A - Contractor Summary'!$C$36,I30<='A - Contractor Summary'!$C$42),"Yes","No") -> No | K30: =VLOOKUP($D30,'C.1 - Rate Sheets'!B:I,2,FALSE) -> 66 | L30: =VLOOKUP($D30,'C.1 - Rate Sheets'!B:I,3,FALSE) -> 100.49 | M30: =VLOOKUP($D30,'C.1 - Rate Sheets'!B:I,4,FALSE) -> 0 | O30: 10 | Q30: 10 | U30: 0 | Y30: 0 | AC30: 0 | AG30: 0 | AK30: 0 | AO30: 0 | AS30: 0 | AW30: 0 | BA30: 0 | BE30: 0 | BI30: 0 | BM30: 0 | BQ30: 0 | BU30: 0 | BY30: 0 | CC30: 0 | CG30: 0 | CK30: 0 | CO30: 0 | CS30: 0 | CW30: 0 | DA30: 0 | DE30: 0 | DI30: 0 | DM30: 0 | DQ30: 0 | DU30: 0 | DY30: 0 | EC30: 0 | EG30: 0 | EK30: 0 | EO30: 0 | ES30: 0 | EW30: 0 | FA30: 0 | FE30: 0 | FI30: 0 | FM30: 0 | FQ30: 0 | FU30: 0 | FY30: 0 | GC30: 0 | GG30: 0 | GK30: 0 | GO30: 0 | GS30: 0 | GW30: 0 | HA30: 0 | HE30: 0 | HI30: 0 | HM30: 0 | HQ30: 0 | HU30: 0 | HY30: 0 | IC30: 0 | IG30: 0 | IK30: 0 | IO30: 0 | IS30: 0 | IW30: 0 | JA30: 0 | JE30: 0 | JI30: 0 | JM30: 0 | JQ30: 0 | JU30: 0 | JY30: 0 | KC30: 0 | KG30: 0 | KK30: 0 | KO30: 0 | KS30: 0 | KW30: 0 | LA30: 0 | LE30: 0 | LI30: 0 | LM30: 0 | LQ30: 0 | LU30: 0 | LY30: 0 | MC30: 0 | MG30: 0 | MK30: 0 | MO30: 0 | MS30: 0 | MW30: 0 | NA30: 0 | NE30: 0 | NI30: 0 | NM30: 0 | NQ30: 0 | NU30: 0 | NY30: 0 | OC30: 0 | OG30: 0 | OK30: 0 | OO30: 0 | OS30: 0 | OW30: 0 | PA30: 0 | PE30: 0 | PI30: 0 | PM30: 0 | PQ30: 0 | PU30: 0 | PY30: 0 | QC30: 0 | QG30: 0 | QK30: 0 | QO30: 0 | QS30: 0 | QW30: 0 | RA30: 0 | RE30: 0 | RI30: 0 | RM30: 0 | RQ30: 0 | RU30: 0 | RY30: 0 | SC30: 0 | SG30: 0 | SK30: 0 | SO30: 0 | SS30: 0 | SW30: 0 | TA30: 0 | TE30: 0 | TI30: 0 | TM30: 0 | TQ30: 0 | TU30: 0 | TY30: 0 | UC30: 0 | UG30: 0 | UK30: 0 | UO30: 0 | US30: 0 | UW30: 0 | VA30: 0 | VE30: 0 | VI30: 0 | VM30: 0 | VQ30: 0 | VU30: 0 | VY30: 0 | WC30: 0 | WG30: 0 | WK30: 0 | WO30: 0 | WS30: 0 | WW30: 0 | XA30: 0 | XE30: 0 | XI30: 0 | XM30: 0 | XQ30: 0 | XU30: 0 | XY30: 0 | YC30: 0 | YG30: 0 | YK30: 0 | YO30: 0 | YS30: 0 | YW30: 0 | ZA30: 0 | ZE30: 0 | ZI30: 0 | ZM30: 0 | ZQ30: 0 | ZU30: 0 | ZY30: 0 | AAC30: 0 | AAG30: 0 | AAK30: 0 | AAO30: 0 | AAS30: 0 | AAW30: 0 | ABA30: 0 | ABE30: 0 | ABI30: 0 | ABM30: 0 | ABQ30: 0 | ABU30: 0 | ABY30: 0 | ACC30: 0 | ACG30: 0 | ACK30: 0 | ACO30: 0 | ACS30: 0 | ACW30: 0 | ADA30: 0 | ADE30: 0 | ADI30: 0 | ADM30: 0 | ADQ30: 0 | ADU30: 0 | ADY30: 0 | AEC30: 0 | AEG30: 0 | AEK30: 0 | AEO30: 0 | AES30: 0 | AEW30: 0 | AFA30: 0 | AFE30: 0 | AFI30: 0 | AFM30: 0 | AFQ30: 0 | AFU30: 0 | AFY30: 0 | AGC30: 0 | AGG30: 0 | AGK30: 0 | AGO30: 0 | AGS30: 0 | AGW30: 0 | AHA30: 0 | AHE30: 0 | AHI30: 0 | AHM30: 0 | AHQ30: 0 | AHU30: 0 | AHY30: 0 | AIC30: 0 | AIG30: 0 | AIK30: 0 | AIO30: 0 | AIS30: 0 | AIW30: 0 | AJA30: 0 | AJE30: 0 | AJI30: 0 | AJM30: 0 | AJQ30: 0 | AJU30: 0 | AJY30: 0 | AKC30: 0 | AKG30: 0 | AKK30: 0 | AKO30: 0 | AKS30: 0 | AKW30: 0 | ALA30: 0 | ALE30: 0 | ALI30: 0 | ALM30: 0 | ALQ30: 0 | ALU30: 0 | ALY30: 0 | AMC30: 0 | AMG30: 0 | AMK30: 0 | AMO30: 0 | AMS30: 0 | AMW30: 0 | ANA30: 0 | ANE30: 0 | ANI30: 0 | ANM30: 0 | ANQ30: 0 | ANU30: 0 | ANY30: 0 | AOC30: 0 | AOG30: 0 | AOK30: 0 | AOO30: 0 | AOS30: 0 | AOW30: 0 | APA30: 0 | APE30: 0 | API30: 0 | APM30: 0 | APQ30: 0 | APU30: 0 | APY30: 0 | AQC30: 0 | AQG30: 0 | AQK30: 0 | AQO30: 0 | AQS30: 0 | AQW30: 0 | ARA30: 0 | ARB30: 0 | ARC30: 10 | ARD30: 0 | ARE30: 10 | ARF30: 0 | ARG30: 1004.9 | ARH30: 0 | ARI30: 1004.9 | ARJ30: 1004.9 | ARK30: Yes | ARL30: 0 | ARM30: 0 | ARN30: 0
B31: 13 | C31: Will Ford | D31: Lineman | E31: Vendor No 11 | F31: Chambley | G31: 25-23068 | H31: 2018-10-14 | I31: 2018-10-14 | J31: =IF(AND(H31>='A - Contractor Summary'!$C$36,I31<='A - Contractor Summary'!$C$42),"Yes","No") -> No | K31: =VLOOKUP($D31,'C.1 - Rate Sheets'!B:I,2,FALSE) -> 56 | L31: =VLOOKUP($D31,'C.1 - Rate Sheets'!B:I,3,FALSE) -> 84.65 | M31: =VLOOKUP($D31,'C.1 - Rate Sheets'!B:I,4,FALSE) -> 0 | O31: 10 | Q31: 10 | U31: 0 | Y31: 0 | AC31: 0 | AG31: 0 | AK31: 0 | AO31: 0 | AS31: 0 | AW31: 0 | BA31: 0 | BE31: 0 | BI31: 0 | BM31: 0 | BQ31: 0 | BU31: 0 | BY31: 0 | CC31: 0 | CG31: 0 | CK31: 0 | CO31: 0 | CS31: 0 | CW31: 0 | DA31: 0 | DE31: 0 | DI31: 0 | DM31: 0 | DQ31: 0 | DU31: 0 | DY31: 0 | EC31: 0 | EG31: 0 | EK31: 0 | EO31: 0 | ES31: 0 | EW31: 0 | FA31: 0 | FE31: 0 | FI31: 0 | FM31: 0 | FQ31: 0 | FU31: 0 | FY31: 0 | GC31: 0 | GG31: 0 | GK31: 0 | GO31: 0 | GS31: 0 | GW31: 0 | HA31: 0 | HE31: 0 | HI31: 0 | HM31: 0 | HQ31: 0 | HU31: 0 | HY31: 0 | IC31: 0 | IG31: 0 | IK31: 0 | IO31: 0 | IS31: 0 | IW31: 0 | JA31: 0 | JE31: 0 | JI31: 0 | JM31: 0 | JQ31: 0 | JU31: 0 | JY31: 0 | KC31: 0 | KG31: 0 | KK31: 0 | KO31: 0 | KS31: 0 | KW31: 0 | LA31: 0 | LE31: 0 | LI31: 0 | LM31: 0 | LQ31: 0 | LU31: 0 | LY31: 0 | MC31: 0 | MG31: 0 | MK31: 0 | MO31: 0 | MS31: 0 | MW31: 0 | NA31: 0 | NE31: 0 | NI31: 0 | NM31: 0 | NQ31: 0 | NU31: 0 | NY31: 0 | OC31: 0 | OG31: 0 | OK31: 0 | OO31: 0 | OS31: 0 | OW31: 0 | PA31: 0 | PE31: 0 | PI31: 0 | PM31: 0 | PQ31: 0 | PU31: 0 | PY31: 0 | QC31: 0 | QG31: 0 | QK31: 0 | QO31: 0 | QS31: 0 | QW31: 0 | RA31: 0 | RE31: 0 | RI31: 0 | RM31: 0 | RQ31: 0 | RU31: 0 | RY31: 0 | SC31: 0 | SG31: 0 | SK31: 0 | SO31: 0 | SS31: 0 | SW31: 0 | TA31: 0 | TE31: 0 | TI31: 0 | TM31: 0 | TQ31: 0 | TU31: 0 | TY31: 0 | UC31: 0 | UG31: 0 | UK31: 0 | UO31: 0 | US31: 0 | UW31: 0 | VA31: 0 | VE31: 0 | VI31: 0 | VM31: 0 | VQ31: 0 | VU31: 0 | VY31: 0 | WC31: 0 | WG31: 0 | WK31: 0 | WO31: 0 | WS31: 0 | WW31: 0 | XA31: 0 | XE31: 0 | XI31: 0 | XM31: 0 | XQ31: 0 | XU31: 0 | XY31: 0 | YC31: 0 | YG31: 0 | YK31: 0 | YO31: 0 | YS31: 0 | YW31: 0 | ZA31: 0 | ZE31: 0 | ZI31: 0 | ZM31: 0 | ZQ31: 0 | ZU31: 0 | ZY31: 0 | AAC31: 0 | AAG31: 0 | AAK31: 0 | AAO31: 0 | AAS31: 0 | AAW31: 0 | ABA31: 0 | ABE31: 0 | ABI31: 0 | ABM31: 0 | ABQ31: 0 | ABU31: 0 | ABY31: 0 | ACC31: 0 | ACG31: 0 | ACK31: 0 | ACO31: 0 | ACS31: 0 | ACW31: 0 | ADA31: 0 | ADE31: 0 | ADI31: 0 | ADM31: 0 | ADQ31: 0 | ADU31: 0 | ADY31: 0 | AEC31: 0 | AEG31: 0 | AEK31: 0 | AEO31: 0 | AES31: 0 | AEW31: 0 | AFA31: 0 | AFE31: 0 | AFI31: 0 | AFM31: 0 | AFQ31: 0 | AFU31: 0 | AFY31: 0 | AGC31: 0 | AGG31: 0 | AGK31: 0 | AGO31: 0 | AGS31: 0 | AGW31: 0 | AHA31: 0 | AHE31: 0 | AHI31: 0 | AHM31: 0 | AHQ31: 0 | AHU31: 0 | AHY31: 0 | AIC31: 0 | AIG31: 0 | AIK31: 0 | AIO31: 0 | AIS31: 0 | AIW31: 0 | AJA31: 0 | AJE31: 0 | AJI31: 0 | AJM31: 0 | AJQ31: 0 | AJU31: 0 | AJY31: 0 | AKC31: 0 | AKG31: 0 | AKK31: 0 | AKO31: 0 | AKS31: 0 | AKW31: 0 | ALA31: 0 | ALE31: 0 | ALI31: 0 | ALM31: 0 | ALQ31: 0 | ALU31: 0 | ALY31: 0 | AMC31: 0 | AMG31: 0 | AMK31: 0 | AMO31: 0 | AMS31: 0 | AMW31: 0 | ANA31: 0 | ANE31: 0 | ANI31: 0 | ANM31: 0 | ANQ31: 0 | ANU31: 0 | ANY31: 0 | AOC31: 0 | AOG31: 0 | AOK31: 0 | AOO31: 0 | AOS31: 0 | AOW31: 0 | APA31: 0 | APE31: 0 | API31: 0 | APM31: 0 | APQ31: 0 | APU31: 0 | APY31: 0 | AQC31: 0 | AQG31: 0 | AQK31: 0 | AQO31: 0 | AQS31: 0 | AQW31: 0 | ARA31: 0 | ARB31: 0 | ARC31: 10 | ARD31: 0 | ARE31: 10 | ARF31: 0 | ARG31: 846.5 | ARH31: 0 | ARI31: 846.5 | ARJ31: 846.5 | ARK31: Yes | ARL31: 0 | ARM31: 0 | ARN31: 0
... 35 more rows

Sheet C.3 - Asset by Company
A1: Asset Tag | B1: Position | C1: Name

Sheet C.4 - Timesheets - Equipment
B2: Equipment Charges - Time Card
B4: Test Plan: | C4: Obtain the time cards. (A) Populate the equipment names and types (if provided). Find additional information regarding individual equipment charge from related invoice. (B) Enter hours worked from time card(s). (C) Confirm that the dates per the time cards fall between dates provided per 'A - Contractor Summary' tab. (D) Identify any equipment charges to be reviewed. (E) For charges which required further review, document review (include why it was determined to be allowed/disallowed via a tickmark).
B10: Rx | C10: Recalculated.
B11: a | C11: Provided from tab 'C.1 - Rate Sheets'.
B12: b | C12: Check figure should equal $0. Cell will appear yellow if discrepancies are noted.
C14: A | H14: Rx | J14: C | K14: a | L14: B | R14: B | Y14: B | AK14: B | AU14: B | BB14: Rx | BE14: D | BF14: E
B15: # | C15: Equipment Name | D15: Equipment ID | E15: Company | F15: Crew# | G15: Invoice | H15: Start Date | I15: End Date | J15: Dates Worked Reasonable? | K15: Rates | L15: Week Ending | M15: Week Ending | N15: Week Ending | O15: Week Ending | P15: Week Ending | Q15: Week Ending | R15: Week Ending | S15: Week Ending | T15: Week Ending | U15: Week Ending | V15: Week Ending | W15: Week Ending | X15: Week Ending | Y15: Week Ending | Z15: Week Ending | AA15: Week Ending | AB15: Week Ending | AC15: Week Ending | AD15: Week Ending | AE15: Week Ending | AF15: Week Ending | AG15: Week Ending | AH15: Week Ending | AI15: Week Ending | AJ15: Week Ending | AK15: Week Ending | AL15: Week Ending | AM15: Week Ending | AN15: Week Ending | AO15: Week Ending | AP15: Week Ending | AQ15: Week Ending | AR15: Week Ending | AS15: Week Ending | AT15: Week Ending | AU15: Week Ending | AV15: Week Ending | AW15: Week Ending | AX15: Week Ending | AY15: Week Ending | AZ15: Week Ending | BA15: Week Ending | BB15: Total Hours | BC15: Total Equipment $ | BD15: Allowable Charges | BE15: To Be Reviewed | BF15: Reviewed - Allowable Charge | BG15: Reviewed - Unallowable Charge | BH15: Tickmarks
L16: 2018-10-14 | M16: 2018-10-21 | N16: 2018-10-28 | O16: 2018-11-04 | P16: 2018-11-11 | Q16: 2018-11-18 | R16: 2018-11-25 | S16: 2018-12-02 | T16: 2018-12-09 | U16: 2018-12-16 | V16: 2018-12-23 | W16: 2018-12-30 | X16: 2019-01-06 | Y16: 2019-01-13 | Z16: 2019-01-20 | AA16: 2019-01-27 | AB16: 2019-02-03 | AC16: 2019-02-10 | AD16: 2019-02-17 | AE16: 2019-02-24 | AF16: 2019-03-03 | AG16: 2019-03-10 | AH16: 2019-03-17 | AI16: 2019-03-24 | AJ16: 2019-03-31 | AK16: 2019-04-07 | AL16: 2019-04-14 | AM16: 2019-04-21 | AN16: 2019-04-28 | AO16: 2019-05-05 | AP16: 2019-05-12 | AQ16: 2019-05-19 | AR16: 2019-05-26 | AS16: 2019-06-02 | AT16: 2019-06-09 | AU16: 2019-06-16 | AV16: 2019-06-23 | AW16: 2019-06-30 | AX16: 2019-07-07 | AY16: 2019-07-14 | AZ16: 2019-07-21 | BA16: 2019-07-28
L17: Hours | M17: Hours | N17: Hours | O17: Hours | P17: Hours | Q17: Hours | R17: Hours | S17: Hours | T17: Hours | U17: Hours | V17: Hours | W17: Hours | X17: Hours | Y17: Hours | Z17: Hours | AA17: Hours | AB17: Hours | AC17: Hours | AD17: Hours | AE17: Hours | AF17: Hours | AG17: Hours | AH17: Hours | AI17: Hours | AJ17: Hours | AK17: Hours | AL17: Hours | AM17: Hours | AN17: Hours | AO17: Hours | AP17: Hours | AQ17: Hours | AR17: Hours | AS17: Hours | AT17: Hours | AU17: Hours | AV17: Hours | AW17: Hours | AX17: Hours | AY17: Hours | AZ17: Hours | BA17: Hours
B18: 1 | C18: Crew Cab Pick-up | D18: 694 | E18: Vendor No 11 | F18: Barnett | G18: 25-23066 | H18: 2018-10-14 | I18: 2018-10-14 | J18: =IF(AND(H18>='A - Contractor Summary'!$C$36,I18<='A - Contractor Summary'!$C$42),"Yes","No") -> No | K18: =VLOOKUP($C18,'C.1 - Rate Sheets'!H:I,2,FALSE) -> 24.31 | L18: 10 | BB18: =SUM(L18:BA18) -> 10 | BC18: =BB18*K18 -> 243.1 | BD18: =BC18-BE18 -> 243.1 | BE18: 0 | BF18: 0 | BG18: 0
B19: 2 | C19: Crew Cab Pick-up | D19: 693 | E19: Vendor No 11 | F19: Barnett | G19: 25-23066 | H19: 2018-10-14 | I19: 2018-10-14 | J19: =IF(AND(H19>='A - Contractor Summary'!$C$36,I19<='A - Contractor Summary'!$C$42),"Yes","No") -> No | K19: =VLOOKUP($C19,'C.1 - Rate Sheets'!H:I,2,FALSE) -> 24.31 | L19: 10 | BB19: =SUM(L19:BA19) -> 10 | BC19: =BB19*K19 -> 243.1 | BD19: =BC19-BE19 -> 243.1 | BE19: 0 | BF19: 0 | BG19: 0
B20: 3 | C20: Crew Cab Pick-up | D20: 726 | E20: Vendor No 11 | F20: Barnett | G20: 25-23066 | H20: 2018-10-14 | I20: 2018-10-14 | J20: =IF(AND(H20>='A - Contractor Summary'!$C$36,I20<='A - Contractor Summary'!$C$42),"Yes","No") -> No | K20: =VLOOKUP($C20,'C.1 - Rate Sheets'!H:I,2,FALSE) -> 24.31 | L20: 10 | BB20: 10 | BC20: =BB20*K20 -> 243.1 | BD20: =BC20-BE20 -> 243.1 | BE20: 0 | BF20: 0 | BG20: 0
B21: 4 | C21: Crew Cab Pick-up | D21: 553 | E21: Vendor No 11 | F21: Barnett | G21: 25-23066 | H21: 2018-10-14 | I21: 2018-10-14 | J21: =IF(AND(H21>='A - Contractor Summary'!$C$36,I21<='A - Contractor Summary'!$C$42),"Yes","No") -> No | K21: =VLOOKUP($C21,'C.1 - Rate Sheets'!H:I,2,FALSE) -> 24.31 | L21: 10 | BB21: 10 | BC21: 243.1 | BD21: 243.1 | BE21: 0 | BF21: 0 | BG21: 0
B22: 5 | C22: Service Truck | D22: 777 | E22: Vendor No 11 | F22: Barnett | G22: 25-23066 | H22: 2018-10-14 | I22: 2018-10-14 | J22: =IF(AND(H22>='A - Contractor Summary'!$C$36,I22<='A - Contractor Summary'!$C$42),"Yes","No") -> No | K22: =VLOOKUP($C22,'C.1 - Rate Sheets'!H:I,2,FALSE) -> 35.75 | L22: 10 | BB22: 10 | BC22: 357.5 | BD22: 357.5 | BE22: 0 | BF22: 0 | BG22: 0
B23: 6 | C23: Service Truck | D23: 776 | E23: Vendor No 11 | F23: Barnett | G23: 25-23066 | H23: 2018-10-14 | I23: 2018-10-14 | J23: =IF(AND(H23>='A - Contractor Summary'!$C$36,I23<='A - Contractor Summary'!$C$42),"Yes","No") -> No | K23: =VLOOKUP($C23,'C.1 - Rate Sheets'!H:I,2,FALSE) -> 35.75 | L23: 10 | BB23: 10 | BC23: 357.5 | BD23: 357.5 | BE23: 0 | BF23: 0 | BG23: 0
B24: 7 | C24: Service Truck | D24: 617 | E24: Vendor No 11 | F24: Barnett | G24: 25-23066 | H24: 2018-10-14 | I24: 2018-10-14 | J24: =IF(AND(H24>='A - Contractor Summary'!$C$36,I24<='A - Contractor Summary'!$C$42),"Yes","No") -> No | K24: =VLOOKUP($C24,'C.1 - Rate Sheets'!H:I,2,FALSE) -> 35.75 | L24: 10 | BB24: 10 | BC24: 357.5 | BD24: 357.5 | BE24: 0 | BF24: 0 | BG24: 0
B25: 8 | C25: 18' Material Trailer | D25: 429 | E25: Vendor No 11 | F25: Barnett | G25: 25-23066 | H25: 2018-10-14 | I25: 2018-10-14 | J25: =IF(AND(H25>='A - Contractor Summary'!$C$36,I25<='A - Contractor Summary'!$C$42),"Yes","No") -> No | K25: =VLOOKUP($C25,'C.1 - Rate Sheets'!H:I,2,FALSE) -> 10 | L25: 10 | BB25: 10 | BC25: 100 | BD25: 100 | BE25: 0 | BF25: 0 | BG25: 0
B26: 9 | C26: 18' Material Trailer | D26: 757 | E26: Vendor No 11 | F26: Barnett | G26: 25-23066 | H26: 2018-10-14 | I26: 2018-10-14 | J26: =IF(AND(H26>='A - Contractor Summary'!$C$36,I26<='A - Contractor Summary'!$C$42),"Yes","No") -> No | K26: =VLOOKUP($C26,'C.1 - Rate Sheets'!H:I,2,FALSE) -> 10 | L26: 10 | BB26: 10 | BC26: 100 | BD26: 100 | BE26: 0 | BF26: 0 | BG26: 0
B27: 10 | C27: Tractor Truck | D27: 531 | E27: Vendor No 11 | F27: Chisholm | G27: 25-23067 | H27: 2018-10-14 | I27: 2018-10-14 | J27: =IF(AND(H27>='A - Contractor Summary'!$C$36,I27<='A - Contractor Summary'!$C$42),"Yes","No") -> No | K27: =VLOOKUP($C27,'C.1 - Rate Sheets'!H:I,2,FALSE) -> 45.65 | L27: 10 | BB27: 10 | BC27: 456.5 | BD27: 456.5 | BE27: 0 | BF27: 0 | BG27: 0
C28: LowBoy Trailer Double Axle | D28: 729 | E28: Vendor No 11 | F28: Chisholm | G28: 25-23067 | H28: 2018-10-14 | I28: 2018-10-14 | J28: =IF(AND(H28>='A - Contractor Summary'!$C$36,I28<='A - Contractor Summary'!$C$42),"Yes","No") -> No | K28: =VLOOKUP($C28,'C.1 - Rate Sheets'!H:I,2,FALSE) -> 33.55 | L28: 10 | BB28: 10 | BC28: 335.5 | BD28: 335.5 | BE28: 0 | BF28: 0 | BG28: 0
C29: Go Track Digger | D29: 529 | E29: Vendor No 11 | F29: Chisholm | G29: 25-23067 | H29: 2018-10-14 | I29: 2018-10-14 | J29: =IF(AND(H29>='A - Contractor Summary'!$C$36,I29<='A - Contractor Summary'!$C$42),"Yes","No") -> No | K29: =VLOOKUP($C29,'C.1 - Rate Sheets'!H:I,2,FALSE) -> 79.2 | L29: 10 | BB29: 10 | BC29: 792 | BD29: 792 | BE29: 0 | BF29: 0 | BG29: 0
C30: Tractor Truck | D30: 408 | E30: Vendor No 11 | F30: Chisholm | G30: 25-23067 | H30: 2018-10-14 | I30: 2018-10-14 | J30: =IF(AND(H30>='A - Contractor Summary'!$C$36,I30<='A - Contractor Summary'!$C$42),"Yes","No") -> No | K30: =VLOOKUP($C30,'C.1 - Rate Sheets'!H:I,2,FALSE) -> 45.65 | L30: 10 | BB30: 10 | BC30: 456.5 | BD30: 456.5 | BE30: 0 | BF30: 0 | BG30: 0
C31: LowBoy Trailer Double Axle | D31: 748 | E31: Vendor No 11 | F31: Chisholm | G31: 25-23067 | H31: 2018-10-14 | I31: 2018-10-14 | J31: =IF(AND(H31>='A - Contractor Summary'!$C$36,I31<='A - Contractor Summary'!$C$42),"Yes","No") -> No | K31: =VLOOKUP($C31,'C.1 - Rate Sheets'!H:I,2,FALSE) -> 33.55 | L31: 10 | BB31: 10 | BC31: 335.5 | BD31: 335.5 | BE31: 0 | BF31: 0 | BG31: 0
C32: Go Track Bucket | D32: 718 | E32: Vendor No 11 | F32: Chisholm | G32: 25-23067 | H32: 2018-10-14 | I32: 2018-10-14 | J32: =IF(AND(H32>='A - Contractor Summary'!$C$36,I32<='A - Contractor Summary'!$C$42),"Yes","No") -> No | K32: =VLOOKUP($C32,'C.1 - Rate Sheets'!H:I,2,FALSE) -> 79.2 | L32: 10 | BB32: 10 | BC32: 792 | BD32: 792 | BE32: 0 | BF32: 0 | BG32: 0
C33: Tractor Truck | D33: 96 | E33: Vendor No 11 | F33: Chisholm | G33: 25-23067 | H33: 2018-10-14 | I33: 2018-10-14 | J33: =IF(AND(H33>='A - Contractor Summary'!$C$36,I33<='A - Contractor Summary'!$C$42),"Yes","No") -> No | K33: =VLOOKUP($C33,'C.1 - Rate Sheets'!H:I,2,FALSE) -> 45.65 | L33: 10 | BB33: 10 | BC33: 456.5 | BD33: 456.5 | BE33: 0 | BF33: 0 | BG33: 0
C34: LowBoy Trailer Double Axle | D34: 533 | E34: Vendor No 11 | F34: Chisholm | G34: 25-23067 | H34: 2018-10-14 | I34: 2018-10-14 | J34: =IF(AND(H34>='A - Contractor Summary'!$C$36,I34<='A - Contractor Summary'!$C$42),"Yes","No") -> No | K34: =VLOOKUP($C34,'C.1 - Rate Sheets'!H:I,2,FALSE) -> 33.55 | L34: 10 | BB34: 10 | BC34: 335.5 | BD34: 335.5 | BE34: 0 | BF34: 0 | BG34: 0
C35: Go Track Bucket | D35: 621 | E35: Vendor No 11 | F35: Chisholm | G35: 25-23067 | H35: 2018-10-14 | I35: 2018-10-14 | J35: =IF(AND(H35>='A - Contractor Summary'!$C$36,I35<='A - Contractor Summary'!$C$42),"Yes","No") -> No | K35: =VLOOKUP($C35,'C.1 - Rate Sheets'!H:I,2,FALSE) -> 79.2 | L35: 10 | BB35: 10 | BC35: 792 | BD35: 792 | BE35: 0 | BF35: 0 | BG35: 0
C36: Tractor Truck | D36: 328 | E36: Vendor No 11 | F36: Chisholm | G36: 25-23067 | H36: 2018-10-14 | I36: 2018-10-14 | J36: =IF(AND(H36>='A - Contractor Summary'!$C$36,I36<='A - Contractor Summary'!$C$42),"Yes","No") -> No | K36: =VLOOKUP($C36,'C.1 - Rate Sheets'!H:I,2,FALSE) -> 45.65 | L36: 10 | BB36: 10 | BC36: 456.5 | BD36: 456.5 | BE36: 0 | BF36: 0 | BG36: 0
C37: LowBoy Trailer Double Axle | D37: 728 | E37: Vendor No 11 | F37: Chisholm | G37: 25-23067 | H37: 2018-10-14 | I37: 2018-10-14 | J37: =IF(AND(H37>='A - Contractor Summary'!$C$36,I37<='A - Contractor Summary'!$C$42),"Yes","No") -> No | K37: =VLOOKUP($C37,'C.1 - Rate Sheets'!H:I,2,FALSE) -> 33.55 | L37: 10 | BB37: 10 | BC37: 335.5 | BD37: 335.5 | BE37: 0 | BF37: 0 | BG37: 0
C38: Go Track Digger | D38: 622 | E38: Vendor No 11 | F38: Chisholm | G38: 25-23067 | H38: 2018-10-14 | I38: 2018-10-14 | J38: =IF(AND(H38>='A - Contractor Summary'!$C$36,I38<='A - Contractor Summary'!$C$42),"Yes","No") -> No | K38: =VLOOKUP($C38,'C.1 - Rate Sheets'!H:I,2,FALSE) -> 79.2 | L38: 10 | BB38: 10 | BC38: 792 | BD38: 792 | BE38: 0 | BF38: 0 | BG38: 0
C39: Crew Cab Pick-up | D39: 571 | E39: Vendor No 11 | F39: Chisholm | G39: 25-23067 | H39: 2018-10-14 | I39: 2018-10-14 | J39: =IF(AND(H39>='A - Contractor Summary'!$C$36,I39<='A - Contractor Summary'!$C$42),"Yes","No") -> No | K39: =VLOOKUP($C39,'C.1 - Rate Sheets'!H:I,2,FALSE) -> 24.31 | L39: 10 | BB39: 10 | BC39: 243.1 | BD39: 243.1 | BE39: 0 | BF39: 0 | BG39: 0
C40: Crew Cab Pick-up | D40: 636 | E40: Vendor No 11 | F40: Chambley | G40: 25-23068 | H40: 2018-10-14 | I40: 2018-10-14 | J40: =IF(AND(H40>='A - Contractor Summary'!$C$36,I40<='A - Contractor Summary'!$C$42),"Yes","No") -> No | K40: =VLOOKUP($C40,'C.1 - Rate Sheets'!H:I,2,FALSE) -> 24.31 | L40: 10 | BB40: 10 | BC40: 243.1 | BD40: 243.1 | BE40: 0 | BF40: 0 | BG40: 0
C41: Material Handler Bucket 57' | D41: 558 | E41: Vendor No 11 | F41: Chambley | G41: 25-23068 | H41: 2018-10-14 | I41: 2018-10-14 | J41: =IF(AND(H41>='A - Contractor Summary'!$C$36,I41<='A - Contractor Summary'!$C$42),"Yes","No") -> No | K41: =VLOOKUP($C41,'C.1 - Rate Sheets'!H:I,2,FALSE) -> 47.36 | L41: 10 | BB41: 10 | BC41: 473.6 | BD41: 473.6 | BE41: 0 | BF41: 0 | BG41: 0
C42: Material Handler Bucket 57' | D42: 588 | E42: Vendor No 11 | F42: Chambley | G42: 25-23068 | H42: 2018-10-14 | I42: 2018-10-14 | J42: =IF(AND(H42>='A - Contractor Summary'!$C$36,I42<='A - Contractor Summary'!$C$42),"Yes","No") -> No | K42: =VLOOKUP($C42,'C.1 - Rate Sheets'!H:I,2,FALSE) -> 47.36 | L42: 10 | BB42: 10 | BC42: 473.6 | BD42: 473.6 | BE42: 0 | BF42: 0 | BG42: 0
C43: Digger Truck | D43: 561 | E43: Vendor No 11 | F43: Chambley | G43: 25-23068 | H43: 2018-10-14 | I43: 2018-10-14 | J43: =IF(AND(H43>='A - Contractor Summary'!$C$36,I43<='A - Contractor Summary'!$C$42),"Yes","No") -> No | K43: =VLOOKUP($C43,'C.1 - Rate Sheets'!H:I,2,FALSE) -> 47.36 | L43: 10 | BB43: 10 | BC43: 473.6 | BD43: 473.6 | BE43: 0 | BF43: 0 | BG43: 0
C44: Pole Trailer | D44: 483 | E44: Vendor No 11 | F44: Chambley | G44: 25-23068 | H44: 2018-10-14 | I44: 2018-10-14 | J44: =IF(AND(H44>='A - Contractor Summary'!$C$36,I44<='A - Contractor Summary'!$C$42),"Yes","No") -> No | K44: =VLOOKUP($C44,'C.1 - Rate Sheets'!H:I,2,FALSE) -> 17.6 | L44: 10 | BB44: 10 | BC44: 176 | BD44: 176 | BE44: 0 | BF44: 0 | BG44: 0
C45: Tractor Truck | D45: 637 | E45: Vendor No 11 | F45: Chambley | G45: 25-23068 | H45: 2018-10-14 | I45: 2018-10-14 | J45: =IF(AND(H45>='A - Contractor Summary'!$C$36,I45<='A - Contractor Summary'!$C$42),"Yes","No") -> No | K45: =VLOOKUP($C45,'C.1 - Rate Sheets'!H:I,2,FALSE) -> 45.65 | L45: 10 | BB45: 10 | BC45: 456.5 | BD45: 456.5 | BE45: 0 | BF45: 0 | BG45: 0
C46: LowBoy Trailer Double Axle | D46: 747 | E46: Vendor No 11 | F46: Chambley | G46: 25-23068 | H46: 2018-10-14 | I46: 2018-10-14 | J46: =IF(AND(H46>='A - Contractor Summary'!$C$36,I46<='A - Contractor Summary'!$C$42),"Yes","No") -> No | K46: =VLOOKUP($C46,'C.1 - Rate Sheets'!H:I,2,FALSE) -> 33.55 | L46: 10 | BB46: 10 | BC46: 335.5 | BD46: 335.5 | BE46: 0 | BF46: 0 | BG46: 0
C47: Tractor Truck | D47: 485083 | E47: Vendor No 11 | F47: Chambley | G47: 25-23068 | H47: 2018-10-14 | I47: 2018-10-14 | J47: =IF(AND(H47>='A - Contractor Summary'!$C$36,I47<='A - Contractor Summary'!$C$42),"Yes","No") -> No | K47: =VLOOKUP($C47,'C.1 - Rate Sheets'!H:I,2,FALSE) -> 45.65 | L47: 10 | BB47: 10 | BC47: 456.5 | BD47: 456.5 | BE47: 0 | BF47: 0 | BG47: 0
C48: LowBoy Trailer Double Axle | D48: 407 | E48: Vendor No 11 | F48: Chambley | G48: 25-23068 | H48: 2018-10-14 | I48: 2018-10-14 | J48: =IF(AND(H48>='A - Contractor Summary'!$C$36,I48<='A - Contractor Summary'!$C$42),"Yes","No") -> No | K48: =VLOOKUP($C48,'C.1 - Rate Sheets'!H:I,2,FALSE) -> 33.55 | L48: 10 | BB48: 10 | BC48: 335.5 | BD48: 335.5 | BE48: 0 | BF48: 0 | BG48: 0
C49: Crew Cab Pick-up | D49: 566 | E49: Vendor No 11 | F49: Breland | G49: 25-23069 | H49: 2018-10-14 | I49: 2018-10-14 | J49: =IF(AND(H49>='A - Contractor Summary'!$C$36,I49<='A - Contractor Summary'!$C$42),"Yes","No") -> No | K49: =VLOOKUP($C49,'C.1 - Rate Sheets'!H:I,2,FALSE) -> 24.31 | L49: 10 | BB49: 10 | BC49: 243.1 | BD49: 243.1 | BE49: 0 | BF49: 0 | BG49: 0
C50: Material Handler Bucket 57' | D50: 714 | E50: Vendor No 11 | F50: Breland | G50: 25-23069 | H50: 2018-10-14 | I50: 2018-10-14 | J50: =IF(AND(H50>='A - Contractor Summary'!$C$36,I50<='A - Contractor Summary'!$C$42),"Yes","No") -> No | K50: =VLOOKUP($C50,'C.1 - Rate Sheets'!H:I,2,FALSE) -> 47.36 | L50: 10 | BB50: 10 | BC50: 473.6 | BD50: 473.6 | BE50: 0 | BF50: 0 | BG50: 0
C51: Material Handler Bucket 57' | D51: 627 | E51: Vendor No 11 | F51: Breland | G51: 25-23069 | H51: 2018-10-14 | I51: 2018-10-14 | J51: =IF(AND(H51>='A - Contractor Summary'!$C$36,I51<='A - Contractor Summary'!$C$42),"Yes","No") -> No | K51: =VLOOKUP($C51,'C.1 - Rate Sheets'!H:I,2,FALSE) -> 47.36 | L51: 10 | BB51: 10 | BC51: 473.6 | BD51: 473.6 | BE51: 0 | BF51: 0 | BG51: 0
C52: Digger Truck | D52: 712 | E52: Vendor No 11 | F52: Breland | G52: 25-23069 | H52: 2018-10-14 | I52: 2018-10-14 | J52: =IF(AND(H52>='A - Contractor Summary'!$C$36,I52<='A - Contractor Summary'!$C$42),"Yes","No") -> No | K52: =VLOOKUP($C52,'C.1 - Rate Sheets'!H:I,2,FALSE) -> 47.36 | L52: 10 | BB52: 10 | BC52: 473.6 | BD52: 473.6 | BE52: 0 | BF52: 0 | BG52: 0
C53: Pole Trailer | D53: 567 | E53: Vendor No 11 | F53: Breland | G53: 25-23069 | H53: 2018-10-14 | I53: 2018-10-14 | J53: =IF(AND(H53>='A - Contractor Summary'!$C$36,I53<='A - Contractor Summary'!$C$42),"Yes","No") -> No | K53: =VLOOKUP($C53,'C.1 - Rate Sheets'!H:I,2,FALSE) -> 17.6 | L53: 10 | BB53: 10 | BC53: 176 | BD53: 176 | BE53: 0 | BF53: 0 | BG53: 0
C54: Rope Rig | D54: 431 | E54: Vendor No 11 | F54: Breland | G54: 25-23069 | H54: 2018-10-14 | I54: 2018-10-14 | J54: =IF(AND(H54>='A - Contractor Summary'!$C$36,I54<='A - Contractor Summary'!$C$42),"Yes","No") -> No | K54: =VLOOKUP($C54,'C.1 - Rate Sheets'!H:I,2,FALSE) -> 25 | L54: 10 | BB54: 10 | BC54: 250 | BD54: 250 | BE54: 0 | BF54: 0 | BG54: 0
C55: Tension Trailer | D55: 53 | E55: Vendor No 11 | F55: Breland | G55: 25-23069 | H55: 2018-10-14 | I55: 2018-10-14 | J55: =IF(AND(H55>='A - Contractor Summary'!$C$36,I55<='A - Contractor Summary'!$C$42),"Yes","No") -> No | K55: =VLOOKUP($C55,'C.1 - Rate Sheets'!H:I,2,FALSE) -> 25 | L55: 10 | BB55: 10 | BC55: 250 | BD55: 250 | BE55: 0 | BF55: 0 | BG55: 0
C56: Dozer | D56: 592 | E56: Vendor No 11 | F56: Breland | G56: 25-23069 | H56: 2018-10-14 | I56: 2018-10-14 | J56: =IF(AND(H56>='A - Contractor Summary'!$C$36,I56<='A - Contractor Summary'!$C$42),"Yes","No") -> No | K56: =VLOOKUP($C56,'C.1 - Rate Sheets'!H:I,2,FALSE) -> 71.5 | L56: 10 | BB56: 10 | BC56: 715 | BD56: 715 | BE56: 0 | BF56: 0 | BG56: 0
C57: Crew Cab Pick-up | D57: 648 | E57: Vendor No 11 | F57: Jefcoat | G57: 25-23070 | H57: 2018-10-14 | I57: 2018-10-14 | J57: =IF(AND(H57>='A - Contractor Summary'!$C$36,I57<='A - Contractor Summary'!$C$42),"Yes","No") -> No | K57: =VLOOKUP($C57,'C.1 - Rate Sheets'!H:I,2,FALSE) -> 24.31 | L57: 10 | BB57: 10 | BC57: 243.1 | BD57: 243.1 | BE57: 0 | BF57: 0 | BG57: 0
C58: Material Handler Bucket 57' | D58: 658 | E58: Vendor No 11 | F58: Jefcoat | G58: 25-23070 | H58: 2018-10-14 | I58: 2018-10-14 | J58: =IF(AND(H58>='A - Contractor Summary'!$C$36,I58<='A - Contractor Summary'!$C$42),"Yes","No") -> No | K58: =VLOOKUP($C58,'C.1 - Rate Sheets'!H:I,2,FALSE) -> 47.36 | L58: 10 | BB58: 10 | BC58: 473.6 | BD58: 473.6 | BE58: 0 | BF58: 0 | BG58: 0
C59: Material Handler Bucket 57' | D59: 584 | E59: Vendor No 11 | F59: Jefcoat | G59: 25-23070 | H59: 2018-10-14 | I59: 2018-10-14 | J59: =IF(AND(H59>='A - Contractor Summary'!$C$36,I59<='A - Contractor Summary'!$C$42),"Yes","No") -> No | K59: =VLOOKUP($C59,'C.1 - Rate Sheets'!H:I,2,FALSE) -> 47.36 | L59: 10 | BB59: 10 | BC59: 473.6 | BD59: 473.6 | BE59: 0 | BF59: 0 | BG59: 0
C60: Digger Truck | D60: 717 | E60: Vendor No 11 | F60: Jefcoat | G60: 25-23070 | H60: 2018-10-14 | I60: 2018-10-14 | J60: =IF(AND(H60>='A - Contractor Summary'!$C$36,I60<='A - Contractor Summary'!$C$42),"Yes","No") -> No | K60: =VLOOKUP($C60,'C.1 - Rate Sheets'!H:I,2,FALSE) -> 47.36 | L60: 10 | BB60: 10 | BC60: 473.6 | BD60: 473.6 | BE60: 0 | BF60: 0 | BG60: 0
C61: Pole Trailer | D61: 455 | E61: Vendor No 11 | F61: Jefcoat | G61: 25-23070 | H61: 2018-10-14 | I61: 2018-10-14 | J61: =IF(AND(H61>='A - Contractor Summary'!$C$36,I61<='A - Contractor Summary'!$C$42),"Yes","No") -> No | K61: =VLOOKUP($C61,'C.1 - Rate Sheets'!H:I,2,FALSE) -> 17.6 | L61: 10 | BB61: 10 | BC61: 176 | BD61: 176 | BE61: 0 | BF61: 0 | BG61: 0
C62: Rope Rig | D62: 517 | E62: Vendor No 11 | F62: Jefcoat | G62: 25-23070 | H62: 2018-10-14 | I62: 2018-10-14 | J62: =IF(AND(H62>='A - Contractor Summary'!$C$36,I62<='A - Contractor Summary'!$C$42),"Yes","No") -> No | K62: =VLOOKUP($C62,'C.1 - Rate Sheets'!H:I,2,FALSE) -> 25 | L62: 10 | BB62: 10 | BC62: 250 | BD62: 250 | BE62: 0 | BF62: 0 | BG62: 0
C63: Tension Trailer | D63: 712 | E63: Vendor No 11 | F63: Jefcoat | G63: 25-23070 | H63: 2018-10-14 | I63: 2018-10-14 | J63: =IF(AND(H63>='A - Contractor Summary'!$C$36,I63<='A - Contractor Summary'!$C$42),"Yes","No") -> No | K63: =VLOOKUP($C63,'C.1 - Rate Sheets'!H:I,2,FALSE) -> 25 | L63: 10 | BB63: 10 | BC63: 250 | BD63: 250 | BE63: 0 | BF63: 0 | BG63: 0
C64: Log Skidder w/ Grapples | D64: 251 | E64: Vendor No 11 | F64: Jefcoat | G64: 25-23070 | H64: 2018-10-14 | I64: 2018-10-14 | J64: =IF(AND(H64>='A - Contractor Summary'!$C$36,I64<='A - Contractor Summary'!$C$42),"Yes","No") -> No | K64: =VLOOKUP($C64,'C.1 - Rate Sheets'!H:I,2,FALSE) -> 72.6 | L64: 10 | BB64: 10 | BC64: 726 | BD64: 726 | BE64: 0 | BF64: 0 | BG64: 0
C65: Crew Cab Pick-up | D65: 697 | E65: Vendor No 11 | F65: Breland | G65: 25-23071 | H65: 2018-10-14 | I65: 2018-10-14 | J65: =IF(AND(H65>='A - Contractor Summary'!$C$36,I65<='A - Contractor Summary'!$C$42),"Yes","No") -> No | K65: =VLOOKUP($C65,'C.1 - Rate Sheets'!H:I,2,FALSE) -> 24.31 | L65: 10 | BB65: 10 | BC65: 243.1 | BD65: 243.1 | BE65: 0 | BF65: 0 | BG65: 0
C66: Material Handler Bucket 57' | D66: 582 | E66: Vendor No 11 | F66: Breland | G66: 25-23071 | H66: 2018-10-14 | I66: 2018-10-14 | J66: =IF(AND(H66>='A - Contractor Summary'!$C$36,I66<='A - Contractor Summary'!$C$42),"Yes","No") -> No | K66: =VLOOKUP($C66,'C.1 - Rate Sheets'!H:I,2,FALSE) -> 47.36 | L66: 10 | BB66: 10 | BC66: 473.6 | BD66: 473.6 | BE66: 0 | BF66: 0 | BG66: 0
C67: Material Handler Bucket 57' | D67: 713 | E67: Vendor No 11 | F67: Breland | G67: 25-23071 | H67: 2018-10-14 | I67: 2018-10-14 | J67: =IF(AND(H67>='A - Contractor Summary'!$C$36,I67<='A - Contractor Summary'!$C$42),"Yes","No") -> No | K67: =VLOOKUP($C67,'C.1 - Rate Sheets'!H:I,2,FALSE) -> 47.36 | L67: 10 | BB67: 10 | BC67: 473.6 | BD67: 473.6 | BE67: 0 | BF67: 0 | BG67: 0
C68: Digger Truck | D68: 725 | E68: Vendor No 11 | F68: Breland | G68: 25-23071 | H68: 2018-10-14 | I68: 2018-10-14 | J68: =IF(AND(H68>='A - Contractor Summary'!$C$36,I68<='A - Contractor Summary'!$C$42),"Yes","No") -> No | K68: =VLOOKUP($C68,'C.1 - Rate Sheets'!H:I,2,FALSE) -> 47.36 | L68: 10 | BB68: 10 | BC68: 473.6 | BD68: 473.6 | BE68: 0 | BF68: 0 | BG68: 0
C69: Pole Trailer | D69: 631 | E69: Vendor No 11 | F69: Breland | G69: 25-23071 | H69: 2018-10-14 | I69: 2018-10-14 | J69: =IF(AND(H69>='A - Contractor Summary'!$C$36,I69<='A - Contractor Summary'!$C$42),"Yes","No") -> No | K69: =VLOOKUP($C69,'C.1 - Rate Sheets'!H:I,2,FALSE) -> 17.6 | L69: 10 | BB69: 10 | BC69: 176 | BD69: 176 | BE69: 0 | BF69: 0 | BG69: 0
C70: Rope Rig | D70: 563 | E70: Vendor No 11 | F70: Breland | G70: 25-23071 | H70: 2018-10-14 | I70: 2018-10-14 | J70: =IF(AND(H70>='A - Contractor Summary'!$C$36,I70<='A - Contractor Summary'!$C$42),"Yes","No") -> No | K70: =VLOOKUP($C70,'C.1 - Rate Sheets'!H:I,2,FALSE) -> 25 | L70: 10 | BB70: 10 | BC70: 250 | BD70: 250 | BE70: 0 | BF70: 0 | BG70: 0
C71: Tension Trailer | D71: 516 | E71: Vendor No 11 | F71: Breland | G71: 25-23071 | H71: 2018-10-14 | I71: 2018-10-14 | J71: =IF(AND(H71>='A - Contractor Summary'!$C$36,I71<='A - Contractor Summary'!$C$42),"Yes","No") -> No | K71: =VLOOKUP($C71,'C.1 - Rate Sheets'!H:I,2,FALSE) -> 25 | L71: 10 | BB71: 10 | BC71: 250 | BD71: 250 | BE71: 0 | BF71: 0 | BG71: 0
C72: Crew Cab Pick-up | D72: 681 | E72: Vendor No 11 | F72: Martin | G72: 25-23072 | H72: 2018-10-14 | I72: 2018-10-14 | J72: =IF(AND(H72>='A - Contractor Summary'!$C$36,I72<='A - Contractor Summary'!$C$42),"Yes","No") -> No | K72: =VLOOKUP($C72,'C.1 - Rate Sheets'!H:I,2,FALSE) -> 24.31 | L72: 10 | BB72: 10 | BC72: 243.1 | BD72: 243.1 | BE72: 0 | BF72: 0 | BG72: 0
C73: Material Handler Bucket 57' | D73: 581 | E73: Vendor No 11 | F73: Martin | G73: 25-23072 | H73: 2018-10-14 | I73: 2018-10-14 | J73: =IF(AND(H73>='A - Contractor Summary'!$C$36,I73<='A - Contractor Summary'!$C$42),"Yes","No") -> No | K73: =VLOOKUP($C73,'C.1 - Rate Sheets'!H:I,2,FALSE) -> 47.36 | L73: 10 | BB73: 10 | BC73: 473.6 | BD73: 473.6 | BE73: 0 | BF73: 0 | BG73: 0
C74: Material Handler Bucket 57' | D74: 678 | E74: Vendor No 11 | F74: Martin | G74: 25-23072 | H74: 2018-10-14 | I74: 2018-10-14 | J74: =IF(AND(H74>='A - Contractor Summary'!$C$36,I74<='A - Contractor Summary'!$C$42),"Yes","No") -> No | K74: =VLOOKUP($C74,'C.1 - Rate Sheets'!H:I,2,FALSE) -> 47.36 | L74: 10 | BB74: 10 | BC74: 473.6 | BD74: 473.6 | BE74: 0 | BF74: 0 | BG74: 0
C75: Digger Truck | D75: 418 | E75: Vendor No 11 | F75: Martin | G75: 25-23072 | H75: 2018-10-14 | I75: 2018-10-14 | J75: =IF(AND(H75>='A - Contractor Summary'!$C$36,I75<='A - Contractor Summary'!$C$42),"Yes","No") -> No | K75: =VLOOKUP($C75,'C.1 - Rate Sheets'!H:I,2,FALSE) -> 47.36 | L75: 10 | BB75: 10 | BC75: 473.6 | BD75: 473.6 | BE75: 0 | BF75: 0 | BG75: 0
C76: Pole Trailer | D76: 315 | E76: Vendor No 11 | F76: Martin | G76: 25-23072 | H76: 2018-10-14 | I76: 2018-10-14 | J76: =IF(AND(H76>='A - Contractor Summary'!$C$36,I76<='A - Contractor Summary'!$C$42),"Yes","No") -> No | K76: =VLOOKUP($C76,'C.1 - Rate Sheets'!H:I,2,FALSE) -> 17.6 | L76: 10 | BB76: 10 | BC76: 176 | BD76: 176 | BE76: 0 | BF76: 0 | BG76: 0
C77: Rope Rig | D77: 731 | E77: Vendor No 11 | F77: Martin | G77: 25-23072 | H77: 2018-10-14 | I77: 2018-10-14 | J77: =IF(AND(H77>='A - Contractor Summary'!$C$36,I77<='A - Contractor Summary'!$C$42),"Yes","No") -> No | K77: =VLOOKUP($C77,'C.1 - Rate Sheets'!H:I,2,FALSE) -> 25 | L77: 10 | BB77: 10 | BC77: 250 | BD77: 250 | BE77: 0 | BF77: 0 | BG77: 0
C78: Tension Trailer | D78: 730 | E78: Vendor No 11 | F78: Martin | G78: 25-23072 | H78: 2018-10-14 | I78: 2018-10-14 | J78: =IF(AND(H78>='A - Contractor Summary'!$C$36,I78<='A - Contractor Summary'!$C$42),"Yes","No") -> No | K78: =VLOOKUP($C78,'C.1 - Rate Sheets'!H:I,2,FALSE) -> 25 | L78: 10 | BB78: 10 | BC78: 250 | BD78: 250 | BE78: 0 | BF78: 0 | BG78: 0
C79: Crew Cab Pick-up | D79: 586 | E79: Vendor No 11 | F79: Brown | G79: 25-23073 | H79: 2018-10-14 | I79: 2018-10-14 | J79: =IF(AND(H79>='A - Contractor Summary'!$C$36,I79<='A - Contractor Summary'!$C$42),"Yes","No") -> No | K79: =VLOOKUP($C79,'C.1 - Rate Sheets'!H:I,2,FALSE) -> 24.31 | L79: 10 | BB79: 10 | BC79: 243.1 | BD79: 243.1 | BE79: 0 | BF79: 0 | BG79: 0
C80: Material Handler Bucket 57' | D80: 629 | E80: Vendor No 11 | F80: Brown | G80: 25-23073 | H80: 2018-10-14 | I80: 2018-10-14 | J80: =IF(AND(H80>='A - Contractor Summary'!$C$36,I80<='A - Contractor Summary'!$C$42),"Yes","No") -> No | K80: =VLOOKUP($C80,'C.1 - Rate Sheets'!H:I,2,FALSE) -> 47.36 | L80: 10 | BB80: 10 | BC80: 473.6 | BD80: 473.6 | BE80: 0 | BF80: 0 | BG80: 0
C81: Material Handler Bucket 57' | D81: 657 | E81: Vendor No 11 | F81: Brown | G81: 25-23073 | H81: 2018-10-14 | I81: 2018-10-14 | J81: =IF(AND(H81>='A - Contractor Summary'!$C$36,I81<='A - Contractor Summary'!$C$42),"Yes","No") -> No | K81: =VLOOKUP($C81,'C.1 - Rate Sheets'!H:I,2,FALSE) -> 47.36 | L81: 10 | BB81: 10 | BC81: 473.6 | BD81: 473.6 | BE81: 0 | BF81: 0 | BG81: 0
C82: Digger Truck | D82: 651 | E82: Vendor No 11 | F82: Brown | G82: 25-23073 | H82: 2018-10-14 | I82: 2018-10-14 | J82: =IF(AND(H82>='A - Contractor Summary'!$C$36,I82<='A - Contractor Summary'!$C$42),"Yes","No") -> No | K82: =VLOOKUP($C82,'C.1 - Rate Sheets'!H:I,2,FALSE) -> 47.36 | L82: 10 | BB82: 10 | BC82: 473.6 | BD82: 473.6 | BE82: 0 | BF82: 0 | BG82: 0
C83: Pole Trailer | D83: 660 | E83: Vendor No 11 | F83: Brown | G83: 25-23073 | H83: 2018-10-14 | I83: 2018-10-14 | J83: =IF(AND(H83>='A - Contractor Summary'!$C$36,I83<='A - Contractor Summary'!$C$42),"Yes","No") -> No | K83: =VLOOKUP($C83,'C.1 - Rate Sheets'!H:I,2,FALSE) -> 17.6 | L83: 10 | BB83: =SUM(L83:BA83) -> 10 | BC83: 176 | BD83: 176 | BE83: 0 | BF83: 0 | BG83: 0
C84: Back Yard Buggy | D84: 663 | E84: Vendor No 11 | F84: Brown | G84: 25-23073 | H84: 2018-10-14 | I84: 2018-10-14 | J84: =IF(AND(H84>='A - Contractor Summary'!$C$36,I84<='A - Contractor Summary'!$C$42),"Yes","No") -> No | K84: =VLOOKUP($C84,'C.1 - Rate Sheets'!H:I,2,FALSE) -> 45 | L84: 10 | BB84: 10 | BC84: =BB84*K84 -> 450 | BD84: =BC84-BE84 -> 450 | BE84: 0 | BF84: 0 | BG84: 0
C85: Crew Cab Pick-up | D85: 604 | E85: Vendor No 11 | F85: Arrington | G85: 25-23074 | H85: 2018-10-14 | I85: 2018-10-14 | J85: =IF(AND(H85>='A - Contractor Summary'!$C$36,I85<='A - Contractor Summary'!$C$42),"Yes","No") -> No | K85: =VLOOKUP($C85,'C.1 - Rate Sheets'!H:I,2,FALSE) -> 24.31 | L85: 10 | BB85: 10 | BC85: =BB85*K85 -> 243.1 | BD85: =BC85-BE85 -> 243.1 | BE85: 0 | BF85: 0 | BG85: 0
C86: Material Handler Bucket 57' | D86: 672 | E86: Vendor No 11 | F86: Arrington | G86: 25-23074 | H86: 2018-10-14 | I86: 2018-10-14 | J86: =IF(AND(H86>='A - Contractor Summary'!$C$36,I86<='A - Contractor Summary'!$C$42),"Yes","No") -> No | K86: =VLOOKUP($C86,'C.1 - Rate Sheets'!H:I,2,FALSE) -> 47.36 | L86: 10 | BB86: 10 | BC86: =BB86*K86 -> 473.6 | BD86: =BC86-BE86 -> 473.6 | BE86: 0 | BF86: 0 | BG86: 0
C87: Material Handler Bucket 57' | D87: 674 | E87: Vendor No 11 | F87: Arrington | G87: 25-23074 | H87: 2018-10-14 | I87: 2018-10-14 | J87: =IF(AND(H87>='A - Contractor Summary'!$C$36,I87<='A - Contractor Summary'!$C$42),"Yes","No") -> No | K87: =VLOOKUP($C87,'C.1 - Rate Sheets'!H:I,2,FALSE) -> 47.36 | L87: 10 | BB87: 10 | BC87: 473.6 | BD87: 473.6 | BE87: 0 | BF87: 0 | BG87: 0
C88: Digger Truck | D88: 641 | E88: Vendor No 11 | F88: Arrington | G88: 25-23074 | H88: 2018-10-14 | I88: 2018-10-14 | J88: =IF(AND(H88>='A - Contractor Summary'!$C$36,I88<='A - Contractor Summary'!$C$42),"Yes","No") -> No | K88: =VLOOKUP($C88,'C.1 - Rate Sheets'!H:I,2,FALSE) -> 47.36 | L88: 10 | BB88: 10 | BC88: 473.6 | BD88: 473.6 | BE88: 0 | BF88: 0 | BG88: 0
C89: Pole Trailer | D89: 607 | E89: Vendor No 11 | F89: Arrington | G89: 25-23074 | H89: 2018-10-14 | I89: 2018-10-14 | J89: =IF(AND(H89>='A - Contractor Summary'!$C$36,I89<='A - Contractor Summary'!$C$42),"Yes","No") -> No | K89: =VLOOKUP($C89,'C.1 - Rate Sheets'!H:I,2,FALSE) -> 17.6 | L89: 10 | BB89: 10 | BC89: 176 | BD89: 176 | BE89: 0 | BF89: 0 | BG89: 0
C90: Crew Cab Pick-up | D90: 682 | E90: Vendor No 11 | F90: Kirkland | G90: 25-23075 | H90: 2018-10-14 | I90: 2018-10-14 | J90: =IF(AND(H90>='A - Contractor Summary'!$C$36,I90<='A - Contractor Summary'!$C$42),"Yes","No") -> No | K90: =VLOOKUP($C90,'C.1 - Rate Sheets'!H:I,2,FALSE) -> 24.31 | L90: 10 | BB90: 10 | BC90: 243.1 | BD90: 243.1 | BE90: 0 | BF90: 0 | BG90: 0
C91: Material Handler Bucket 57' | D91: 722 | E91: Vendor No 11 | F91: Kirkland | G91: 25-23075 | H91: 2018-10-14 | I91: 2018-10-14 | J91: =IF(AND(H91>='A - Contractor Summary'!$C$36,I91<='A - Contractor Summary'!$C$42),"Yes","No") -> No | K91: =VLOOKUP($C91,'C.1 - Rate Sheets'!H:I,2,FALSE) -> 47.36 | L91: 10 | BB91: 10 | BC91: 473.6 | BD91: 473.6 | BE91: 0 | BF91: 0 | BG91: 0
C92: Material Handler Bucket 57' | D92: 675 | E92: Vendor No 11 | F92: Kirkland | G92: 25-23075 | H92: 2018-10-14 | I92: 2018-10-14 | J92: =IF(AND(H92>='A - Contractor Summary'!$C$36,I92<='A - Contractor Summary'!$C$42),"Yes","No") -> No | K92: =VLOOKUP($C92,'C.1 - Rate Sheets'!H:I,2,FALSE) -> 47.36 | L92: 10 | BB92: 10 | BC92: 473.6 | BD92: 473.6 | BE92: 0 | BF92: 0 | BG92: 0
C93: Digger Truck | D93: 565 | E93: Vendor No 11 | F93: Kirkland | G93: 25-23075 | H93: 2018-10-14 | I93: 2018-10-14 | J93: =IF(AND(H93>='A - Contractor Summary'!$C$36,I93<='A - Contractor Summary'!$C$42),"Yes","No") -> No | K93: =VLOOKUP($C93,'C.1 - Rate Sheets'!H:I,2,FALSE) -> 47.36 | L93: 10 | BB93: 10 | BC93: 473.6 | BD93: 473.6 | BE93: 0 | BF93: 0 | BG93: 0
C94: Pole Trailer | D94: 684 | E94: Vendor No 11 | F94: Kirkland | G94: 25-23075 | H94: 2018-10-14 | I94: 2018-10-14 | J94: =IF(AND(H94>='A - Contractor Summary'!$C$36,I94<='A - Contractor Summary'!$C$42),"Yes","No") -> No | K94: =VLOOKUP($C94,'C.1 - Rate Sheets'!H:I,2,FALSE) -> 17.6 | L94: 10 | BB94: 10 | BC94: 176 | BD94: 176 | BE94: 0 | BF94: 0 | BG94: 0
C95: Crew Cab Pick-up | D95: 654 | E95: Vendor No 11 | F95: Johnson | G95: 25-23076 | H95: 2018-10-14 | I95: 2018-10-14 | J95: =IF(AND(H95>='A - Contractor Summary'!$C$36,I95<='A - Contractor Summary'!$C$42),"Yes","No") -> No | K95: =VLOOKUP($C95,'C.1 - Rate Sheets'!H:I,2,FALSE) -> 24.31 | L95: 10 | BB95: 10 | BC95: 243.1 | BD95: 243.1 | BE95: 0 | BF95: 0 | BG95: 0
C96: Material Handler Bucket 57' | D96: 659 | E96: Vendor No 11 | F96: Johnson | G96: 25-23076 | H96: 2018-10-14 | I96: 2018-10-14 | J96: =IF(AND(H96>='A - Contractor Summary'!$C$36,I96<='A - Contractor Summary'!$C$42),"Yes","No") -> No | K96: =VLOOKUP($C96,'C.1 - Rate Sheets'!H:I,2,FALSE) -> 47.36 | L96: 10 | BB96: 10 | BC96: 473.6 | BD96: 473.6 | BE96: 0 | BF96: 0 | BG96: 0
C97: Material Handler Bucket 57' | D97: 656 | E97: Vendor No 11 | F97: Johnson | G97: 25-23076 | H97: 2018-10-14 | I97: 2018-10-14 | J97: =IF(AND(H97>='A - Contractor Summary'!$C$36,I97<='A - Contractor Summary'!$C$42),"Yes","No") -> No | K97: =VLOOKUP($C97,'C.1 - Rate Sheets'!H:I,2,FALSE) -> 47.36 | L97: 10 | BB97: 10 | BC97: 473.6 | BD97: 473.6 | BE97: 0 | BF97: 0 | BG97: 0
C98: Digger Truck | D98: 716 | E98: Vendor No 11 | F98: Johnson | G98: 25-23076 | H98: 2018-10-14 | I98: 2018-10-14 | J98: =IF(AND(H98>='A - Contractor Summary'!$C$36,I98<='A - Contractor Summary'!$C$42),"Yes","No") -> No | K98: =VLOOKUP($C98,'C.1 - Rate Sheets'!H:I,2,FALSE) -> 47.36 | L98: 10 | BB98: 10 | BC98: 473.6 | BD98: 473.6 | BE98: 0 | BF98: 0 | BG98: 0
C99: Pole Trailer | D99: 661 | E99: Vendor No 11 | F99: Johnson | G99: 25-23076 | H99: 2018-10-14 | I99: 2018-10-14 | J99: =IF(AND(H99>='A - Contractor Summary'!$C$36,I99<='A - Contractor Summary'!$C$42),"Yes","No") -> No | K99: =VLOOKUP($C99,'C.1 - Rate Sheets'!H:I,2,FALSE) -> 17.6 | L99: 10 | BB99: 10 | BC99: 176 | BD99: 176 | BE99: 0 | BF99: 0 | BG99: 0
C100: Crew Cab Pick-up | D100: 618 | E100: Vendor No 11 | F100: Sullins | G100: 25-23080 | H100: 2018-10-14 | I100: 2018-10-14 | J100: =IF(AND(H100>='A - Contractor Summary'!$C$36,I100<='A - Contractor Summary'!$C$42),"Yes","No") -> No | K100: =VLOOKUP($C100,'C.1 - Rate Sheets'!H:I,2,FALSE) -> 24.31 | L100: 10 | BB100: 10 | BC100: 243.1 | BD100: 243.1 | BE100: 0 | BF100: 0 | BG100: 0
C101: Material Handler Bucket 57' | D101: 741 | E101: Vendor No 11 | F101: Sullins | G101: 25-23080 | H101: 2018-10-14 | I101: 2018-10-14 | J101: =IF(AND(H101>='A - Contractor Summary'!$C$36,I101<='A - Contractor Summary'!$C$42),"Yes","No") -> No | K101: =VLOOKUP($C101,'C.1 - Rate Sheets'!H:I,2,FALSE) -> 47.36 | L101: 10 | BB101: 10 | BC101: 473.6 | BD101: 473.6 | BE101: 0 | BF101: 0 | BG101: 0
C102: Material Handler Bucket 57' | D102: 590 | E102: Vendor No 11 | F102: Sullins | G102: 25-23080 | H102: 2018-10-14 | I102: 2018-10-14 | J102: =IF(AND(H102>='A - Contractor Summary'!$C$36,I102<='A - Contractor Summary'!$C$42),"Yes","No") -> No | K102: =VLOOKUP($C102,'C.1 - Rate Sheets'!H:I,2,FALSE) -> 47.36 | L102: 10 | BB102: 10 | BC102: 473.6 | BD102: 473.6 | BE102: 0 | BF102: 0 | BG102: 0
C103: Digger Truck | D103: 650 | E103: Vendor No 11 | F103: Sullins | G103: 25-23080 | H103: 2018-10-14 | I103: 2018-10-14 | J103: =IF(AND(H103>='A - Contractor Summary'!$C$36,I103<='A - Contractor Summary'!$C$42),"Yes","No") -> No | K103: =VLOOKUP($C103,'C.1 - Rate Sheets'!H:I,2,FALSE) -> 47.36 | L103: 10 | BB103: 10 | BC103: 473.6 | BD103: 473.6 | BE103: 0 | BF103: 0 | BG103: 0
C104: Pole Trailer | D104: 749 | E104: Vendor No 11 | F104: Sullins | G104: 25-23080 | H104: 2018-10-14 | I104: 2018-10-14 | J104: =IF(AND(H104>='A - Contractor Summary'!$C$36,I104<='A - Contractor Summary'!$C$42),"Yes","No") -> No | K104: =VLOOKUP($C104,'C.1 - Rate Sheets'!H:I,2,FALSE) -> 17.6 | L104: 10 | BB104: 10 | BC104: 176 | BD104: 176 | BE104: 0 | BF104: 0 | BG104: 0
C105: Crew Cab Pick-up | D105: 550 | E105: Vendor No 11 | F105: Culpepper | G105: 25-23081 | H105: 2018-10-14 | I105: 2018-10-14 | J105: =IF(AND(H105>='A - Contractor Summary'!$C$36,I105<='A - Contractor Summary'!$C$42),"Yes","No") -> No | K105: =VLOOKUP($C105,'C.1 - Rate Sheets'!H:I,2,FALSE) -> 24.31 | L105: 10 | BB105: 10 | BC105: 243.1 | BD105: 243.1 | BE105: 0 | BF105: 0 | BG105: 0
C106: Material Handler Bucket 57' | D106: 690 | E106: Vendor No 11 | F106: Culpepper | G106: 25-23081 | H106: 2018-10-14 | I106: 2018-10-14 | J106: =IF(AND(H106>='A - Contractor Summary'!$C$36,I106<='A - Contractor Summary'!$C$42),"Yes","No") -> No | K106: =VLOOKUP($C106,'C.1 - Rate Sheets'!H:I,2,FALSE) -> 47.36 | L106: 10 | BB106: 10 | BC106: 473.6 | BD106: 473.6 | BE106: 0 | BF106: 0 | BG106: 0
C107: Material Handler Bucket 57' | D107: 720 | E107: Vendor No 11 | F107: Culpepper | G107: 25-23081 | H107: 2018-10-14 | I107: 2018-10-14 | J107: =IF(AND(H107>='A - Contractor Summary'!$C$36,I107<='A - Contractor Summary'!$C$42),"Yes","No") -> No | K107: =VLOOKUP($C107,'C.1 - Rate Sheets'!H:I,2,FALSE) -> 47.36 | L107: 10 | BB107: 10 | BC107: 473.6 | BD107: 473.6 | BE107: 0 | BF107: 0 | BG107: 0
C108: Digger Truck | D108: 698 | E108: Vendor No 11 | F108: Culpepper | G108: 25-23081 | H108: 2018-10-14 | I108: 2018-10-14 | J108: =IF(AND(H108>='A - Contractor Summary'!$C$36,I108<='A - Contractor Summary'!$C$42),"Yes","No") -> No | K108: =VLOOKUP($C108,'C.1 - Rate Sheets'!H:I,2,FALSE) -> 47.36 | L108: 10 | BB108: 10 | BC108: 473.6 | BD108: 473.6 | BE108: 0 | BF108: 0 | BG108: 0
C109: Pole Trailer | D109: 316 | E109: Vendor No 11 | F109: Culpepper | G109: 25-23081 | H109: 2018-10-14 | I109: 2018-10-14 | J109: =IF(AND(H109>='A - Contractor Summary'!$C$36,I109<='A - Contractor Summary'!$C$42),"Yes","No") -> No | K109: =VLOOKUP($C109,'C.1 - Rate Sheets'!H:I,2,FALSE) -> 17.6 | L109: 10 | BB109: 10 | BC109: 176 | BD109: 176 | BE109: 0 | BF109: 0 | BG109: 0
C110: Crew Cab Pick-up | D110: 754 | E110: Vendor No 11 | F110: Hayes | G110: 25-23077 | H110: 2018-10-14 | I110: 2018-10-14 | J110: =IF(AND(H110>='A - Contractor Summary'!$C$36,I110<='A - Contractor Summary'!$C$42),"Yes","No") -> No | K110: =VLOOKUP($C110,'C.1 - Rate Sheets'!H:I,2,FALSE) -> 24.31 | L110: 10 | BB110: 10 | BC110: 243.1 | BD110: 243.1 | BE110: 0 | BF110: 0 | BG110: 0
C111: Material Handler Bucket 57' | D111: 742 | E111: Vendor No 11 | F111: Hayes | G111: 25-23077 | H111: 2018-10-14 | I111: 2018-10-14 | J111: =IF(AND(H111>='A - Contractor Summary'!$C$36,I111<='A - Contractor Summary'!$C$42),"Yes","No") -> No | K111: =VLOOKUP($C111,'C.1 - Rate Sheets'!H:I,2,FALSE) -> 47.36 | L111: 10 | BB111: 10 | BC111: 473.6 | BD111: 473.6 | BE111: 0 | BF111: 0 | BG111: 0
C112: Material Handler Bucket 57' | D112: 743 | E112: Vendor No 11 | F112: Hayes | G112: 25-23077 | H112: 2018-10-14 | I112: 2018-10-14 | J112: =IF(AND(H112>='A - Contractor Summary'!$C$36,I112<='A - Contractor Summary'!$C$42),"Yes","No") -> No | K112: =VLOOKUP($C112,'C.1 - Rate Sheets'!H:I,2,FALSE) -> 47.36 | L112: 10 | BB112: 10 | BC112: 473.6 | BD112: 473.6 | BE112: 0 | BF112: 0 | BG112: 0
C113: Digger Truck | D113: 773 | E113: Vendor No 11 | F113: Hayes | G113: 25-23077 | H113: 2018-10-14 | I113: 2018-10-14 | J113: =IF(AND(H113>='A - Contractor Summary'!$C$36,I113<='A - Contractor Summary'!$C$42),"Yes","No") -> No | K113: =VLOOKUP($C113,'C.1 - Rate Sheets'!H:I,2,FALSE) -> 47.36 | L113: 10 | BB113: 10 | BC113: 473.6 | BD113: 473.6 | BE113: 0 | BF113: 0 | BG113: 0
C114: Pole Trailer | D114: 519 | E114: Vendor No 11 | F114: Hayes | G114: 25-23077 | H114: 2018-10-14 | I114: 2018-10-14 | J114: =IF(AND(H114>='A - Contractor Summary'!$C$36,I114<='A - Contractor Summary'!$C$42),"Yes","No") -> No | K114: =VLOOKUP($C114,'C.1 - Rate Sheets'!H:I,2,FALSE) -> 17.6 | L114: 10 | BB114: 10 | BC114: 176 | BD114: 176 | BE114: 0 | BF114: 0 | BG114: 0
C115: Crew Cab Pick-up | D115: 619 | E115: Vendor No 11 | F115: Grant | G115: 25-23078 | H115: 2018-10-14 | I115: 2018-10-14 | J115: =IF(AND(H115>='A - Contractor Summary'!$C$36,I115<='A - Contractor Summary'!$C$42),"Yes","No") -> No | K115: =VLOOKUP($C115,'C.1 - Rate Sheets'!H:I,2,FALSE) -> 24.31 | L115: 10 | BB115: 10 | BC115: 243.1 | BD115: 243.1 | BE115: 0 | BF115: 0 | BG115: 0
C116: Material Handler Bucket 57' | D116: 733 | E116: Vendor No 11 | F116: Grant | G116: 25-23078 | H116: 2018-10-14 | I116: 2018-10-14 | J116: =IF(AND(H116>='A - Contractor Summary'!$C$36,I116<='A - Contractor Summary'!$C$42),"Yes","No") -> No | K116: =VLOOKUP($C116,'C.1 - Rate Sheets'!H:I,2,FALSE) -> 47.36 | L116: 10 | BB116: 10 | BC116: 473.6 | BD116: 473.6 | BE116: 0 | BF116: 0 | BG116: 0
C117: Material Handler Bucket 57' | D117: 689 | E117: Vendor No 11 | F117: Grant | G117: 25-23078 | H117: 2018-10-14 | I117: 2018-10-14 | J117: =IF(AND(H117>='A - Contractor Summary'!$C$36,I117<='A - Contractor Summary'!$C$42),"Yes","No") -> No | K117: =VLOOKUP($C117,'C.1 - Rate Sheets'!H:I,2,FALSE) -> 47.36 | L117: 10 | BB117: 10 | BC117: 473.6 | BD117: 473.6 | BE117: 0 | BF117: 0 | BG117: 0
C118: Digger Truck | D118: 724 | E118: Vendor No 11 | F118: Grant | G118: 25-23078 | H118: 2018-10-14 | I118: 2018-10-14 | J118: =IF(AND(H118>='A - Contractor Summary'!$C$36,I118<='A - Contractor Summary'!$C$42),"Yes","No") -> No | K118: =VLOOKUP($C118,'C.1 - Rate Sheets'!H:I,2,FALSE) -> 47.36 | L118: 10 | BB118: 10 | BC118: 473.6 | BD118: 473.6 | BE118: 0 | BF118: 0 | BG118: 0
C119: Pole Trailer | D119: 662 | E119: Vendor No 11 | F119: Grant | G119: 25-23078 | H119: 2018-10-14 | I119: 2018-10-14 | J119: =IF(AND(H119>='A - Contractor Summary'!$C$36,I119<='A - Contractor Summary'!$C$42),"Yes","No") -> No | K119: =VLOOKUP($C119,'C.1 - Rate Sheets'!H:I,2,FALSE) -> 17.6 | L119: 10 | BB119: 10 | BC119: 176 | BD119: 176 | BE119: 0 | BF119: 0 | BG119: 0
C120: Crew Cab Pick-up | D120: 597 | E120: Vendor No 11 | F120: Thompson | G120: 25-23079 | H120: 2018-10-14 | I120: 2018-10-14 | J120: =IF(AND(H120>='A - Contractor Summary'!$C$36,I120<='A - Contractor Summary'!$C$42),"Yes","No") -> No | K120: =VLOOKUP($C120,'C.1 - Rate Sheets'!H:I,2,FALSE) -> 24.31 | L120: 10 | BB120: 10 | BC120: 243.1 | BD120: 243.1 | BE120: 0 | BF120: 0 | BG120: 0
C121: Material Handler Bucket 57' | D121: 739 | E121: Vendor No 11 | F121: Thompson | G121: 25-23079 | H121: 2018-10-14 | I121: 2018-10-14 | J121: =IF(AND(H121>='A - Contractor Summary'!$C$36,I121<='A - Contractor Summary'!$C$42),"Yes","No") -> No | K121: =VLOOKUP($C121,'C.1 - Rate Sheets'!H:I,2,FALSE) -> 47.36 | L121: 10 | BB121: 10 | BC121: 473.6 | BD121: 473.6 | BE121: 0 | BF121: 0 | BG121: 0
C122: Material Handler Bucket 57' | D122: 583 | E122: Vendor No 11 | F122: Thompson | G122: 25-23079 | H122: 2018-10-14 | I122: 2018-10-14 | J122: =IF(AND(H122>='A - Contractor Summary'!$C$36,I122<='A - Contractor Summary'!$C$42),"Yes","No") -> No | K122: =VLOOKUP($C122,'C.1 - Rate Sheets'!H:I,2,FALSE) -> 47.36 | L122: 10 | BB122: 10 | BC122: 473.6 | BD122: 473.6 | BE122: 0 | BF122: 0 | BG122: 0
C123: Digger Truck | D123: 480 | E123: Vendor No 11 | F123: Thompson | G123: 25-23079 | H123: 2018-10-14 | I123: 2018-10-14 | J123: =IF(AND(H123>='A - Contractor Summary'!$C$36,I123<='A - Contractor Summary'!$C$42),"Yes","No") -> No | K123: =VLOOKUP($C123,'C.1 - Rate Sheets'!H:I,2,FALSE) -> 47.36 | L123: 10 | BB123: 10 | BC123: 473.6 | BD123: 473.6 | BE123: 0 | BF123: 0 | BG123: 0
C124: Pole Trailer | D124: 608 | E124: Vendor No 11 | F124: Thompson | G124: 25-23079 | H124: 2018-10-14 | I124: 2018-10-14 | J124: =IF(AND(H124>='A - Contractor Summary'!$C$36,I124<='A - Contractor Summary'!$C$42),"Yes","No") -> No | K124: =VLOOKUP($C124,'C.1 - Rate Sheets'!H:I,2,FALSE) -> 17.6 | L124: 10 | BB124: 10 | BC124: 176 | BD124: 176 | BE124: 0 | BF124: 0 | BG124: 0
C125: Crew Cab Pick-up | D125: 694 | E125: Vendor No 11 | F125: Barnett | G125: 25-23085 | H125: 2018-10-15 | I125: 2018-10-21 | J125: =IF(AND(H125>='A - Contractor Summary'!$C$36,I125<='A - Contractor Summary'!$C$42),"Yes","No") -> No | K125: =VLOOKUP($C125,'C.1 - Rate Sheets'!H:I,2,FALSE) -> 24.31 | M125: 112 | BB125: 112 | BC125: 2722.72 | BD125: 2722.72 | BE125: 0 | BF125: 0 | BG125: 0
C126: Crew Cab Pick-up | D126: 693 | E126: Vendor No 11 | F126: Barnett | G126: 25-23085 | H126: 2018-10-15 | I126: 2018-10-21 | J126: =IF(AND(H126>='A - Contractor Summary'!$C$36,I126<='A - Contractor Summary'!$C$42),"Yes","No") -> No | K126: =VLOOKUP($C126,'C.1 - Rate Sheets'!H:I,2,FALSE) -> 24.31 | M126: 112 | BB126: 112 | BC126: 2722.72 | BD126: 2722.72 | BE126: 0 | BF126: 0 | BG126: 0
C127: Crew Cab Pick-up | D127: 726 | E127: Vendor No 11 | F127: Barnett | G127: 25-23085 | H127: 2018-10-15 | I127: 2018-10-21 | J127: =IF(AND(H127>='A - Contractor Summary'!$C$36,I127<='A - Contractor Summary'!$C$42),"Yes","No") -> No | K127: =VLOOKUP($C127,'C.1 - Rate Sheets'!H:I,2,FALSE) -> 24.31 | M127: 112 | BB127: 112 | BC127: 2722.72 | BD127: 2722.72 | BE127: 0 | BF127: 0 | BG127: 0
C128: Crew Cab Pick-up | D128: 553 | E128: Vendor No 11 | F128: Barnett | G128: 25-23085 | H128: 2018-10-15 | I128: 2018-10-21 | J128: =IF(AND(H128>='A - Contractor Summary'!$C$36,I128<='A - Contractor Summary'!$C$42),"Yes","No") -> No | K128: =VLOOKUP($C128,'C.1 - Rate Sheets'!H:I,2,FALSE) -> 24.31 | M128: 112 | BB128: 112 | BC128: 2722.72 | BD128: 2722.72 | BE128: 0 | BF128: 0 | BG128: 0
C129: Service Truck | D129: 777 | E129: Vendor No 11 | F129: Barnett | G129: 25-23085 | H129: 2018-10-15 | I129: 2018-10-21 | J129: =IF(AND(H129>='A - Contractor Summary'!$C$36,I129<='A - Contractor Summary'!$C$42),"Yes","No") -> No | K129: =VLOOKUP($C129,'C.1 - Rate Sheets'!H:I,2,FALSE) -> 35.75 | M129: 112 | BB129: 112 | BC129: 4004 | BD129: 4004 | BE129: 0 | BF129: 0 | BG129: 0
C130: Service Truck | D130: 776 | E130: Vendor No 11 | F130: Barnett | G130: 25-23085 | H130: 2018-10-15 | I130: 2018-10-21 | J130: =IF(AND(H130>='A - Contractor Summary'!$C$36,I130<='A - Contractor Summary'!$C$42),"Yes","No") -> No | K130: =VLOOKUP($C130,'C.1 - Rate Sheets'!H:I,2,FALSE) -> 35.75 | M130: 112 | BB130: 112 | BC130: 4004 | BD130: 4004 | BE130: 0 | BF130: 0 | BG130: 0
C131: Service Truck | D131: 617 | E131: Vendor No 11 | F131: Barnett | G131: 25-23085 | H131: 2018-10-15 | I131: 2018-10-21 | J131: =IF(AND(H131>='A - Contractor Summary'!$C$36,I131<='A - Contractor Summary'!$C$42),"Yes","No") -> No | K131: =VLOOKUP($C131,'C.1 - Rate Sheets'!H:I,2,FALSE) -> 35.75 | M131: 112 | BB131: 112 | BC131: 4004 | BD131: 4004 | BE131: 0 | BF131: 0 | BG131: 0
C132: 18' Material Trailer | D132: 647 | E132: Vendor No 11 | F132: Barnett | G132: 25-23085 | H132: 2018-10-15 | I132: 2018-10-21 | J132: =IF(AND(H132>='A - Contractor Summary'!$C$36,I132<='A - Contractor Summary'!$C$42),"Yes","No") -> No | K132: =VLOOKUP($C132,'C.1 - Rate Sheets'!H:I,2,FALSE) -> 10 | M132: 112 | BB132: 112 | BC132: 1120 | BD132: 1120 | BE132: 0 | BF132: 0 | BG132: 0
C133: 18' Material Trailer | D133: 757 | E133: Vendor No 11 | F133: Barnett | G133: 25-23085 | H133: 2018-10-15 | I133: 2018-10-21 | J133: =IF(AND(H133>='A - Contractor Summary'!$C$36,I133<='A - Contractor Summary'!$C$42),"Yes","No") -> No | K133: =VLOOKUP($C133,'C.1 - Rate Sheets'!H:I,2,FALSE) -> 10 | M133: 112 | BB133: 112 | BC133: 1120 | BD133: 1120 | BE133: 0 | BF133: 0 | BG133: 0
C134: Tractor Truck | D134: 531 | E134: Vendor No 11 | F134: Chisholm | G134: 25-23086 | H134: 2018-10-15 | I134: 2018-10-21 | J134: =IF(AND(H134>='A - Contractor Summary'!$C$36,I134<='A - Contractor Summary'!$C$42),"Yes","No") -> No | K134: =VLOOKUP($C134,'C.1 - Rate Sheets'!H:I,2,FALSE) -> 45.65 | M134: 32 | BB134: 32 | BC134: 1460.8 | BD134: 1460.8 | BE134: 0 | BF134: 0 | BG134: 0
C135: LowBoy Trailer Double Axle | D135: 729 | E135: Vendor No 11 | F135: Chisholm | G135: 25-23086 | H135: 2018-10-15 | I135: 2018-10-21 | J135: =IF(AND(H135>='A - Contractor Summary'!$C$36,I135<='A - Contractor Summary'!$C$42),"Yes","No") -> No | K135: =VLOOKUP($C135,'C.1 - Rate Sheets'!H:I,2,FALSE) -> 33.55 | M135: 32 | BB135: 32 | BC135: 1073.6 | BD135: 1073.6 | BE135: 0 | BF135: 0 | BG135: 0
C136: Go Track Digger | D136: 529 | E136: Vendor No 11 | F136: Chisholm | G136: 25-23086 | H136: 2018-10-15 | I136: 2018-10-21 | J136: =IF(AND(H136>='A - Contractor Summary'!$C$36,I136<='A - Contractor Summary'!$C$42),"Yes","No") -> No | K136: =VLOOKUP($C136,'C.1 - Rate Sheets'!H:I,2,FALSE) -> 79.2 | M136: 112 | BB136: 112 | BC136: 8870.4 | BD136: 8870.4 | BE136: 0 | BF136: 0 | BG136: 0
C137: Tractor Truck | D137: 408 | E137: Vendor No 11 | F137: Chisholm | G137: 25-23086 | H137: 2018-10-15 | I137: 2018-10-21 | J137: =IF(AND(H137>='A - Contractor Summary'!$C$36,I137<='A - Contractor Summary'!$C$42),"Yes","No") -> No | K137: =VLOOKUP($C137,'C.1 - Rate Sheets'!H:I,2,FALSE) -> 45.65 | M137: 32 | BB137: 32 | BC137: 1460.8 | BD137: 1460.8 | BE137: 0 | BF137: 0 | BG137: 0
C138: LowBoy Trailer Double Axle | D138: 748 | E138: Vendor No 11 | F138: Chisholm | G138: 25-23086 | H138: 2018-10-15 | I138: 2018-10-21 | J138: =IF(AND(H138>='A - Contractor Summary'!$C$36,I138<='A - Contractor Summary'!$C$42),"Yes","No") -> No | K138: =VLOOKUP($C138,'C.1 - Rate Sheets'!H:I,2,FALSE) -> 33.55 | M138: 32 | BB138: 32 | BC138: 1073.6 | BD138: 1073.6 | BE138: 0 | BF138: 0 | BG138: 0
C139: Go Track Bucket | D139: 718 | E139: Vendor No 11 | F139: Chisholm | G139: 25-23086 | H139: 2018-10-15 | I139: 2018-10-21 | J139: =IF(AND(H139>='A - Contractor Summary'!$C$36,I139<='A - Contractor Summary'!$C$42),"Yes","No") -> No | K139: =VLOOKUP($C139,'C.1 - Rate Sheets'!H:I,2,FALSE) -> 79.2 | M139: 112 | BB139: 112 | BC139: 8870.4 | BD139: 8870.4 | BE139: 0 | BF139: 0 | BG139: 0
C140: Tractor Truck | D140: 96 | E140: Vendor No 11 | F140: Chisholm | G140: 25-23086 | H140: 2018-10-15 | I140: 2018-10-21 | J140: =IF(AND(H140>='A - Contractor Summary'!$C$36,I140<='A - Contractor Summary'!$C$42),"Yes","No") -> No | K140: =VLOOKUP($C140,'C.1 - Rate Sheets'!H:I,2,FALSE) -> 45.65 | M140: 112 | BB140: 112 | BC140: 5112.8 | BD140: 5112.8 | BE140: 0 | BF140: 0 | BG140: 0
C141: LowBoy Trailer Double Axle | D141: 533 | E141: Vendor No 11 | F141: Chisholm | G141: 25-23086 | H141: 2018-10-15 | I141: 2018-10-21 | J141: =IF(AND(H141>='A - Contractor Summary'!$C$36,I141<='A - Contractor Summary'!$C$42),"Yes","No") -> No | K141: =VLOOKUP($C141,'C.1 - Rate Sheets'!H:I,2,FALSE) -> 33.55 | M141: 112 | BB141: 112 | BC141: 3757.6 | BD141: 3757.6 | BE141: 0 | BF141: 0 | BG141: 0
C142: Go Track Bucket | D142: 621 | E142: Vendor No 11 | F142: Chisholm | G142: 25-23086 | H142: 2018-10-15 | I142: 2018-10-21 | J142: =IF(AND(H142>='A - Contractor Summary'!$C$36,I142<='A - Contractor Summary'!$C$42),"Yes","No") -> No | K142: =VLOOKUP($C142,'C.1 - Rate Sheets'!H:I,2,FALSE) -> 79.2 | M142: 112 | BB142: 112 | BC142: 8870.4 | BD142: 8870.4 | BE142: 0 | BF142: 0 | BG142: 0
C143: Tractor Truck | D143: 328 | E143: Vendor No 11 | F143: Chisholm | G143: 25-23086 | H143: 2018-10-15 | I143: 2018-10-21 | J143: =IF(AND(H143>='A - Contractor Summary'!$C$36,I143<='A - Contractor Summary'!$C$42),"Yes","No") -> No | K143: =VLOOKUP($C143,'C.1 - Rate Sheets'!H:I,2,FALSE) -> 45.65 | M143: 112 | BB143: 112 | BC143: 5112.8 | BD143: 5112.8 | BE143: 0 | BF143: 0 | BG143: 0
C144: LowBoy Trailer Double Axle | D144: 728 | E144: Vendor No 11 | F144: Chisholm | G144: 25-23086 | H144: 2018-10-15 | I144: 2018-10-21 | J144: =IF(AND(H144>='A - Contractor Summary'!$C$36,I144<='A - Contractor Summary'!$C$42),"Yes","No") -> No | K144: =VLOOKUP($C144,'C.1 - Rate Sheets'!H:I,2,FALSE) -> 33.55 | M144: 112 | BB144: 112 | BC144: 3757.6 | BD144: 3757.6 | BE144: 0 | BF144: 0 | BG144: 0
C145: Go Track Digger | D145: 622 | E145: Vendor No 11 | F145: Chisholm | G145: 25-23086 | H145: 2018-10-15 | I145: 2018-10-21 | J145: =IF(AND(H145>='A - Contractor Summary'!$C$36,I145<='A - Contractor Summary'!$C$42),"Yes","No") -> No | K145: =VLOOKUP($C145,'C.1 - Rate Sheets'!H:I,2,FALSE) -> 79.2 | M145: 112 | BB145: 112 | BC145: 8870.4 | BD145: 8870.4 | BE145: 0 | BF145: 0 | BG145: 0
C146: Crew Cab Pick-up | D146: 571 | E146: Vendor No 11 | F146: Chisholm | G146: 25-23086 | H146: 2018-10-15 | I146: 2018-10-21 | J146: =IF(AND(H146>='A - Contractor Summary'!$C$36,I146<='A - Contractor Summary'!$C$42),"Yes","No") -> No | K146: =VLOOKUP($C146,'C.1 - Rate Sheets'!H:I,2,FALSE) -> 24.31 | M146: 112 | BB146: 112 | BC146: 2722.72 | BD146: 2722.72 | BE146: 0 | BF146: 0 | BG146: 0
C147: Crew Cab Pick-up | D147: 636 | E147: Vendor No 11 | F147: Chambley | G147: 25-23087 | H147: 2018-10-15 | I147: 2018-10-21 | J147: =IF(AND(H147>='A - Contractor Summary'!$C$36,I147<='A - Contractor Summary'!$C$42),"Yes","No") -> No | K147: =VLOOKUP($C147,'C.1 - Rate Sheets'!H:I,2,FALSE) -> 24.31 | M147: 112 | BB147: 112 | BC147: 2722.72 | BD147: 2722.72 | BE147: 0 | BF147: 0 | BG147: 0
C148: Material Handler Bucket 57' | D148: 558 | E148: Vendor No 11 | F148: Chambley | G148: 25-23087 | H148: 2018-10-15 | I148: 2018-10-21 | J148: =IF(AND(H148>='A - Contractor Summary'!$C$36,I148<='A - Contractor Summary'!$C$42),"Yes","No") -> No | K148: =VLOOKUP($C148,'C.1 - Rate Sheets'!H:I,2,FALSE) -> 47.36 | M148: 112 | BB148: =SUM(L148:BA148) -> 112 | BC148: 5304.32 | BD148: 5304.32 | BE148: 0 | BF148: 0 | BG148: 0
C149: Material Handler Bucket 57' | D149: 588 | E149: Vendor No 11 | F149: Chambley | G149: 25-23087 | H149: 2018-10-15 | I149: 2018-10-21 | J149: =IF(AND(H149>='A - Contractor Summary'!$C$36,I149<='A - Contractor Summary'!$C$42),"Yes","No") -> No | K149: =VLOOKUP($C149,'C.1 - Rate Sheets'!H:I,2,FALSE) -> 47.36 | M149: 112 | BB149: 112 | BC149: 5304.32 | BD149: 5304.32 | BE149: 0 | BF149: 0 | BG149: 0
C150: Digger Truck | D150: 561 | E150: Vendor No 11 | F150: Chambley | G150: 25-23087 | H150: 2018-10-15 | I150: 2018-10-21 | J150: =IF(AND(H150>='A - Contractor Summary'!$C$36,I150<='A - Contractor Summary'!$C$42),"Yes","No") -> No | K150: =VLOOKUP($C150,'C.1 - Rate Sheets'!H:I,2,FALSE) -> 47.36 | M150: 112 | BB150: 112 | BC150: 5304.32 | BD150: 5304.32 | BE150: 0 | BF150: 0 | BG150: 0
C151: Pole Trailer | D151: 483 | E151: Vendor No 11 | F151: Chambley | G151: 25-23087 | H151: 2018-10-15 | I151: 2018-10-21 | J151: =IF(AND(H151>='A - Contractor Summary'!$C$36,I151<='A - Contractor Summary'!$C$42),"Yes","No") -> No | K151: =VLOOKUP($C151,'C.1 - Rate Sheets'!H:I,2,FALSE) -> 17.6 | M151: 112 | BB151: 112 | BC151: 1971.2 | BD151: 1971.2 | BE151: 0 | BF151: 0 | BG151: 0
C152: Tractor Truck | D152: 637 | E152: Vendor No 11 | F152: Chambley | G152: 25-23087 | H152: 2018-10-15 | I152: 2018-10-21 | J152: =IF(AND(H152>='A - Contractor Summary'!$C$36,I152<='A - Contractor Summary'!$C$42),"Yes","No") -> No | K152: =VLOOKUP($C152,'C.1 - Rate Sheets'!H:I,2,FALSE) -> 45.65 | M152: 112 | BB152: 112 | BC152: 5112.8 | BD152: 5112.8 | BE152: 0 | BF152: 0 | BG152: 0
C153: LowBoy Trailer Double Axle | D153: 747 | E153: Vendor No 11 | F153: Chambley | G153: 25-23087 | H153: 2018-10-15 | I153: 2018-10-21 | J153: =IF(AND(H153>='A - Contractor Summary'!$C$36,I153<='A - Contractor Summary'!$C$42),"Yes","No") -> No | K153: =VLOOKUP($C153,'C.1 - Rate Sheets'!H:I,2,FALSE) -> 33.55 | M153: 112 | BB153: 112 | BC153: 3757.6 | BD153: 3757.6 | BE153: 0 | BF153: 0 | BG153: 0
C154: Tractor Truck | D154: 485083 | E154: Vendor No 11 | F154: Chambley | G154: 25-23087 | H154: 2018-10-15 | I154: 2018-10-21 | J154: =IF(AND(H154>='A - Contractor Summary'!$C$36,I154<='A - Contractor Summary'!$C$42),"Yes","No") -> No | K154: =VLOOKUP($C154,'C.1 - Rate Sheets'!H:I,2,FALSE) -> 45.65 | M154: 112 | BB154: 112 | BC154: 5112.8 | BD154: 5112.8 | BE154: 0 | BF154: 0 | BG154: 0
C155: Service Truck | D155: 514 | E155: Vendor No 11 | F155: Chambley | G155: 25-23087 | H155: 2018-10-15 | I155: 2018-10-21 | J155: =IF(AND(H155>='A - Contractor Summary'!$C$36,I155<='A - Contractor Summary'!$C$42),"Yes","No") -> No | K155: =VLOOKUP($C155,'C.1 - Rate Sheets'!H:I,2,FALSE) -> 35.75 | M155: 112 | BB155: 112 | BC155: 4004 | BD155: 4004 | BE155: 0 | BF155: 0 | BG155: 0
C156: LowBoy Trailer Double Axle | D156: 407 | E156: Vendor No 11 | F156: Chambley | G156: 25-23087 | H156: 2018-10-15 | I156: 2018-10-21 | J156: =IF(AND(H156>='A - Contractor Summary'!$C$36,I156<='A - Contractor Summary'!$C$42),"Yes","No") -> No | K156: =VLOOKUP($C156,'C.1 - Rate Sheets'!H:I,2,FALSE) -> 33.55 | M156: 112 | BB156: 112 | BC156: 3757.6 | BD156: 3757.6 | BE156: 0 | BF156: 0 | BG156: 0
C157: Crew Cab Pick-up | D157: 596 | E157: Vendor No 11 | F157: Lee | G157: 25-23088 | H157: 2018-10-15 | I157: 2018-10-21 | J157: =IF(AND(H157>='A - Contractor Summary'!$C$36,I157<='A - Contractor Summary'!$C$42),"Yes","No") -> No | K157: =VLOOKUP($C157,'C.1 - Rate Sheets'!H:I,2,FALSE) -> 24.31 | M157: 48 | BB157: 48 | BC157: 1166.88 | BD157: 1166.88 | BE157: 0 | BF157: 0 | BG157: 0
C158: Material Handler Bucket 57' | D158: 427 | E158: Vendor No 11 | F158: Lee | G158: 25-23088 | H158: 2018-10-15 | I158: 2018-10-21 | J158: =IF(AND(H158>='A - Contractor Summary'!$C$36,I158<='A - Contractor Summary'!$C$42),"Yes","No") -> No | K158: =VLOOKUP($C158,'C.1 - Rate Sheets'!H:I,2,FALSE) -> 47.36 | M158: 48 | BB158: 48 | BC158: 2273.28 | BD158: 2273.28 | BE158: 0 | BF158: 0 | BG158: 0
C159: Material Handler Bucket 57' | D159: 559 | E159: Vendor No 11 | F159: Lee | G159: 25-23088 | H159: 2018-10-15 | I159: 2018-10-21 | J159: =IF(AND(H159>='A - Contractor Summary'!$C$36,I159<='A - Contractor Summary'!$C$42),"Yes","No") -> No | K159: =VLOOKUP($C159,'C.1 - Rate Sheets'!H:I,2,FALSE) -> 47.36 | M159: 48 | BB159: 48 | BC159: 2273.28 | BD159: 2273.28 | BE159: 0 | BF159: 0 | BG159: 0
C160: Digger Truck | D160: 467 | E160: Vendor No 11 | F160: Lee | G160: 25-23088 | H160: 2018-10-15 | I160: 2018-10-21 | J160: =IF(AND(H160>='A - Contractor Summary'!$C$36,I160<='A - Contractor Summary'!$C$42),"Yes","No") -> No | K160: =VLOOKUP($C160,'C.1 - Rate Sheets'!H:I,2,FALSE) -> 47.36 | M160: 48 | BB160: 48 | BC160: 2273.28 | BD160: 2273.28 | BE160: 0 | BF160: 0 | BG160: 0
C161: Pole Trailer | D161: 197 | E161: Vendor No 11 | F161: Lee | G161: 25-23088 | H161: 2018-10-15 | I161: 2018-10-21 | J161: =IF(AND(H161>='A - Contractor Summary'!$C$36,I161<='A - Contractor Summary'!$C$42),"Yes","No") -> No | K161: =VLOOKUP($C161,'C.1 - Rate Sheets'!H:I,2,FALSE) -> 17.6 | M161: 48 | BB161: 48 | BC161: 844.8 | BD161: 844.8 | BE161: 0 | BF161: 0 | BG161: 0
C162: Tractor Truck | D162: P697988 | E162: Vendor No 11 | F162: Lee | G162: 25-23088 | H162: 2018-10-15 | I162: 2018-10-21 | J162: =IF(AND(H162>='A - Contractor Summary'!$C$36,I162<='A - Contractor Summary'!$C$42),"Yes","No") -> No | K162: =VLOOKUP($C162,'C.1 - Rate Sheets'!H:I,2,FALSE) -> 45.65 | M162: 64 | BB162: 64 | BC162: 2921.6 | BD162: 2921.6 | BE162: 0 | BF162: 0 | BG162: 0
C163: LowBoy Trailer Double Axle | D163: 534 | E163: Vendor No 11 | F163: Lee | G163: 25-23088 | H163: 2018-10-15 | I163: 2018-10-21 | J163: =IF(AND(H163>='A - Contractor Summary'!$C$36,I163<='A - Contractor Summary'!$C$42),"Yes","No") -> No | K163: =VLOOKUP($C163,'C.1 - Rate Sheets'!H:I,2,FALSE) -> 33.55 | M163: 64 | BB163: 64 | BC163: 2147.2 | BD163: 2147.2 | BE163: 0 | BF163: 0 | BG163: 0
C164: Tractor Truck | D164: B398 | E164: Vendor No 11 | F164: Lee | G164: 25-23088 | H164: 2018-10-15 | I164: 2018-10-21 | J164: =IF(AND(H164>='A - Contractor Summary'!$C$36,I164<='A - Contractor Summary'!$C$42),"Yes","No") -> No | K164: =VLOOKUP($C164,'C.1 - Rate Sheets'!H:I,2,FALSE) -> 45.65 | M164: 64 | BB164: 64 | BC164: 2921.6 | BD164: 2921.6 | BE164: 0 | BF164: 0 | BG164: 0
C165: LowBoy Trailer Double Axle | D165: 780 | E165: Vendor No 11 | F165: Lee | G165: 25-23088 | H165: 2018-10-15 | I165: 2018-10-21 | J165: =IF(AND(H165>='A - Contractor Summary'!$C$36,I165<='A - Contractor Summary'!$C$42),"Yes","No") -> No | K165: =VLOOKUP($C165,'C.1 - Rate Sheets'!H:I,2,FALSE) -> 33.55 | M165: 64 | BB165: 64 | BC165: 2147.2 | BD165: 2147.2 | BE165: 0 | BF165: 0 | BG165: 0
C166: Crew Cab Pick-up | D166: 566 | E166: Vendor No 11 | F166: Breland | G166: 25-23089 | H166: 2018-10-15 | I166: 2018-10-21 | J166: =IF(AND(H166>='A - Contractor Summary'!$C$36,I166<='A - Contractor Summary'!$C$42),"Yes","No") -> No | K166: =VLOOKUP($C166,'C.1 - Rate Sheets'!H:I,2,FALSE) -> 24.31 | M166: 112 | BB166: 112 | BC166: 2722.72 | BD166: 2722.72 | BE166: 0 | BF166: 0 | BG166: 0
C167: Material Handler Bucket 57' | D167: 714 | E167: Vendor No 11 | F167: Breland | G167: 25-23089 | H167: 2018-10-15 | I167: 2018-10-21 | J167: =IF(AND(H167>='A - Contractor Summary'!$C$36,I167<='A - Contractor Summary'!$C$42),"Yes","No") -> No | K167: =VLOOKUP($C167,'C.1 - Rate Sheets'!H:I,2,FALSE) -> 47.36 | M167: 112 | BB167: 112 | BC167: 5304.32 | BD167: 5304.32 | BE167: 0 | BF167: 0 | BG167: 0
C168: Material Handler Bucket 57' | D168: 627 | E168: Vendor No 11 | F168: Breland | G168: 25-23089 | H168: 2018-10-15 | I168: 2018-10-21 | J168: =IF(AND(H168>='A - Contractor Summary'!$C$36,I168<='A - Contractor Summary'!$C$42),"Yes","No") -> No | K168: =VLOOKUP($C168,'C.1 - Rate Sheets'!H:I,2,FALSE) -> 47.36 | M168: 112 | BB168: 112 | BC168: 5304.32 | BD168: 5304.32 | BE168: 0 | BF168: 0 | BG168: 0
C169: Digger Truck | D169: 712 | E169: Vendor No 11 | F169: Breland | G169: 25-23089 | H169: 2018-10-15 | I169: 2018-10-21 | J169: =IF(AND(H169>='A - Contractor Summary'!$C$36,I169<='A - Contractor Summary'!$C$42),"Yes","No") -> No | K169: =VLOOKUP($C169,'C.1 - Rate Sheets'!H:I,2,FALSE) -> 47.36 | M169: 112 | BB169: 112 | BC169: 5304.32 | BD169: 5304.32 | BE169: 0 | BF169: 0 | BG169: 0
C170: Pole Trailer | D170: 567 | E170: Vendor No 11 | F170: Breland | G170: 25-23089 | H170: 2018-10-15 | I170: 2018-10-21 | J170: =IF(AND(H170>='A - Contractor Summary'!$C$36,I170<='A - Contractor Summary'!$C$42),"Yes","No") -> No | K170: =VLOOKUP($C170,'C.1 - Rate Sheets'!H:I,2,FALSE) -> 17.6 | M170: 112 | BB170: 112 | BC170: 1971.2 | BD170: 1971.2 | BE170: 0 | BF170: 0 | BG170: 0
C171: Rope Rig | D171: 431 | E171: Vendor No 11 | F171: Breland | G171: 25-23089 | H171: 2018-10-15 | I171: 2018-10-21 | J171: =IF(AND(H171>='A - Contractor Summary'!$C$36,I171<='A - Contractor Summary'!$C$42),"Yes","No") -> No | K171: =VLOOKUP($C171,'C.1 - Rate Sheets'!H:I,2,FALSE) -> 25 | M171: 112 | BB171: 112 | BC171: 2800 | BD171: 2800 | BE171: 0 | BF171: 0 | BG171: 0
C172: Tension Trailer | D172: 53 | E172: Vendor No 11 | F172: Breland | G172: 25-23089 | H172: 2018-10-15 | I172: 2018-10-21 | J172: =IF(AND(H172>='A - Contractor Summary'!$C$36,I172<='A - Contractor Summary'!$C$42),"Yes","No") -> No | K172: =VLOOKUP($C172,'C.1 - Rate Sheets'!H:I,2,FALSE) -> 25 | M172: 112 | BB172: 112 | BC172: 2800 | BD172: 2800 | BE172: 0 | BF172: 0 | BG172: 0
C173: Dozer | D173: 592 | E173: Vendor No 11 | F173: Broom | G173: 25-23089 | H173: 2018-10-15 | I173: 2018-10-21 | J173: =IF(AND(H173>='A - Contractor Summary'!$C$36,I173<='A - Contractor Summary'!$C$42),"Yes","No") -> No | K173: =VLOOKUP($C173,'C.1 - Rate Sheets'!H:I,2,FALSE) -> 71.5 | M173: 112 | BB173: 112 | BC173: 8008 | BD173: 8008 | BE173: 0 | BF173: 0 | BG173: 0
C174: Crew Cab Pick-up | D174: 648 | E174: Vendor No 11 | F174: Jefcoat | G174: 25-23090 | H174: 2018-10-15 | I174: 2018-10-21 | J174: =IF(AND(H174>='A - Contractor Summary'!$C$36,I174<='A - Contractor Summary'!$C$42),"Yes","No") -> No | K174: =VLOOKUP($C174,'C.1 - Rate Sheets'!H:I,2,FALSE) -> 24.31 | M174: 112 | BB174: 112 | BC174: 2722.72 | BD174: 2722.72 | BE174: 0 | BF174: 0 | BG174: 0
C175: Material Handler Bucket 57' | D175: 658 | E175: Vendor No 11 | F175: Jefcoat | G175: 25-23090 | H175: 2018-10-15 | I175: 2018-10-21 | J175: =IF(AND(H175>='A - Contractor Summary'!$C$36,I175<='A - Contractor Summary'!$C$42),"Yes","No") -> No | K175: =VLOOKUP($C175,'C.1 - Rate Sheets'!H:I,2,FALSE) -> 47.36 | M175: 112 | BB175: 112 | BC175: 5304.32 | BD175: 5304.32 | BE175: 0 | BF175: 0 | BG175: 0
C176: Material Handler Bucket 57' | D176: 584 | E176: Vendor No 11 | F176: Jefcoat | G176: 25-23090 | H176: 2018-10-15 | I176: 2018-10-21 | J176: =IF(AND(H176>='A - Contractor Summary'!$C$36,I176<='A - Contractor Summary'!$C$42),"Yes","No") -> No | K176: =VLOOKUP($C176,'C.1 - Rate Sheets'!H:I,2,FALSE) -> 47.36 | M176: 112 | BB176: 112 | BC176: 5304.32 | BD176: 5304.32 | BE176: 0 | BF176: 0 | BG176: 0
C177: Digger Truck | D177: 717 | E177: Vendor No 11 | F177: Jefcoat | G177: 25-23090 | H177: 2018-10-15 | I177: 2018-10-21 | J177: =IF(AND(H177>='A - Contractor Summary'!$C$36,I177<='A - Contractor Summary'!$C$42),"Yes","No") -> No | K177: =VLOOKUP($C177,'C.1 - Rate Sheets'!H:I,2,FALSE) -> 47.36 | M177: 112 | BB177: =SUM(L177:BA177) -> 112 | BC177: =BB177*K177 -> 5304.32 | BD177: =BC177-BE177 -> 5304.32 | BE177: 0 | BF177: 0 | BG177: 0
C178: Pole Trailer | D178: 455 | E178: Vendor No 11 | F178: Jefcoat | G178: 25-23090 | H178: 2018-10-15 | I178: 2018-10-21 | J178: =IF(AND(H178>='A - Contractor Summary'!$C$36,I178<='A - Contractor Summary'!$C$42),"Yes","No") -> No | K178: =VLOOKUP($C178,'C.1 - Rate Sheets'!H:I,2,FALSE) -> 17.6 | M178: 112 | BB178: 112 | BC178: 1971.2 | BD178: 1971.2 | BE178: 0 | BF178: 0 | BG178: 0
C179: Rope Rig | D179: 517 | E179: Vendor No 11 | F179: Jefcoat | G179: 25-23090 | H179: 2018-10-15 | I179: 2018-10-21 | J179: =IF(AND(H179>='A - Contractor Summary'!$C$36,I179<='A - Contractor Summary'!$C$42),"Yes","No") -> No | K179: =VLOOKUP($C179,'C.1 - Rate Sheets'!H:I,2,FALSE) -> 25 | M179: 112 | BB179: 112 | BC179: 2800 | BD179: 2800 | BE179: 0 | BF179: 0 | BG179: 0
C180: Tension Trailer | D180: 712 | E180: Vendor No 11 | F180: Jefcoat | G180: 25-23090 | H180: 2018-10-15 | I180: 2018-10-21 | J180: =IF(AND(H180>='A - Contractor Summary'!$C$36,I180<='A - Contractor Summary'!$C$42),"Yes","No") -> No | K180: =VLOOKUP($C180,'C.1 - Rate Sheets'!H:I,2,FALSE) -> 25 | M180: 112 | BB180: 112 | BC180: 2800 | BD180: 2800 | BE180: 0 | BF180: 0 | BG180: 0
C181: Log Skidder w/ Grapples | D181: 251 | E181: Vendor No 11 | F181: Jefcoat | G181: 25-23090 | H181: 2018-10-15 | I181: 2018-10-21 | J181: =IF(AND(H181>='A - Contractor Summary'!$C$36,I181<='A - Contractor Summary'!$C$42),"Yes","No") -> No | K181: =VLOOKUP($C181,'C.1 - Rate Sheets'!H:I,2,FALSE) -> 72.6 | M181: 112 | BB181: 112 | BC181: 8131.2 | BD181: 8131.2 | BE181: 0 | BF181: 0 | BG181: 0
C182: Crew Cab Pick-up | D182: 697 | E182: Vendor No 11 | F182: Breland | G182: 25-23091 | H182: 2018-10-15 | I182: 2018-10-21 | J182: =IF(AND(H182>='A - Contractor Summary'!$C$36,I182<='A - Contractor Summary'!$C$42),"Yes","No") -> No | K182: =VLOOKUP($C182,'C.1 - Rate Sheets'!H:I,2,FALSE) -> 24.31 | M182: 112 | BB182: 112 | BC182: 2722.72 | BD182: 2722.72 | BE182: 0 | BF182: 0 | BG182: 0
C183: Material Handler Bucket 57' | D183: 582 | E183: Vendor No 11 | F183: Breland | G183: 25-23091 | H183: 2018-10-15 | I183: 2018-10-21 | J183: =IF(AND(H183>='A - Contractor Summary'!$C$36,I183<='A - Contractor Summary'!$C$42),"Yes","No") -> No | K183: =VLOOKUP($C183,'C.1 - Rate Sheets'!H:I,2,FALSE) -> 47.36 | M183: 112 | BB183: 112 | BC183: 5304.32 | BD183: 5304.32 | BE183: 0 | BF183: 0 | BG183: 0
C184: Material Handler Bucket 57' | D184: 713 | E184: Vendor No 11 | F184: Breland | G184: 25-23091 | H184: 2018-10-15 | I184: 2018-10-21 | J184: =IF(AND(H184>='A - Contractor Summary'!$C$36,I184<='A - Contractor Summary'!$C$42),"Yes","No") -> No | K184: =VLOOKUP($C184,'C.1 - Rate Sheets'!H:I,2,FALSE) -> 47.36 | M184: 112 | BB184: 112 | BC184: 5304.32 | BD184: 5304.32 | BE184: 0 | BF184: 0 | BG184: 0
C185: Digger Truck | D185: 725 | E185: Vendor No 11 | F185: Breland | G185: 25-23091 | H185: 2018-10-15 | I185: 2018-10-21 | J185: =IF(AND(H185>='A - Contractor Summary'!$C$36,I185<='A - Contractor Summary'!$C$42),"Yes","No") -> No | K185: =VLOOKUP($C185,'C.1 - Rate Sheets'!H:I,2,FALSE) -> 47.36 | M185: 112 | BB185: 112 | BC185: 5304.32 | BD185: 5304.32 | BE185: 0 | BF185: 0 | BG185: 0
C186: Pole Trailer | D186: 631 | E186: Vendor No 11 | F186: Breland | G186: 25-23091 | H186: 2018-10-15 | I186: 2018-10-21 | J186: =IF(AND(H186>='A - Contractor Summary'!$C$36,I186<='A - Contractor Summary'!$C$42),"Yes","No") -> No | K186: =VLOOKUP($C186,'C.1 - Rate Sheets'!H:I,2,FALSE) -> 17.6 | M186: 112 | BB186: 112 | BC186: 1971.2 | BD186: 1971.2 | BE186: 0 | BF186: 0 | BG186: 0
C187: Rope Rig | D187: 563 | E187: Vendor No 11 | F187: Breland | G187: 25-23091 | H187: 2018-10-15 | I187: 2018-10-21 | J187: =IF(AND(H187>='A - Contractor Summary'!$C$36,I187<='A - Contractor Summary'!$C$42),"Yes","No") -> No | K187: =VLOOKUP($C187,'C.1 - Rate Sheets'!H:I,2,FALSE) -> 25 | M187: 112 | BB187: 112 | BC187: 2800 | BD187: 2800 | BE187: 0 | BF187: 0 | BG187: 0
C188: Tension Trailer | D188: 516 | E188: Vendor No 11 | F188: Breland | G188: 25-23091 | H188: 2018-10-15 | I188: 2018-10-21 | J188: =IF(AND(H188>='A - Contractor Summary'!$C$36,I188<='A - Contractor Summary'!$C$42),"Yes","No") -> No | K188: =VLOOKUP($C188,'C.1 - Rate Sheets'!H:I,2,FALSE) -> 25 | M188: 112 | BB188: 112 | BC188: 2800 | BD188: 2800 | BE188: 0 | BF188: 0 | BG188: 0
C189: Crew Cab Pick-up | D189: 681 | E189: Vendor No 11 | F189: Martin | G189: 25-23092 | H189: 2018-10-15 | I189: 2018-10-21 | J189: =IF(AND(H189>='A - Contractor Summary'!$C$36,I189<='A - Contractor Summary'!$C$42),"Yes","No") -> No | K189: =VLOOKUP($C189,'C.1 - Rate Sheets'!H:I,2,FALSE) -> 24.31 | M189: 112 | BB189: 112 | BC189: 2722.72 | BD189: 2722.72 | BE189: 0 | BF189: 0 | BG189: 0
C190: Material Handler Bucket 57' | D190: 581 | E190: Vendor No 11 | F190: Martin | G190: 25-23092 | H190: 2018-10-15 | I190: 2018-10-21 | J190: =IF(AND(H190>='A - Contractor Summary'!$C$36,I190<='A - Contractor Summary'!$C$42),"Yes","No") -> No | K190: =VLOOKUP($C190,'C.1 - Rate Sheets'!H:I,2,FALSE) -> 47.36 | M190: 112 | BB190: 112 | BC190: 5304.32 | BD190: 5304.32 | BE190: 0 | BF190: 0 | BG190: 0
C191: Material Handler Bucket 57' | D191: 678 | E191: Vendor No 11 | F191: Martin | G191: 25-23092 | H191: 2018-10-15 | I191: 2018-10-21 | J191: =IF(AND(H191>='A - Contractor Summary'!$C$36,I191<='A - Contractor Summary'!$C$42),"Yes","No") -> No | K191: =VLOOKUP($C191,'C.1 - Rate Sheets'!H:I,2,FALSE) -> 47.36 | M191: 112 | BB191: 112 | BC191: 5304.32 | BD191: 5304.32 | BE191: 0 | BF191: 0 | BG191: 0
C192: Digger Truck | D192: 418 | E192: Vendor No 11 | F192: Martin | G192: 25-23092 | H192: 2018-10-15 | I192: 2018-10-21 | J192: =IF(AND(H192>='A - Contractor Summary'!$C$36,I192<='A - Contractor Summary'!$C$42),"Yes","No") -> No | K192: =VLOOKUP($C192,'C.1 - Rate Sheets'!H:I,2,FALSE) -> 47.36 | M192: 112 | BB192: 112 | BC192: 5304.32 | BD192: 5304.32 | BE192: 0 | BF192: 0 | BG192: 0
C193: Pole Trailer | D193: 315 | E193: Vendor No 11 | F193: Martin | G193: 25-23092 | H193: 2018-10-15 | I193: 2018-10-21 | J193: =IF(AND(H193>='A - Contractor Summary'!$C$36,I193<='A - Contractor Summary'!$C$42),"Yes","No") -> No | K193: =VLOOKUP($C193,'C.1 - Rate Sheets'!H:I,2,FALSE) -> 17.6 | M193: 112 | BB193: 112 | BC193: 1971.2 | BD193: 1971.2 | BE193: 0 | BF193: 0 | BG193: 0
C194: Rope Rig | D194: 731 | E194: Vendor No 11 | F194: Martin | G194: 25-23092 | H194: 2018-10-15 | I194: 2018-10-21 | J194: =IF(AND(H194>='A - Contractor Summary'!$C$36,I194<='A - Contractor Summary'!$C$42),"Yes","No") -> No | K194: =VLOOKUP($C194,'C.1 - Rate Sheets'!H:I,2,FALSE) -> 25 | M194: 112 | BB194: 112 | BC194: 2800 | BD194: 2800 | BE194: 0 | BF194: 0 | BG194: 0
C195: Tension Trailer | D195: 730 | E195: Vendor No 11 | F195: Martin | G195: 25-23092 | H195: 2018-10-15 | I195: 2018-10-21 | J195: =IF(AND(H195>='A - Contractor Summary'!$C$36,I195<='A - Contractor Summary'!$C$42),"Yes","No") -> No | K195: =VLOOKUP($C195,'C.1 - Rate Sheets'!H:I,2,FALSE) -> 25 | M195: 112 | BB195: 112 | BC195: 2800 | BD195: 2800 | BE195: 0 | BF195: 0 | BG195: 0
C196: Crew Cab Pick-up | D196: 586 | E196: Vendor No 11 | F196: Brown | G196: 25-23093 | H196: 2018-10-15 | I196: 2018-10-21 | J196: =IF(AND(H196>='A - Contractor Summary'!$C$36,I196<='A - Contractor Summary'!$C$42),"Yes","No") -> No | K196: =VLOOKUP($C196,'C.1 - Rate Sheets'!H:I,2,FALSE) -> 24.31 | M196: 112 | BB196: 112 | BC196: 2722.72 | BD196: 2722.72 | BE196: 0 | BF196: 0 | BG196: 0
C197: Material Handler Bucket 57' | D197: 629 | E197: Vendor No 11 | F197: Brown | G197: 25-23093 | H197: 2018-10-15 | I197: 2018-10-21 | J197: =IF(AND(H197>='A - Contractor Summary'!$C$36,I197<='A - Contractor Summary'!$C$42),"Yes","No") -> No | K197: =VLOOKUP($C197,'C.1 - Rate Sheets'!H:I,2,FALSE) -> 47.36 | M197: 112 | BB197: 112 | BC197: 5304.32 | BD197: 5304.32 | BE197: 0 | BF197: 0 | BG197: 0
C198: Material Handler Bucket 57' | D198: 657 | E198: Vendor No 11 | F198: Brown | G198: 25-23093 | H198: 2018-10-15 | I198: 2018-10-21 | J198: =IF(AND(H198>='A - Contractor Summary'!$C$36,I198<='A - Contractor Summary'!$C$42),"Yes","No") -> No | K198: =VLOOKUP($C198,'C.1 - Rate Sheets'!H:I,2,FALSE) -> 47.36 | M198: 112 | BB198: 112 | BC198: 5304.32 | BD198: 5304.32 | BE198: 0 | BF198: 0 | BG198: 0
C199: Digger Truck | D199: 651 | E199: Vendor No 11 | F199: Brown | G199: 25-23093 | H199: 2018-10-15 | I199: 2018-10-21 | J199: =IF(AND(H199>='A - Contractor Summary'!$C$36,I199<='A - Contractor Summary'!$C$42),"Yes","No") -> No | K199: =VLOOKUP($C199,'C.1 - Rate Sheets'!H:I,2,FALSE) -> 47.36 | M199: 112 | BB199: 112 | BC199: 5304.32 | BD199: 5304.32 | BE199: 0 | BF199: 0 | BG199: 0
C200: Pole Trailer | D200: 660 | E200: Vendor No 11 | F200: Brown | G200: 25-23093 | H200: 2018-10-15 | I200: 2018-10-21 | J200: =IF(AND(H200>='A - Contractor Summary'!$C$36,I200<='A - Contractor Summary'!$C$42),"Yes","No") -> No | K200: =VLOOKUP($C200,'C.1 - Rate Sheets'!H:I,2,FALSE) -> 17.6 | M200: 112 | BB200: 112 | BC200: 1971.2 | BD200: 1971.2 | BE200: 0 | BF200: 0 | BG200: 0
C201: Back Yard Buggy | D201: 663 | E201: Vendor No 11 | F201: Brown | G201: 25-23093 | H201: 2018-10-15 | I201: 2018-10-21 | J201: =IF(AND(H201>='A - Contractor Summary'!$C$36,I201<='A - Contractor Summary'!$C$42),"Yes","No") -> No | K201: =VLOOKUP($C201,'C.1 - Rate Sheets'!H:I,2,FALSE) -> 45 | M201: 112 | BB201: 112 | BC201: 5040 | BD201: 5040 | BE201: 0 | BF201: 0 | BG201: 0
C202: Crew Cab Pick-up | D202: 575 | E202: Vendor No 11 | F202: Wyatt | G202: 25-23094 | H202: 2018-10-15 | I202: 2018-10-21 | J202: =IF(AND(H202>='A - Contractor Summary'!$C$36,I202<='A - Contractor Summary'!$C$42),"Yes","No") -> No | K202: =VLOOKUP($C202,'C.1 - Rate Sheets'!H:I,2,FALSE) -> 24.31 | M202: 48 | BB202: 48 | BC202: 1166.88 | BD202: 1166.88 | BE202: 0 | BF202: 0 | BG202: 0
C203: Material Handler Bucket 57' | D203: 671 | E203: Vendor No 11 | F203: Wyatt | G203: 25-23094 | H203: 2018-10-15 | I203: 2018-10-21 | J203: =IF(AND(H203>='A - Contractor Summary'!$C$36,I203<='A - Contractor Summary'!$C$42),"Yes","No") -> No | K203: =VLOOKUP($C203,'C.1 - Rate Sheets'!H:I,2,FALSE) -> 47.36 | M203: 48 | BB203: 48 | BC203: 2273.28 | BD203: 2273.28 | BE203: 0 | BF203: 0 | BG203: 0
C204: Material Handler Bucket 57' | D204: 557 | E204: Vendor No 11 | F204: Wyatt | G204: 25-23094 | H204: 2018-10-15 | I204: 2018-10-21 | J204: =IF(AND(H204>='A - Contractor Summary'!$C$36,I204<='A - Contractor Summary'!$C$42),"Yes","No") -> No | K204: =VLOOKUP($C204,'C.1 - Rate Sheets'!H:I,2,FALSE) -> 47.36 | M204: 48 | BB204: 48 | BC204: 2273.28 | BD204: 2273.28 | BE204: 0 | BF204: 0 | BG204: 0
C205: Digger Truck | D205: 535 | E205: Vendor No 11 | F205: Wyatt | G205: 25-23094 | H205: 2018-10-15 | I205: 2018-10-21 | J205: =IF(AND(H205>='A - Contractor Summary'!$C$36,I205<='A - Contractor Summary'!$C$42),"Yes","No") -> No | K205: =VLOOKUP($C205,'C.1 - Rate Sheets'!H:I,2,FALSE) -> 47.36 | M205: 48 | BB205: 48 | BC205: 2273.28 | BD205: 2273.28 | BE205: 0 | BF205: 0 | BG205: 0
C206: Pole Trailer | D206: 196 | E206: Vendor No 11 | F206: Wyatt | G206: 25-23094 | H206: 2018-10-15 | I206: 2018-10-21 | J206: =IF(AND(H206>='A - Contractor Summary'!$C$36,I206<='A - Contractor Summary'!$C$42),"Yes","No") -> No | K206: =VLOOKUP($C206,'C.1 - Rate Sheets'!H:I,2,FALSE) -> 17.6 | M206: 48 | BB206: 48 | BC206: 844.8 | BD206: 844.8 | BE206: 0 | BF206: 0 | BG206: 0
C207: Crew Cab Pick-up | D207: 506 | E207: Vendor No 11 | F207: Wyatt | G207: 25-23094 | H207: 2018-10-15 | I207: 2018-10-21 | J207: =IF(AND(H207>='A - Contractor Summary'!$C$36,I207<='A - Contractor Summary'!$C$42),"Yes","No") -> No | K207: =VLOOKUP($C207,'C.1 - Rate Sheets'!H:I,2,FALSE) -> 24.31 | M207: 48 | BB207: 48 | BC207: 1166.88 | BD207: 1166.88 | BE207: 0 | BF207: 0 | BG207: 0
C208: Crew Cab Pick-up | D208: 604 | E208: Vendor No 11 | F208: Arrington | G208: 25-23095 | H208: 2018-10-15 | I208: 2018-10-21 | J208: =IF(AND(H208>='A - Contractor Summary'!$C$36,I208<='A - Contractor Summary'!$C$42),"Yes","No") -> No | K208: =VLOOKUP($C208,'C.1 - Rate Sheets'!H:I,2,FALSE) -> 24.31 | M208: 112 | BB208: 112 | BC208: 2722.72 | BD208: 2722.72 | BE208: 0 | BF208: 0 | BG208: 0
... 1048 more rows

Sheet D - Lodging
B2: Lodging Charges
B4: Test Plan: (A) Obtain support of individual charges. (B) Enter Yes/No if receipt is itemized (C) Enter Yes/No if proof of payment has been provided. (D) Ensure charges fall between the dates the vendor was mobilized and the date they arrived. (E) Ensure charges are prior to the date the vendor arrived home or was released to another utility. (F) Ensure the location of stay was reasonable (G) Determine the amount(s) to be reviewed, allowed and/or disallowed. (H) For charges which required further review, document review (include why it was determined to be allowed/disallowed via a tickmark).
B8: Rx | C8: Recalculated.
B9: a | C9: Check figure should equal $0. Cell will appear yellow if discrepancies are noted.
C11: A | M11: Rx | N11: B | O11: C | P11: D | Q11: E | R11: F | S11: G | V11: H
B12: Support Reviewed | P12: Conclusion
B13: # | C13: Type of Support | D13: Support Identifier | E13: Crew (Inv #) | F13: Company | G13: Check In Date | H13: Person | I13: Hotel Name | J13: Location | K13: # of Rooms | L13: Total Invoice | M13: $ / Night | N13: Itemized Receipt | O13: Proof of Payment | P13: Reasonable based on Mobilization date(s) | Q13: Reasonable based on Demobilization date(s) | R13: Location Reasonable | S13: Conclusion | T13: $ Allowable Charge | U13: $ To Be Reviewed | V13: Reviewed - Allowable $ | W13: Reviewed - Unallowable $ | X13: Tickmark
B14: 1 | C14: Invoice | E14: 25-23205 | F14: Vendor No 11 | G14: 2018-11-15 | H14: Jonathan Baughman | I14: Comfort Inn | J14: Mariana FL | K14: 4 | L14: 334.52 | M14: =L14/K14 -> 83.63 | P14: =IF(AND(G14>='A - Contractor Summary'!$C$36,G14<='A - Contractor Summary'!$C$38),"Yes",IF(G14<'A - Contractor Summary'!$C$36,"No",IF(G14>'A - Contractor Summary'!$C$39,"",""))) -> No | Q14: =IF(OR(P14="Yes",P14="No")*AND(G14<'A - Contractor Summary'!$C$39),"",IF(AND(G14>'A - Contractor Summary'!$C$39,G14<'A - Contractor Summary'!$C$42),"Yes",IF(G14>'A - Contractor Summary'!$C$42,"No","Needs Review"))) ->  | S14: =IF(AND(R14="YES",O14="Yes",N14="Yes")*OR(P14="Yes",Q14="Yes"),"Yes",IF(OR(N14="No",O14="No",P14="No",Q14="No",R14="No"),"No","Needs Review")) -> No | T14: =+L14 -> 334.52 | U14: =IF(S14="Needs Review",L14,0) -> 0 | X14: Note: They missed to invoice $167.26
C15: Invoice | E15: 25-23205 | F15: Vendor No 11 | G15: 2018-11-13 | H15: Cole Wyatt | I15: Country Inn & Suites | J15: Conway AR | K15: 3 | L15: 247.44 | M15: 82.48 | P15: =IF(AND(G15>='A - Contractor Summary'!$C$36,G15<='A - Contractor Summary'!$C$38),"Yes",IF(G15<'A - Contractor Summary'!$C$36,"No",IF(G15>'A - Contractor Summary'!$C$39,"",""))) -> No | Q15: =IF(OR(P15="Yes",P15="No")*AND(G15<'A - Contractor Summary'!$C$39),"",IF(AND(G15>'A - Contractor Summary'!$C$39,G15<'A - Contractor Summary'!$C$42),"Yes",IF(G15>'A - Contractor Summary'!$C$42,"No","Needs Review"))) ->  | S15: No | T15: =+L15 -> 247.44 | U15: 0
E16: 25-23205 | F16: Vendor No 11 | G16: 2018-11-13 | H16: England | I16: Holiday Inn | J16: Lonoke AR | K16: 5 | L16: 686.95 | M16: 137.39 | P16: =IF(AND(G16>='A - Contractor Summary'!$C$36,G16<='A - Contractor Summary'!$C$38),"Yes",IF(G16<'A - Contractor Summary'!$C$36,"No",IF(G16>'A - Contractor Summary'!$C$39,"",""))) -> No | Q16: =IF(OR(P16="Yes",P16="No")*AND(G16<'A - Contractor Summary'!$C$39),"",IF(AND(G16>'A - Contractor Summary'!$C$39,G16<'A - Contractor Summary'!$C$42),"Yes",IF(G16>'A - Contractor Summary'!$C$42,"No","Needs Review"))) ->  | S16: No | T16: 686.95 | U16: 0
E17: 25-23205 | F17: Vendor No 11 | G17: 2018-11-15 | H17: Martin | I17: Comfort Inn | J17: Mariana FL | K17: 12 | L17: 1003.1 | M17: 83.59166667 | P17: =IF(AND(G17>='A - Contractor Summary'!$C$36,G17<='A - Contractor Summary'!$C$38),"Yes",IF(G17<'A - Contractor Summary'!$C$36,"No",IF(G17>'A - Contractor Summary'!$C$39,"",""))) -> No | Q17: =IF(OR(P17="Yes",P17="No")*AND(G17<'A - Contractor Summary'!$C$39),"",IF(AND(G17>'A - Contractor Summary'!$C$39,G17<'A - Contractor Summary'!$C$42),"Yes",IF(G17>'A - Contractor Summary'!$C$42,"No","Needs Review"))) ->  | S17: No | T17: 1003.1 | U17: 0
L18: =SUM(L14:L17) -> 2272.01 | T18: =IFERROR(SUM(T14:T17),0) -> 2272.01 | U18: =IFERROR(SUM(U14:U17),0) -> 0 | V18: =IFERROR(SUM(V14:V17),0) -> 0 | W18: =IFERROR(SUM(W14:W17),0) -> 0 | X18: =U18-V18-W18 -> 0 | Y18: check (a)
B21: Tickmark Explanation: | D21: 1 Receipts provided
B22: 1
B23: 2
B24: 3
B25: 4

Sheet E - Fuel
B2: Fuel Charges
B4: Test Plan: (A) Obtain support of individual charges. (B) Enter Yes/No if receipt is itemized (C) Enter Yes/No if proof of payment has been provided. (D) Ensure charges fall between the dates the vendor was mobilized and the date they arrived. (E) Ensure charges are prior to the date the vendor arrived home or was released to another utility. (F) Ensure the location of charge was reasonable (G) Determine the amount(s) to be reviewed, allowed and/or disallowed. (H) For charges which required further review, document review (include why it was determined to be allowed/disallowed via a tickmark).
P5: No Fuel Charges
B9: a | C9: Check figure should equal $0. Cell will appear yellow if discrepancies are noted.
C11: A | K11: B | L11: C | M11: D | N11: E | O11: F | P11: G | S11: H
B12: Support Reviewed | M12: Conclusions
B13: # | C13: Type of Support | D13: Support Identifier | E13: Company | F13: Date | G13: Person | H13: Name | I13: Location | J13: Total Charge | K13: Itemized Receipt | L13: Proof of Payment | M13: Reasonable based on Mobilization date(s) | N13: Reasonable based on Demobilization date(s) | O13: Locations Reasonable | P13: Conclusion | Q13: $ Allowable Charge | R13: $ To Be Reviewed | S13: Reviewed - Allowable Charge | T13: Reviewed - Unallowable Charge | U13: Tickmarks
B14: 1 | C14: Receipt | D14: 25-23066 | E14: Vendor No 11 | F14: 2018-10-14 | G14: Dewayne Broom | I14: Quincy FL | J14: 29 | M14: =IF(AND(F14>='A - Contractor Summary'!$C$36,F14<='A - Contractor Summary'!$C$38),"Yes",IF(F14<'A - Contractor Summary'!$C$36,"No",IF(F14>'A - Contractor Summary'!$C$39,"",""))) -> No | N14: =IF(OR(M14="Yes",M14="No")*AND(F14<'A - Contractor Summary'!$C$39),"",IF(AND(F14>'A - Contractor Summary'!$C$39,F14<'A - Contractor Summary'!$C$42),"Yes",IF(F14>'A - Contractor Summary'!$C$42,"No","Needs Review"))) ->  | P14: =IF(AND(O14="Yes",K14="Yes",L14="Yes")*OR(N14="Yes",M14="Yes"),"Yes",IF(OR(K14="No",M14="No",N14="No",O14="No",L14="No"),"No","Needs Review")) -> No | Q14: =+J14 -> 29 | R14: =IF(P14="Needs Review",J14,0) -> 0 | U14: 1
B15: 2 | C15: Receipt | D15: 25-23067 | E15: Vendor No 11 | F15: 2018-10-14 | G15: Curtis Chisholm | I15: Marianna FL | J15: 44 | M15: =IF(AND(F15>='A - Contractor Summary'!$C$36,F15<='A - Contractor Summary'!$C$38),"Yes",IF(F15<'A - Contractor Summary'!$C$36,"No",IF(F15>'A - Contractor Summary'!$C$39,"",""))) -> No | N15: =IF(OR(M15="Yes",M15="No")*AND(F15<'A - Contractor Summary'!$C$39),"",IF(AND(F15>'A - Contractor Summary'!$C$39,F15<'A - Contractor Summary'!$C$42),"Yes",IF(F15>'A - Contractor Summary'!$C$42,"No","Needs Review"))) ->  | P15: No | Q15: =+J15 -> 44 | R15: 0 | U15: 1
B16: 3 | C16: Receipt | D16: 25-23072 | E16: Vendor No 11 | F16: 2018-10-14 | G16: Johnny Martin | I16: Defuniak Springs FL | J16: 71.47 | M16: =IF(AND(F16>='A - Contractor Summary'!$C$36,F16<='A - Contractor Summary'!$C$38),"Yes",IF(F16<'A - Contractor Summary'!$C$36,"No",IF(F16>'A - Contractor Summary'!$C$39,"",""))) -> No | N16: =IF(OR(M16="Yes",M16="No")*AND(F16<'A - Contractor Summary'!$C$39),"",IF(AND(F16>'A - Contractor Summary'!$C$39,F16<'A - Contractor Summary'!$C$42),"Yes",IF(F16>'A - Contractor Summary'!$C$42,"No","Needs Review"))) ->  | P16: No | Q16: 71.47 | R16: 0 | U16: 1
B17: 4 | C17: Receipt | D17: 25-23076 | E17: Vendor No 11 | F17: 2018-10-14 | G17: Cliff Johnson | I17: Marianna FL | J17: 50 | M17: =IF(AND(F17>='A - Contractor Summary'!$C$36,F17<='A - Contractor Summary'!$C$38),"Yes",IF(F17<'A - Contractor Summary'!$C$36,"No",IF(F17>'A - Contractor Summary'!$C$39,"",""))) -> No | N17: =IF(OR(M17="Yes",M17="No")*AND(F17<'A - Contractor Summary'!$C$39),"",IF(AND(F17>'A - Contractor Summary'!$C$39,F17<'A - Contractor Summary'!$C$42),"Yes",IF(F17>'A - Contractor Summary'!$C$42,"No","Needs Review"))) ->  | P17: No | Q17: 50 | R17: 0 | U17: 1
B18: 5 | C18: Receipt | D18: 25-23081 | E18: Vendor No 11 | F18: 2018-10-14 | G18: Richie Culpepper | I18: Cottondale FL | J18: 192.88 | M18: =IF(AND(F18>='A - Contractor Summary'!$C$36,F18<='A - Contractor Summary'!$C$38),"Yes",IF(F18<'A - Contractor Summary'!$C$36,"No",IF(F18>'A - Contractor Summary'!$C$39,"",""))) -> No | N18: =IF(OR(M18="Yes",M18="No")*AND(F18<'A - Contractor Summary'!$C$39),"",IF(AND(F18>'A - Contractor Summary'!$C$39,F18<'A - Contractor Summary'!$C$42),"Yes",IF(F18>'A - Contractor Summary'!$C$42,"No","Needs Review"))) ->  | P18: No | Q18: 192.88 | R18: 0 | U18: 1
B19: 6 | C19: Receipt | D19: 25-23081 | E19: Vendor No 11 | F19: 2018-10-14 | G19: Richie Culpepper | I19: Cottondale FL | J19: 27.5 | M19: =IF(AND(F19>='A - Contractor Summary'!$C$36,F19<='A - Contractor Summary'!$C$38),"Yes",IF(F19<'A - Contractor Summary'!$C$36,"No",IF(F19>'A - Contractor Summary'!$C$39,"",""))) -> No | N19: =IF(OR(M19="Yes",M19="No")*AND(F19<'A - Contractor Summary'!$C$39),"",IF(AND(F19>'A - Contractor Summary'!$C$39,F19<'A - Contractor Summary'!$C$42),"Yes",IF(F19>'A - Contractor Summary'!$C$42,"No","Needs Review"))) ->  | P19: No | Q19: 27.5 | R19: 0 | U19: 1
B20: 7 | C20: Receipt | D20: 25-23078 | E20: Vendor No 11 | F20: 2018-10-14 | G20: Darvin Grant | I20: Marianna FL | J20: 299.32 | M20: =IF(AND(F20>='A - Contractor Summary'!$C$36,F20<='A - Contractor Summary'!$C$38),"Yes",IF(F20<'A - Contractor Summary'!$C$36,"No",IF(F20>'A - Contractor Summary'!$C$39,"",""))) -> No | N20: =IF(OR(M20="Yes",M20="No")*AND(F20<'A - Contractor Summary'!$C$39),"",IF(AND(F20>'A - Contractor Summary'!$C$39,F20<'A - Contractor Summary'!$C$42),"Yes",IF(F20>'A - Contractor Summary'!$C$42,"No","Needs Review"))) ->  | P20: No | Q20: 299.32 | R20: 0 | U20: 1
B21: 8 | C21: Receipt | D21: 25-23078 | E21: Vendor No 11 | F21: 2018-10-14 | G21: Darvin Grant | I21: Marianna FL | J21: 70.95 | M21: =IF(AND(F21>='A - Contractor Summary'!$C$36,F21<='A - Contractor Summary'!$C$38),"Yes",IF(F21<'A - Contractor Summary'!$C$36,"No",IF(F21>'A - Contractor Summary'!$C$39,"",""))) -> No | N21: =IF(OR(M21="Yes",M21="No")*AND(F21<'A - Contractor Summary'!$C$39),"",IF(AND(F21>'A - Contractor Summary'!$C$39,F21<'A - Contractor Summary'!$C$42),"Yes",IF(F21>'A - Contractor Summary'!$C$42,"No","Needs Review"))) ->  | P21: No | Q21: 70.95 | R21: 0 | U21: 1
B22: 9 | C22: Receipt | D22: 25-23085 | E22: Vendor No 11 | F22: 2018-10-15 | G22: Cole Robbins | I22: Cottondale FL | J22: 42.19 | M22: =IF(AND(F22>='A - Contractor Summary'!$C$36,F22<='A - Contractor Summary'!$C$38),"Yes",IF(F22<'A - Contractor Summary'!$C$36,"No",IF(F22>'A - Contractor Summary'!$C$39,"",""))) -> No | N22: =IF(OR(M22="Yes",M22="No")*AND(F22<'A - Contractor Summary'!$C$39),"",IF(AND(F22>'A - Contractor Summary'!$C$39,F22<'A - Contractor Summary'!$C$42),"Yes",IF(F22>'A - Contractor Summary'!$C$42,"No","Needs Review"))) ->  | P22: No | Q22: 42.19 | R22: 0 | U22: 1
B23: 10 | C23: Receipt | D23: 25-23085 | E23: Vendor No 11 | F23: 2018-10-15 | G23: Jonathan Baughman | I23: Dothan AL | J23: 76.6 | M23: =IF(AND(F23>='A - Contractor Summary'!$C$36,F23<='A - Contractor Summary'!$C$38),"Yes",IF(F23<'A - Contractor Summary'!$C$36,"No",IF(F23>'A - Contractor Summary'!$C$39,"",""))) -> No | N23: =IF(OR(M23="Yes",M23="No")*AND(F23<'A - Contractor Summary'!$C$39),"",IF(AND(F23>'A - Contractor Summary'!$C$39,F23<'A - Contractor Summary'!$C$42),"Yes",IF(F23>'A - Contractor Summary'!$C$42,"No","Needs Review"))) ->  | P23: No | Q23: 76.6 | R23: 0 | U23: 1
B24: 11 | C24: Receipt | D24: 25-23086 | E24: Vendor No 11 | F24: 2018-10-15 | G24: Greg Mason | I24: Cottondale FL | J24: 64.17 | M24: =IF(AND(F24>='A - Contractor Summary'!$C$36,F24<='A - Contractor Summary'!$C$38),"Yes",IF(F24<'A - Contractor Summary'!$C$36,"No",IF(F24>'A - Contractor Summary'!$C$39,"",""))) -> No | N24: =IF(OR(M24="Yes",M24="No")*AND(F24<'A - Contractor Summary'!$C$39),"",IF(AND(F24>'A - Contractor Summary'!$C$39,F24<'A - Contractor Summary'!$C$42),"Yes",IF(F24>'A - Contractor Summary'!$C$42,"No","Needs Review"))) ->  | P24: No | Q24: 64.17 | R24: 0 | U24: 1
B25: 12 | C25: Receipt | D25: 25-23086 | E25: Vendor No 11 | F25: 2018-10-15 | G25: Greg Mason | I25: Cottondale FL | J25: 125 | M25: =IF(AND(F25>='A - Contractor Summary'!$C$36,F25<='A - Contractor Summary'!$C$38),"Yes",IF(F25<'A - Contractor Summary'!$C$36,"No",IF(F25>'A - Contractor Summary'!$C$39,"",""))) -> No | N25: =IF(OR(M25="Yes",M25="No")*AND(F25<'A - Contractor Summary'!$C$39),"",IF(AND(F25>'A - Contractor Summary'!$C$39,F25<'A - Contractor Summary'!$C$42),"Yes",IF(F25>'A - Contractor Summary'!$C$42,"No","Needs Review"))) ->  | P25: No | Q25: 125 | R25: 0 | U25: 1
B26: 13 | C26: Receipt | D26: 25-23086 | E26: Vendor No 11 | F26: 2018-10-15 | G26: Greg Mason | I26: Cottondale FL | J26: 71.97 | M26: =IF(AND(F26>='A - Contractor Summary'!$C$36,F26<='A - Contractor Summary'!$C$38),"Yes",IF(F26<'A - Contractor Summary'!$C$36,"No",IF(F26>'A - Contractor Summary'!$C$39,"",""))) -> No | N26: =IF(OR(M26="Yes",M26="No")*AND(F26<'A - Contractor Summary'!$C$39),"",IF(AND(F26>'A - Contractor Summary'!$C$39,F26<'A - Contractor Summary'!$C$42),"Yes",IF(F26>'A - Contractor Summary'!$C$42,"No","Needs Review"))) ->  | P26: No | Q26: 71.97 | R26: 0 | U26: 1
B27: 14 | C27: Receipt | D27: 25-23086 | E27: Vendor No 11 | F27: 2018-10-15 | G27: Greg Mason | I27: Defuniak Springs FL | J27: 150 | M27: =IF(AND(F27>='A - Contractor Summary'!$C$36,F27<='A - Contractor Summary'!$C$38),"Yes",IF(F27<'A - Contractor Summary'!$C$36,"No",IF(F27>'A - Contractor Summary'!$C$39,"",""))) -> No | N27: =IF(OR(M27="Yes",M27="No")*AND(F27<'A - Contractor Summary'!$C$39),"",IF(AND(F27>'A - Contractor Summary'!$C$39,F27<'A - Contractor Summary'!$C$42),"Yes",IF(F27>'A - Contractor Summary'!$C$42,"No","Needs Review"))) ->  | P27: No | Q27: 150 | R27: 0 | U27: 1
B28: 15 | C28: Receipt | D28: 25-23086 | E28: Vendor No 11 | F28: 2018-10-15 | G28: Greg Mason | I28: Cottondale FL | J28: 100 | M28: =IF(AND(F28>='A - Contractor Summary'!$C$36,F28<='A - Contractor Summary'!$C$38),"Yes",IF(F28<'A - Contractor Summary'!$C$36,"No",IF(F28>'A - Contractor Summary'!$C$39,"",""))) -> No | N28: =IF(OR(M28="Yes",M28="No")*AND(F28<'A - Contractor Summary'!$C$39),"",IF(AND(F28>'A - Contractor Summary'!$C$39,F28<'A - Contractor Summary'!$C$42),"Yes",IF(F28>'A - Contractor Summary'!$C$42,"No","Needs Review"))) ->  | P28: No | Q28: 100 | R28: 0 | U28: 1
B29: 16 | C29: Receipt | D29: 25-23089 | E29: Vendor No 11 | F29: 2018-10-15 | G29: Eugene Breland | I29: Bonifay FL | J29: 150 | M29: =IF(AND(F29>='A - Contractor Summary'!$C$36,F29<='A - Contractor Summary'!$C$38),"Yes",IF(F29<'A - Contractor Summary'!$C$36,"No",IF(F29>'A - Contractor Summary'!$C$39,"",""))) -> No | N29: =IF(OR(M29="Yes",M29="No")*AND(F29<'A - Contractor Summary'!$C$39),"",IF(AND(F29>'A - Contractor Summary'!$C$39,F29<'A - Contractor Summary'!$C$42),"Yes",IF(F29>'A - Contractor Summary'!$C$42,"No","Needs Review"))) ->  | P29: No | Q29: 150 | R29: 0 | U29: 1
B30: 17 | C30: Receipt | D30: 25-23089 | E30: Vendor No 11 | F30: 2018-10-15 | G30: Eugene Breland | I30: Bonifay FL | J30: 66.49 | M30: =IF(AND(F30>='A - Contractor Summary'!$C$36,F30<='A - Contractor Summary'!$C$38),"Yes",IF(F30<'A - Contractor Summary'!$C$36,"No",IF(F30>'A - Contractor Summary'!$C$39,"",""))) -> No | Q30: 66.49 | U30: 1
B31: 18 | C31: Receipt | D31: 25-23089 | E31: Vendor No 11 | F31: 2018-10-15 | G31: Eugene Breland | I31: Bonifay FL | J31: 62.7 | M31: =IF(AND(F31>='A - Contractor Summary'!$C$36,F31<='A - Contractor Summary'!$C$38),"Yes",IF(F31<'A - Contractor Summary'!$C$36,"No",IF(F31>'A - Contractor Summary'!$C$39,"",""))) -> No | Q31: 62.7 | U31: 1
B32: 19 | C32: Receipt | D32: 25-23102 | E32: Vendor No 11 | F32: 2018-10-15 | G32: Richie Culpepper | I32: Cottondale FL | J32: 55 | M32: =IF(AND(F32>='A - Contractor Summary'!$C$36,F32<='A - Contractor Summary'!$C$38),"Yes",IF(F32<'A - Contractor Summary'!$C$36,"No",IF(F32>'A - Contractor Summary'!$C$39,"",""))) -> No | Q32: 55 | U32: 1
B33: 20 | C33: Receipt | D33: 25-23205 | E33: Vendor No 11 | F33: 2018-11-14 | G33: Tim Eubanks | H33: Waites | I33: Hattiesburg MS | J33: 15 | M33: =IF(AND(F33>='A - Contractor Summary'!$C$36,F33<='A - Contractor Summary'!$C$38),"Yes",IF(F33<'A - Contractor Summary'!$C$36,"No",IF(F33>'A - Contractor Summary'!$C$39,"",""))) -> No | Q33: 15 | U33: 1
B34: 21 | C34: Receipt | D34: 25-23205 | E34: Vendor No 11 | F34: 2018-11-14 | G34: Adam Waites | H34: Waites | I34: Marianna FL | J34: 157.92 | M34: =IF(AND(F34>='A - Contractor Summary'!$C$36,F34<='A - Contractor Summary'!$C$38),"Yes",IF(F34<'A - Contractor Summary'!$C$36,"No",IF(F34>'A - Contractor Summary'!$C$39,"",""))) -> No | Q34: 157.92 | U34: 1
B35: 22 | C35: Receipt | D35: 25-23205 | E35: Vendor No 11 | F35: 2018-11-14 | G35: Adam Waites | H35: Waites | I35: Marianna FL | J35: 83.94 | M35: =IF(AND(F35>='A - Contractor Summary'!$C$36,F35<='A - Contractor Summary'!$C$38),"Yes",IF(F35<'A - Contractor Summary'!$C$36,"No",IF(F35>'A - Contractor Summary'!$C$39,"",""))) -> No | Q35: 83.94 | U35: 1
B36: 23 | C36: Receipt | D36: 25-23205 | E36: Vendor No 11 | F36: 2018-11-14 | G36: Adam Waites | H36: Waites | I36: Marianna FL | J36: 56 | M36: =IF(AND(F36>='A - Contractor Summary'!$C$36,F36<='A - Contractor Summary'!$C$38),"Yes",IF(F36<'A - Contractor Summary'!$C$36,"No",IF(F36>'A - Contractor Summary'!$C$39,"",""))) -> No | Q36: 56 | U36: 1
B37: 24 | C37: Receipt | D37: 25-23205 | E37: Vendor No 11 | F37: 2018-11-14 | G37: Adam Waites | H37: Waites | I37: Marianna FL | J37: 48.9 | M37: =IF(AND(F37>='A - Contractor Summary'!$C$36,F37<='A - Contractor Summary'!$C$38),"Yes",IF(F37<'A - Contractor Summary'!$C$36,"No",IF(F37>'A - Contractor Summary'!$C$39,"",""))) -> No | Q37: 48.9 | U37: 1
B38: 25 | C38: Receipt | D38: 25-23205 | E38: Vendor No 11 | F38: 2018-11-14 | G38: Adam Waites | H38: Waites | I38: Daphne AL | J38: 106.04 | M38: =IF(AND(F38>='A - Contractor Summary'!$C$36,F38<='A - Contractor Summary'!$C$38),"Yes",IF(F38<'A - Contractor Summary'!$C$36,"No",IF(F38>'A - Contractor Summary'!$C$39,"",""))) -> No | Q38: 106.04 | U38: 1
B39: 26 | C39: Receipt | D39: 25-23205 | E39: Vendor No 11 | F39: 2018-11-14 | G39: Adam Waites | H39: Waites | I39: Daphne AL | J39: 33.74 | M39: =IF(AND(F39>='A - Contractor Summary'!$C$36,F39<='A - Contractor Summary'!$C$38),"Yes",IF(F39<'A - Contractor Summary'!$C$36,"No",IF(F39>'A - Contractor Summary'!$C$39,"",""))) -> No | Q39: 33.74 | U39: 1
B40: 27 | C40: Receipt | D40: 25-23205 | E40: Vendor No 11 | F40: 2018-11-14 | G40: Adam Waites | H40: Waites | I40: Daphne AL | J40: 95 | M40: =IF(AND(F40>='A - Contractor Summary'!$C$36,F40<='A - Contractor Summary'!$C$38),"Yes",IF(F40<'A - Contractor Summary'!$C$36,"No",IF(F40>'A - Contractor Summary'!$C$39,"",""))) -> No | Q40: 95 | U40: 1
B41: 28 | C41: Receipt | D41: 25-23205 | E41: Vendor No 11 | F41: 2018-11-14 | G41: Adam Waites | H41: Waites | I41: Daphne AL | J41: 95 | M41: =IF(AND(F41>='A - Contractor Summary'!$C$36,F41<='A - Contractor Summary'!$C$38),"Yes",IF(F41<'A - Contractor Summary'!$C$36,"No",IF(F41>'A - Contractor Summary'!$C$39,"",""))) -> No | Q41: 95 | U41: 1
B42: 29 | C42: Receipt | D42: 25-23205 | E42: Vendor No 11 | F42: 2018-11-14 | G42: Billy Hayes | H42: Hayes | I42: Marianna FL | J42: 45.82 | M42: =IF(AND(F42>='A - Contractor Summary'!$C$36,F42<='A - Contractor Summary'!$C$38),"Yes",IF(F42<'A - Contractor Summary'!$C$36,"No",IF(F42>'A - Contractor Summary'!$C$39,"",""))) -> No | Q42: 45.82 | U42: 1
B43: 30 | C43: Receipt | D43: 25-23205 | E43: Vendor No 11 | F43: 2018-11-15 | G43: Jonathan Baughman | H43: Barnett | I43: Marianna FL | J43: 52.76 | M43: =IF(AND(F43>='A - Contractor Summary'!$C$36,F43<='A - Contractor Summary'!$C$38),"Yes",IF(F43<'A - Contractor Summary'!$C$36,"No",IF(F43>'A - Contractor Summary'!$C$39,"",""))) -> No | Q43: 52.76 | U43: 1
B44: 31 | C44: Receipt | D44: 25-23205 | E44: Vendor No 11 | F44: 2018-11-15 | G44: Jonathan Baughman | H44: Barnett | I44: Moss Point MS | J44: 82.28 | M44: =IF(AND(F44>='A - Contractor Summary'!$C$36,F44<='A - Contractor Summary'!$C$38),"Yes",IF(F44<'A - Contractor Summary'!$C$36,"No",IF(F44>'A - Contractor Summary'!$C$39,"",""))) -> No | Q44: 82.28 | U44: 1
B45: 32 | C45: Receipt | D45: 25-23205 | E45: Vendor No 11 | F45: 2018-11-18 | G45: Jonathan Culpepper | H45: Barnett | I45: Robertsdale AL | J45: 97.84 | M45: =IF(AND(F45>='A - Contractor Summary'!$C$36,F45<='A - Contractor Summary'!$C$38),"Yes",IF(F45<'A - Contractor Summary'!$C$36,"No",IF(F45>'A - Contractor Summary'!$C$39,"",""))) -> No | Q45: 97.84 | U45: 1
B46: 33 | C46: Receipt | D46: 25-23205 | E46: Vendor No 11 | F46: 2018-11-18 | G46: Jonathan Culpepper | H46: Barnett | I46: Cottondale FL | J46: 18.44 | M46: =IF(AND(F46>='A - Contractor Summary'!$C$36,F46<='A - Contractor Summary'!$C$38),"Yes",IF(F46<'A - Contractor Summary'!$C$36,"No",IF(F46>'A - Contractor Summary'!$C$39,"",""))) -> No | Q46: 18.44 | U46: 1
B47: 34 | C47: Receipt | D47: 25-23205 | E47: Vendor No 11 | F47: 2018-11-15 | G47: Jonathan Culpepper | H47: Barnett | I47: Robertsdale AL | J47: 100 | M47: =IF(AND(F47>='A - Contractor Summary'!$C$36,F47<='A - Contractor Summary'!$C$38),"Yes",IF(F47<'A - Contractor Summary'!$C$36,"No",IF(F47>'A - Contractor Summary'!$C$39,"",""))) -> No | Q47: 100 | U47: 1
B48: 35 | C48: Receipt | D48: 25-23205 | E48: Vendor No 11 | F48: 2018-11-15 | G48: Dewayne Broom | H48: Barnett | I48: Cottondale FL | J48: 74 | M48: =IF(AND(F48>='A - Contractor Summary'!$C$36,F48<='A - Contractor Summary'!$C$38),"Yes",IF(F48<'A - Contractor Summary'!$C$36,"No",IF(F48>'A - Contractor Summary'!$C$39,"",""))) -> No | Q48: 74 | U48: 1
B49: 36 | C49: Receipt | D49: 25-23205 | E49: Vendor No 11 | F49: 2018-11-15 | G49: Dewayne Broom | H49: Barnett | I49: Marianna FL | J49: 65 | M49: =IF(AND(F49>='A - Contractor Summary'!$C$36,F49<='A - Contractor Summary'!$C$38),"Yes",IF(F49<'A - Contractor Summary'!$C$36,"No",IF(F49>'A - Contractor Summary'!$C$39,"",""))) -> No | Q49: 65 | U49: 1
B50: 37 | C50: Receipt | D50: 25-23205 | E50: Vendor No 11 | F50: 2018-11-14 | G50: Brian Barnett | H50: Barnett | I50: Marianna FL | J50: 85.51 | M50: =IF(AND(F50>='A - Contractor Summary'!$C$36,F50<='A - Contractor Summary'!$C$38),"Yes",IF(F50<'A - Contractor Summary'!$C$36,"No",IF(F50>'A - Contractor Summary'!$C$39,"",""))) -> No | Q50: 85.51 | U50: 1
B51: 38 | C51: Receipt | D51: 25-23205 | E51: Vendor No 11 | F51: 2018-11-17 | G51: Brian Barnett | H51: Barnett | I51: Marianna FL | J51: 100 | M51: =IF(AND(F51>='A - Contractor Summary'!$C$36,F51<='A - Contractor Summary'!$C$38),"Yes",IF(F51<'A - Contractor Summary'!$C$36,"No",IF(F51>'A - Contractor Summary'!$C$39,"",""))) -> No | Q51: 100 | U51: 1
B52: 39 | C52: Receipt | D52: 25-23205 | E52: Vendor No 11 | F52: 2018-11-18 | G52: Brian Barnett | H52: Barnett | I52: Loxley AL | J52: 98 | M52: =IF(AND(F52>='A - Contractor Summary'!$C$36,F52<='A - Contractor Summary'!$C$38),"Yes",IF(F52<'A - Contractor Summary'!$C$36,"No",IF(F52>'A - Contractor Summary'!$C$39,"",""))) -> No | Q52: 98 | U52: 1
B53: 40 | C53: Receipt | D53: 25-23205 | E53: Vendor No 11 | F53: 2018-11-18 | G53: Payton Miller | H53: Barnett | I53: Lumberton MS | J53: 57 | M53: =IF(AND(F53>='A - Contractor Summary'!$C$36,F53<='A - Contractor Summary'!$C$38),"Yes",IF(F53<'A - Contractor Summary'!$C$36,"No",IF(F53>'A - Contractor Summary'!$C$39,"",""))) -> No | Q53: 57 | U53: 1
B54: 41 | C54: Receipt | D54: 25-23205 | E54: Vendor No 11 | F54: 2018-11-18 | G54: Payton Miller | H54: Barnett | I54: Robertsdale AL | J54: 75 | M54: =IF(AND(F54>='A - Contractor Summary'!$C$36,F54<='A - Contractor Summary'!$C$38),"Yes",IF(F54<'A - Contractor Summary'!$C$36,"No",IF(F54>'A - Contractor Summary'!$C$39,"",""))) -> No | Q54: 75 | U54: 1
B55: 42 | C55: Receipt | D55: 25-23205 | E55: Vendor No 11 | F55: 2018-11-18 | G55: Payton Miller | H55: Barnett | I55: Moss Point MS | J55: 74.25 | M55: =IF(AND(F55>='A - Contractor Summary'!$C$36,F55<='A - Contractor Summary'!$C$38),"Yes",IF(F55<'A - Contractor Summary'!$C$36,"No",IF(F55>'A - Contractor Summary'!$C$39,"",""))) -> No | Q55: 74.25 | U55: 1
B56: 43 | C56: Receipt | D56: 25-23205 | E56: Vendor No 11 | F56: 2018-11-17 | G56: Payton Miller | H56: Barnett | I56: Marianna FL | J56: 82 | M56: =IF(AND(F56>='A - Contractor Summary'!$C$36,F56<='A - Contractor Summary'!$C$38),"Yes",IF(F56<'A - Contractor Summary'!$C$36,"No",IF(F56>'A - Contractor Summary'!$C$39,"",""))) -> No | Q56: 82 | U56: 1
B57: 44 | C57: Receipt | D57: 25-23205 | E57: Vendor No 11 | F57: 2018-11-16 | G57: Payton Miller | H57: Barnett | I57: Marianna FL | J57: 100 | M57: =IF(AND(F57>='A - Contractor Summary'!$C$36,F57<='A - Contractor Summary'!$C$38),"Yes",IF(F57<'A - Contractor Summary'!$C$36,"No",IF(F57>'A - Contractor Summary'!$C$39,"",""))) -> No | Q57: 100 | U57: 1
B58: 45 | C58: Receipt | D58: 25-23205 | E58: Vendor No 11 | F58: 2018-11-16 | G58: Payton Miller | H58: Barnett | I58: Marianna FL | J58: 100 | M58: =IF(AND(F58>='A - Contractor Summary'!$C$36,F58<='A - Contractor Summary'!$C$38),"Yes",IF(F58<'A - Contractor Summary'!$C$36,"No",IF(F58>'A - Contractor Summary'!$C$39,"",""))) -> No | Q58: 100 | U58: 1
B59: 46 | C59: Receipt | D59: 25-23205 | E59: Vendor No 11 | F59: 2018-11-18 | G59: Cole Robbins | H59: Barnett | I59: Loxley AL | J59: 66.94 | M59: =IF(AND(F59>='A - Contractor Summary'!$C$36,F59<='A - Contractor Summary'!$C$38),"Yes",IF(F59<'A - Contractor Summary'!$C$36,"No",IF(F59>'A - Contractor Summary'!$C$39,"",""))) -> No | Q59: 66.94 | U59: 1
B60: 47 | C60: Receipt | D60: 25-23205 | E60: Vendor No 11 | F60: 2018-11-14 | G60: Cole Robbins | H60: Barnett | I60: Marianna FL | J60: 77.75 | M60: =IF(AND(F60>='A - Contractor Summary'!$C$36,F60<='A - Contractor Summary'!$C$38),"Yes",IF(F60<'A - Contractor Summary'!$C$36,"No",IF(F60>'A - Contractor Summary'!$C$39,"",""))) -> No | Q60: 77.75 | U60: 1
B61: 48 | C61: Receipt | D61: 25-23205 | E61: Vendor No 11 | F61: 2018-11-15 | G61: Brian Chambley | H61: Chambley | I61: Marianna FL | J61: 71.3 | M61: =IF(AND(F61>='A - Contractor Summary'!$C$36,F61<='A - Contractor Summary'!$C$38),"Yes",IF(F61<'A - Contractor Summary'!$C$36,"No",IF(F61>'A - Contractor Summary'!$C$39,"",""))) -> No | Q61: 71.3 | U61: 1
B62: 49 | C62: Receipt | D62: 25-23205 | E62: Vendor No 11 | F62: 2018-11-17 | G62: Brian Chambley | H62: Chambley | I62: Marianna FL | J62: 330 | M62: =IF(AND(F62>='A - Contractor Summary'!$C$36,F62<='A - Contractor Summary'!$C$38),"Yes",IF(F62<'A - Contractor Summary'!$C$36,"No",IF(F62>'A - Contractor Summary'!$C$39,"",""))) -> No | Q62: 330 | U62: 1
B63: 50 | C63: Receipt | D63: 25-23205 | E63: Vendor No 11 | F63: 2018-11-17 | G63: Brian Chambley | H63: Chambley | I63: Marianna FL | J63: 72 | M63: =IF(AND(F63>='A - Contractor Summary'!$C$36,F63<='A - Contractor Summary'!$C$38),"Yes",IF(F63<'A - Contractor Summary'!$C$36,"No",IF(F63>'A - Contractor Summary'!$C$39,"",""))) -> No | Q63: 72 | U63: 1
B64: 51 | C64: Receipt | D64: 25-23205 | E64: Vendor No 11 | F64: 2018-11-18 | H64: Chambley | I64: Loxley AL | J64: 92.18 | M64: =IF(AND(F64>='A - Contractor Summary'!$C$36,F64<='A - Contractor Summary'!$C$38),"Yes",IF(F64<'A - Contractor Summary'!$C$36,"No",IF(F64>'A - Contractor Summary'!$C$39,"",""))) -> No | Q64: 92.18 | U64: 1
B65: 52 | C65: Receipt | D65: 25-23205 | E65: Vendor No 11 | F65: 2018-11-18 | H65: Chambley | I65: Loxley AL | J65: 100 | M65: =IF(AND(F65>='A - Contractor Summary'!$C$36,F65<='A - Contractor Summary'!$C$38),"Yes",IF(F65<'A - Contractor Summary'!$C$36,"No",IF(F65>'A - Contractor Summary'!$C$39,"",""))) -> No | Q65: 100 | U65: 1
B66: 53 | C66: Receipt | D66: 25-23205 | E66: Vendor No 11 | F66: 2018-11-18 | H66: Chambley | I66: Loxley AL | J66: 100 | M66: =IF(AND(F66>='A - Contractor Summary'!$C$36,F66<='A - Contractor Summary'!$C$38),"Yes",IF(F66<'A - Contractor Summary'!$C$36,"No",IF(F66>'A - Contractor Summary'!$C$39,"",""))) -> No | Q66: 100 | U66: 1
B67: 54 | C67: Receipt | D67: 25-23205 | E67: Vendor No 11 | F67: 2018-11-13 | G67: James A. | H67: Johnson | I67: Ducedale MS | J67: 273.47 | M67: =IF(AND(F67>='A - Contractor Summary'!$C$36,F67<='A - Contractor Summary'!$C$38),"Yes",IF(F67<'A - Contractor Summary'!$C$36,"No",IF(F67>'A - Contractor Summary'!$C$39,"",""))) -> No | Q67: 273.47 | U67: 1
B68: 55 | C68: Receipt | D68: 25-23205 | E68: Vendor No 11 | F68: 2018-11-13 | G68: James A. | H68: Johnson | I68: Defuniak Springs FL | J68: 219.25 | M68: =IF(AND(F68>='A - Contractor Summary'!$C$36,F68<='A - Contractor Summary'!$C$38),"Yes",IF(F68<'A - Contractor Summary'!$C$36,"No",IF(F68>'A - Contractor Summary'!$C$39,"",""))) -> No | Q68: 219.25 | U68: 1
B69: 56 | C69: Receipt | D69: 25-23205 | E69: Vendor No 11 | F69: 2018-11-14 | H69: Wyatt | I69: Conway AR | J69: 43.08 | M69: =IF(AND(F69>='A - Contractor Summary'!$C$36,F69<='A - Contractor Summary'!$C$38),"Yes",IF(F69<'A - Contractor Summary'!$C$36,"No",IF(F69>'A - Contractor Summary'!$C$39,"",""))) -> No | Q69: 43.08 | U69: 1
B70: 57 | C70: Receipt | D70: 25-23205 | E70: Vendor No 11 | F70: 2018-11-13 | H70: Wyatt | I70: Jasper AL | J70: 56.17 | M70: =IF(AND(F70>='A - Contractor Summary'!$C$36,F70<='A - Contractor Summary'!$C$38),"Yes",IF(F70<'A - Contractor Summary'!$C$36,"No",IF(F70>'A - Contractor Summary'!$C$39,"",""))) -> No | Q70: 56.17 | U70: 1
B71: 58 | C71: Receipt | D71: 25-23205 | E71: Vendor No 11 | F71: 2018-11-13 | H71: Wyatt | I71: Pike Road AL | J71: 64.19 | M71: =IF(AND(F71>='A - Contractor Summary'!$C$36,F71<='A - Contractor Summary'!$C$38),"Yes",IF(F71<'A - Contractor Summary'!$C$36,"No",IF(F71>'A - Contractor Summary'!$C$39,"",""))) -> No | Q71: 64.19 | U71: 1
B72: 59 | C72: Receipt | D72: 25-23205 | E72: Vendor No 11 | F72: 2018-11-13 | H72: Wyatt | I72: Jasper AL | J72: 123.72 | M72: =IF(AND(F72>='A - Contractor Summary'!$C$36,F72<='A - Contractor Summary'!$C$38),"Yes",IF(F72<'A - Contractor Summary'!$C$36,"No",IF(F72>'A - Contractor Summary'!$C$39,"",""))) -> No | Q72: 123.72 | U72: 1
B73: 60 | C73: Receipt | D73: 25-23205 | E73: Vendor No 11 | F73: 2018-11-13 | H73: Wyatt | I73: Pike Road AL | J73: 241.91 | M73: =IF(AND(F73>='A - Contractor Summary'!$C$36,F73<='A - Contractor Summary'!$C$38),"Yes",IF(F73<'A - Contractor Summary'!$C$36,"No",IF(F73>'A - Contractor Summary'!$C$39,"",""))) -> No | Q73: 241.91 | U73: 1
B74: 61 | C74: Receipt | D74: 25-23205 | E74: Vendor No 11 | F74: 2018-11-13 | H74: Wyatt | I74: Marianna FL | J74: 50 | M74: =IF(AND(F74>='A - Contractor Summary'!$C$36,F74<='A - Contractor Summary'!$C$38),"Yes",IF(F74<'A - Contractor Summary'!$C$36,"No",IF(F74>'A - Contractor Summary'!$C$39,"",""))) -> No | Q74: 50 | U74: 1
B75: 62 | C75: Receipt | D75: 25-23205 | E75: Vendor No 11 | H75: Wyatt | J75: 258.09 | M75: =IF(AND(F75>='A - Contractor Summary'!$C$36,F75<='A - Contractor Summary'!$C$38),"Yes",IF(F75<'A - Contractor Summary'!$C$36,"No",IF(F75>'A - Contractor Summary'!$C$39,"",""))) -> No | Q75: 258.09 | U75: 2
B76: 63 | C76: Receipt | D76: 25-23205 | E76: Vendor No 11 | F76: 2018-11-15 | G76: Kerry Lee | H76: Chisholm | I76: Defuniak Springs FL | J76: 51.61 | M76: =IF(AND(F76>='A - Contractor Summary'!$C$36,F76<='A - Contractor Summary'!$C$38),"Yes",IF(F76<'A - Contractor Summary'!$C$36,"No",IF(F76>'A - Contractor Summary'!$C$39,"",""))) -> No | Q76: 51.61 | U76: 1
B77: 64 | C77: Receipt | D77: 25-23205 | E77: Vendor No 11 | F77: 2018-11-15 | G77: Kerry Lee | H77: Chisholm | I77: Defuniak Springs FL | J77: 101.65 | M77: =IF(AND(F77>='A - Contractor Summary'!$C$36,F77<='A - Contractor Summary'!$C$38),"Yes",IF(F77<'A - Contractor Summary'!$C$36,"No",IF(F77>'A - Contractor Summary'!$C$39,"",""))) -> No | Q77: 101.65 | U77: 1
B78: 65 | C78: Receipt | D78: 25-23205 | E78: Vendor No 11 | F78: 2018-11-15 | G78: Kerry Lee | H78: Chisholm | I78: Defuniak Springs FL | J78: 62 | M78: =IF(AND(F78>='A - Contractor Summary'!$C$36,F78<='A - Contractor Summary'!$C$38),"Yes",IF(F78<'A - Contractor Summary'!$C$36,"No",IF(F78>'A - Contractor Summary'!$C$39,"",""))) -> No | Q78: 62 | U78: 1
B79: 66 | C79: Receipt | D79: 25-23205 | E79: Vendor No 11 | F79: 2018-11-15 | G79: Kerry Lee | H79: Chisholm | I79: Mobile AL | J79: 76.61 | M79: =IF(AND(F79>='A - Contractor Summary'!$C$36,F79<='A - Contractor Summary'!$C$38),"Yes",IF(F79<'A - Contractor Summary'!$C$36,"No",IF(F79>'A - Contractor Summary'!$C$39,"",""))) -> No | Q79: =+J79 -> 76.61 | U79: 1
B80: 67 | C80: Receipt | D80: 25-23205 | E80: Vendor No 11 | F80: 2018-11-15 | G80: Kerry Lee | H80: Chisholm | I80: Sumrall MS | J80: 48.17 | M80: =IF(AND(F80>='A - Contractor Summary'!$C$36,F80<='A - Contractor Summary'!$C$38),"Yes",IF(F80<'A - Contractor Summary'!$C$36,"No",IF(F80>'A - Contractor Summary'!$C$39,"",""))) -> No | Q80: 48.17 | U80: 1
B81: 68 | C81: Receipt | D81: 25-23205 | E81: Vendor No 11 | F81: 2018-11-15 | G81: Kerry Lee | H81: Chisholm | I81: Marianna FL | J81: 36 | M81: =IF(AND(F81>='A - Contractor Summary'!$C$36,F81<='A - Contractor Summary'!$C$38),"Yes",IF(F81<'A - Contractor Summary'!$C$36,"No",IF(F81>'A - Contractor Summary'!$C$39,"",""))) -> No | Q81: 36 | U81: 1
B82: 69 | C82: Receipt | D82: 25-23205 | E82: Vendor No 11 | F82: 2018-11-15 | G82: Kerry Lee | H82: Chisholm | I82: Hattiesburg MS | J82: 39.98 | M82: =IF(AND(F82>='A - Contractor Summary'!$C$36,F82<='A - Contractor Summary'!$C$38),"Yes",IF(F82<'A - Contractor Summary'!$C$36,"No",IF(F82>'A - Contractor Summary'!$C$39,"",""))) -> No | Q82: 39.98 | U82: 1
B83: 70 | C83: Receipt | D83: 25-23205 | E83: Vendor No 11 | F83: 2018-11-15 | G83: JT Blansett | H83: Chisholm | J83: 90 | M83: =IF(AND(F83>='A - Contractor Summary'!$C$36,F83<='A - Contractor Summary'!$C$38),"Yes",IF(F83<'A - Contractor Summary'!$C$36,"No",IF(F83>'A - Contractor Summary'!$C$39,"",""))) -> No | Q83: 90 | U83: 1
B84: 71 | C84: Receipt | D84: 25-23205 | E84: Vendor No 11 | F84: 2018-11-13 | G84: Darvin Grant | H84: Grant | I84: Hattiesburg MS | J84: 90.77 | M84: =IF(AND(F84>='A - Contractor Summary'!$C$36,F84<='A - Contractor Summary'!$C$38),"Yes",IF(F84<'A - Contractor Summary'!$C$36,"No",IF(F84>'A - Contractor Summary'!$C$39,"",""))) -> No | Q84: 90.77 | U84: 1
B85: 72 | C85: Receipt | D85: 25-23205 | E85: Vendor No 11 | F85: 2018-11-13 | G85: Darvin Grant | H85: Grant | I85: Milton FL | J85: 292.09 | M85: =IF(AND(F85>='A - Contractor Summary'!$C$36,F85<='A - Contractor Summary'!$C$38),"Yes",IF(F85<'A - Contractor Summary'!$C$36,"No",IF(F85>'A - Contractor Summary'!$C$39,"",""))) -> No | Q85: 292.09 | U85: 1
B86: 73 | C86: Receipt | D86: 25-23205 | E86: Vendor No 11 | F86: 2018-11-13 | G86: Derek England | H86: England | I86: cant read (est | J86: 33.8 | M86: =IF(AND(F86>='A - Contractor Summary'!$C$36,F86<='A - Contractor Summary'!$C$38),"Yes",IF(F86<'A - Contractor Summary'!$C$36,"No",IF(F86>'A - Contractor Summary'!$C$39,"",""))) -> No | Q86: 33.8 | U86: 1
B87: 74 | C87: Receipt | D87: 25-23205 | E87: Vendor No 11 | F87: 2018-11-13 | G87: Derek England | H87: England | I87: Montgomery Al | J87: 133.7 | M87: =IF(AND(F87>='A - Contractor Summary'!$C$36,F87<='A - Contractor Summary'!$C$38),"Yes",IF(F87<'A - Contractor Summary'!$C$36,"No",IF(F87>'A - Contractor Summary'!$C$39,"",""))) -> No | Q87: 133.7 | U87: 1
B88: 75 | C88: Receipt | D88: 25-23205 | E88: Vendor No 11 | F88: 2018-11-13 | G88: Derek England | H88: England | I88: New Albany MS | J88: 98.79 | M88: =IF(AND(F88>='A - Contractor Summary'!$C$36,F88<='A - Contractor Summary'!$C$38),"Yes",IF(F88<'A - Contractor Summary'!$C$36,"No",IF(F88>'A - Contractor Summary'!$C$39,"",""))) -> No | Q88: 98.79 | U88: 1
B89: 76 | C89: Receipt | D89: 25-23205 | E89: Vendor No 11 | F89: 2018-11-13 | G89: Derek England | H89: England | I89: Montgomery Al | J89: 25.28 | M89: =IF(AND(F89>='A - Contractor Summary'!$C$36,F89<='A - Contractor Summary'!$C$38),"Yes",IF(F89<'A - Contractor Summary'!$C$36,"No",IF(F89>'A - Contractor Summary'!$C$39,"",""))) -> No | Q89: 25.28 | U89: 1
B90: 77 | C90: Receipt | D90: 25-23205 | E90: Vendor No 11 | F90: 2018-11-13 | G90: Derek England | H90: England | I90: New Albany MS | J90: 38 | M90: =IF(AND(F90>='A - Contractor Summary'!$C$36,F90<='A - Contractor Summary'!$C$38),"Yes",IF(F90<'A - Contractor Summary'!$C$36,"No",IF(F90>'A - Contractor Summary'!$C$39,"",""))) -> No | Q90: 38 | U90: 1
B91: 78 | C91: Receipt | D91: 25-23205 | E91: Vendor No 11 | F91: 2018-11-13 | G91: Derek England | H91: England | I91: Lowes | J91: 80 | M91: =IF(AND(F91>='A - Contractor Summary'!$C$36,F91<='A - Contractor Summary'!$C$38),"Yes",IF(F91<'A - Contractor Summary'!$C$36,"No",IF(F91>'A - Contractor Summary'!$C$39,"",""))) -> No | Q91: 80 | U91: 1
B92: 79 | C92: Receipt | D92: 25-23205 | E92: Vendor No 11 | F92: 2018-11-13 | G92: Derek England | H92: England | I92: TA | J92: 90.3 | M92: =IF(AND(F92>='A - Contractor Summary'!$C$36,F92<='A - Contractor Summary'!$C$38),"Yes",IF(F92<'A - Contractor Summary'!$C$36,"No",IF(F92>'A - Contractor Summary'!$C$39,"",""))) -> No | Q92: 90.3 | U92: 1
B93: 80 | C93: Receipt | D93: 25-23205 | E93: Vendor No 11 | F93: 2018-11-13 | G93: Derek England | H93: England | I93: Pilot | J93: 100 | M93: =IF(AND(F93>='A - Contractor Summary'!$C$36,F93<='A - Contractor Summary'!$C$38),"Yes",IF(F93<'A - Contractor Summary'!$C$36,"No",IF(F93>'A - Contractor Summary'!$C$39,"",""))) -> No | Q93: 100 | U93: 1
B94: 81 | C94: Receipt | D94: 25-23205 | E94: Vendor No 11 | F94: 2018-11-14 | G94: Eric Jefcoat | H94: Jefcoat | I94: Hattlesburg MS | J94: 290.04 | M94: =IF(AND(F94>='A - Contractor Summary'!$C$36,F94<='A - Contractor Summary'!$C$38),"Yes",IF(F94<'A - Contractor Summary'!$C$36,"No",IF(F94>'A - Contractor Summary'!$C$39,"",""))) -> No | Q94: 290.04 | U94: 1
B95: 82 | C95: Receipt | D95: 25-23205 | E95: Vendor No 11 | F95: 2018-11-14 | G95: Eric Jefcoat | H95: Jefcoat | I95: Hattlesburg MS | J95: 42.01 | M95: =IF(AND(F95>='A - Contractor Summary'!$C$36,F95<='A - Contractor Summary'!$C$38),"Yes",IF(F95<'A - Contractor Summary'!$C$36,"No",IF(F95>'A - Contractor Summary'!$C$39,"",""))) -> No | Q95: 42.01 | U95: 1
B96: 83 | C96: Receipt | D96: 25-23205 | E96: Vendor No 11 | F96: 2018-11-14 | G96: Eric Jefcoat | H96: Jefcoat | I96: Spanish Fort, AL | J96: 250 | M96: =IF(AND(F96>='A - Contractor Summary'!$C$36,F96<='A - Contractor Summary'!$C$38),"Yes",IF(F96<'A - Contractor Summary'!$C$36,"No",IF(F96>'A - Contractor Summary'!$C$39,"",""))) -> No | Q96: 250 | U96: 1
B97: 84 | C97: Receipt | D97: 25-23205 | E97: Vendor No 11 | F97: 2018-11-14 | G97: Eric Jefcoat | H97: Jefcoat | I97: Loves | J97: 57.16 | M97: =IF(AND(F97>='A - Contractor Summary'!$C$36,F97<='A - Contractor Summary'!$C$38),"Yes",IF(F97<'A - Contractor Summary'!$C$36,"No",IF(F97>'A - Contractor Summary'!$C$39,"",""))) -> No | Q97: 57.16 | U97: 1
B98: 85 | C98: Receipt | D98: 25-23205 | E98: Vendor No 11 | F98: 2018-11-13 | G98: Eugene Breland | H98: Breland | I98: Lucedale MS | J98: 57.8 | M98: =IF(AND(F98>='A - Contractor Summary'!$C$36,F98<='A - Contractor Summary'!$C$38),"Yes",IF(F98<'A - Contractor Summary'!$C$36,"No",IF(F98>'A - Contractor Summary'!$C$39,"",""))) -> No | Q98: 57.8 | U98: 1
B99: 86 | C99: Receipt | D99: 25-23205 | E99: Vendor No 11 | F99: 2018-11-13 | G99: Jayson Breland | H99: Breland | I99: Milton FL | J99: 82 | M99: =IF(AND(F99>='A - Contractor Summary'!$C$36,F99<='A - Contractor Summary'!$C$38),"Yes",IF(F99<'A - Contractor Summary'!$C$36,"No",IF(F99>'A - Contractor Summary'!$C$39,"",""))) -> No | Q99: 82 | U99: 1
B100: 87 | C100: Receipt | D100: 25-23205 | E100: Vendor No 11 | F100: 2018-11-13 | G100: Jeff Thompson | H100: Thompson | I100: Tupelo, MS | J100: 302.68 | M100: =IF(AND(F100>='A - Contractor Summary'!$C$36,F100<='A - Contractor Summary'!$C$38),"Yes",IF(F100<'A - Contractor Summary'!$C$36,"No",IF(F100>'A - Contractor Summary'!$C$39,"",""))) -> No | Q100: 302.68 | U100: 1
B101: 88 | C101: Receipt | D101: 25-23205 | E101: Vendor No 11 | F101: 2018-11-13 | G101: Jeff Thompson | H101: Thompson | I101: Jemison Al | J101: 41.32 | M101: =IF(AND(F101>='A - Contractor Summary'!$C$36,F101<='A - Contractor Summary'!$C$38),"Yes",IF(F101<'A - Contractor Summary'!$C$36,"No",IF(F101>'A - Contractor Summary'!$C$39,"",""))) -> No | Q101: 41.32 | U101: 1
B102: 89 | C102: Receipt | D102: 25-23205 | E102: Vendor No 11 | F102: 2018-11-14 | G102: Jeff Thompson | H102: Thompson | I102: Carlisle AR | J102: 438.66 | M102: =IF(AND(F102>='A - Contractor Summary'!$C$36,F102<='A - Contractor Summary'!$C$38),"Yes",IF(F102<'A - Contractor Summary'!$C$36,"No",IF(F102>'A - Contractor Summary'!$C$39,"",""))) -> No | Q102: 438.66 | U102: 1
B103: 90 | C103: Receipt | D103: 25-23205 | E103: Vendor No 11 | F103: 2018-11-14 | G103: Jeff Thompson | H103: Thompson | I103: Marianna, FL | J103: 50.17 | M103: =IF(AND(F103>='A - Contractor Summary'!$C$36,F103<='A - Contractor Summary'!$C$38),"Yes",IF(F103<'A - Contractor Summary'!$C$36,"No",IF(F103>'A - Contractor Summary'!$C$39,"",""))) -> No | Q103: 50.17 | U103: 1
B104: 91 | C104: Receipt | D104: 25-23205 | E104: Vendor No 11 | F104: 2018-11-14 | G104: Jeff Thompson | H104: Thompson | I104: Morrilion, Ar | J104: 63.38 | M104: =IF(AND(F104>='A - Contractor Summary'!$C$36,F104<='A - Contractor Summary'!$C$38),"Yes",IF(F104<'A - Contractor Summary'!$C$36,"No",IF(F104>'A - Contractor Summary'!$C$39,"",""))) -> No | Q104: 63.38 | U104: 1
B105: 92 | C105: Receipt | D105: 25-23205 | E105: Vendor No 11 | F105: 2018-11-14 | G105: Jeff Thompson | H105: Thompson | I105: Jemison, AL | J105: 210.92 | M105: =IF(AND(F105>='A - Contractor Summary'!$C$36,F105<='A - Contractor Summary'!$C$38),"Yes",IF(F105<'A - Contractor Summary'!$C$36,"No",IF(F105>'A - Contractor Summary'!$C$39,"",""))) -> No | Q105: 210.92 | U105: 1
B106: 93 | C106: Receipt | D106: 25-23205 | E106: Vendor No 11 | F106: 2018-11-14 | G106: Jeff Thompson | H106: Thompson | I106: Jemison, AL | J106: 100 | M106: =IF(AND(F106>='A - Contractor Summary'!$C$36,F106<='A - Contractor Summary'!$C$38),"Yes",IF(F106<'A - Contractor Summary'!$C$36,"No",IF(F106>'A - Contractor Summary'!$C$39,"",""))) -> No | Q106: 100 | U106: 1
B107: 94 | C107: Receipt | D107: 25-23205 | E107: Vendor No 11 | F107: 2018-11-14 | G107: Jeff Thompson | H107: Thompson | I107: Tupelo, MS | J107: 32.12 | M107: =IF(AND(F107>='A - Contractor Summary'!$C$36,F107<='A - Contractor Summary'!$C$38),"Yes",IF(F107<'A - Contractor Summary'!$C$36,"No",IF(F107>'A - Contractor Summary'!$C$39,"",""))) -> No | Q107: 32.12 | U107: 1
B108: 95 | C108: Receipt | D108: 25-23205 | E108: Vendor No 11 | F108: 2018-11-14 | G108: Jeff Thompson | H108: Thompson | I108: Jemison Al | J108: 100 | M108: =IF(AND(F108>='A - Contractor Summary'!$C$36,F108<='A - Contractor Summary'!$C$38),"Yes",IF(F108<'A - Contractor Summary'!$C$36,"No",IF(F108>'A - Contractor Summary'!$C$39,"",""))) -> No | Q108: 100 | U108: 1
B109: 96 | C109: Receipt | D109: 25-23205 | E109: Vendor No 11 | F109: 2018-11-13 | G109: Jeremy Kirkland | H109: Kirkland | I109: Semmes Al | J109: 60 | M109: =IF(AND(F109>='A - Contractor Summary'!$C$36,F109<='A - Contractor Summary'!$C$38),"Yes",IF(F109<'A - Contractor Summary'!$C$36,"No",IF(F109>'A - Contractor Summary'!$C$39,"",""))) -> No | Q109: 60 | U109: 1
B110: 97 | C110: Receipt | D110: 25-23205 | E110: Vendor No 11 | F110: 2018-11-13 | G110: Jeremy Kirkland | H110: Kirkland | I110: Steele, Al | J110: 232.23 | M110: =IF(AND(F110>='A - Contractor Summary'!$C$36,F110<='A - Contractor Summary'!$C$38),"Yes",IF(F110<'A - Contractor Summary'!$C$36,"No",IF(F110>'A - Contractor Summary'!$C$39,"",""))) -> No | Q110: 232.23 | U110: 1
B111: 98 | C111: Receipt | D111: 25-23205 | E111: Vendor No 11 | F111: 2018-11-13 | G111: Jeremy Kirkland | H111: Kirkland | I111: Pike Road, AL | J111: 233.88 | M111: =IF(AND(F111>='A - Contractor Summary'!$C$36,F111<='A - Contractor Summary'!$C$38),"Yes",IF(F111<'A - Contractor Summary'!$C$36,"No",IF(F111>'A - Contractor Summary'!$C$39,"",""))) -> No | Q111: 233.88 | U111: 1
B112: 99 | C112: Receipt | D112: 25-23205 | E112: Vendor No 11 | F112: 2018-11-13 | G112: Jerry Brown | H112: Brown | I112: Montgomery Al | J112: 150 | M112: =IF(AND(F112>='A - Contractor Summary'!$C$36,F112<='A - Contractor Summary'!$C$38),"Yes",IF(F112<'A - Contractor Summary'!$C$36,"No",IF(F112>'A - Contractor Summary'!$C$39,"",""))) -> No | Q112: 150 | U112: 1
B113: 100 | C113: Receipt | D113: 25-23205 | E113: Vendor No 11 | F113: 2018-11-13 | G113: Jody Stevens | H113: Stevens | I113: New Albany MS | J113: 90 | M113: =IF(AND(F113>='A - Contractor Summary'!$C$36,F113<='A - Contractor Summary'!$C$38),"Yes",IF(F113<'A - Contractor Summary'!$C$36,"No",IF(F113>'A - Contractor Summary'!$C$39,"",""))) -> No | Q113: 90 | U113: 1
B114: 101 | C114: Receipt | D114: 25-23205 | E114: Vendor No 11 | F114: 2018-11-13 | G114: Jody Stevens | H114: Stevens | I114: Palestine, AR | J114: 200 | M114: =IF(AND(F114>='A - Contractor Summary'!$C$36,F114<='A - Contractor Summary'!$C$38),"Yes",IF(F114<'A - Contractor Summary'!$C$36,"No",IF(F114>'A - Contractor Summary'!$C$39,"",""))) -> No | Q114: 200 | U114: 1
B115: 102 | C115: Receipt | D115: 25-23205 | E115: Vendor No 11 | F115: 2018-11-13 | G115: Jody Stevens | H115: Stevens | I115: New Albany MS | J115: 44 | M115: =IF(AND(F115>='A - Contractor Summary'!$C$36,F115<='A - Contractor Summary'!$C$38),"Yes",IF(F115<'A - Contractor Summary'!$C$36,"No",IF(F115>'A - Contractor Summary'!$C$39,"",""))) -> No | N115: =IF(OR(M115="Yes",M115="No")*AND(F115<'A - Contractor Summary'!$C$39),"",IF(AND(F115>'A - Contractor Summary'!$C$39,F115<'A - Contractor Summary'!$C$42),"Yes",IF(F115>'A - Contractor Summary'!$C$42,"No","Needs Review"))) ->  | P115: =IF(AND(O115="Yes",K115="Yes",L115="Yes")*OR(N115="Yes",M115="Yes"),"Yes",IF(OR(K115="No",M115="No",N115="No",O115="No",L115="No"),"No","Needs Review")) -> No | Q115: 44 | R115: =IF(P115="Needs Review",J115,0) -> 0 | U115: 1
B116: 103 | C116: Receipt | D116: 25-23205 | E116: Vendor No 11 | F116: 2018-11-13 | G116: Jody Stevens | H116: Stevens | I116: Jasper AL | J116: 179.57 | M116: =IF(AND(F116>='A - Contractor Summary'!$C$36,F116<='A - Contractor Summary'!$C$38),"Yes",IF(F116<'A - Contractor Summary'!$C$36,"No",IF(F116>'A - Contractor Summary'!$C$39,"",""))) -> No | N116: =IF(OR(M116="Yes",M116="No")*AND(F116<'A - Contractor Summary'!$C$39),"",IF(AND(F116>'A - Contractor Summary'!$C$39,F116<'A - Contractor Summary'!$C$42),"Yes",IF(F116>'A - Contractor Summary'!$C$42,"No","Needs Review"))) ->  | P116: =IF(AND(O116="Yes",K116="Yes",L116="Yes")*OR(N116="Yes",M116="Yes"),"Yes",IF(OR(K116="No",M116="No",N116="No",O116="No",L116="No"),"No","Needs Review")) -> No | Q116: 179.57 | R116: =IF(P116="ED Review",#REF!,0) -> 0 | U116: 1
B117: 104 | C117: Receipt | D117: 25-23205 | E117: Vendor No 11 | F117: 2018-11-14 | G117: Jody Stevens | H117: Stevens | I117: Russellville, AR | J117: 220 | M117: =IF(AND(F117>='A - Contractor Summary'!$C$36,F117<='A - Contractor Summary'!$C$38),"Yes",IF(F117<'A - Contractor Summary'!$C$36,"No",IF(F117>'A - Contractor Summary'!$C$39,"",""))) -> No | Q117: 220 | U117: 1
B118: 105 | C118: Receipt | D118: 25-23205 | E118: Vendor No 11 | F118: 2018-11-13 | G118: Jody Stevens | H118: Stevens | I118: Montgomery Al | J118: 73.56 | M118: =IF(AND(F118>='A - Contractor Summary'!$C$36,F118<='A - Contractor Summary'!$C$38),"Yes",IF(F118<'A - Contractor Summary'!$C$36,"No",IF(F118>'A - Contractor Summary'!$C$39,"",""))) -> No | Q118: 73.56 | U118: 1
B119: 106 | C119: Receipt | D119: 25-23205 | E119: Vendor No 11 | F119: 2018-11-13 | G119: Jody Stevens | H119: Stevens | I119: Montgomery Al | J119: 34 | M119: =IF(AND(F119>='A - Contractor Summary'!$C$36,F119<='A - Contractor Summary'!$C$38),"Yes",IF(F119<'A - Contractor Summary'!$C$36,"No",IF(F119>'A - Contractor Summary'!$C$39,"",""))) -> No | N119: =IF(OR(M119="Yes",M119="No")*AND(F119<'A - Contractor Summary'!$C$39),"",IF(AND(F119>'A - Contractor Summary'!$C$39,F119<'A - Contractor Summary'!$C$42),"Yes",IF(F119>'A - Contractor Summary'!$C$42,"No","Needs Review"))) ->  | P119: =IF(AND(O119="Yes",K119="Yes",L119="Yes")*OR(N119="Yes",M119="Yes"),"Yes",IF(OR(K119="No",M119="No",N119="No",O119="No",L119="No"),"No","Needs Review")) -> No | Q119: 34 | R119: =IF(P119="Needs Review",J119,0) -> 0 | U119: 1
B120: 107 | C120: Receipt | D120: 25-23205 | E120: Vendor No 11 | F120: 2018-11-13 | G120: Jody Stevens | H120: Stevens | I120: Montgomery Al | J120: 68.02 | M120: =IF(AND(F120>='A - Contractor Summary'!$C$36,F120<='A - Contractor Summary'!$C$38),"Yes",IF(F120<'A - Contractor Summary'!$C$36,"No",IF(F120>'A - Contractor Summary'!$C$39,"",""))) -> No | N120: =IF(OR(M120="Yes",M120="No")*AND(F120<'A - Contractor Summary'!$C$39),"",IF(AND(F120>'A - Contractor Summary'!$C$39,F120<'A - Contractor Summary'!$C$42),"Yes",IF(F120>'A - Contractor Summary'!$C$42,"No","Needs Review"))) ->  | P120: No | Q120: 68.02 | R120: =IF(P120="ED Review",#REF!,0) -> 0 | U120: 1
B121: 108 | C121: Receipt | D121: 25-23205 | E121: Vendor No 11 | F121: 2018-11-13 | G121: Jody Stevens | H121: Stevens | I121: Jasper AL | J121: 80 | M121: =IF(AND(F121>='A - Contractor Summary'!$C$36,F121<='A - Contractor Summary'!$C$38),"Yes",IF(F121<'A - Contractor Summary'!$C$36,"No",IF(F121>'A - Contractor Summary'!$C$39,"",""))) -> No | N121: =IF(OR(M121="Yes",M121="No")*AND(F121<'A - Contractor Summary'!$C$39),"",IF(AND(F121>'A - Contractor Summary'!$C$39,F121<'A - Contractor Summary'!$C$42),"Yes",IF(F121>'A - Contractor Summary'!$C$42,"No","Needs Review"))) ->  | P121: No | Q121: 80 | R121: =IF(P121="ED Review",#REF!,0) -> 0 | U121: 1
B122: 109 | C122: Receipt | D122: 25-23205 | E122: Vendor No 11 | F122: 2018-11-14 | G122: Jody Stevens | H122: Stevens | I122: Russellville, AR | J122: 218.37 | M122: =IF(AND(F122>='A - Contractor Summary'!$C$36,F122<='A - Contractor Summary'!$C$38),"Yes",IF(F122<'A - Contractor Summary'!$C$36,"No",IF(F122>'A - Contractor Summary'!$C$39,"",""))) -> No | N122: =IF(OR(M122="Yes",M122="No")*AND(F122<'A - Contractor Summary'!$C$39),"",IF(AND(F122>'A - Contractor Summary'!$C$39,F122<'A - Contractor Summary'!$C$42),"Yes",IF(F122>'A - Contractor Summary'!$C$42,"No","Needs Review"))) ->  | P122: No | Q122: 218.37 | R122: =IF(P122="ED Review",#REF!,0) -> 0 | U122: 1
B123: 110 | C123: Receipt | D123: 25-23205 | E123: Vendor No 11 | F123: 2018-11-14 | G123: Jody Stevens | H123: Stevens | I123: Russellville, AR | J123: 100.04 | M123: =IF(AND(F123>='A - Contractor Summary'!$C$36,F123<='A - Contractor Summary'!$C$38),"Yes",IF(F123<'A - Contractor Summary'!$C$36,"No",IF(F123>'A - Contractor Summary'!$C$39,"",""))) -> No | N123: =IF(OR(M123="Yes",M123="No")*AND(F123<'A - Contractor Summary'!$C$39),"",IF(AND(F123>'A - Contractor Summary'!$C$39,F123<'A - Contractor Summary'!$C$42),"Yes",IF(F123>'A - Contractor Summary'!$C$42,"No","Needs Review"))) ->  | P123: No | Q123: 100.04 | R123: =IF(P123="ED Review",#REF!,0) -> 0 | U123: 1
B124: 111 | C124: Receipt | D124: 25-23205 | E124: Vendor No 11 | F124: 2018-11-13 | G124: Jody Stevens | H124: Stevens | I124: Montgomery Al | J124: 67.16 | M124: =IF(AND(F124>='A - Contractor Summary'!$C$36,F124<='A - Contractor Summary'!$C$38),"Yes",IF(F124<'A - Contractor Summary'!$C$36,"No",IF(F124>'A - Contractor Summary'!$C$39,"",""))) -> No | N124: =IF(OR(M124="Yes",M124="No")*AND(F124<'A - Contractor Summary'!$C$39),"",IF(AND(F124>'A - Contractor Summary'!$C$39,F124<'A - Contractor Summary'!$C$42),"Yes",IF(F124>'A - Contractor Summary'!$C$42,"No","Needs Review"))) ->  | P124: No | Q124: 67.16 | R124: =IF(P124="ED Review",#REF!,0) -> 0 | U124: 1
B125: 112 | C125: Receipt | D125: 25-23205 | E125: Vendor No 11 | F125: 2018-11-14 | G125: Jody Stevens | H125: Stevens | I125: Russellville, AR | J125: 50.37 | M125: =IF(AND(F125>='A - Contractor Summary'!$C$36,F125<='A - Contractor Summary'!$C$38),"Yes",IF(F125<'A - Contractor Summary'!$C$36,"No",IF(F125>'A - Contractor Summary'!$C$39,"",""))) -> No | N125: =IF(OR(M125="Yes",M125="No")*AND(F125<'A - Contractor Summary'!$C$39),"",IF(AND(F125>'A - Contractor Summary'!$C$39,F125<'A - Contractor Summary'!$C$42),"Yes",IF(F125>'A - Contractor Summary'!$C$42,"No","Needs Review"))) ->  | P125: No | Q125: 50.37 | R125: =IF(P125="ED Review",#REF!,0) -> 0 | U125: 1
B126: 113 | C126: Receipt | D126: 25-23205 | E126: Vendor No 11 | F126: 2018-11-18 | G126: Johnny Martin | H126: Martin | I126: Marianna FL | J126: 300.07 | M126: =IF(AND(F126>='A - Contractor Summary'!$C$36,F126<='A - Contractor Summary'!$C$38),"Yes",IF(F126<'A - Contractor Summary'!$C$36,"No",IF(F126>'A - Contractor Summary'!$C$39,"",""))) -> No | N126: =IF(OR(M126="Yes",M126="No")*AND(F126<'A - Contractor Summary'!$C$39),"",IF(AND(F126>'A - Contractor Summary'!$C$39,F126<'A - Contractor Summary'!$C$42),"Yes",IF(F126>'A - Contractor Summary'!$C$42,"No","Needs Review"))) ->  | P126: No | Q126: 300.07 | R126: =IF(P126="ED Review",#REF!,0) -> 0 | U126: 1
B127: 114 | C127: Receipt | D127: 25-23205 | E127: Vendor No 11 | F127: 2018-11-16 | G127: Johnny Martin | H127: Martin | I127: Marianna FL | J127: 222.22 | M127: =IF(AND(F127>='A - Contractor Summary'!$C$36,F127<='A - Contractor Summary'!$C$38),"Yes",IF(F127<'A - Contractor Summary'!$C$36,"No",IF(F127>'A - Contractor Summary'!$C$39,"",""))) -> No | N127: =IF(OR(M127="Yes",M127="No")*AND(F127<'A - Contractor Summary'!$C$39),"",IF(AND(F127>'A - Contractor Summary'!$C$39,F127<'A - Contractor Summary'!$C$42),"Yes",IF(F127>'A - Contractor Summary'!$C$42,"No","Needs Review"))) ->  | P127: No | Q127: 222.22 | R127: =IF(P127="ED Review",#REF!,0) -> 0 | U127: 1
B128: 115 | C128: Receipt | D128: 25-23205 | E128: Vendor No 11 | F128: 2018-11-15 | G128: Johnny Martin | H128: Martin | I128: Marianna FL | J128: 83.32 | M128: =IF(AND(F128>='A - Contractor Summary'!$C$36,F128<='A - Contractor Summary'!$C$38),"Yes",IF(F128<'A - Contractor Summary'!$C$36,"No",IF(F128>'A - Contractor Summary'!$C$39,"",""))) -> No | N128: =IF(OR(M128="Yes",M128="No")*AND(F128<'A - Contractor Summary'!$C$39),"",IF(AND(F128>'A - Contractor Summary'!$C$39,F128<'A - Contractor Summary'!$C$42),"Yes",IF(F128>'A - Contractor Summary'!$C$42,"No","Needs Review"))) ->  | P128: No | Q128: 83.32 | R128: =IF(P128="ED Review",#REF!,0) -> 0 | U128: 1
B129: 116 | C129: Receipt | D129: 25-23205 | E129: Vendor No 11 | F129: 2018-11-16 | G129: Johnny Martin | H129: Martin | I129: Mccoys | J129: 55.46 | M129: =IF(AND(F129>='A - Contractor Summary'!$C$36,F129<='A - Contractor Summary'!$C$38),"Yes",IF(F129<'A - Contractor Summary'!$C$36,"No",IF(F129>'A - Contractor Summary'!$C$39,"",""))) -> No | N129: =IF(OR(M129="Yes",M129="No")*AND(F129<'A - Contractor Summary'!$C$39),"",IF(AND(F129>'A - Contractor Summary'!$C$39,F129<'A - Contractor Summary'!$C$42),"Yes",IF(F129>'A - Contractor Summary'!$C$42,"No","Needs Review"))) ->  | P129: No | Q129: 55.46 | R129: =IF(P129="ED Review",#REF!,0) -> 0 | U129: 1
B130: 117 | C130: Receipt | D130: 25-23205 | E130: Vendor No 11 | F130: 2018-11-15 | G130: Richie Culpepper | H130: Culpepper | I130: Waynesboro MS | J130: 132.93 | M130: =IF(AND(F130>='A - Contractor Summary'!$C$36,F130<='A - Contractor Summary'!$C$38),"Yes",IF(F130<'A - Contractor Summary'!$C$36,"No",IF(F130>'A - Contractor Summary'!$C$39,"",""))) -> No | N130: =IF(OR(M130="Yes",M130="No")*AND(F130<'A - Contractor Summary'!$C$39),"",IF(AND(F130>'A - Contractor Summary'!$C$39,F130<'A - Contractor Summary'!$C$42),"Yes",IF(F130>'A - Contractor Summary'!$C$42,"No","Needs Review"))) ->  | P130: No | Q130: 132.93 | R130: =IF(P130="ED Review",#REF!,0) -> 0 | U130: 1
B131: 118 | C131: Receipt | D131: 25-23205 | E131: Vendor No 11 | F131: 2018-11-15 | G131: Richie Culpepper | H131: Culpepper | I131: Ellisville, MS | J131: 73 | M131: =IF(AND(F131>='A - Contractor Summary'!$C$36,F131<='A - Contractor Summary'!$C$38),"Yes",IF(F131<'A - Contractor Summary'!$C$36,"No",IF(F131>'A - Contractor Summary'!$C$39,"",""))) -> No | N131: =IF(OR(M131="Yes",M131="No")*AND(F131<'A - Contractor Summary'!$C$39),"",IF(AND(F131>'A - Contractor Summary'!$C$39,F131<'A - Contractor Summary'!$C$42),"Yes",IF(F131>'A - Contractor Summary'!$C$42,"No","Needs Review"))) ->  | P131: No | Q131: 73 | R131: =IF(P131="ED Review",#REF!,0) -> 0 | U131: 1
B132: 119 | C132: Receipt | D132: 25-23205 | E132: Vendor No 11 | F132: 2018-11-15 | G132: Richie Culpepper | H132: Culpepper | I132: Prichard, AL | J132: 325.6 | M132: =IF(AND(F132>='A - Contractor Summary'!$C$36,F132<='A - Contractor Summary'!$C$38),"Yes",IF(F132<'A - Contractor Summary'!$C$36,"No",IF(F132>'A - Contractor Summary'!$C$39,"",""))) -> No | N132: =IF(OR(M132="Yes",M132="No")*AND(F132<'A - Contractor Summary'!$C$39),"",IF(AND(F132>'A - Contractor Summary'!$C$39,F132<'A - Contractor Summary'!$C$42),"Yes",IF(F132>'A - Contractor Summary'!$C$42,"No","Needs Review"))) ->  | P132: No | Q132: 325.6 | R132: =IF(P132="ED Review",#REF!,0) -> 0 | U132: 1
B133: 120 | C133: Receipt | D133: 25-23205 | E133: Vendor No 11 | F133: 2018-11-15 | G133: Ricky Broom | H133: Broom | I133: Marianna, FL | J133: 77.86 | M133: =IF(AND(F133>='A - Contractor Summary'!$C$36,F133<='A - Contractor Summary'!$C$38),"Yes",IF(F133<'A - Contractor Summary'!$C$36,"No",IF(F133>'A - Contractor Summary'!$C$39,"",""))) -> No | N133: =IF(OR(M133="Yes",M133="No")*AND(F133<'A - Contractor Summary'!$C$39),"",IF(AND(F133>'A - Contractor Summary'!$C$39,F133<'A - Contractor Summary'!$C$42),"Yes",IF(F133>'A - Contractor Summary'!$C$42,"No","Needs Review"))) ->  | P133: No | Q133: 77.86 | R133: =IF(P133="ED Review",#REF!,0) -> 0 | U133: 1
B134: 121 | C134: Receipt | D134: 25-23205 | E134: Vendor No 11 | F134: 2018-11-15 | G134: Ricky Broom | H134: Broom | I134: Loxley AL | J134: 71.57 | M134: =IF(AND(F134>='A - Contractor Summary'!$C$36,F134<='A - Contractor Summary'!$C$38),"Yes",IF(F134<'A - Contractor Summary'!$C$36,"No",IF(F134>'A - Contractor Summary'!$C$39,"",""))) -> No | N134: =IF(OR(M134="Yes",M134="No")*AND(F134<'A - Contractor Summary'!$C$39),"",IF(AND(F134>'A - Contractor Summary'!$C$39,F134<'A - Contractor Summary'!$C$42),"Yes",IF(F134>'A - Contractor Summary'!$C$42,"No","Needs Review"))) ->  | P134: No | Q134: 71.57 | R134: =IF(P134="ED Review",#REF!,0) -> 0 | U134: 1
B135: 122 | C135: Receipt | D135: 25-23205 | E135: Vendor No 11 | F135: 2018-11-14 | G135: Roy Sullins | H135: Sullins | I135: Milton FL | J135: 285.82 | M135: =IF(AND(F135>='A - Contractor Summary'!$C$36,F135<='A - Contractor Summary'!$C$38),"Yes",IF(F135<'A - Contractor Summary'!$C$36,"No",IF(F135>'A - Contractor Summary'!$C$39,"",""))) -> No | N135: =IF(OR(M135="Yes",M135="No")*AND(F135<'A - Contractor Summary'!$C$39),"",IF(AND(F135>'A - Contractor Summary'!$C$39,F135<'A - Contractor Summary'!$C$42),"Yes",IF(F135>'A - Contractor Summary'!$C$42,"No","Needs Review"))) ->  | P135: No | Q135: 285.82 | R135: =IF(P135="ED Review",#REF!,0) -> 0 | U135: 1
B136: 123 | C136: Receipt | D136: 25-23205 | E136: Vendor No 11 | F136: 2018-11-14 | G136: Roy Sullins | H136: Sullins | I136: Laurel, MS | J136: 227.28 | M136: =IF(AND(F136>='A - Contractor Summary'!$C$36,F136<='A - Contractor Summary'!$C$38),"Yes",IF(F136<'A - Contractor Summary'!$C$36,"No",IF(F136>'A - Contractor Summary'!$C$39,"",""))) -> No | N136: =IF(OR(M136="Yes",M136="No")*AND(F136<'A - Contractor Summary'!$C$39),"",IF(AND(F136>'A - Contractor Summary'!$C$39,F136<'A - Contractor Summary'!$C$42),"Yes",IF(F136>'A - Contractor Summary'!$C$42,"No","Needs Review"))) ->  | P136: No | Q136: 227.28 | R136: =IF(P136="ED Review",#REF!,0) -> 0 | U136: 1
B137: 124 | C137: Receipt | D137: 25-23205 | E137: Vendor No 11 | F137: 2018-11-14 | G137: Roy Sullins | H137: Sullins | I137: Laurel, MS | J137: 31.16 | M137: =IF(AND(F137>='A - Contractor Summary'!$C$36,F137<='A - Contractor Summary'!$C$38),"Yes",IF(F137<'A - Contractor Summary'!$C$36,"No",IF(F137>'A - Contractor Summary'!$C$39,"",""))) -> No | N137: =IF(OR(M137="Yes",M137="No")*AND(F137<'A - Contractor Summary'!$C$39),"",IF(AND(F137>'A - Contractor Summary'!$C$39,F137<'A - Contractor Summary'!$C$42),"Yes",IF(F137>'A - Contractor Summary'!$C$42,"No","Needs Review"))) ->  | P137: No | Q137: 31.16 | R137: =IF(P137="ED Review",#REF!,0) -> 0 | U137: 1
B138: 125 | C138: Receipt | D138: 25-23205 | E138: Vendor No 11 | F138: 2018-11-14 | G138: Roy Sullins | H138: Sullins | I138: Milton FL | J138: 64.99 | M138: =IF(AND(F138>='A - Contractor Summary'!$C$36,F138<='A - Contractor Summary'!$C$38),"Yes",IF(F138<'A - Contractor Summary'!$C$36,"No",IF(F138>'A - Contractor Summary'!$C$39,"",""))) -> No | N138: =IF(OR(M138="Yes",M138="No")*AND(F138<'A - Contractor Summary'!$C$39),"",IF(AND(F138>'A - Contractor Summary'!$C$39,F138<'A - Contractor Summary'!$C$42),"Yes",IF(F138>'A - Contractor Summary'!$C$42,"No","Needs Review"))) ->  | P138: No | Q138: 64.99 | R138: =IF(P138="ED Review",#REF!,0) -> 0 | U138: 1
B139: 126 | C139: Receipt | D139: 25-23205 | E139: Vendor No 11 | F139: 2018-11-15 | G139: Scott Arrington | H139: Arrington | I139: cant read (est) | J139: 38.86 | M139: =IF(AND(F139>='A - Contractor Summary'!$C$36,F139<='A - Contractor Summary'!$C$38),"Yes",IF(F139<'A - Contractor Summary'!$C$36,"No",IF(F139>'A - Contractor Summary'!$C$39,"",""))) -> No | N139: =IF(OR(M139="Yes",M139="No")*AND(F139<'A - Contractor Summary'!$C$39),"",IF(AND(F139>'A - Contractor Summary'!$C$39,F139<'A - Contractor Summary'!$C$42),"Yes",IF(F139>'A - Contractor Summary'!$C$42,"No","Needs Review"))) ->  | P139: No | Q139: 38.86 | R139: =IF(P139="ED Review",#REF!,0) -> 0 | U139: 1
B140: 127 | C140: Receipt | D140: 25-23205 | E140: Vendor No 11 | F140: 2018-11-15 | G140: Scott Arrington | H140: Arrington | I140: ta | J140: 300 | M140: =IF(AND(F140>='A - Contractor Summary'!$C$36,F140<='A - Contractor Summary'!$C$38),"Yes",IF(F140<'A - Contractor Summary'!$C$36,"No",IF(F140>'A - Contractor Summary'!$C$39,"",""))) -> No | N140: =IF(OR(M140="Yes",M140="No")*AND(F140<'A - Contractor Summary'!$C$39),"",IF(AND(F140>'A - Contractor Summary'!$C$39,F140<'A - Contractor Summary'!$C$42),"Yes",IF(F140>'A - Contractor Summary'!$C$42,"No","Needs Review"))) ->  | P140: No | Q140: 300 | R140: =IF(P140="ED Review",#REF!,0) -> 0 | U140: 1
B141: 128 | C141: Receipt | D141: 25-23205 | E141: Vendor No 11 | F141: 2018-11-15 | G141: Scott Arrington | H141: Arrington | I141: lowes | J141: 300 | M141: =IF(AND(F141>='A - Contractor Summary'!$C$36,F141<='A - Contractor Summary'!$C$38),"Yes",IF(F141<'A - Contractor Summary'!$C$36,"No",IF(F141>'A - Contractor Summary'!$C$39,"",""))) -> No | N141: =IF(OR(M141="Yes",M141="No")*AND(F141<'A - Contractor Summary'!$C$39),"",IF(AND(F141>'A - Contractor Summary'!$C$39,F141<'A - Contractor Summary'!$C$42),"Yes",IF(F141>'A - Contractor Summary'!$C$42,"No","Needs Review"))) ->  | P141: No | Q141: 300 | R141: =IF(P141="ED Review",#REF!,0) -> 0 | U141: 1
B142: 129 | C142: Receipt | D142: 25-23205 | E142: Vendor No 11 | F142: 2018-11-15 | G142: Scott Arrington | H142: Arrington | I142: cant read (est) | J142: 38.78 | M142: =IF(AND(F142>='A - Contractor Summary'!$C$36,F142<='A - Contractor Summary'!$C$38),"Yes",IF(F142<'A - Contractor Summary'!$C$36,"No",IF(F142>'A - Contractor Summary'!$C$39,"",""))) -> No | N142: =IF(OR(M142="Yes",M142="No")*AND(F142<'A - Contractor Summary'!$C$39),"",IF(AND(F142>'A - Contractor Summary'!$C$39,F142<'A - Contractor Summary'!$C$42),"Yes",IF(F142>'A - Contractor Summary'!$C$42,"No","Needs Review"))) ->  | P142: No | Q142: 38.78 | R142: =IF(P142="ED Review",#REF!,0) -> 0 | U142: 1
M143: =IF(AND(F143>='A - Contractor Summary'!$C$36,F143<='A - Contractor Summary'!$C$38),"Yes",IF(F143<'A - Contractor Summary'!$C$36,"No",IF(F143>'A - Contractor Summary'!$C$39,"",""))) -> No | N143: =IF(OR(M143="Yes",M143="No")*AND(F143<'A - Contractor Summary'!$C$39),"",IF(AND(F143>'A - Contractor Summary'!$C$39,F143<'A - Contractor Summary'!$C$42),"Yes",IF(F143>'A - Contractor Summary'!$C$42,"No","Needs Review"))) ->  | P143: No | Q143: =+J143 -> 0 | R143: =IF(P143="ED Review",#REF!,0) -> 0
M144: =IF(AND(F144>='A - Contractor Summary'!$C$36,F144<='A - Contractor Summary'!$C$38),"Yes",IF(F144<'A - Contractor Summary'!$C$36,"No",IF(F144>'A - Contractor Summary'!$C$39,"",""))) -> No | N144: =IF(OR(M144="Yes",M144="No")*AND(F144<'A - Contractor Summary'!$C$39),"",IF(AND(F144>'A - Contractor Summary'!$C$39,F144<'A - Contractor Summary'!$C$42),"Yes",IF(F144>'A - Contractor Summary'!$C$42,"No","Needs Review"))) ->  | P144: No | Q144: 0 | R144: =IF(P144="ED Review",#REF!,0) -> 0
M145: =IF(AND(F145>='A - Contractor Summary'!$C$36,F145<='A - Contractor Summary'!$C$38),"Yes",IF(F145<'A - Contractor Summary'!$C$36,"No",IF(F145>'A - Contractor Summary'!$C$39,"",""))) -> No | N145: =IF(OR(M145="Yes",M145="No")*AND(F145<'A - Contractor Summary'!$C$39),"",IF(AND(F145>'A - Contractor Summary'!$C$39,F145<'A - Contractor Summary'!$C$42),"Yes",IF(F145>'A - Contractor Summary'!$C$42,"No","Needs Review"))) ->  | P145: No | Q145: 0 | R145: =IF(P145="ED Review",#REF!,0) -> 0
M146: =IF(AND(F146>='A - Contractor Summary'!$C$36,F146<='A - Contractor Summary'!$C$38),"Yes",IF(F146<'A - Contractor Summary'!$C$36,"No",IF(F146>'A - Contractor Summary'!$C$39,"",""))) -> No | N146: =IF(OR(M146="Yes",M146="No")*AND(F146<'A - Contractor Summary'!$C$39),"",IF(AND(F146>'A - Contractor Summary'!$C$39,F146<'A - Contractor Summary'!$C$42),"Yes",IF(F146>'A - Contractor Summary'!$C$42,"No","Needs Review"))) ->  | P146: No | Q146: 0 | R146: =IF(P146="ED Review",#REF!,0) -> 0
M147: =IF(AND(F147>='A - Contractor Summary'!$C$36,F147<='A - Contractor Summary'!$C$38),"Yes",IF(F147<'A - Contractor Summary'!$C$36,"No",IF(F147>'A - Contractor Summary'!$C$39,"",""))) -> No | N147: =IF(OR(M147="Yes",M147="No")*AND(F147<'A - Contractor Summary'!$C$39),"",IF(AND(F147>'A - Contractor Summary'!$C$39,F147<'A - Contractor Summary'!$C$42),"Yes",IF(F147>'A - Contractor Summary'!$C$42,"No","Needs Review"))) ->  | P147: No | Q147: 0 | R147: =IF(P147="ED Review",#REF!,0) -> 0
M148: =IF(AND(F148>='A - Contractor Summary'!$C$36,F148<='A - Contractor Summary'!$C$38),"Yes",IF(F148<'A - Contractor Summary'!$C$36,"No",IF(F148>'A - Contractor Summary'!$C$39,"",""))) -> No | N148: =IF(OR(M148="Yes",M148="No")*AND(F148<'A - Contractor Summary'!$C$39),"",IF(AND(F148>'A - Contractor Summary'!$C$39,F148<'A - Contractor Summary'!$C$42),"Yes",IF(F148>'A - Contractor Summary'!$C$42,"No","Needs Review"))) ->  | P148: No | Q148: 0 | R148: =IF(P148="ED Review",#REF!,0) -> 0
M149: =IF(AND(F149>='A - Contractor Summary'!$C$36,F149<='A - Contractor Summary'!$C$38),"Yes",IF(F149<'A - Contractor Summary'!$C$36,"No",IF(F149>'A - Contractor Summary'!$C$39,"",""))) -> No | N149: =IF(OR(M149="Yes",M149="No")*AND(F149<'A - Contractor Summary'!$C$39),"",IF(AND(F149>'A - Contractor Summary'!$C$39,F149<'A - Contractor Summary'!$C$42),"Yes",IF(F149>'A - Contractor Summary'!$C$42,"No","Needs Review"))) ->  | P149: No | Q149: 0 | R149: =IF(P149="ED Review",#REF!,0) -> 0
M150: =IF(AND(F150>='A - Contractor Summary'!$C$36,F150<='A - Contractor Summary'!$C$38),"Yes",IF(F150<'A - Contractor Summary'!$C$36,"No",IF(F150>'A - Contractor Summary'!$C$39,"",""))) -> No | N150: =IF(OR(M150="Yes",M150="No")*AND(F150<'A - Contractor Summary'!$C$39),"",IF(AND(F150>'A - Contractor Summary'!$C$39,F150<'A - Contractor Summary'!$C$42),"Yes",IF(F150>'A - Contractor Summary'!$C$42,"No","Needs Review"))) ->  | P150: No | Q150: 0 | R150: =IF(P150="ED Review",#REF!,0) -> 0
M151: =IF(AND(F151>='A - Contractor Summary'!$C$36,F151<='A - Contractor Summary'!$C$38),"Yes",IF(F151<'A - Contractor Summary'!$C$36,"No",IF(F151>'A - Contractor Summary'!$C$39,"",""))) -> No | N151: =IF(OR(M151="Yes",M151="No")*AND(F151<'A - Contractor Summary'!$C$39),"",IF(AND(F151>'A - Contractor Summary'!$C$39,F151<'A - Contractor Summary'!$C$42),"Yes",IF(F151>'A - Contractor Summary'!$C$42,"No","Needs Review"))) ->  | P151: No | Q151: 0 | R151: =IF(P151="ED Review",#REF!,0) -> 0
J152: =SUM(J14:J151) -> 14325.86 | Q152: =IFERROR(SUM(Q14:Q151),0) -> 14325.86 | R152: =IFERROR(SUM(R14:R151),0) -> 0 | S152: =SUM(S14:S151) -> 0 | T152: =SUM(T14:T151) -> 0 | U152: =R152-S152-T152 -> 0 | V152: check (a)
C160: 1 Receipts provided
C161: 2 No invoice provided

Sheet I - Other
B2: Other Charges
B4: Test Plan: (A) Obtain support of individual charges. (B) Enter Yes/No if receipt is itemized. (C) Enter Yes/No if proof of payment has been provided. (D) Ensure charges fall between the dates the vendor was mobilized and the date they arrived. (E) Ensure charges are prior to the date the vendor arrived home or was released to another utility. (F) Ensure the expense type is reasonable (G) Determine the amount(s) to be reviewed, allowed and/or disallowed. (H) For charges which required further review, document review and include why it was determined to be allowed/disallowed via a tickmark.
B9: a | C9: Check figure should equal $0. Cell will appear yellow if discrepancies are noted.
C12: A | L12: B | M12: C | N12: D | O12: E | P12: F | Q12: G | T12: H
B13: Support Reviewed | N13: Conclusions
B14: # | C14: Type of Support | D14: Support Identifier | E14: Company | F14: Crew (INV #) | G14: Date | H14: Person | I14: Vendor Name | J14: Location | K14: $ Total | L14: Itemized Receipt | M14: Proof of Payment | N14: Reasonable based on Mobilization date(s) | O14: Reasonable based on Demobilization date(s) | P14: Expense Type Appropriate | Q14: Conclusion | R14: $ Allowable Charge | S14: $ To Be Reviewed | T14: Reviewed - Allowable Charge | U14: Reviewed - Unallowable Charge | V14: Tickmarks
B15: 1 | C15: Receipt | D15: Laundry | E15: Vendor No 11 | F15: 25-23085 | G15: 2018-10-19 | I15: Soap Box Laundry | J15: AL | K15: 289 | R15: =+K15 -> 289 | V15: 1
B16: 2 | C16: Receipt | D16: Laundry | E16: Vendor No 11 | F16: 25-23085 | G16: 2018-10-19 | I16: Cherokee Laundry & Cleaners | J16: AL | K16: 838.75 | R16: =+K16 -> 838.75 | V16: 1
B17: 3 | C17: Receipt | D17: Laundry | E17: Vendor No 11 | F17: 25-23085 | G17: 2018-10-19 | I17: Stry-Lenkoff Co. | J17: KY | K17: 618.75 | R17: 618.75 | V17: 1
B18: 4 | C18: Receipt | D18: Materials | E18: Vendor No 11 | F18: 25-23086 | G18: 2018-10-15 | I18: Handi-Mart | J18: FL | K18: 6.45 | R18: 6.45 | V18: 1
B19: 5 | C19: Receipt | D19: Various | E19: Vendor No 11 | F19: 25-23205 | G19: 2018-10-30 | H19: Barnett | I19: Carquest | J19: FL | K19: 304.61 | R19: 304.61 | V19: 1
C20: Receipt | D20: Various | E20: Vendor No 11 | F20: 25-23205 | G20: 2018-10-31 | H20: Barnett | I20: Carquest | J20: FL | K20: 110.57 | R20: 110.57 | V20: 1
C21: Receipt | D21: Supplies | E21: Vendor No 11 | F21: 25-23205 | G21: 2018-10-30 | H21: Barnett | I21: Walmart | J21: FL | K21: 208.71 | R21: 208.71 | V21: 1
B31: 6
N32: =IF(AND(G32>='A - Contractor Summary'!$C$36,G32<='A - Contractor Summary'!$C$38),"Yes",IF(G32<'A - Contractor Summary'!$C$36,"No",IF(G32>'A - Contractor Summary'!$C$39,"",""))) -> No | O32: =IF(OR(N32="Yes",N32="No")*AND(G32<'A - Contractor Summary'!$C$39),"",IF(AND(G32>'A - Contractor Summary'!$C$39,G32<'A - Contractor Summary'!$C$42),"Yes",IF(G32>'A - Contractor Summary'!$C$42,"No","Needs Review"))) ->  | P32: Needs Reviewed | Q32: =IF(AND(P32="YES",L32="Yes",M32="yes")*OR(N32="Yes",O32="Yes"),"Yes",IF(OR(O32="No",P32="No",N32="No",M32="No"),"No","Needs Review")) -> No | R32: =IF(Q32="Yes",K32,0) -> 0 | S32: =IF(Q32="Needs Review",K32,0) -> 0 | T32: =SUM('B - Summary Expenses '!E13:F15)*0.1 -> 1677.705
K33: =SUM(K15:K32) -> 2376.84 | R33: =SUM(R15:R32) -> 2376.84 | S33: =IFERROR(SUM(S32:S32),0) -> 0 | T33: =SUM(T32:T32) -> 1677.705 | U33: =SUM(U32:U32) -> 0 | V33: =S33-T33-U33 -> -1677.705 | W33: check (a)
B37: Tickmark Explanation:
C38: 1 Receipts Provided

Sheet F - Meals
B2: Meal Charges
B4: Test Plan: (A) Obtain support of individual charges. (B) Enter Yes/No if receipt is itemized. (C) Enter Yes/No if proof of payment has been provided. (D) Ensure charges fall between the dates the vendor was mobilized and the date they arrived. (E) Ensure charges are prior to the date the vendor arrived home or was released to another utility. (F) Ensure the location of charge was reasonable (G) Determine the amount(s) to be reviewed, allowed and/or disallowed. (H) For charges which required further review, document review and include why it was determined to be allowed/disallowed via a tickmark.
B9: a | C9: Check figure should equal $0. Cell will appear yellow if discrepancies are noted.
C11: A | L11: B | M11: C | N11: D | O11: E | P11: F | Q11: G | T11: H
B12: Support Reviewed | N12: Conclusions
B13: # | C13: Type of Support | D13: Support Identifier | E13: Company | F13: Crew (Inv #) | G13: Date | H13: Person | I13: Restaurant Name | J13: Location | K13: $ Total | L13: Itemized Receipt | M13: Proof of Payment | N13: Reasonable based on Mobilization date(s) | O13: Reasonable based on Demobilization date(s) | P13: Locations Reasonable | Q13: Conclusion | R13: $ Allowable Charge | S13: $ To Be Reviewed | T13: Reviewed - Allowable Charge | U13: Reviewed - Unallowable Charge | V13: Tickmarks
B14: 1 | F14: 25-23067 | G14: 2018-10-14 | H14: Kerry Lee | I14: Arby's | J14: Loxley, AL | K14: 18.07 | N14: =IF(AND(G14>='A - Contractor Summary'!$C$36,G14<='A - Contractor Summary'!$C$38),"Yes",IF(G14<'A - Contractor Summary'!$C$36,"No",IF(G14>'A - Contractor Summary'!$C$39,"",""))) -> No | O14: =IF(OR(N14="Yes",N14="No")*AND(G14<'A - Contractor Summary'!$C$39),"",IF(AND(G14>'A - Contractor Summary'!$C$39,G14<'A - Contractor Summary'!$C$42),"Yes",IF(G14>'A - Contractor Summary'!$C$42,"No","Needs Review"))) ->  | P14: Yes | Q14: =IF(AND(P14="Yes",L14="Yes",M14="Yes")*OR(O14="Yes",N14="Yes"),"Yes",IF(OR(L14="No",N14="No",O14="No",P14="No",M14="No"),"No","Needs Review")) -> No | R14: =+K14 -> 18.07 | S14: =IF(Q14="Needs Review",K14,0) -> 0 | V14: 1
B15: 2 | F15: 25-23067 | G15: 2018-10-14 | H15: Kerry Lee | I15: Arby's | J15: Loxley, AL | K15: 15.22 | N15: =IF(AND(G15>='A - Contractor Summary'!$C$36,G15<='A - Contractor Summary'!$C$38),"Yes",IF(G15<'A - Contractor Summary'!$C$36,"No",IF(G15>'A - Contractor Summary'!$C$39,"",""))) -> No | O15: =IF(OR(N15="Yes",N15="No")*AND(G15<'A - Contractor Summary'!$C$39),"",IF(AND(G15>'A - Contractor Summary'!$C$39,G15<'A - Contractor Summary'!$C$42),"Yes",IF(G15>'A - Contractor Summary'!$C$42,"No","Needs Review"))) ->  | P15: Yes | Q15: No | R15: =+K15 -> 15.22 | S15: 0 | V15: 1
B16: 3 | F16: 25-23072 | G16: 2018-10-14 | H16: Johnny Martin | I16: Mclains Family Steakhouse | J16: Defuniak Springs Fl | K16: 67.32 | N16: =IF(AND(G16>='A - Contractor Summary'!$C$36,G16<='A - Contractor Summary'!$C$38),"Yes",IF(G16<'A - Contractor Summary'!$C$36,"No",IF(G16>'A - Contractor Summary'!$C$39,"",""))) -> No | O16: =IF(OR(N16="Yes",N16="No")*AND(G16<'A - Contractor Summary'!$C$39),"",IF(AND(G16>'A - Contractor Summary'!$C$39,G16<'A - Contractor Summary'!$C$42),"Yes",IF(G16>'A - Contractor Summary'!$C$42,"No","Needs Review"))) ->  | P16: Yes | Q16: No | R16: 67.32 | S16: 0 | V16: 1
B17: 4 | F17: 25-23086 | G17: 2018-10-15 | H17: Kerry Lee | I17: Wards | K17: 14.53 | N17: =IF(AND(G17>='A - Contractor Summary'!$C$36,G17<='A - Contractor Summary'!$C$38),"Yes",IF(G17<'A - Contractor Summary'!$C$36,"No",IF(G17>'A - Contractor Summary'!$C$39,"",""))) -> No | O17: =IF(OR(N17="Yes",N17="No")*AND(G17<'A - Contractor Summary'!$C$39),"",IF(AND(G17>'A - Contractor Summary'!$C$39,G17<'A - Contractor Summary'!$C$42),"Yes",IF(G17>'A - Contractor Summary'!$C$42,"No","Needs Review"))) ->  | P17: Yes | Q17: No | R17: 14.53 | S17: 0 | V17: 1
B18: 5 | F18: 25-23086 | G18: 2018-10-15 | H18: Joseph Buford | I18: Chow Time | J18: Pensacola FL | K18: 17.93 | N18: =IF(AND(G18>='A - Contractor Summary'!$C$36,G18<='A - Contractor Summary'!$C$38),"Yes",IF(G18<'A - Contractor Summary'!$C$36,"No",IF(G18>'A - Contractor Summary'!$C$39,"",""))) -> No | O18: =IF(OR(N18="Yes",N18="No")*AND(G18<'A - Contractor Summary'!$C$39),"",IF(AND(G18>'A - Contractor Summary'!$C$39,G18<'A - Contractor Summary'!$C$42),"Yes",IF(G18>'A - Contractor Summary'!$C$42,"No","Needs Review"))) ->  | P18: No | Q18: No | R18: 17.93 | S18: 0 | V18: 1
B19: 6 | F19: 25-23089 | G19: 2018-10-15 | H19: Eugene Breland | I19: Cozumel Mexican Grill | J19: Loxley, AL | K19: 46.11 | N19: =IF(AND(G19>='A - Contractor Summary'!$C$36,G19<='A - Contractor Summary'!$C$38),"Yes",IF(G19<'A - Contractor Summary'!$C$36,"No",IF(G19>'A - Contractor Summary'!$C$39,"",""))) -> No | O19: =IF(OR(N19="Yes",N19="No")*AND(G19<'A - Contractor Summary'!$C$39),"",IF(AND(G19>'A - Contractor Summary'!$C$39,G19<'A - Contractor Summary'!$C$42),"Yes",IF(G19>'A - Contractor Summary'!$C$42,"No","Needs Review"))) ->  | P19: Yes | Q19: No | R19: 46.11 | S19: 0 | V19: 1
K20: =SUM(K14:K19) -> 179.18 | R20: =IFERROR(SUM(R14:R19),0) -> 179.18 | S20: =IFERROR(SUM(S14:S19),0) -> 0 | T20: =SUM(T14:T19) -> 0 | U20: =SUM(U14:U19) -> 0 | V20: =S20-T20-U20 -> 0 | W20: check (a)
B24: Tickmark Explanation:
C25: 1 | D25: receipts provided

Sheet G - Per Diem
B2: Per Diem Charges
B4: Test Plan: (A) Enter per diem charges per invoice. (B) Enter number of crew worked per timecard. (C) Enter the Per Diem Rate charged per person per meal (D) Ensure the number of crew members being charged is appropriate (This is comparing the submitted timecards and the per diem charges invoiced). (E) Ensure charges fall between the dates the vendor was mobilized and the date they arrived. (F) Ensure charges are prior to the date the vendor arrived home or was released to another utility. (G) Determine the amount(s) to be reviewed, allowed and/or disallowed. (H) For charges which required further review, document review and include why it was determined to be allowed/disallowed via a tickmark.
B10: Rx | C10: Recalculated.
B11: a | C11: Check figure should equal $0. Cell will appear yellow if discrepancies are noted.
B14: A | F14: B | G14: Rx | H14: C | I14: Rx | J14: D | K14: E | L14: F | M14: G | P14: H
B15: Support Reviewed | J15: Conclusion
B16: Dates | C16: Company | D16: Per Diem Type | E16: # Crew Worked (per invoice) | F16: # Crew Worked (per timecards) | G16: Difference | H16: Per Diem Rate | I16: Total Per Diem | J16: # Crew Reasonable | K16: Reasonable based on Mobilization date(s) | L16: Reasonable based on Demobilization date(s) | M16: Conclusion | N16: $ Allowable Charge | O16: $ To Be Reviewed | P16: Reviewed - Allowable Charge | Q16: Reviewed - Unallowable Charge | R16: Tickmarks | S16: INV #
B17: 10/29/18-11/4/18 | C17: Vendor No 11 | D17: Meals | E17: 29 | F17: 29 | G17: =E17-F17 -> 0 | H17: 45 | I17: =+E17*H17 -> 1305 | J17: =IF(G17>0,"No",IF(F17=0,"N/A","Yes")) -> Yes | K17: =IF(AND(B17>='A - Contractor Summary'!$C$36,B17<='A - Contractor Summary'!$C$38),"Yes",IF(B17<'A - Contractor Summary'!$C$36,"No",IF(B17>'A - Contractor Summary'!$C$39,"",""))) ->  | L17: =IF(OR(K17="Yes",K17="No")*AND(B17<'A - Contractor Summary'!$C$39),"",IF(AND(B17>'A - Contractor Summary'!$C$39,B17<'A - Contractor Summary'!$C$42),"Yes",IF(B17>'A - Contractor Summary'!$C$42,"No","Needs Review"))) -> Yes | M17: =IF(AND(J17="Yes")*OR(K17="Yes",L17="Yes"),"Yes",IF(OR(K17="No",J17="No",L17="No"),"No","Needs Review")) -> Yes | N17: =+I17 -> 1305 | O17: =IF(M17="Needs Review",I17,0) -> 0 | R17: 1 | S17: 25-23141
B18: 10/29/18-11/4/18 | C18: Vendor No 11 | D18: Meals | E18: 20 | F18: 20 | G18: 0 | H18: 45 | I18: 900 | J18: Yes | K18: =IF(AND(B18>='A - Contractor Summary'!$C$36,B18<='A - Contractor Summary'!$C$38),"Yes",IF(B18<'A - Contractor Summary'!$C$36,"No",IF(B18>'A - Contractor Summary'!$C$39,"",""))) ->  | L18: =IF(OR(K18="Yes",K18="No")*AND(B18<'A - Contractor Summary'!$C$39),"",IF(AND(B18>'A - Contractor Summary'!$C$39,B18<'A - Contractor Summary'!$C$42),"Yes",IF(B18>'A - Contractor Summary'!$C$42,"No","Needs Review"))) -> Yes | M18: Yes | N18: 900 | O18: 0 | R18: 1 | S18: 25-23141
B19: 10/29/18-11/4/18 | C19: Vendor No 11 | D19: Meals | E19: 24 | F19: 24 | G19: 0 | H19: 45 | I19: 1080 | J19: Yes | K19: =IF(AND(B19>='A - Contractor Summary'!$C$36,B19<='A - Contractor Summary'!$C$38),"Yes",IF(B19<'A - Contractor Summary'!$C$36,"No",IF(B19>'A - Contractor Summary'!$C$39,"",""))) ->  | L19: =IF(OR(K19="Yes",K19="No")*AND(B19<'A - Contractor Summary'!$C$39),"",IF(AND(B19>'A - Contractor Summary'!$C$39,B19<'A - Contractor Summary'!$C$42),"Yes",IF(B19>'A - Contractor Summary'!$C$42,"No","Needs Review"))) -> Yes | M19: Yes | N19: 1080 | O19: 0 | R19: 1 | S19: 25-23141
B20: 10/29/18-11/4/18 | C20: Vendor No 11 | D20: Meals | E20: 24 | F20: 24 | G20: 0 | H20: 45 | I20: =+E20*H20 -> 1080 | J20: Yes | K20: =IF(AND(B20>='A - Contractor Summary'!$C$36,B20<='A - Contractor Summary'!$C$38),"Yes",IF(B20<'A - Contractor Summary'!$C$36,"No",IF(B20>'A - Contractor Summary'!$C$39,"",""))) ->  | L20: =IF(OR(K20="Yes",K20="No")*AND(B20<'A - Contractor Summary'!$C$39),"",IF(AND(B20>'A - Contractor Summary'!$C$39,B20<'A - Contractor Summary'!$C$42),"Yes",IF(B20>'A - Contractor Summary'!$C$42,"No","Needs Review"))) -> Yes | M20: Yes | N20: 1080 | O20: 0 | R20: 1 | S20: 25-23141
B21: 10/29/18-11/4/18 | C21: Vendor No 11 | D21: Meals | E21: 20 | F21: 20 | G21: 0 | H21: 45 | I21: 900 | J21: Yes | K21: =IF(AND(B21>='A - Contractor Summary'!$C$36,B21<='A - Contractor Summary'!$C$38),"Yes",IF(B21<'A - Contractor Summary'!$C$36,"No",IF(B21>'A - Contractor Summary'!$C$39,"",""))) ->  | L21: =IF(OR(K21="Yes",K21="No")*AND(B21<'A - Contractor Summary'!$C$39),"",IF(AND(B21>'A - Contractor Summary'!$C$39,B21<'A - Contractor Summary'!$C$42),"Yes",IF(B21>'A - Contractor Summary'!$C$42,"No","Needs Review"))) -> Yes | M21: Yes | N21: 900 | O21: 0 | R21: 1 | S21: 25-23141
B22: 10/29/18-11/4/18 | C22: Vendor No 11 | D22: Meals | E22: 20 | F22: 20 | G22: 0 | H22: 45 | I22: 900 | J22: Yes | K22: =IF(AND(B22>='A - Contractor Summary'!$C$36,B22<='A - Contractor Summary'!$C$38),"Yes",IF(B22<'A - Contractor Summary'!$C$36,"No",IF(B22>'A - Contractor Summary'!$C$39,"",""))) ->  | L22: =IF(OR(K22="Yes",K22="No")*AND(B22<'A - Contractor Summary'!$C$39),"",IF(AND(B22>'A - Contractor Summary'!$C$39,B22<'A - Contractor Summary'!$C$42),"Yes",IF(B22>'A - Contractor Summary'!$C$42,"No","Needs Review"))) -> Yes | M22: Yes | N22: 900 | O22: 0 | R22: 1 | S22: 25-23141
B23: 10/29/18-11/4/18 | C23: Vendor No 11 | D23: Meals | E23: 20 | F23: 16 | G23: 4 | H23: 45 | I23: 900 | J23: No | K23: =IF(AND(B23>='A - Contractor Summary'!$C$36,B23<='A - Contractor Summary'!$C$38),"Yes",IF(B23<'A - Contractor Summary'!$C$36,"No",IF(B23>'A - Contractor Summary'!$C$39,"",""))) ->  | L23: =IF(OR(K23="Yes",K23="No")*AND(B23<'A - Contractor Summary'!$C$39),"",IF(AND(B23>'A - Contractor Summary'!$C$39,B23<'A - Contractor Summary'!$C$42),"Yes",IF(B23>'A - Contractor Summary'!$C$42,"No","Needs Review"))) -> Yes | M23: No | N23: 900 | O23: 0 | R23: 1 | S23: 25-23141
B24: 10/29/18-11/4/18 | C24: Vendor No 11 | D24: Meals | E24: 20 | F24: 20 | G24: 0 | H24: 45 | I24: 900 | J24: Yes | K24: =IF(AND(B24>='A - Contractor Summary'!$C$36,B24<='A - Contractor Summary'!$C$38),"Yes",IF(B24<'A - Contractor Summary'!$C$36,"No",IF(B24>'A - Contractor Summary'!$C$39,"",""))) ->  | L24: =IF(OR(K24="Yes",K24="No")*AND(B24<'A - Contractor Summary'!$C$39),"",IF(AND(B24>'A - Contractor Summary'!$C$39,B24<'A - Contractor Summary'!$C$42),"Yes",IF(B24>'A - Contractor Summary'!$C$42,"No","Needs Review"))) -> Yes | M24: Yes | N24: 900 | O24: 0 | R24: 1 | S24: 25-23141
B25: 10/29/18-11/4/18 | C25: Vendor No 11 | D25: Meals | E25: 24 | F25: 24 | G25: 0 | H25: 45 | I25: 1080 | J25: Yes | K25: =IF(AND(B25>='A - Contractor Summary'!$C$36,B25<='A - Contractor Summary'!$C$38),"Yes",IF(B25<'A - Contractor Summary'!$C$36,"No",IF(B25>'A - Contractor Summary'!$C$39,"",""))) ->  | L25: =IF(OR(K25="Yes",K25="No")*AND(B25<'A - Contractor Summary'!$C$39),"",IF(AND(B25>'A - Contractor Summary'!$C$39,B25<'A - Contractor Summary'!$C$42),"Yes",IF(B25>'A - Contractor Summary'!$C$42,"No","Needs Review"))) -> Yes | M25: Yes | N25: 1080 | O25: 0 | R25: 1 | S25: 25-23141
B26: 10/29/18-11/4/18 | C26: Vendor No 11 | D26: Meals | E26: 20 | F26: 20 | G26: 0 | H26: 45 | I26: 900 | J26: Yes | K26: =IF(AND(B26>='A - Contractor Summary'!$C$36,B26<='A - Contractor Summary'!$C$38),"Yes",IF(B26<'A - Contractor Summary'!$C$36,"No",IF(B26>'A - Contractor Summary'!$C$39,"",""))) ->  | N26: 900 | R26: 1 | S26: 25-23141
B27: 10/29/18-11/4/18 | C27: Vendor No 11 | D27: Meals | E27: 24 | F27: 24 | G27: 0 | H27: 45 | I27: 1080 | J27: Yes | K27: =IF(AND(B27>='A - Contractor Summary'!$C$36,B27<='A - Contractor Summary'!$C$38),"Yes",IF(B27<'A - Contractor Summary'!$C$36,"No",IF(B27>'A - Contractor Summary'!$C$39,"",""))) ->  | N27: 1080 | R27: 1 | S27: 25-23141
B28: 10/29/18-11/4/18 | C28: Vendor No 11 | D28: Meals | E28: 20 | F28: 20 | G28: 0 | H28: 45 | I28: 900 | J28: Yes | K28: =IF(AND(B28>='A - Contractor Summary'!$C$36,B28<='A - Contractor Summary'!$C$38),"Yes",IF(B28<'A - Contractor Summary'!$C$36,"No",IF(B28>'A - Contractor Summary'!$C$39,"",""))) ->  | N28: 900 | R28: 1 | S28: 25-23141
B29: 10/29/18-11/4/18 | C29: Vendor No 11 | D29: Meals | E29: 24 | F29: 24 | G29: 0 | H29: 45 | I29: 1080 | J29: Yes | K29: =IF(AND(B29>='A - Contractor Summary'!$C$36,B29<='A - Contractor Summary'!$C$38),"Yes",IF(B29<'A - Contractor Summary'!$C$36,"No",IF(B29>'A - Contractor Summary'!$C$39,"",""))) ->  | N29: 1080 | R29: 1 | S29: 25-23141
B30: 10/29/18-11/4/18 | C30: Vendor No 11 | D30: Meals | E30: 20 | F30: 20 | G30: 0 | H30: 45 | I30: 900 | J30: Yes | K30: =IF(AND(B30>='A - Contractor Summary'!$C$36,B30<='A - Contractor Summary'!$C$38),"Yes",IF(B30<'A - Contractor Summary'!$C$36,"No",IF(B30>'A - Contractor Summary'!$C$39,"",""))) ->  | N30: 900 | R30: 1 | S30: 25-23141
B31: 10/29/18-11/4/18 | C31: Vendor No 11 | D31: Meals | E31: 20 | F31: 20 | G31: 0 | H31: 45 | I31: 900 | J31: Yes | K31: =IF(AND(B31>='A - Contractor Summary'!$C$36,B31<='A - Contractor Summary'!$C$38),"Yes",IF(B31<'A - Contractor Summary'!$C$36,"No",IF(B31>'A - Contractor Summary'!$C$39,"",""))) ->  | N31: 900 | R31: 1 | S31: 25-23141
B32: 10/29/18-11/4/18 | C32: Vendor No 11 | D32: Meals | E32: 24 | F32: 24 | G32: 0 | H32: 45 | I32: 1080 | J32: Yes | K32: =IF(AND(B32>='A - Contractor Summary'!$C$36,B32<='A - Contractor Summary'!$C$38),"Yes",IF(B32<'A - Contractor Summary'!$C$36,"No",IF(B32>'A - Contractor Summary'!$C$39,"",""))) ->  | N32: 1080 | R32: 1 | S32: 25-23141
B33: 10/29/18-11/4/18 | C33: Vendor No 11 | D33: Meals | E33: 16 | F33: 16 | G33: 0 | H33: 45 | I33: 720 | J33: Yes | K33: =IF(AND(B33>='A - Contractor Summary'!$C$36,B33<='A - Contractor Summary'!$C$38),"Yes",IF(B33<'A - Contractor Summary'!$C$36,"No",IF(B33>'A - Contractor Summary'!$C$39,"",""))) ->  | N33: 720 | R33: 1 | S33: 25-23141
B34: 10/29/18-11/4/18 | C34: Vendor No 11 | D34: Meals | E34: 20 | F34: 20 | G34: 0 | H34: 45 | I34: 900 | J34: Yes | K34: =IF(AND(B34>='A - Contractor Summary'!$C$36,B34<='A - Contractor Summary'!$C$38),"Yes",IF(B34<'A - Contractor Summary'!$C$36,"No",IF(B34>'A - Contractor Summary'!$C$39,"",""))) ->  | N34: 900 | R34: 1 | S34: 25-23141
B35: 10/29/18-11/4/18 | C35: Vendor No 11 | D35: Meals | E35: 20 | F35: 20 | G35: 0 | H35: 45 | I35: 900 | J35: Yes | K35: =IF(AND(B35>='A - Contractor Summary'!$C$36,B35<='A - Contractor Summary'!$C$38),"Yes",IF(B35<'A - Contractor Summary'!$C$36,"No",IF(B35>'A - Contractor Summary'!$C$39,"",""))) ->  | N35: 900 | R35: 1 | S35: 25-23141
B36: 10/29/18-11/4/18 | C36: Vendor No 11 | D36: Meals | E36: 12 | F36: 12 | G36: 0 | H36: 45 | I36: 540 | J36: Yes | K36: =IF(AND(B36>='A - Contractor Summary'!$C$36,B36<='A - Contractor Summary'!$C$38),"Yes",IF(B36<'A - Contractor Summary'!$C$36,"No",IF(B36>'A - Contractor Summary'!$C$39,"",""))) ->  | N36: 540 | R36: 1 | S36: 25-23141
B37: 10/29/18-11/4/18 | C37: Vendor No 11 | D37: Meals | E37: 20 | F37: 20 | G37: 0 | H37: 45 | I37: 900 | J37: Yes | K37: =IF(AND(B37>='A - Contractor Summary'!$C$36,B37<='A - Contractor Summary'!$C$38),"Yes",IF(B37<'A - Contractor Summary'!$C$36,"No",IF(B37>'A - Contractor Summary'!$C$39,"",""))) ->  | N37: 900 | R37: 1 | S37: 25-23141
B38: 10/29/18-11/4/18 | C38: Vendor No 11 | D38: Meals | E38: 32 | F38: 32 | G38: 0 | H38: 45 | I38: 1440 | J38: Yes | K38: =IF(AND(B38>='A - Contractor Summary'!$C$36,B38<='A - Contractor Summary'!$C$38),"Yes",IF(B38<'A - Contractor Summary'!$C$36,"No",IF(B38>'A - Contractor Summary'!$C$39,"",""))) ->  | N38: 1440 | R38: 1 | S38: 25-23141
B39: 11/5/18-11/11/18 | C39: Vendor No 11 | D39: Meals | E39: 35 | F39: 35 | G39: 0 | H39: 45 | I39: 1575 | J39: Yes | K39: =IF(AND(B39>='A - Contractor Summary'!$C$36,B39<='A - Contractor Summary'!$C$38),"Yes",IF(B39<'A - Contractor Summary'!$C$36,"No",IF(B39>'A - Contractor Summary'!$C$39,"",""))) ->  | N39: 1575 | R39: 1 | S39: 25-23172
B40: 11/5/18-11/11/18 | C40: Vendor No 11 | D40: Meals | E40: 35 | F40: 35 | G40: 0 | H40: 45 | I40: 1575 | J40: Yes | K40: =IF(AND(B40>='A - Contractor Summary'!$C$36,B40<='A - Contractor Summary'!$C$38),"Yes",IF(B40<'A - Contractor Summary'!$C$36,"No",IF(B40>'A - Contractor Summary'!$C$39,"",""))) ->  | N40: 1575 | R40: 1 | S40: 25-23172
B41: 11/5/18-11/11/18 | C41: Vendor No 11 | D41: Meals | E41: 42 | F41: 42 | G41: 0 | H41: 45 | I41: 1890 | J41: Yes | K41: =IF(AND(B41>='A - Contractor Summary'!$C$36,B41<='A - Contractor Summary'!$C$38),"Yes",IF(B41<'A - Contractor Summary'!$C$36,"No",IF(B41>'A - Contractor Summary'!$C$39,"",""))) ->  | N41: 1890 | R41: 1 | S41: 25-23172
B42: 11/5/18-11/11/18 | C42: Vendor No 11 | D42: Meals | E42: 42 | F42: 42 | G42: 0 | H42: 45 | I42: 1890 | J42: Yes | K42: =IF(AND(B42>='A - Contractor Summary'!$C$36,B42<='A - Contractor Summary'!$C$38),"Yes",IF(B42<'A - Contractor Summary'!$C$36,"No",IF(B42>'A - Contractor Summary'!$C$39,"",""))) ->  | N42: 1890 | R42: 1 | S42: 25-23172
B43: 11/5/18-11/11/18 | C43: Vendor No 11 | D43: Meals | E43: 35 | F43: 35 | G43: 0 | H43: 45 | I43: 1575 | J43: Yes | K43: =IF(AND(B43>='A - Contractor Summary'!$C$36,B43<='A - Contractor Summary'!$C$38),"Yes",IF(B43<'A - Contractor Summary'!$C$36,"No",IF(B43>'A - Contractor Summary'!$C$39,"",""))) ->  | N43: 1575 | R43: 1 | S43: 25-23172
B44: 11/5/18-11/11/18 | C44: Vendor No 11 | D44: Meals | E44: 35 | F44: 35 | G44: 0 | H44: 45 | I44: 1575 | J44: Yes | K44: =IF(AND(B44>='A - Contractor Summary'!$C$36,B44<='A - Contractor Summary'!$C$38),"Yes",IF(B44<'A - Contractor Summary'!$C$36,"No",IF(B44>'A - Contractor Summary'!$C$39,"",""))) ->  | N44: 1575 | R44: 1 | S44: 25-23172
B45: 11/5/18-11/11/18 | C45: Vendor No 11 | D45: Meals | E45: 32 | F45: 32 | G45: 0 | H45: 45 | I45: 1440 | J45: Yes | K45: =IF(AND(B45>='A - Contractor Summary'!$C$36,B45<='A - Contractor Summary'!$C$38),"Yes",IF(B45<'A - Contractor Summary'!$C$36,"No",IF(B45>'A - Contractor Summary'!$C$39,"",""))) ->  | N45: 1440 | R45: 1 | S45: 25-23172
B46: 11/5/18-11/11/18 | C46: Vendor No 11 | D46: Meals | E46: 35 | F46: 35 | G46: 0 | H46: 45 | I46: 1575 | J46: Yes | K46: =IF(AND(B46>='A - Contractor Summary'!$C$36,B46<='A - Contractor Summary'!$C$38),"Yes",IF(B46<'A - Contractor Summary'!$C$36,"No",IF(B46>'A - Contractor Summary'!$C$39,"",""))) ->  | N46: 1575 | R46: 1 | S46: 25-23172
B47: 11/5/18-11/11/18 | C47: Vendor No 11 | D47: Meals | E47: 35 | F47: 35 | G47: 0 | H47: 45 | I47: 1575 | J47: Yes | K47: =IF(AND(B47>='A - Contractor Summary'!$C$36,B47<='A - Contractor Summary'!$C$38),"Yes",IF(B47<'A - Contractor Summary'!$C$36,"No",IF(B47>'A - Contractor Summary'!$C$39,"",""))) ->  | N47: 1575 | R47: 1 | S47: 25-23172
B48: 11/5/18-11/11/18 | C48: Vendor No 11 | D48: Meals | E48: 42 | F48: 42 | G48: 0 | H48: 45 | I48: 1890 | J48: Yes | K48: =IF(AND(B48>='A - Contractor Summary'!$C$36,B48<='A - Contractor Summary'!$C$38),"Yes",IF(B48<'A - Contractor Summary'!$C$36,"No",IF(B48>'A - Contractor Summary'!$C$39,"",""))) ->  | N48: 1890 | R48: 1 | S48: 25-23172
B49: 11/5/18-11/11/18 | C49: Vendor No 11 | D49: Meals | E49: 35 | F49: 35 | G49: 0 | H49: 45 | I49: 1575 | J49: Yes | K49: =IF(AND(B49>='A - Contractor Summary'!$C$36,B49<='A - Contractor Summary'!$C$38),"Yes",IF(B49<'A - Contractor Summary'!$C$36,"No",IF(B49>'A - Contractor Summary'!$C$39,"",""))) ->  | N49: 1575 | R49: 1 | S49: 25-23172
B50: 11/5/18-11/11/18 | C50: Vendor No 11 | D50: Meals | E50: 42 | F50: 42 | G50: 0 | H50: 45 | I50: 1890 | J50: Yes | K50: =IF(AND(B50>='A - Contractor Summary'!$C$36,B50<='A - Contractor Summary'!$C$38),"Yes",IF(B50<'A - Contractor Summary'!$C$36,"No",IF(B50>'A - Contractor Summary'!$C$39,"",""))) ->  | N50: 1890 | R50: 1 | S50: 25-23172
B51: 11/5/18-11/11/18 | C51: Vendor No 11 | D51: Meals | E51: 35 | F51: 35 | G51: 0 | H51: 45 | I51: 1575 | J51: Yes | K51: =IF(AND(B51>='A - Contractor Summary'!$C$36,B51<='A - Contractor Summary'!$C$38),"Yes",IF(B51<'A - Contractor Summary'!$C$36,"No",IF(B51>'A - Contractor Summary'!$C$39,"",""))) ->  | N51: 1575 | R51: 1 | S51: 25-23172
B52: 11/5/18-11/11/18 | C52: Vendor No 11 | D52: Meals | E52: 42 | F52: 42 | G52: 0 | H52: 45 | I52: 1890 | J52: Yes | K52: =IF(AND(B52>='A - Contractor Summary'!$C$36,B52<='A - Contractor Summary'!$C$38),"Yes",IF(B52<'A - Contractor Summary'!$C$36,"No",IF(B52>'A - Contractor Summary'!$C$39,"",""))) ->  | N52: 1890 | R52: 1 | S52: 25-23172
B53: 11/5/18-11/11/18 | C53: Vendor No 11 | D53: Meals | E53: 35 | F53: 35 | G53: 0 | H53: 45 | I53: 1575 | J53: Yes | K53: =IF(AND(B53>='A - Contractor Summary'!$C$36,B53<='A - Contractor Summary'!$C$38),"Yes",IF(B53<'A - Contractor Summary'!$C$36,"No",IF(B53>'A - Contractor Summary'!$C$39,"",""))) ->  | N53: 1575 | R53: 1 | S53: 25-23172
B54: 11/5/18-11/11/18 | C54: Vendor No 11 | D54: Meals | E54: 35 | F54: 35 | G54: 0 | H54: 45 | I54: 1575 | J54: Yes | K54: =IF(AND(B54>='A - Contractor Summary'!$C$36,B54<='A - Contractor Summary'!$C$38),"Yes",IF(B54<'A - Contractor Summary'!$C$36,"No",IF(B54>'A - Contractor Summary'!$C$39,"",""))) ->  | N54: 1575 | R54: 1 | S54: 25-23172
B55: 11/5/18-11/11/18 | C55: Vendor No 11 | D55: Meals | E55: 35 | F55: 35 | G55: 0 | H55: 45 | I55: 1575 | J55: Yes | K55: =IF(AND(B55>='A - Contractor Summary'!$C$36,B55<='A - Contractor Summary'!$C$38),"Yes",IF(B55<'A - Contractor Summary'!$C$36,"No",IF(B55>'A - Contractor Summary'!$C$39,"",""))) ->  | N55: 1575 | R55: 1 | S55: 25-23172
B56: 11/5/18-11/11/18 | C56: Vendor No 11 | D56: Meals | E56: 42 | F56: 42 | G56: 0 | H56: 45 | I56: 1890 | J56: Yes | K56: =IF(AND(B56>='A - Contractor Summary'!$C$36,B56<='A - Contractor Summary'!$C$38),"Yes",IF(B56<'A - Contractor Summary'!$C$36,"No",IF(B56>'A - Contractor Summary'!$C$39,"",""))) ->  | N56: 1890 | R56: 1 | S56: 25-23172
B57: 11/5/18-11/11/18 | C57: Vendor No 11 | D57: Meals | E57: 35 | F57: 35 | G57: 0 | H57: 45 | I57: 1575 | J57: Yes | K57: =IF(AND(B57>='A - Contractor Summary'!$C$36,B57<='A - Contractor Summary'!$C$38),"Yes",IF(B57<'A - Contractor Summary'!$C$36,"No",IF(B57>'A - Contractor Summary'!$C$39,"",""))) ->  | N57: 1575 | R57: 1 | S57: 25-23172
B58: 11/5/18-11/11/18 | C58: Vendor No 11 | D58: Meals | E58: 35 | F58: 35 | G58: 0 | H58: 45 | I58: 1575 | J58: Yes | K58: =IF(AND(B58>='A - Contractor Summary'!$C$36,B58<='A - Contractor Summary'!$C$38),"Yes",IF(B58<'A - Contractor Summary'!$C$36,"No",IF(B58>'A - Contractor Summary'!$C$39,"",""))) ->  | N58: 1575 | R58: 1 | S58: 25-23172
B59: 11/5/18-11/11/18 | C59: Vendor No 11 | D59: Meals | E59: 35 | F59: 35 | G59: 0 | H59: 45 | I59: 1575 | J59: Yes | K59: =IF(AND(B59>='A - Contractor Summary'!$C$36,B59<='A - Contractor Summary'!$C$38),"Yes",IF(B59<'A - Contractor Summary'!$C$36,"No",IF(B59>'A - Contractor Summary'!$C$39,"",""))) ->  | N59: 1575 | R59: 1 | S59: 25-23172
B60: 11/5/18-11/11/18 | C60: Vendor No 11 | D60: Meals | E60: 34 | F60: 34 | G60: 0 | H60: 45 | I60: 1530 | J60: Yes | K60: =IF(AND(B60>='A - Contractor Summary'!$C$36,B60<='A - Contractor Summary'!$C$38),"Yes",IF(B60<'A - Contractor Summary'!$C$36,"No",IF(B60>'A - Contractor Summary'!$C$39,"",""))) ->  | N60: 1530 | R60: 1 | S60: 25-23172
B61: 11/5/18-11/11/18 | C61: Vendor No 11 | D61: Meals | E61: 35 | F61: 35 | G61: 0 | H61: 45 | I61: 1575 | J61: Yes | K61: =IF(AND(B61>='A - Contractor Summary'!$C$36,B61<='A - Contractor Summary'!$C$38),"Yes",IF(B61<'A - Contractor Summary'!$C$36,"No",IF(B61>'A - Contractor Summary'!$C$39,"",""))) ->  | N61: 1575 | R61: 1 | S61: 25-23172
B62: 11/5/18-11/11/18 | C62: Vendor No 11 | D62: Meals | E62: 56 | F62: 56 | G62: 0 | H62: 45 | I62: 2520 | J62: Yes | K62: =IF(AND(B62>='A - Contractor Summary'!$C$36,B62<='A - Contractor Summary'!$C$38),"Yes",IF(B62<'A - Contractor Summary'!$C$36,"No",IF(B62>'A - Contractor Summary'!$C$39,"",""))) ->  | N62: 2520 | R62: 1 | S62: 25-23172
B63: 11/12/18-11/18/18 | C63: Vendor No 11 | D63: Meals | E63: 15 | F63: 15 | G63: 0 | H63: 45 | I63: 675 | J63: Yes | K63: =IF(AND(B63>='A - Contractor Summary'!$C$36,B63<='A - Contractor Summary'!$C$38),"Yes",IF(B63<'A - Contractor Summary'!$C$36,"No",IF(B63>'A - Contractor Summary'!$C$39,"",""))) ->  | N63: 675 | R63: 1 | S63: 25-23205 | T63: Waites
B64: 11/12/18-11/18/18 | C64: Vendor No 11 | D64: Meals | E64: 15 | F64: 15 | G64: 0 | H64: 45 | I64: 675 | J64: Yes | K64: =IF(AND(B64>='A - Contractor Summary'!$C$36,B64<='A - Contractor Summary'!$C$38),"Yes",IF(B64<'A - Contractor Summary'!$C$36,"No",IF(B64>'A - Contractor Summary'!$C$39,"",""))) ->  | N64: 675 | R64: 1 | S64: 25-23205 | T64: Hayes
B65: 11/12/18-11/18/18 | C65: Vendor No 11 | D65: Meals | E65: 42 | F65: 42 | G65: 0 | H65: 45 | I65: 1890 | J65: Yes | K65: =IF(AND(B65>='A - Contractor Summary'!$C$36,B65<='A - Contractor Summary'!$C$38),"Yes",IF(B65<'A - Contractor Summary'!$C$36,"No",IF(B65>'A - Contractor Summary'!$C$39,"",""))) ->  | N65: 1890 | R65: 1 | S65: 25-23205 | T65: Barnett
B66: 11/12/18-11/18/18 | C66: Vendor No 11 | D66: Meals | E66: 56 | F66: 56 | G66: 0 | H66: 45 | I66: 2520 | J66: Yes | K66: =IF(AND(B66>='A - Contractor Summary'!$C$36,B66<='A - Contractor Summary'!$C$38),"Yes",IF(B66<'A - Contractor Summary'!$C$36,"No",IF(B66>'A - Contractor Summary'!$C$39,"",""))) ->  | N66: 2520 | R66: 1 | S66: 25-23205 | T66: Chambley
B67: 11/12/18-11/18/18 | C67: Vendor No 11 | D67: Meals | E67: 10 | F67: 10 | G67: 0 | H67: 45 | I67: 450 | J67: Yes | K67: =IF(AND(B67>='A - Contractor Summary'!$C$36,B67<='A - Contractor Summary'!$C$38),"Yes",IF(B67<'A - Contractor Summary'!$C$36,"No",IF(B67>'A - Contractor Summary'!$C$39,"",""))) ->  | N67: 450 | R67: 1 | S67: 25-23205 | T67: Johnson
B68: 11/12/18-11/18/18 | C68: Vendor No 11 | D68: Meals | E68: 16 | F68: 16 | G68: 0 | H68: 45 | I68: 720 | J68: Yes | K68: =IF(AND(B68>='A - Contractor Summary'!$C$36,B68<='A - Contractor Summary'!$C$38),"Yes",IF(B68<'A - Contractor Summary'!$C$36,"No",IF(B68>'A - Contractor Summary'!$C$39,"",""))) ->  | N68: 720 | R68: 1 | S68: 25-23205 | T68: Wyatt
B69: 11/12/18-11/18/18 | C69: Vendor No 11 | D69: Meals | E69: 20 | F69: 20 | G69: 0 | H69: 45 | I69: 900 | J69: Yes | K69: =IF(AND(B69>='A - Contractor Summary'!$C$36,B69<='A - Contractor Summary'!$C$38),"Yes",IF(B69<'A - Contractor Summary'!$C$36,"No",IF(B69>'A - Contractor Summary'!$C$39,"",""))) ->  | N69: 900 | R69: 1 | S69: 25-23205 | T69: Chisholm
B70: 11/12/18-11/18/18 | C70: Vendor No 11 | D70: Meals | E70: 8 | F70: 8 | G70: 0 | H70: 45 | I70: 360 | J70: Yes | K70: =IF(AND(B70>='A - Contractor Summary'!$C$36,B70<='A - Contractor Summary'!$C$38),"Yes",IF(B70<'A - Contractor Summary'!$C$36,"No",IF(B70>'A - Contractor Summary'!$C$39,"",""))) ->  | N70: 360 | R70: 1 | S70: 25-23205 | T70: Grant
B71: 11/12/18-11/18/18 | C71: Vendor No 11 | D71: Meals | E71: 15 | F71: 15 | G71: 0 | H71: 40 | I71: 600 | J71: Yes | K71: =IF(AND(B71>='A - Contractor Summary'!$C$36,B71<='A - Contractor Summary'!$C$38),"Yes",IF(B71<'A - Contractor Summary'!$C$36,"No",IF(B71>'A - Contractor Summary'!$C$39,"",""))) ->  | N71: 600 | R71: only billed 600 | S71: 25-23205 | T71: England
B72: 11/12/18-11/18/18 | C72: Vendor No 11 | D72: Meals | E72: 18 | F72: 18 | G72: 0 | H72: 45 | I72: 810 | J72: Yes | K72: =IF(AND(B72>='A - Contractor Summary'!$C$36,B72<='A - Contractor Summary'!$C$38),"Yes",IF(B72<'A - Contractor Summary'!$C$36,"No",IF(B72>'A - Contractor Summary'!$C$39,"",""))) ->  | N72: 810 | R72: 1 | S72: 25-23205 | T72: Jefcoat
B73: 11/12/18-11/18/18 | C73: Vendor No 11 | D73: Meals | E73: 12 | F73: 12 | G73: 0 | H73: 45 | I73: 540 | J73: Yes | K73: =IF(AND(B73>='A - Contractor Summary'!$C$36,B73<='A - Contractor Summary'!$C$38),"Yes",IF(B73<'A - Contractor Summary'!$C$36,"No",IF(B73>'A - Contractor Summary'!$C$39,"",""))) ->  | N73: 540 | R73: 1 | S73: 25-23205 | T73: Breland
B74: 11/12/18-11/18/18 | C74: Vendor No 11 | D74: Meals | E74: 12 | F74: 12 | G74: 0 | H74: 45 | I74: 540 | J74: Yes | K74: =IF(AND(B74>='A - Contractor Summary'!$C$36,B74<='A - Contractor Summary'!$C$38),"Yes",IF(B74<'A - Contractor Summary'!$C$36,"No",IF(B74>'A - Contractor Summary'!$C$39,"",""))) ->  | N74: 540 | R74: 1 | S74: 25-23205 | T74: Breland
B75: 11/12/18-11/18/18 | C75: Vendor No 11 | D75: Meals | E75: 15 | F75: 15 | G75: 0 | H75: 40 | I75: 600 | J75: Yes | K75: =IF(AND(B75>='A - Contractor Summary'!$C$36,B75<='A - Contractor Summary'!$C$38),"Yes",IF(B75<'A - Contractor Summary'!$C$36,"No",IF(B75>'A - Contractor Summary'!$C$39,"",""))) ->  | N75: 600 | R75: only billed 600 | S75: 25-23205 | T75: Thompson
B76: 11/12/18-11/18/18 | C76: Vendor No 11 | D76: Meals | E76: 12 | F76: 12 | G76: 0 | H76: 45 | I76: 540 | J76: Yes | K76: =IF(AND(B76>='A - Contractor Summary'!$C$36,B76<='A - Contractor Summary'!$C$38),"Yes",IF(B76<'A - Contractor Summary'!$C$36,"No",IF(B76>'A - Contractor Summary'!$C$39,"",""))) ->  | N76: 540 | R76: 1 | S76: 25-23205 | T76: Kirkland
B77: 11/12/18-11/18/18 | C77: Vendor No 11 | D77: Meals | E77: 10 | F77: 10 | G77: 0 | H77: 45 | I77: 450 | J77: Yes | K77: =IF(AND(B77>='A - Contractor Summary'!$C$36,B77<='A - Contractor Summary'!$C$38),"Yes",IF(B77<'A - Contractor Summary'!$C$36,"No",IF(B77>'A - Contractor Summary'!$C$39,"",""))) ->  | N77: 450 | R77: 1 | S77: 25-23205 | T77: Brown
B78: 11/12/18-11/18/18 | C78: Vendor No 11 | D78: Meals | E78: 15 | F78: 15 | G78: 0 | H78: 40 | I78: 600 | J78: Yes | K78: =IF(AND(B78>='A - Contractor Summary'!$C$36,B78<='A - Contractor Summary'!$C$38),"Yes",IF(B78<'A - Contractor Summary'!$C$36,"No",IF(B78>'A - Contractor Summary'!$C$39,"",""))) ->  | N78: 600 | R78: only billed 600 | S78: 25-23205 | T78: Stevens
B79: 11/12/18-11/18/18 | C79: Vendor No 11 | D79: Meals | E79: 42 | F79: 42 | G79: 0 | H79: 45 | I79: 1890 | J79: Yes | K79: =IF(AND(B79>='A - Contractor Summary'!$C$36,B79<='A - Contractor Summary'!$C$38),"Yes",IF(B79<'A - Contractor Summary'!$C$36,"No",IF(B79>'A - Contractor Summary'!$C$39,"",""))) ->  | N79: 1890 | R79: 1 | S79: 25-23205 | T79: Martin
B80: 11/12/18-11/18/18 | C80: Vendor No 11 | D80: Meals | E80: 20 | F80: 20 | G80: 0 | H80: 45 | I80: 900 | J80: Yes | K80: =IF(AND(B80>='A - Contractor Summary'!$C$36,B80<='A - Contractor Summary'!$C$38),"Yes",IF(B80<'A - Contractor Summary'!$C$36,"No",IF(B80>'A - Contractor Summary'!$C$39,"",""))) ->  | N80: 900 | R80: 1 | S80: 25-23205 | T80: Culpepper
B81: 11/12/18-11/18/18 | C81: Vendor No 11 | D81: Meals | E81: 18 | F81: 18 | G81: 0 | H81: 45 | I81: 810 | J81: Yes | K81: =IF(AND(B81>='A - Contractor Summary'!$C$36,B81<='A - Contractor Summary'!$C$38),"Yes",IF(B81<'A - Contractor Summary'!$C$36,"No",IF(B81>'A - Contractor Summary'!$C$39,"",""))) ->  | N81: =+I81 -> 810 | R81: 1 | S81: 25-23205 | T81: Ricky Broom
B82: 11/12/18-11/18/18 | C82: Vendor No 11 | D82: Meals | E82: 18 | F82: 18 | G82: 0 | H82: 45 | I82: 810 | J82: Yes | K82: =IF(AND(B82>='A - Contractor Summary'!$C$36,B82<='A - Contractor Summary'!$C$38),"Yes",IF(B82<'A - Contractor Summary'!$C$36,"No",IF(B82>'A - Contractor Summary'!$C$39,"",""))) ->  | N82: 810 | R82: 1 | S82: 25-23205 | T82: Ricky Broom
B83: 11/12/18-11/18/18 | C83: Vendor No 11 | D83: Meals | E83: 20 | F83: 20 | G83: 0 | H83: 45 | I83: 900 | J83: Yes | K83: =IF(AND(B83>='A - Contractor Summary'!$C$36,B83<='A - Contractor Summary'!$C$38),"Yes",IF(B83<'A - Contractor Summary'!$C$36,"No",IF(B83>'A - Contractor Summary'!$C$39,"",""))) ->  | N83: 900 | R83: 1 | S83: 25-23205 | T83: Ricky Broom
B84: 11/12/18-11/18/18 | C84: Vendor No 11 | D84: Meals | E84: 20 | F84: 20 | G84: 0 | H84: 45 | I84: 900 | J84: Yes | K84: =IF(AND(B84>='A - Contractor Summary'!$C$36,B84<='A - Contractor Summary'!$C$38),"Yes",IF(B84<'A - Contractor Summary'!$C$36,"No",IF(B84>'A - Contractor Summary'!$C$39,"",""))) ->  | N84: 900 | R84: 1 | S84: 25-23205 | T84: Ricky Broom
B85: 11/12/18-11/18/18 | C85: Vendor No 11 | D85: Meals | E85: 12 | F85: 12 | G85: 0 | H85: 45 | I85: 540 | J85: Yes | K85: =IF(AND(B85>='A - Contractor Summary'!$C$36,B85<='A - Contractor Summary'!$C$38),"Yes",IF(B85<'A - Contractor Summary'!$C$36,"No",IF(B85>'A - Contractor Summary'!$C$39,"",""))) ->  | N85: 540 | R85: 1 | S85: 25-23205 | T85: Roy Sullins
B86: 11/12/18-11/18/18 | C86: Vendor No 11 | D86: Meals | E86: 16 | F86: 16 | G86: 0 | H86: 45 | I86: 720 | J86: Yes | K86: =IF(AND(B86>='A - Contractor Summary'!$C$36,B86<='A - Contractor Summary'!$C$38),"Yes",IF(B86<'A - Contractor Summary'!$C$36,"No",IF(B86>'A - Contractor Summary'!$C$39,"",""))) ->  | N86: =+I86 -> 720 | R86: 1 | S86: 25-23205 | T86: Arrington
G87: 0 | I87: 0 | J87: N/A | K87: =IF(AND(B87>='A - Contractor Summary'!$C$36,B87<='A - Contractor Summary'!$C$38),"Yes",IF(B87<'A - Contractor Summary'!$C$36,"No",IF(B87>'A - Contractor Summary'!$C$39,"",""))) -> No
G88: 0 | I88: 0 | J88: N/A | K88: =IF(AND(B88>='A - Contractor Summary'!$C$36,B88<='A - Contractor Summary'!$C$38),"Yes",IF(B88<'A - Contractor Summary'!$C$36,"No",IF(B88>'A - Contractor Summary'!$C$39,"",""))) -> No
G89: 0 | I89: 0 | J89: N/A | K89: =IF(AND(B89>='A - Contractor Summary'!$C$36,B89<='A - Contractor Summary'!$C$38),"Yes",IF(B89<'A - Contractor Summary'!$C$36,"No",IF(B89>'A - Contractor Summary'!$C$39,"",""))) -> No
G90: 0 | I90: 0 | J90: N/A | K90: =IF(AND(B90>='A - Contractor Summary'!$C$36,B90<='A - Contractor Summary'!$C$38),"Yes",IF(B90<'A - Contractor Summary'!$C$36,"No",IF(B90>'A - Contractor Summary'!$C$39,"",""))) -> No
G91: 0 | I91: 0 | J91: N/A | K91: =IF(AND(B91>='A - Contractor Summary'!$C$36,B91<='A - Contractor Summary'!$C$38),"Yes",IF(B91<'A - Contractor Summary'!$C$36,"No",IF(B91>'A - Contractor Summary'!$C$39,"",""))) -> No
G92: 0 | I92: 0 | J92: N/A | K92: =IF(AND(B92>='A - Contractor Summary'!$C$36,B92<='A - Contractor Summary'!$C$38),"Yes",IF(B92<'A - Contractor Summary'!$C$36,"No",IF(B92>'A - Contractor Summary'!$C$39,"",""))) -> No
G93: 0 | I93: 0 | J93: N/A | K93: =IF(AND(B93>='A - Contractor Summary'!$C$36,B93<='A - Contractor Summary'!$C$38),"Yes",IF(B93<'A - Contractor Summary'!$C$36,"No",IF(B93>'A - Contractor Summary'!$C$39,"",""))) -> No
G94: 0 | I94: 0 | J94: N/A | K94: =IF(AND(B94>='A - Contractor Summary'!$C$36,B94<='A - Contractor Summary'!$C$38),"Yes",IF(B94<'A - Contractor Summary'!$C$36,"No",IF(B94>'A - Contractor Summary'!$C$39,"",""))) -> No
G95: 0 | I95: 0 | J95: N/A | K95: =IF(AND(B95>='A - Contractor Summary'!$C$36,B95<='A - Contractor Summary'!$C$38),"Yes",IF(B95<'A - Contractor Summary'!$C$36,"No",IF(B95>'A - Contractor Summary'!$C$39,"",""))) -> No
G96: 0 | I96: 0 | J96: N/A | K96: =IF(AND(B96>='A - Contractor Summary'!$C$36,B96<='A - Contractor Summary'!$C$38),"Yes",IF(B96<'A - Contractor Summary'!$C$36,"No",IF(B96>'A - Contractor Summary'!$C$39,"",""))) -> No | L96: =IF(OR(K96="Yes",K96="No")*AND(B96<'A - Contractor Summary'!$C$39),"",IF(AND(B96>'A - Contractor Summary'!$C$39,B96<'A - Contractor Summary'!$C$42),"Yes",IF(B96>'A - Contractor Summary'!$C$42,"No","Needs Review"))) ->  | M96: =IF(AND(J96="Yes")*OR(K96="Yes",L96="Yes"),"Yes",IF(OR(K96="No",J96="No",L96="No"),"No","Needs Review")) -> No | N96: =IF(M96="Yes",I96,0) -> 0 | O96: =IF(M96="Needs Review",I96,0) -> 0
G97: =SUM(G17:G96) -> 4 | I97: =SUM(I17:I96) -> 82080 | N97: =IFERROR(SUM(N17:N96),0) -> 82080 | O97: =IFERROR(SUM(O17:O96),0) -> 0 | P97: =SUM(P17:P96) -> 0 | Q97: =SUM(Q17:Q96) -> 0 | R97: =O97-P97-Q97 -> 0 | S97: check (a)
B100: Tickmark Explanation:
B102: 1 Receipts provided
B103: Only billed 600 when receipts showed more

Sheet H - Mileage
B2: Mileage Charges
B4: Test Plan: (A) Obtain support of individual mileage charged (Typically a rate and mileage included on invoice). (B) Ensure charges fall between the dates the vendor was mobilized and the date they arrived. (C) Ensure charges are prior to the date the vendor arrived home or was released to another utility. (D) Ensure number of miles charged deemed reasonable based on vendor location (recalculated per 'A - Contractor Summary' tab). (E) Ensure the location of charge was reasonable (If mobilizing, charges should be related to travelling to TECO Service area, and home, if demobilizing). (F) Determine the amount(s) to be reviewed, allowed and/or disallowed. (G) For charges which required further review, document review and include why it was determined to be allowed/disallowed via a tickmark.
B10: Rx | C10: Recalculated.
B11: a | C11: Check figure should equal $0. Cell will appear yellow if discrepancies are noted.
C13: A | L13: Rx | M13: B | N13: C | O13: D | P13: E | Q13: F | T13: G
B14: Support Reviewed | M14: Conclusions
B15: # | C15: Type of Support | D15: Company | E15: Equipment Name | F15: Equipment ID | G15: Inv# | H15: Date | I15: Location | J15: Miles Charged | K15: $ / Mile (Rate) | L15: Total Charge | M15: Reasonable based on Mobilization date(s) | N15: Reasonable based on Demobilization date(s) | O15: Number of Miles Charged Reasonable | P15: Locations Reasonable | Q15: Conclusion | R15: $ Allowable Charge | S15: $ To Be Reviewed | T15: Reviewed - Allowable Charge | U15: Reviewed - Unallowable Charge | V15: Tickmarks
B16: 1 | C16: Spreadsheet | D16: Vendor No. 6 | K16: =VLOOKUP(E16,'C.1 - Rate Sheets'!H:I,2,FALSE) ->  | L16: =J16*K16 ->  | M16: =IF(AND(H16>='A - Contractor Summary'!$C$36,H16<='A - Contractor Summary'!$C$38),"Yes",IF(H16<'A - Contractor Summary'!$C$36,"No",IF(H16>'A - Contractor Summary'!$C$39,"",""))) -> No | N16: =IF(OR(M16="Yes",M16="No")*AND(H16<'A - Contractor Summary'!$C$39),"",IF(AND(H16>'A - Contractor Summary'!$C$39,H16<'A - Contractor Summary'!$C$42),"Yes",IF(H16>'A - Contractor Summary'!$C$42,"No","Needs Review"))) ->  | O16: =IF(AND(J16>PRODUCT('A - Contractor Summary'!$C$29,0.85),J16<PRODUCT('A - Contractor Summary'!$C$29,1.15)),"Yes","No") -> No | Q16: =IF(AND(P16="Yes",O16="Yes")*OR(N16="Yes",M16="Yes"),"Yes",IF(OR(M16="No",N16="No",P16="No",O16="No"),"No","Needs Review")) -> No | R16: =IF(Q16="Yes",L16,0) -> 0 | S16: =IF(Q16="Needs Review",L16,0) -> 0
B17: 2 | C17: Spreadsheet | D17: Vendor No. 6 | K17: =VLOOKUP(E17,'C.1 - Rate Sheets'!H:I,2,FALSE) ->  | M17: =IF(AND(H17>='A - Contractor Summary'!$C$36,H17<='A - Contractor Summary'!$C$38),"Yes",IF(H17<'A - Contractor Summary'!$C$36,"No",IF(H17>'A - Contractor Summary'!$C$39,"",""))) -> No | N17: =IF(OR(M17="Yes",M17="No")*AND(H17<'A - Contractor Summary'!$C$39),"",IF(AND(H17>'A - Contractor Summary'!$C$39,H17<'A - Contractor Summary'!$C$42),"Yes",IF(H17>'A - Contractor Summary'!$C$42,"No","Needs Review"))) ->  | O17: =IF(AND(J17>PRODUCT('A - Contractor Summary'!$C$29,0.85),J17<PRODUCT('A - Contractor Summary'!$C$29,1.15)),"Yes","No") -> No | Q17: No | R17: 0 | S17: 0
B18: 3 | C18: Spreadsheet | D18: Vendor No. 6 | K18: =VLOOKUP(E18,'C.1 - Rate Sheets'!H:I,2,FALSE) ->  | M18: =IF(AND(H18>='A - Contractor Summary'!$C$36,H18<='A - Contractor Summary'!$C$38),"Yes",IF(H18<'A - Contractor Summary'!$C$36,"No",IF(H18>'A - Contractor Summary'!$C$39,"",""))) -> No | N18: =IF(OR(M18="Yes",M18="No")*AND(H18<'A - Contractor Summary'!$C$39),"",IF(AND(H18>'A - Contractor Summary'!$C$39,H18<'A - Contractor Summary'!$C$42),"Yes",IF(H18>'A - Contractor Summary'!$C$42,"No","Needs Review"))) ->  | O18: =IF(AND(J18>PRODUCT('A - Contractor Summary'!$C$29,0.85),J18<PRODUCT('A - Contractor Summary'!$C$29,1.15)),"Yes","No") -> No | Q18: No | R18: 0 | S18: 0
B19: 4 | C19: Spreadsheet | D19: Vendor No. 6 | K19: =VLOOKUP(E19,'C.1 - Rate Sheets'!H:I,2,FALSE) ->  | M19: =IF(AND(H19>='A - Contractor Summary'!$C$36,H19<='A - Contractor Summary'!$C$38),"Yes",IF(H19<'A - Contractor Summary'!$C$36,"No",IF(H19>'A - Contractor Summary'!$C$39,"",""))) -> No | N19: =IF(OR(M19="Yes",M19="No")*AND(H19<'A - Contractor Summary'!$C$39),"",IF(AND(H19>'A - Contractor Summary'!$C$39,H19<'A - Contractor Summary'!$C$42),"Yes",IF(H19>'A - Contractor Summary'!$C$42,"No","Needs Review"))) ->  | O19: =IF(AND(J19>PRODUCT('A - Contractor Summary'!$C$29,0.85),J19<PRODUCT('A - Contractor Summary'!$C$29,1.15)),"Yes","No") -> No | Q19: No | R19: 0 | S19: 0
B20: 5 | C20: Spreadsheet | D20: Vendor No. 6 | K20: =VLOOKUP(E20,'C.1 - Rate Sheets'!H:I,2,FALSE) ->  | M20: =IF(AND(H20>='A - Contractor Summary'!$C$36,H20<='A - Contractor Summary'!$C$38),"Yes",IF(H20<'A - Contractor Summary'!$C$36,"No",IF(H20>'A - Contractor Summary'!$C$39,"",""))) -> No | N20: =IF(OR(M20="Yes",M20="No")*AND(H20<'A - Contractor Summary'!$C$39),"",IF(AND(H20>'A - Contractor Summary'!$C$39,H20<'A - Contractor Summary'!$C$42),"Yes",IF(H20>'A - Contractor Summary'!$C$42,"No","Needs Review"))) ->  | O20: =IF(AND(J20>PRODUCT('A - Contractor Summary'!$C$29,0.85),J20<PRODUCT('A - Contractor Summary'!$C$29,1.15)),"Yes","No") -> No | Q20: No | R20: 0 | S20: 0
B21: 6 | C21: Spreadsheet | D21: Vendor No. 6 | K21: =VLOOKUP(E21,'C.1 - Rate Sheets'!H:I,2,FALSE) ->  | M21: =IF(AND(H21>='A - Contractor Summary'!$C$36,H21<='A - Contractor Summary'!$C$38),"Yes",IF(H21<'A - Contractor Summary'!$C$36,"No",IF(H21>'A - Contractor Summary'!$C$39,"",""))) -> No | N21: =IF(OR(M21="Yes",M21="No")*AND(H21<'A - Contractor Summary'!$C$39),"",IF(AND(H21>'A - Contractor Summary'!$C$39,H21<'A - Contractor Summary'!$C$42),"Yes",IF(H21>'A - Contractor Summary'!$C$42,"No","Needs Review"))) ->  | O21: =IF(AND(J21>PRODUCT('A - Contractor Summary'!$C$29,0.85),J21<PRODUCT('A - Contractor Summary'!$C$29,1.15)),"Yes","No") -> No | Q21: No | R21: 0 | S21: 0
B22: 7 | C22: Spreadsheet | D22: Vendor No. 6 | K22: =VLOOKUP(E22,'C.1 - Rate Sheets'!H:I,2,FALSE) ->  | M22: =IF(AND(H22>='A - Contractor Summary'!$C$36,H22<='A - Contractor Summary'!$C$38),"Yes",IF(H22<'A - Contractor Summary'!$C$36,"No",IF(H22>'A - Contractor Summary'!$C$39,"",""))) -> No | N22: =IF(OR(M22="Yes",M22="No")*AND(H22<'A - Contractor Summary'!$C$39),"",IF(AND(H22>'A - Contractor Summary'!$C$39,H22<'A - Contractor Summary'!$C$42),"Yes",IF(H22>'A - Contractor Summary'!$C$42,"No","Needs Review"))) ->  | O22: =IF(AND(J22>PRODUCT('A - Contractor Summary'!$C$29,0.85),J22<PRODUCT('A - Contractor Summary'!$C$29,1.15)),"Yes","No") -> No | Q22: No | R22: 0 | S22: 0
B23: 8 | C23: Spreadsheet | D23: Vendor No. 6 | K23: =VLOOKUP(E23,'C.1 - Rate Sheets'!H:I,2,FALSE) ->  | M23: =IF(AND(H23>='A - Contractor Summary'!$C$36,H23<='A - Contractor Summary'!$C$38),"Yes",IF(H23<'A - Contractor Summary'!$C$36,"No",IF(H23>'A - Contractor Summary'!$C$39,"",""))) -> No | N23: =IF(OR(M23="Yes",M23="No")*AND(H23<'A - Contractor Summary'!$C$39),"",IF(AND(H23>'A - Contractor Summary'!$C$39,H23<'A - Contractor Summary'!$C$42),"Yes",IF(H23>'A - Contractor Summary'!$C$42,"No","Needs Review"))) ->  | O23: =IF(AND(J23>PRODUCT('A - Contractor Summary'!$C$29,0.85),J23<PRODUCT('A - Contractor Summary'!$C$29,1.15)),"Yes","No") -> No | Q23: No | R23: 0 | S23: 0
B24: 9 | C24: Spreadsheet | D24: Vendor No. 6 | K24: =VLOOKUP(E24,'C.1 - Rate Sheets'!H:I,2,FALSE) ->  | M24: =IF(AND(H24>='A - Contractor Summary'!$C$36,H24<='A - Contractor Summary'!$C$38),"Yes",IF(H24<'A - Contractor Summary'!$C$36,"No",IF(H24>'A - Contractor Summary'!$C$39,"",""))) -> No | N24: =IF(OR(M24="Yes",M24="No")*AND(H24<'A - Contractor Summary'!$C$39),"",IF(AND(H24>'A - Contractor Summary'!$C$39,H24<'A - Contractor Summary'!$C$42),"Yes",IF(H24>'A - Contractor Summary'!$C$42,"No","Needs Review"))) ->  | O24: =IF(AND(J24>PRODUCT('A - Contractor Summary'!$C$29,0.85),J24<PRODUCT('A - Contractor Summary'!$C$29,1.15)),"Yes","No") -> No | Q24: No | R24: 0 | S24: 0
B25: 10 | C25: Spreadsheet | D25: Vendor No. 6 | K25: =VLOOKUP(E25,'C.1 - Rate Sheets'!H:I,2,FALSE) ->  | M25: =IF(AND(H25>='A - Contractor Summary'!$C$36,H25<='A - Contractor Summary'!$C$38),"Yes",IF(H25<'A - Contractor Summary'!$C$36,"No",IF(H25>'A - Contractor Summary'!$C$39,"",""))) -> No | O25: =IF(AND(J25>PRODUCT('A - Contractor Summary'!$C$29,0.85),J25<PRODUCT('A - Contractor Summary'!$C$29,1.15)),"Yes","No") -> No | Q25: No
B26: 11 | C26: Spreadsheet | D26: Vendor No. 6 | K26: =VLOOKUP(E26,'C.1 - Rate Sheets'!H:I,2,FALSE) ->  | M26: =IF(AND(H26>='A - Contractor Summary'!$C$36,H26<='A - Contractor Summary'!$C$38),"Yes",IF(H26<'A - Contractor Summary'!$C$36,"No",IF(H26>'A - Contractor Summary'!$C$39,"",""))) -> No | N26: =IF(OR(M26="Yes",M26="No")*AND(H26<'A - Contractor Summary'!$C$39),"",IF(AND(H26>'A - Contractor Summary'!$C$39,H26<'A - Contractor Summary'!$C$42),"Yes",IF(H26>'A - Contractor Summary'!$C$42,"No","Needs Review"))) ->  | O26: =IF(AND(J26>PRODUCT('A - Contractor Summary'!$C$29,0.85),J26<PRODUCT('A - Contractor Summary'!$C$29,1.15)),"Yes","No") -> No | Q26: No | R26: 0 | S26: 0
B27: 12 | C27: Spreadsheet | D27: Vendor No. 6 | K27: =VLOOKUP(E27,'C.1 - Rate Sheets'!H:I,2,FALSE) ->  | M27: =IF(AND(H27>='A - Contractor Summary'!$C$36,H27<='A - Contractor Summary'!$C$38),"Yes",IF(H27<'A - Contractor Summary'!$C$36,"No",IF(H27>'A - Contractor Summary'!$C$39,"",""))) -> No | N27: =IF(OR(M27="Yes",M27="No")*AND(H27<'A - Contractor Summary'!$C$39),"",IF(AND(H27>'A - Contractor Summary'!$C$39,H27<'A - Contractor Summary'!$C$42),"Yes",IF(H27>'A - Contractor Summary'!$C$42,"No","Needs Review"))) ->  | O27: =IF(AND(J27>PRODUCT('A - Contractor Summary'!$C$29,0.85),J27<PRODUCT('A - Contractor Summary'!$C$29,1.15)),"Yes","No") -> No | Q27: No | R27: 0 | S27: 0
B28: 13 | C28: Spreadsheet | D28: Vendor No. 6 | K28: =VLOOKUP(E28,'C.1 - Rate Sheets'!H:I,2,FALSE) ->  | M28: =IF(AND(H28>='A - Contractor Summary'!$C$36,H28<='A - Contractor Summary'!$C$38),"Yes",IF(H28<'A - Contractor Summary'!$C$36,"No",IF(H28>'A - Contractor Summary'!$C$39,"",""))) -> No | N28: =IF(OR(M28="Yes",M28="No")*AND(H28<'A - Contractor Summary'!$C$39),"",IF(AND(H28>'A - Contractor Summary'!$C$39,H28<'A - Contractor Summary'!$C$42),"Yes",IF(H28>'A - Contractor Summary'!$C$42,"No","Needs Review"))) ->  | O28: =IF(AND(J28>PRODUCT('A - Contractor Summary'!$C$29,0.85),J28<PRODUCT('A - Contractor Summary'!$C$29,1.15)),"Yes","No") -> No | Q28: No | R28: 0 | S28: 0
B29: 14 | C29: Spreadsheet | D29: Vendor No. 6 | K29: =VLOOKUP(E29,'C.1 - Rate Sheets'!H:I,2,FALSE) ->  | M29: =IF(AND(H29>='A - Contractor Summary'!$C$36,H29<='A - Contractor Summary'!$C$38),"Yes",IF(H29<'A - Contractor Summary'!$C$36,"No",IF(H29>'A - Contractor Summary'!$C$39,"",""))) -> No | N29: =IF(OR(M29="Yes",M29="No")*AND(H29<'A - Contractor Summary'!$C$39),"",IF(AND(H29>'A - Contractor Summary'!$C$39,H29<'A - Contractor Summary'!$C$42),"Yes",IF(H29>'A - Contractor Summary'!$C$42,"No","Needs Review"))) ->  | O29: =IF(AND(J29>PRODUCT('A - Contractor Summary'!$C$29,0.85),J29<PRODUCT('A - Contractor Summary'!$C$29,1.15)),"Yes","No") -> No | Q29: No | R29: 0 | S29: 0
B30: 15 | C30: Spreadsheet | D30: Vendor No. 6 | K30: =VLOOKUP(E30,'C.1 - Rate Sheets'!H:I,2,FALSE) ->  | M30: =IF(AND(H30>='A - Contractor Summary'!$C$36,H30<='A - Contractor Summary'!$C$38),"Yes",IF(H30<'A - Contractor Summary'!$C$36,"No",IF(H30>'A - Contractor Summary'!$C$39,"",""))) -> No | N30: =IF(OR(M30="Yes",M30="No")*AND(H30<'A - Contractor Summary'!$C$39),"",IF(AND(H30>'A - Contractor Summary'!$C$39,H30<'A - Contractor Summary'!$C$42),"Yes",IF(H30>'A - Contractor Summary'!$C$42,"No","Needs Review"))) ->  | O30: =IF(AND(J30>PRODUCT('A - Contractor Summary'!$C$29,0.85),J30<PRODUCT('A - Contractor Summary'!$C$29,1.15)),"Yes","No") -> No | Q30: No | R30: 0 | S30: 0
B31: 16 | C31: Spreadsheet | D31: Vendor No. 6 | K31: =VLOOKUP(E31,'C.1 - Rate Sheets'!H:I,2,FALSE) ->  | M31: =IF(AND(H31>='A - Contractor Summary'!$C$36,H31<='A - Contractor Summary'!$C$38),"Yes",IF(H31<'A - Contractor Summary'!$C$36,"No",IF(H31>'A - Contractor Summary'!$C$39,"",""))) -> No | N31: =IF(OR(M31="Yes",M31="No")*AND(H31<'A - Contractor Summary'!$C$39),"",IF(AND(H31>'A - Contractor Summary'!$C$39,H31<'A - Contractor Summary'!$C$42),"Yes",IF(H31>'A - Contractor Summary'!$C$42,"No","Needs Review"))) ->  | O31: =IF(AND(J31>PRODUCT('A - Contractor Summary'!$C$29,0.85),J31<PRODUCT('A - Contractor Summary'!$C$29,1.15)),"Yes","No") -> No | Q31: No | R31: 0 | S31: 0
B32: 17 | C32: Spreadsheet | D32: Vendor No. 6 | K32: =VLOOKUP(E32,'C.1 - Rate Sheets'!H:I,2,FALSE) ->  | M32: =IF(AND(H32>='A - Contractor Summary'!$C$36,H32<='A - Contractor Summary'!$C$38),"Yes",IF(H32<'A - Contractor Summary'!$C$36,"No",IF(H32>'A - Contractor Summary'!$C$39,"",""))) -> No | N32: =IF(OR(M32="Yes",M32="No")*AND(H32<'A - Contractor Summary'!$C$39),"",IF(AND(H32>'A - Contractor Summary'!$C$39,H32<'A - Contractor Summary'!$C$42),"Yes",IF(H32>'A - Contractor Summary'!$C$42,"No","Needs Review"))) ->  | O32: =IF(AND(J32>PRODUCT('A - Contractor Summary'!$C$29,0.85),J32<PRODUCT('A - Contractor Summary'!$C$29,1.15)),"Yes","No") -> No | Q32: No | R32: =IF(Q32="Yes",#REF!,0) -> 0 | S32: 0
B33: 18 | C33: Spreadsheet | D33: Vendor No. 6 | K33: =VLOOKUP(E33,'C.1 - Rate Sheets'!H:I,2,FALSE) ->  | M33: =IF(AND(H33>='A - Contractor Summary'!$C$36,H33<='A - Contractor Summary'!$C$38),"Yes",IF(H33<'A - Contractor Summary'!$C$36,"No",IF(H33>'A - Contractor Summary'!$C$39,"",""))) -> No | N33: =IF(OR(M33="Yes",M33="No")*AND(H33<'A - Contractor Summary'!$C$39),"",IF(AND(H33>'A - Contractor Summary'!$C$39,H33<'A - Contractor Summary'!$C$42),"Yes",IF(H33>'A - Contractor Summary'!$C$42,"No","Needs Review"))) ->  | O33: =IF(AND(J33>PRODUCT('A - Contractor Summary'!$C$29,0.85),J33<PRODUCT('A - Contractor Summary'!$C$29,1.15)),"Yes","No") -> No | Q33: No | R33: =IF(Q33="Yes",#REF!,0) -> 0 | S33: 0
B34: 19 | C34: Spreadsheet | D34: Vendor No. 6 | K34: =VLOOKUP(E34,'C.1 - Rate Sheets'!H:I,2,FALSE) ->  | M34: =IF(AND(H34>='A - Contractor Summary'!$C$36,H34<='A - Contractor Summary'!$C$38),"Yes",IF(H34<'A - Contractor Summary'!$C$36,"No",IF(H34>'A - Contractor Summary'!$C$39,"",""))) -> No | O34: =IF(AND(J34>PRODUCT('A - Contractor Summary'!$C$29,0.85),J34<PRODUCT('A - Contractor Summary'!$C$29,1.15)),"Yes","No") -> No
B35: 20 | C35: Spreadsheet | D35: Vendor No. 6 | K35: =VLOOKUP(E35,'C.1 - Rate Sheets'!H:I,2,FALSE) ->  | M35: =IF(AND(H35>='A - Contractor Summary'!$C$36,H35<='A - Contractor Summary'!$C$38),"Yes",IF(H35<'A - Contractor Summary'!$C$36,"No",IF(H35>'A - Contractor Summary'!$C$39,"",""))) -> No | O35: =IF(AND(J35>PRODUCT('A - Contractor Summary'!$C$29,0.85),J35<PRODUCT('A - Contractor Summary'!$C$29,1.15)),"Yes","No") -> No
B36: 21 | C36: Spreadsheet | D36: Vendor No. 6 | K36: =VLOOKUP(E36,'C.1 - Rate Sheets'!H:I,2,FALSE) ->  | M36: =IF(AND(H36>='A - Contractor Summary'!$C$36,H36<='A - Contractor Summary'!$C$38),"Yes",IF(H36<'A - Contractor Summary'!$C$36,"No",IF(H36>'A - Contractor Summary'!$C$39,"",""))) -> No | O36: =IF(AND(J36>PRODUCT('A - Contractor Summary'!$C$29,0.85),J36<PRODUCT('A - Contractor Summary'!$C$29,1.15)),"Yes","No") -> No
B37: 22 | C37: Spreadsheet | D37: Vendor No. 6 | K37: =VLOOKUP(E37,'C.1 - Rate Sheets'!H:I,2,FALSE) ->  | M37: =IF(AND(H37>='A - Contractor Summary'!$C$36,H37<='A - Contractor Summary'!$C$38),"Yes",IF(H37<'A - Contractor Summary'!$C$36,"No",IF(H37>'A - Contractor Summary'!$C$39,"",""))) -> No | O37: =IF(AND(J37>PRODUCT('A - Contractor Summary'!$C$29,0.85),J37<PRODUCT('A - Contractor Summary'!$C$29,1.15)),"Yes","No") -> No
